Workbook

Sheet Standing Data
A1: Accounts Return March 2014 - Standing Data
A3: Academy Trust company name | D3: Type name here
D4: Enter company name in the cell above | F4: If the Academy Trust has changed its name in the period please enter the previous name in the cell above
A6: Period end | D6: 2014-03-31
D7: Select from drop-down box in the cell above
A9: Academy Trust's trading name
D10: Select from drop-down box in the cell above | F10: If 'Other' please enter the correct trading name in the cell above
A12: Trust's company number | D12: Type number here
D13: Enter company's registration number in the cell above
A15: Academy UPIN | D15: =VLOOKUP(D$9,Reference!O8:P3921,2,FALSE) ->  | AB15: Check for number | AD15: =IF(ISERROR(D15),"XXXXXX",IF(OR(D15="Multiple",D15="000000"),IF(F15<>"",F15,"XXXXXX"),D15)) -> XXXXXX
D16: UPIN will populate automatically in the cell above | F16: If pre-populated UPIN is incorrect, or shows '000000' please enter the correct number in the cell above | AB16: Random numner | AD16: =IF(AD15<>"XXXXXX","",IF(D12<>"Type number here",D12,INT(RAND()*100000000))) -> 33786114
A18: Conversion date | D18: =VLOOKUP($D$9,Reference!O8:Q3921,3,FALSE) ->  | AB18: File name to save | AD18: =IF(AD16="",AD15,AD15&" - "&AD16) -> XXXXXX - 33786114
D19: Date will populate automatically in the cell above | F19: If pre-populated date is incorrect please enter the correct date in the cell above
A21: Incorporation date
D22: Enter company's incorporation date in the cell above
A24: Period length
D25: Select from drop-down box in the cell above
A27: Status of the 2013 financial statements' audit opinion | D27: N/A - 31 March
D28: Select from drop-down box in the cell above
A30: Did the Academy Trust submit a EFA financial return as at 31 March 2012 | D30: No
D31: Select from drop-down box in the cell above
A33: Conclusion of assurance report on regularity | D33: N/A - 31 March
D34: Select from drop-down box in the cell above
A36: Region | D36: =VLOOKUP($D$9,Reference!O8:R3921,4,FALSE) -> 
D37: Region will populate automatically above | F37: If pre-populated region is incorrect please enter the correct region in the cell above
A39: Ex-local authority | D39: =VLOOKUP($D$9,Reference!O8:S3921,5,FALSE) -> 
D40: Local authority will populate automatically above | F40: If pre-populated local authority is incorrect please enter the correct local authority in the cell above
A42: Academy type
D43: Select from drop-down box in the cell above | F43: If 'Other' please enter the correct academy type in the cell above
A45: Multi-academy Trust | D45: =IF(D9="Multi-academy trust","Yes","No") -> No
D46: Trust status will populate automatically above
D48: Multi-academy Trust/Federation academy school names | E48: Academy UPIN | F48: New or existing member | G48: Date joined if new | I48: Correct Academy name | M48: Correct UPIN
A49: Academies included within this Accounts Return submitted by a Multi-academy Trust or Federation | D49: Academy name | E49: =IF(D49<>"Academy name",VLOOKUP(D49,Reference!$O$10:$P$3890,2,FALSE),"") -> 
D50: Academy name | E50: =IF(D50<>"Academy name",VLOOKUP(D50,Reference!$O$10:$P$3890,2,FALSE),"") -> 
D51: Academy name | E51: =IF(D51<>"Academy name",VLOOKUP(D51,Reference!$O$10:$P$3890,2,FALSE),"") -> 
D52: Academy name | E52: =IF(D52<>"Academy name",VLOOKUP(D52,Reference!$O$10:$P$3890,2,FALSE),"") -> 
D53: Academy name | E53: =IF(D53<>"Academy name",VLOOKUP(D53,Reference!$O$10:$P$3890,2,FALSE),"") -> 
D54: Academy name | E54: =IF(D54<>"Academy name",VLOOKUP(D54,Reference!$O$10:$P$3890,2,FALSE),"") -> 
D55: Academy name | E55: =IF(D55<>"Academy name",VLOOKUP(D55,Reference!$O$10:$P$3890,2,FALSE),"") -> 
D56: Academy name | E56: =IF(D56<>"Academy name",VLOOKUP(D56,Reference!$O$10:$P$3890,2,FALSE),"") -> 
D57: Academy name | E57: =IF(D57<>"Academy name",VLOOKUP(D57,Reference!$O$10:$P$3890,2,FALSE),"") -> 
D58: Academy name | E58: =IF(D58<>"Academy name",VLOOKUP(D58,Reference!$O$10:$P$3890,2,FALSE),"") -> 
D59: Academy name | E59: =IF(D59<>"Academy name",VLOOKUP(D59,Reference!$O$10:$P$3890,2,FALSE),"") -> 
D60: Academy name | E60: =IF(D60<>"Academy name",VLOOKUP(D60,Reference!$O$10:$P$3890,2,FALSE),"") -> 
D61: Academy name | E61: =IF(D61<>"Academy name",VLOOKUP(D61,Reference!$O$10:$P$3890,2,FALSE),"") -> 
D62: Academy name | E62: =IF(D62<>"Academy name",VLOOKUP(D62,Reference!$O$10:$P$3890,2,FALSE),"") -> 
D63: Academy name | E63: =IF(D63<>"Academy name",VLOOKUP(D63,Reference!$O$10:$P$3890,2,FALSE),"") -> 
D64: Academy name | E64: =IF(D64<>"Academy name",VLOOKUP(D64,Reference!$O$10:$P$3890,2,FALSE),"") -> 
D65: Academy name | E65: =IF(D65<>"Academy name",VLOOKUP(D65,Reference!$O$10:$P$3890,2,FALSE),"") -> 
D66: Academy name | E66: =IF(D66<>"Academy name",VLOOKUP(D66,Reference!$O$10:$P$3890,2,FALSE),"") -> 
D67: Academy name | E67: =IF(D67<>"Academy name",VLOOKUP(D67,Reference!$O$10:$P$3890,2,FALSE),"") -> 
D68: Academy name | E68: =IF(D68<>"Academy name",VLOOKUP(D68,Reference!$O$10:$P$3890,2,FALSE),"") -> 
D69: Academy name | E69: =IF(D69<>"Academy name",VLOOKUP(D69,Reference!$O$10:$P$3890,2,FALSE),"") -> 
D70: Academy name | E70: =IF(D70<>"Academy name",VLOOKUP(D70,Reference!$O$10:$P$3890,2,FALSE),"") -> 
D71: Academy name | E71: =IF(D71<>"Academy name",VLOOKUP(D71,Reference!$O$10:$P$3890,2,FALSE),"") -> 
D72: Academy name | E72: =IF(D72<>"Academy name",VLOOKUP(D72,Reference!$O$10:$P$3890,2,FALSE),"") -> 
D73: Academy name | E73: =IF(D73<>"Academy name",VLOOKUP(D73,Reference!$O$10:$P$3890,2,FALSE),"") -> 
D74: Academy name | E74: =IF(D74<>"Academy name",VLOOKUP(D74,Reference!$O$10:$P$3890,2,FALSE),"") -> 
D75: Academy name | E75: =IF(D75<>"Academy name",VLOOKUP(D75,Reference!$O$10:$P$3890,2,FALSE),"") -> 
D76: Academy name | E76: =IF(D76<>"Academy name",VLOOKUP(D76,Reference!$O$10:$P$3890,2,FALSE),"") -> 
D77: Academy name | E77: =IF(D77<>"Academy name",VLOOKUP(D77,Reference!$O$10:$P$3890,2,FALSE),"") -> 
D78: Academy name | E78: =IF(D78<>"Academy name",VLOOKUP(D78,Reference!$O$10:$P$3890,2,FALSE),"") -> 
D79: Academy name | E79: =IF(D79<>"Academy name",VLOOKUP(D79,Reference!$O$10:$P$3890,2,FALSE),"") -> 
D80: Academy name | E80: =IF(D80<>"Academy name",VLOOKUP(D80,Reference!$O$10:$P$3890,2,FALSE),"") -> 
D81: Academy name | E81: =IF(D81<>"Academy name",VLOOKUP(D81,Reference!$O$10:$P$3890,2,FALSE),"") -> 
D82: Academy name | E82: =IF(D82<>"Academy name",VLOOKUP(D82,Reference!$O$10:$P$3890,2,FALSE),"") -> 
D83: Academy name | E83: =IF(D83<>"Academy name",VLOOKUP(D83,Reference!$O$10:$P$3890,2,FALSE),"") -> 
D84: Academy name | E84: =IF(D84<>"Academy name",VLOOKUP(D84,Reference!$O$10:$P$3890,2,FALSE),"") -> 
D85: Academy name | E85: =IF(D85<>"Academy name",VLOOKUP(D85,Reference!$O$10:$P$3890,2,FALSE),"") -> 
D86: Academy name | E86: =IF(D86<>"Academy name",VLOOKUP(D86,Reference!$O$10:$P$3890,2,FALSE),"") -> 
D87: Academy name | E87: =IF(D87<>"Academy name",VLOOKUP(D87,Reference!$O$10:$P$3890,2,FALSE),"") -> 
D88: Academy name | E88: =IF(D88<>"Academy name",VLOOKUP(D88,Reference!$O$10:$P$3890,2,FALSE),"") -> 
D89: Academy name | E89: =IF(D89<>"Academy name",VLOOKUP(D89,Reference!$O$10:$P$3890,2,FALSE),"") -> 
D90: Academy name | E90: =IF(D90<>"Academy name",VLOOKUP(D90,Reference!$O$10:$P$3890,2,FALSE),"") -> 
D91: Academy name | E91: =IF(D91<>"Academy name",VLOOKUP(D91,Reference!$O$10:$P$3890,2,FALSE),"") -> 
D92: Academy name | E92: =IF(D92<>"Academy name",VLOOKUP(D92,Reference!$O$10:$P$3890,2,FALSE),"") -> 
D93: Academy name | E93: =IF(D93<>"Academy name",VLOOKUP(D93,Reference!$O$10:$P$3890,2,FALSE),"") -> 
D94: Academy name | E94: =IF(D94<>"Academy name",VLOOKUP(D94,Reference!$O$10:$P$3890,2,FALSE),"") -> 
D95: Academy name | E95: =IF(D95<>"Academy name",VLOOKUP(D95,Reference!$O$10:$P$3890,2,FALSE),"") -> 
D96: Academy name | E96: =IF(D96<>"Academy name",VLOOKUP(D96,Reference!$O$10:$P$3890,2,FALSE),"") -> 
D97: Academy name | E97: =IF(D97<>"Academy name",VLOOKUP(D97,Reference!$O$10:$P$3890,2,FALSE),"") -> 
D98: Academy name | E98: =IF(D98<>"Academy name",VLOOKUP(D98,Reference!$O$10:$P$3890,2,FALSE),"") -> 
D99: Academy name | E99: =IF(D99<>"Academy name",VLOOKUP(D99,Reference!$O$10:$P$3890,2,FALSE),"") -> 
D100: Academy name | E100: =IF(D100<>"Academy name",VLOOKUP(D100,Reference!$O$10:$P$3890,2,FALSE),"") -> 
D101: Academy name | E101: =IF(D101<>"Academy name",VLOOKUP(D101,Reference!$O$10:$P$3890,2,FALSE),"") -> 
D102: Academy name | E102: =IF(D102<>"Academy name",VLOOKUP(D102,Reference!$O$10:$P$3890,2,FALSE),"") -> 
D103: Academy name | E103: =IF(D103<>"Academy name",VLOOKUP(D103,Reference!$O$10:$P$3890,2,FALSE),"") -> 
D104: Academy name | E104: =IF(D104<>"Academy name",VLOOKUP(D104,Reference!$O$10:$P$3890,2,FALSE),"") -> 
D105: Academy name | E105: =IF(D105<>"Academy name",VLOOKUP(D105,Reference!$O$10:$P$3890,2,FALSE),"") -> 
D106: Academy name | E106: =IF(D106<>"Academy name",VLOOKUP(D106,Reference!$O$10:$P$3890,2,FALSE),"") -> 
D107: Academy name | E107: =IF(D107<>"Academy name",VLOOKUP(D107,Reference!$O$10:$P$3890,2,FALSE),"") -> 
D108: Academy name | E108: =IF(D108<>"Academy name",VLOOKUP(D108,Reference!$O$10:$P$3890,2,FALSE),"") -> 
D109: Academy name | E109: =IF(D109<>"Academy name",VLOOKUP(D109,Reference!$O$10:$P$3890,2,FALSE),"") -> 
D110: Academy name | E110: =IF(D110<>"Academy name",VLOOKUP(D110,Reference!$O$10:$P$3890,2,FALSE),"") -> 
D111: Academy name | E111: =IF(D111<>"Academy name",VLOOKUP(D111,Reference!$O$10:$P$3890,2,FALSE),"") -> 
D112: Academy name | E112: =IF(D112<>"Academy name",VLOOKUP(D112,Reference!$O$10:$P$3890,2,FALSE),"") -> 
D113: Academy name | E113: =IF(D113<>"Academy name",VLOOKUP(D113,Reference!$O$10:$P$3890,2,FALSE),"") -> 
D114: Academy name | E114: =IF(D114<>"Academy name",VLOOKUP(D114,Reference!$O$10:$P$3890,2,FALSE),"") -> 
D115: Academy name | E115: =IF(D115<>"Academy name",VLOOKUP(D115,Reference!$O$10:$P$3890,2,FALSE),"") -> 
D116: Academy name | E116: =IF(D116<>"Academy name",VLOOKUP(D116,Reference!$O$10:$P$3890,2,FALSE),"") -> 
D117: Academy name | E117: =IF(D117<>"Academy name",VLOOKUP(D117,Reference!$O$10:$P$3890,2,FALSE),"") -> 
D118: Academy name | E118: =IF(D118<>"Academy name",VLOOKUP(D118,Reference!$O$10:$P$3890,2,FALSE),"") -> 
D119: Academy name | E119: =IF(D119<>"Academy name",VLOOKUP(D119,Reference!$O$10:$P$3890,2,FALSE),"") -> 
D120: Academy name | E120: =IF(D120<>"Academy name",VLOOKUP(D120,Reference!$O$10:$P$3890,2,FALSE),"") -> 
D121: Academy name | E121: =IF(D121<>"Academy name",VLOOKUP(D121,Reference!$O$10:$P$3890,2,FALSE),"") -> 
D122: Academy name | E122: =IF(D122<>"Academy name",VLOOKUP(D122,Reference!$O$10:$P$3890,2,FALSE),"") -> 
D123: Academy name | E123: =IF(D123<>"Academy name",VLOOKUP(D123,Reference!$O$10:$P$3890,2,FALSE),"") -> 
D124: Academy name | E124: =IF(D124<>"Academy name",VLOOKUP(D124,Reference!$O$10:$P$3890,2,FALSE),"") -> 
D125: Academy name | E125: =IF(D125<>"Academy name",VLOOKUP(D125,Reference!$O$10:$P$3890,2,FALSE),"") -> 
D126: Academy name | E126: =IF(D126<>"Academy name",VLOOKUP(D126,Reference!$O$10:$P$3890,2,FALSE),"") -> 
D127: Academy name | E127: =IF(D127<>"Academy name",VLOOKUP(D127,Reference!$O$10:$P$3890,2,FALSE),"") -> 
D128: Academy name | E128: =IF(D128<>"Academy name",VLOOKUP(D128,Reference!$O$10:$P$3890,2,FALSE),"") -> 
D129: Academy name | E129: =IF(D129<>"Academy name",VLOOKUP(D129,Reference!$O$10:$P$3890,2,FALSE),"") -> 
D130: Academy name | E130: =IF(D130<>"Academy name",VLOOKUP(D130,Reference!$O$10:$P$3890,2,FALSE),"") -> 
D131: Academy name | E131: =IF(D131<>"Academy name",VLOOKUP(D131,Reference!$O$10:$P$3890,2,FALSE),"") -> 
D132: Academy name | E132: =IF(D132<>"Academy name",VLOOKUP(D132,Reference!$O$10:$P$3890,2,FALSE),"") -> 
D133: Academy name | E133: =IF(D133<>"Academy name",VLOOKUP(D133,Reference!$O$10:$P$3890,2,FALSE),"") -> 
D134: Academy name | E134: =IF(D134<>"Academy name",VLOOKUP(D134,Reference!$O$10:$P$3890,2,FALSE),"") -> 
D135: Academy name | E135: =IF(D135<>"Academy name",VLOOKUP(D135,Reference!$O$10:$P$3890,2,FALSE),"") -> 
D136: Academy name | E136: =IF(D136<>"Academy name",VLOOKUP(D136,Reference!$O$10:$P$3890,2,FALSE),"") -> 
D137: Academy name | E137: =IF(D137<>"Academy name",VLOOKUP(D137,Reference!$O$10:$P$3890,2,FALSE),"") -> 
D138: Academy name | E138: =IF(D138<>"Academy name",VLOOKUP(D138,Reference!$O$10:$P$3890,2,FALSE),"") -> 
D139: Academy name | E139: =IF(D139<>"Academy name",VLOOKUP(D139,Reference!$O$10:$P$3890,2,FALSE),"") -> 
D140: Academy name | E140: =IF(D140<>"Academy name",VLOOKUP(D140,Reference!$O$10:$P$3890,2,FALSE),"") -> 
D141: Academy name | E141: =IF(D141<>"Academy name",VLOOKUP(D141,Reference!$O$10:$P$3890,2,FALSE),"") -> 
D142: Academy name | E142: =IF(D142<>"Academy name",VLOOKUP(D142,Reference!$O$10:$P$3890,2,FALSE),"") -> 
D143: Academy name | E143: =IF(D143<>"Academy name",VLOOKUP(D143,Reference!$O$10:$P$3890,2,FALSE),"") -> 
D144: Academy name | E144: =IF(D144<>"Academy name",VLOOKUP(D144,Reference!$O$10:$P$3890,2,FALSE),"") -> 
D145: Academy name | E145: =IF(D145<>"Academy name",VLOOKUP(D145,Reference!$O$10:$P$3890,2,FALSE),"") -> 
D146: Academy name | E146: =IF(D146<>"Academy name",VLOOKUP(D146,Reference!$O$10:$P$3890,2,FALSE),"") -> 
D147: Academy name | E147: =IF(D147<>"Academy name",VLOOKUP(D147,Reference!$O$10:$P$3890,2,FALSE),"") -> 
D148: Academy name | E148: =IF(D148<>"Academy name",VLOOKUP(D148,Reference!$O$10:$P$3890,2,FALSE),"") -> 
D149: Please select names from the drop-down box in the cells above | F149: Select from drop-down box in the cells above
A150: Has the Trust/Federation had subsidiaries during the period?
D152: No
A154: Has the subsidiaries tab been completed?
D155: No | F155: =IF(D152="Yes", "Subsiduaries tab must be completed","Subsiduaries tab not required") -> Subsiduaries tab not required
A157: PREPARER DETAILS
A158: Contact details of person completing the form:
A159: (please enter these details, so EFA can contact you if there are any questions)
A160: Contact Name:
A161: Contact Telephone Number:
A162: Contact E-mail Address:
A164: Professional accounting advisors
D165: Please enter the name of the Trust's accounting advisors, if used, in the cell above
A167: External auditors
D168: Please enter the name of the Trust's external auditors, including office, in the cell above
A170: ACADEMY TRUST DECLARATION
A172: I confirm that those entries in the Accounts Return denoted as:
A173: · Green cells have been prepared on a consistent basis (accounting policies and recognition & valuation criteria) with those policies and criteria that will be used to prepare the academy trust’s full audited statutory financial statements for the period.
A174: · Amber and red cells have been properly extracted from the academy’s financial records and presented within the Accounts Return in accordance with the guidance notes issued by the Education Funding Agency.
A176: Signed: | B176: Please type name here
A177: Accounting Officer
A179: Date:
A184: METRICS
E186: Possible Cells | F186: Completed Cells
E187: Fin.Return | F187: Fin.Return
A190: Cells populate automatically from elsewhere in the Return | E190: =Fin.Return!H11 -> 0.1153190038 | F190: =+(Fin.Return!AQ13/Fin.Return!AR13) -> 0.6153846154
A192: Sourced directly from Financial Statements | E192: =Fin.Return!H5 -> 0.4234049812 | F192: =+(Fin.Return!AM13/Fin.Return!AR13) -> 0.1360946746
A194: Additional to Financial Statements, prepared on a similar basis | E194: =Fin.Return!H7 -> 0.3602865916 | F194: =+(Fin.Return!AO13/Fin.Return!AR13) -> 0.2485207101
A196: Additional to Financial Statements, prepared on a different/new basis | E196: =Fin.Return!H9 -> 0.1009894234 | F196: =+(Fin.Return!AP13/Fin.Return!AR13) -> 0
D199: Error totals | E199: =Fin.Return!K5+Fin.Return!M5+Fin.Return!O5 -> 1
B203: Version date | D203: 2014-02-28

Sheet Accountant's Report (hidden)
A1: INDEPENDENT REPORTING ACCOUNTANT’S REPORT ON THE ACCOUNTS RETURN TO [ACADEMY TRUST NAME] FOR THE [YEAR/PERIOD] ENDED 31st AUGUST 2013
A3: We have examined the Accounts Return set out in the attached file, together with the audited statutory financial statements of [academy trust name] for the [period/year] ended 31 August 2013 prepared under section 396 of the Companies Act 2006, and the applicable framework comprising the Charities SORP and the Academies Accounts Direction 2013.
A5: This report is made solely to [academy trust name] in accordance with our instructions. Our work has been undertaken so that we might state to [academy trust name] those matters we are required to state to them in an accountant’s report and for no other purpose. To the fullest extent permitted by law, we do not accept or assume responsibility to anyone other than [academy trust name], for our work, for this report, or for the conclusions we have drawn.
A7: Respective responsibilities of the [trustees]/[directors] and auditor
A9: The [trustees]/[directors] are responsible for preparing the Accounts Return, in accordance with the requirements set out in the guidance notes issued by the Education Funding Agency, and the audited statutory financial statements.
A11: It is our responsibility to report to you our conclusion as to whether:
A12: · information in the Accounts Return marked as ‘sourced directly from financial statements’ is consistent with [academy trust name]’s audited statutory financial statements for the period; and
A13: · other information provided in the Accounts Return has been properly extracted from [academy trust name]’s financial records and presented in the Accounts Return in accordance with the guidance notes issued by the Education Funding Agency.
A15: Scope
A16: As a practising member firm of the [Institute of Chartered Accountants in England and Wales], we are subject to its ethical and other professional requirements which are detailed at [www.icaew.com/en/members/regulations-standards-and-guidance].
A18: We have not been instructed to carry out an audit or a review of the Accounts Return or of the underlying accounting records from which the Accounts Return is prepared. For this reason, we have not verified the accuracy or completeness of the accounting records or information and explanations you have given to us. Consequently the procedures undertaken do not provide all the evidence that would be required in an audit and, therefore, we do not express an audit opinion on the information presented in the Accounts Return nor do we express an audit opinion in respect of the underlying accounting records from which the Accounts Return is prepared.
A20: Conclusion
A22: It is our conclusion that the information marked as ‘sourced directly from the financial statements’ in the Accounts Return is consistent with the audited statutory financial statements of [academy trust name] for the [period/year] ended 31 August 2013 and other information provided in the Accounts Return has been properly extracted from [academy trust name]’s financial records and presented in [academy trust name]’s Accounts Return in accordance with the guidance notes issued by the Education Funding Agency.
A25: Auditor LLP
A26: [Office]
A27: [Date]

Sheet Fin.Return
A1: Accounts Return March 2014 - Financial Return
A3: Trust: | C3: ='Standing Data'!$D$3 -> Type name here | H3: % of cells | J3: Navigation Links & Error Counts
A5: Period end: | C5: ='Standing Data'!$D$6 -> 2014-03-31 | G5: Sourced directly from Financial Statements | H5: =AG13/AL13 -> 0.4234049812 | J5: SoFA | K5: =COUNTIF(D16:J57,"Error*") -> 0 | L5: Balance Sheet | M5: =COUNTIF(D62:H104,"Error*") -> 0 | N5: Notes to the F.S. | O5: =K7+M7+O7+K9+M9+O9+K11+M11+O11 -> 1
A7: Company No.: | C7: ='Standing Data'!D12 -> Type number here | G7: Additional to Financial Statements, prepared on a similar basis | H7: =AI13/AL13 -> 0.3602865916 | J7: Income | K7: =COUNTIF(D110:J234,"Error*") -> 0 | L7: Expenses | M7: =COUNTIF(D237:J415,"Error*") -> 0 | N7: Boarding | O7: =COUNTIF(D417:H477,"Error*") -> 0
A9: Academy UPIN: | C9: =IF(AND(OR('Standing Data'!D9="Multi-academy Trust",'Standing Data'!D9="Federation"),'Standing Data'!M49=0),'Standing Data'!E49,IF('Standing Data'!M49<>0,'Standing Data'!M49,IF(OR('Standing Data'!D9="Other",'Standing Data'!F15<>""),'Standing Data'!F15,'Standing Data'!D15))) ->  | G9: Additional to Financial Statements, prepared on a different/new basis | H9: =AJ13/AL13 -> 0.1009894234 | J9: Fixed Assets | K9: =COUNTIF(D480:P595,"Error*") -> 0 | L9: Current Assets | M9: =COUNTIF(D597:M669,"Error*") -> 0 | N9: Liabilities | O9: =COUNTIF(D671:K776,"Error*") -> 0
C10: Above details will populate automatically
D11: Cells populate automatically from elsewhere in the Return | H11: =AK13/AL13 -> 0.1153190038 | J11: Funds | K11: =COUNTIF(D778:L947,"Error*") -> 0 | L11: Pensions & Commit'ts | M11: =COUNTIF(D949:N971,"Error*")+COUNTIF(D1028:Z1225,"Error*") -> 0 | N11: PFI & Later Notes | O11: =COUNTIF(D1227:N1368,"Error*") -> 1 | AG11: Possible Cells | AM11: Completed Cells
A12: FINANCIAL RETURN | D12: Error check cells | F12: HELP | AE12: DESTINATION | AG12: Green | AH12: Blue | AI12: Amber | AJ12: Red | AK12: Grey | AL12: Total | AM12: Green | AN12: Blue | AO12: Amber | AP12: Red | AQ12: Grey | AR12: Total
AG13: =SUM(AG14:AG1424) -> 1241 | AI13: =SUM(AI14:AI1424) -> 1056 | AJ13: =SUM(AJ14:AJ1424) -> 296 | AK13: =SUM(AK14:AK1424) -> 338 | AL13: =SUM(AG13:AK13) -> 2931 | AM13: =SUM(AM14:AM1424) -> 23 | AO13: =SUM(AO14:AO1424) -> 42 | AP13: =SUM(AP14:AP1424) -> 0 | AQ13: =SUM(AQ14:AQ1424) -> 104 | AR13: =SUM(AM13:AQ13) -> 169
A14: STATEMENT OF FINANCIAL ACTIVITIES
E16: Total | G16: Unrestricted Funds | H16: Restricted Funds | I16: Restricted Fixed Asset Funds | J16: Endowment Funds | L16: Lower limit | M16: Upper limit
E17: £000 | G17: £000 | H17: £000 | I17: £000 | J17: £000 | L17: £000 | M17: £000
A18: INCOMING RESOURCES
B19: Incoming resources from generated funds:
C20: Voluntary income | E20: =SUM(G20:J20) -> 0 | L20: -750000 | M20: 750000 | AE20: Consol, SoCNE | AG20: 4 | AM20: =COUNTA(G20:J20) -> 0
C21: Transfer on conversion | E21: =SUM(G21:J21) -> 0 | L21: =L20 -> -750000 | M21: =M20 -> 750000 | AE21: Consol, SoCNE | AG21: 4 | AM21: =COUNTA(G21:J21) -> 0
C22: Activities for generating funds | E22: 0 | L22: =L21 -> -750000 | M22: =M21 -> 750000 | AE22: Consol, SoCNE | AG22: 4 | AM22: =COUNTA(G22:J22) -> 0
C23: Investment income | E23: 0 | L23: =L22 -> -750000 | M23: 750000 | AE23: Consol, SoCNE | AG23: 4 | AM23: =COUNTA(G23:J23) -> 0
B24: Incoming resources from charitable activities:
C25: Funding for the academy's educational operations | E25: 0 | L25: =L23 -> -750000 | M25: =M23 -> 750000 | AE25: Consol, SoCNE | AG25: 4 | AM25: =COUNTA(G25:J25) -> 0
C26: Provision of boarding activities | E26: 0 | L26: =L25 -> -750000 | M26: =M25 -> 750000 | AE26: Consol, SoCNE | AG26: 4 | AM26: =COUNTA(G26:J26) -> 0
A28: Total incoming resources | E28: =SUM(E18:E27) -> 0 | G28: =SUM(G18:G27) -> 0 | H28: =SUM(H18:H27) -> 0 | I28: =SUM(I18:I27) -> 0 | J28: =SUM(J18:J27) -> 0
A29: RESOURCES EXPENDED
B30: Cost of generating funds:
C31: Costs of generating voluntary income | E31: =SUM(G31:J31) -> 0 | L31: =L26 -> -750000 | M31: =M26 -> 750000 | AE31: Consol, SoCNE | AG31: 4 | AM31: =COUNTA(G31:J31) -> 0
C32: Transfer on conversion | E32: 0 | L32: =L31 -> -750000 | M32: =M31 -> 750000 | AE32: Consol, SoCNE | AG32: 4 | AM32: =COUNTA(G32:J32) -> 0
C33: Fund raising income | E33: 0 | L33: =L32 -> -750000 | M33: =M32 -> 750000 | AE33: Consol, SoCNE | AG33: 4 | AM33: =COUNTA(G33:J33) -> 0
B34: Charitable activities:
C35: Academy's educational operations | E35: =SUM(G35:J35) -> 0 | L35: =L33 -> -750000 | M35: =M33 -> 750000 | AE35: Consol, SoCNE | AG35: 4 | AM35: =COUNTA(G35:J35) -> 0
C36: Provision of boarding activities | E36: 0 | L36: =L35 -> -750000 | M36: =M35 -> 750000 | AE36: Consol, SoCNE | AG36: 4 | AM36: =COUNTA(G36:J36) -> 0
B37: Governance costs | E37: 0 | L37: =L36 -> -750000 | M37: =M36 -> 750000 | AE37: Consol, SoCNE | AG37: 4 | AM37: =COUNTA(G37:J37) -> 0
A39: Total resources expended | E39: =SUM(E31:E38) -> 0 | G39: =SUM(G31:G38) -> 0 | H39: =SUM(H31:H38) -> 0 | I39: 0 | J39: 0
A40: Net incoming/(outgoing) resources before transfers | E40: =E28-E39 -> 0 | G40: =G28-G39 -> 0 | H40: =H28-H39 -> 0 | I40: =I28-I39 -> 0 | J40: =J28-J39 -> 0
A41: Gross transfers between funds | D41: =IF(E41<>0,"Error - should be nil","") ->  | E41: =SUM(G41:J41) -> 0 | L41: =L37 -> -750000 | M41: =M37 -> 750000 | AE41: Consol, SoCNE | AG41: 4 | AM41: =COUNTA(G41:J41) -> 0
A43: Net income/(expenditure) for the period | E43: =SUM(E40:E41) -> 0 | G43: =SUM(G40:G41) -> 0 | H43: =SUM(H40:H41) -> 0 | I43: =SUM(I40:I41) -> 0 | J43: =SUM(J40:J41) -> 0
A44: OTHER RECOGNISED GAINS AND LOSSES
B45: Actuarial gains/(losses) on defined benefit pension schemes | D45: =IF(E45<>E987,"Error - imbalance with note","") ->  | E45: =SUM(G45:H45) -> 0 | L45: =L41 -> -750000 | M45: =M41 -> 750000 | AE45: Consol, SoCNE | AG45: 2 | AM45: =COUNTA(G45:H45) -> 0
B46: Valuation gains/(losses) on tangible and intangible fixed assets | D46: =IF(E46<>(E488-E497+E544-E553),"Error - not equal to tangible and intangible fixed asset notes","") ->  | E46: =SUM(G46:J46) -> 0 | L46: =L45 -> -750000 | M46: =M45 -> 750000 | AE46: Consol, SoCNE | AG46: 4 | AM46: =COUNTA(G46:J46) -> 0
B47: Valuation gains/(losses) on investment portfolio | D47: =IF(E47<>(E651+E586),"Error - not equal to fixed and current assets investment notes","") ->  | E47: 0 | L47: =L46 -> -750000 | M47: 750000 | AE47: Consol, SoCNE | AG47: 4 | AM47: =COUNTA(G47:J47) -> 0
B48: Other | E48: 0 | L48: -750000 | M48: 750000 | AG48: 4 | AM48: =COUNTA(G48:J48) -> 0
A50: NET MOVEMENT IN FUNDS | E50: =SUM(E43:E49) -> 0 | G50: =SUM(G43:G49) -> 0 | H50: =SUM(H43:H49) -> 0 | I50: =SUM(I43:I49) -> 0 | J50: =SUM(J43:J49) -> 0
A51: RECONCILIATION OF FUNDS
B52: Funds brought forward | E52: =SUM(G52:J52) -> 0 | G52: =E821 -> 0 | H52: =E799 -> 0 | I52: =E816 -> 0 | J52: =E819 -> 0 | L52: =L48 -> -750000 | M52: =M48 -> 750000 | AE52: Consol, SoCNE | AG52: 4 | AM52: =COUNTA(G52:J52) -> 4
B53: Funds obtained on conversion | E53: 0 | L53: =L52 -> -750000 | M53: =M52 -> 750000 | AE53: Consol, SoCNE | AG53: 4 | AM53: =COUNTA(G53:J53) -> 0
B54: Net movement in funds | E54: 0 | G54: =G50 -> 0 | H54: =H50 -> 0 | I54: =I50 -> 0 | J54: =J50 -> 0
B56: Funds carried forward | D56: =IF(E56<>G103,"Error - with BS","") ->  | E56: =SUM(E52:E55) -> 0 | G56: =SUM(G52:G55) -> 0 | H56: =SUM(H52:H55) -> 0 | I56: =SUM(I52:I55) -> 0 | J56: =SUM(J52:J55) -> 0
G57: =IF(G56<>G101,"Error - with BS","") ->  | H57: =IF(H56<>SUM(G94:G95),"Error - with BS","") ->  | I57: =IF(I56<>G93,"Error - with BS","") ->  | J57: =IF(J56<>G91,"Error - with BS","") -> 
A60: BALANCE SHEET
E62: =YEAR(C5) -> 2014 | G62: =E62 -> 2014 | I62: Lower limit | J62: Upper limit
E63: £000 | G63: £000 | I63: £000 | J63: £000
A64: FIXED ASSETS
B65: Tangible assets | I65: 0 | J65: 750000 | AE65: Consol, EFA/DfE SoFP | AG65: 1 | AM65: =COUNTA(G65:G65) -> 0
B66: Intangible assets | I66: =I65 -> 0 | J66: =J65 -> 750000 | AE66: Consol, EFA/DfE SoFP | AG66: 1 | AM66: =COUNTA(G66:G66) -> 0
B67: Investments | I67: =I66 -> 0 | J67: =J66 -> 750000 | AE67: Consol, EFA/DfE SoFP | AG67: 1 | AM67: =COUNTA(G67:G67) -> 0
G69: =SUM(G65:G68) -> 0
A70: CURRENT ASSETS
B71: Stock | I71: 0 | J71: =J67 -> 750000 | AE71: Consol, EFA/DfE SoFP | AG71: 1 | AM71: =COUNTA(E71:E71) -> 0
B72: Debtors - amounts due within one year | I72: =I71 -> 0 | J72: =J71 -> 750000 | AE72: Consol, EFA/DfE SoFP | AG72: 1 | AM72: =COUNTA(E72:E72) -> 0
B73: Debtors - amounts due after more than one year | I73: 0 | J73: 750000 | AE73: Consol, EFA/DfE SoFP | AG73: 1 | AM73: =COUNTA(E73:E73) -> 0
B74: Investments | I74: 0 | J74: 750000 | AE74: Consol, EFA/DfE SoFP | AG74: 1 | AM74: =COUNTA(E74:E74) -> 0
B75: Cash at bank and in hand | I75: 0 | J75: 750000 | AE75: Consol, EFA/DfE SoFP | AG75: 1 | AM75: =COUNTA(E75:E75) -> 0
E77: =SUM(E70:E76) -> 0
A78: CREDITORS: AMOUNTS DUE WITHIN ONE YEAR | I78: =-J65 -> -750000 | J78: 0 | AE78: Consol, EFA/DfE SoFP | AG78: 1 | AM78: =COUNTA(E78:E78) -> 0
A80: NET CURRENT ASSETS/(LIABILITIES) | G80: =SUM(E77:E79) -> 0
A82: TOTAL ASSETS LESS CURRENT LIABILTIIES | G82: =SUM(G69:G81) -> 0
A83: CREDITORS: AMOUNTS DUE AFTER MORE THAN ONE YEAR | I83: =I78 -> -750000 | J83: =J78 -> 0 | AE83: Consol, EFA/DfE SoFP | AG83: 1 | AM83: =COUNTA(G83:G83) -> 0
A84: PROVISIONS FOR LIABILITIES AND CHARGES | I84: =I83 -> -750000 | J84: =J83 -> 0 | AE84: Consol, EFA/DfE SoFP | AG84: 1 | AM84: =COUNTA(G84:G84) -> 0
A86: NET ASSETS EXCLUDING PENSION LIABILTIY | G86: =SUM(G82:G85) -> 0
B87: Pension scheme liability | I87: =I84 -> -750000 | J87: =J75 -> 750000 | AE87: Consol, EFA/DfE SoFP | AG87: 1 | AM87: =COUNTA(G87:G87) -> 0
A89: NET ASSETS INCLUDING PENSION SCHEME LIABILITY | G89: =SUM(G86:G88) -> 0
A90: FUNDS OF THE ACADEMY:
A91: Endowment Funds | I91: =I87 -> -750000 | J91: =J87 -> 750000
A92: Restricted Funds
B93: Fixed Asset Fund(s) | I93: =I91 -> -750000 | J93: =J91 -> 750000 | AE93: Consol, EFA/DfE SoFP | AG93: 1 | AM93: =COUNTA(G93:G93) -> 0
B94: General Fund(s) | I94: =I93 -> -750000 | J94: =J93 -> 750000 | AE94: Consol, EFA/DfE SoFP | AG94: 1 | AM94: =COUNTA(G94:G94) -> 0
B95: Pension Reserves | D95: =IF(G95<>G87, "Error - not equal to pension scheme liability","") ->  | I95: =I94 -> -750000 | J95: =J94 -> 750000 | AE95: Consol, EFA/DfE SoFP | AG95: 1 | AM95: =COUNTA(G95:G95) -> 0
A97: Total Restricted Funds | G97: =SUM(G93:G96) -> 0
A98: Unrestricted Funds
B99: General Fund(s) | I99: =I95 -> -750000 | J99: =J95 -> 750000 | AE99: Consol, EFA/DfE SoFP | AG99: 1 | AM99: =COUNTA(G99:G99) -> 0
A101: Total Unrestricted Funds | G101: =SUM(G99:G100) -> 0
A103: TOTAL FUNDS | D103: =IF(G89<>G103,"Error - with net assets","") ->  | G103: =G91+G97+G101 -> 0
A107: NOTES TO THE FINANCIAL STATEMENTS
A110: GENERAL ANNUAL GRANT | E110: =E62 -> 2014
E111: £000
B112: Results and Carry Forward for the Year
C113: GAG brought forward from previous year | AG113: 1 | AM113: =COUNTA(E113:E113) -> 0
C114: GAG allocation for current year | AG114: 1 | AM114: =COUNTA(E114:E114) -> 0
C115: GAG transferred from other funds
C117: Total GAG available to spend | E117: =SUM(E113:E116) -> 0
C118: Recurrent expenditure from GAG | AG118: 1 | AM118: =COUNTA(E118:E118) -> 0
C119: Fixed assets purchased from GAG | AG119: 1 | AM119: =COUNTA(E119:E119) -> 0
C121: GAG carried forward to next year | E121: =SUM(E117:E120) -> 0
C122: Maximum permitted GAG carry forward at end of current year | E122: =-ROUND(E114*0.12,0) -> 0
C123: (12% of allocation for current year)
C124: GAG to surrender to DfE | E124: =E121+E122 -> 0
C125: (12% run breached if result is positive) | E125: =IF(E124<=0,"no breach","breach") -> no breach
B126: Use of GAG brought forward from previous year for recurrent purposes
C127: Recurrent expenditure from GAG in current year | E127: =-E118 -> 0
C128: GAG allocation for current year | E128: =-E114 -> 0
C129: GAG allocation for previous year x 2% | AG129: 1 | AM129: =COUNTA(E129:E129) -> 0
C131: GAG b/fwd from previous year in excess of 2%, used on recurrent expenditure in current year | E131: =SUM(E127:E130) -> 0
C132: (2% run breached if result is positive) | E132: =IF(E131<=0,"no breach", "breach") -> no breach
A134: VOLUNTARY INCOME | E134: Total | G134: Unrestricted Funds | H134: Restricted Funds (including Fixed Assets) | I134: Endowment Funds | K134: Lower limit | L134: Upper limit
A135: SoFA | E135: £000 | G135: £000 | H135: £000 | I135: £000 | K135: £000 | L135: £000
B136: Donations - capital amounts | D136: =D486 ->  | E136: =SUM(G136:I136) -> 0 | K136: =$L$20 -> -750000 | L136: =$M$20 -> 750000 | AE136: Consol, EFA/DfE SoCNE | AG136: 3 | AM136: =COUNTA(G136:I136) -> 0
B137: Private sponsorship | E137: =SUM(G137:I137) -> 0 | K137: =K136 -> -750000 | L137: =L136 -> 750000 | AE137: Consol, EFA/DfE SoCNE | AG137: 3 | AM137: =COUNTA(G137:I137) -> 0
B138: Other donations | E138: 0 | K138: =K137 -> -750000 | L138: =L137 -> 750000 | AE138: Consol, EFA/DfE SoCNE | AG138: 3 | AM138: =COUNTA(G138:I138) -> 0
D140: =IF(E140<>SUM(E136:E139),"Error - column does not cast","") ->  | E140: =E20 -> 0 | G140: =G20 -> 0 | H140: =SUM(H20:I20) -> 0 | I140: =J20 -> 0 | AK140: 4 | AQ140: =COUNTIF(G140:I140,"<>0")+COUNTIF(E140:E140,"<>0") -> 0
D141: =IF(E140<>E20,"Error - Total does not agree - cell E20","") ->  | G141: =IF(G140<>SUM(G136:G139),"Error - column does not cast","") ->  | H141: =IF(H140<>SUM(H136:H139),"Error - column does not cast","") -> 
G142: =IF(G141<>"","Error - Total does not agree - G20","") ->  | H142: =IF(H140<>(H20+I20),"Error - Total does not agree - H20 & I20","") ->  | I142: =IF(I141<>"","Error - Total does not agree - J20","") -> 
A144: ACTIVITIES FOR GENERATING FUNDS | E144: Total | G144: Unrestricted Funds | H144: Restricted Funds (including Fixed Assets) | I144: Endowment Funds | K144: Lower limit | L144: Upper limit
A145: SoFA | E145: £000 | G145: £000 | H145: £000 | I145: £000 | K145: £000 | L145: £000
B146: Hire of facilities | E146: =SUM(G146:I146) -> 0 | K146: =$L$20 -> -750000 | L146: =$M$20 -> 750000 | AE146: Consol, EFA/DfE SoCNE | AG146: 3 | AM146: =COUNTA(G146:I146) -> 0
B147: Catering income | E147: =SUM(G147:I147) -> 0 | K147: =K146 -> -750000 | L147: 750000 | AE147: Consol, EFA/DfE SoCNE | AG147: 3 | AM147: =COUNTA(G147:I147) -> 0
B148: Rental income | E148: 0 | K148: -750000 | L148: 750000 | AE148: Consol, EFA/DfE SoCNE | AG148: 3 | AM148: =COUNTA(G148:I148) -> 0
B149: Receipts from supply teacher insurance claims | E149: 0 | K149: =K148 -> -750000 | L149: 750000 | AI149: 3
B150: Other | E150: 0 | K150: =K149 -> -750000 | L150: 750000 | AE150: Consol, EFA/DfE SoCNE | AI150: 3 | AM150: =COUNTA(G150:I150) -> 0
D152: =IF(E152<>SUM(E146:E151),"Error - column does not cast","") ->  | E152: =E22 -> 0 | G152: =G22 -> 0 | H152: =SUM(H22:I22) -> 0 | I152: =J22 -> 0 | AK152: 4 | AQ152: =COUNTIF(G152:I152,"<>0")+COUNTIF(E152:E152,"<>0") -> 0
D153: =IF(D152<>"","Total does not agree - cell E22","") ->  | G153: =IF(G152<>SUM(G146:G151),"Error - column does not cast","") ->  | H153: =IF(H152<>SUM(H146:H151),"Error - column does not cast","") -> 
G154: =IF(G153<>"","Error -Total does not agree - G22","") ->  | H154: =IF(H153<>"","Error - Total does not agree - H22 & I22","") ->  | I154: =IF(I153<>"","Error - Total does not agree - J22","") -> 
A156: INVESTMENT INCOME | E156: Total | G156: Unrestricted Funds | H156: Restricted Funds (including Fixed Assets) | I156: Endowment Funds | K156: Lower limit | L156: Upper limit
A157: SoFA | E157: £000 | G157: £000 | H157: £000 | I157: £000 | K157: £000 | L157: £000
B158: Short-term deposits | E158: =SUM(G158:I158) -> 0 | K158: =$L$20 -> -750000 | L158: =$M$20 -> 750000 | AE158: Consol, EFA/DfE SoCNE | AG158: 3 | AM158: =COUNTA(G158:I158) -> 0
B159: Interest | E159: =SUM(G159:I159) -> 0 | K159: =K158 -> -750000 | L159: 750000 | AE159: Consol, EFA/DfE SoCNE | AG159: 3 | AM159: =COUNTA(G159:I159) -> 0
B160: Dividend income | E160: 0 | K160: -750000 | L160: 750000 | AG160: 3
B161: Other | E161: 0 | K161: -750000 | L161: 750000 | AE161: Consol, EFA/DfE SoCNE | AG161: 3 | AM161: =COUNTA(G161:I161) -> 0
D163: =IF(E163<>SUM(E158:E162),"Error - column does not cast","") ->  | E163: =E23 -> 0 | G163: =G23 -> 0 | H163: =SUM(H23:I23) -> 0 | I163: =J23 -> 0 | AK163: 4 | AQ163: =COUNTIF(G163:I163,"<>0")+COUNTIF(E163:E163,"<>0") -> 0
D164: =IF(D163<>"","Error - Total does not agree - cell E23","") ->  | G164: =IF(G163<>SUM(G158:G162),"Error - column does not cast","") ->  | H164: =IF(H163<>SUM(H158:H162),"Error - column does not cast","") -> 
G165: =IF(G164<>"","Error - Total does not agree - G23","") ->  | H165: =IF(H164<>"","Error - Total does not agree - H23 & I23","") ->  | I165: =IF(I164<>"","Error - Total does not agree - J23","") -> 
A167: FUNDING FOR ACADEMY'S EDUCATIONAL OPERATIONS | D167: Notes | E167: Total | G167: Unrestricted Funds | H167: Restricted Funds (including Fixed Assets) | J167: Lower limit | K167: Upper limit
A168: SoFA | E168: £000 | G168: £000 | H168: £000 | J168: £000 | K168: £000
B169: EFA Grants
C170: Revenue Grants
C171: Rates Relief | E171: =SUM(G171:H171) -> 0 | J171: =$L$20 -> -750000 | K171: =$M$20 -> 750000 | AE171: Consol, EFA/DfE SoCNE | AI171: 2 | AO171: =COUNTA(G171:H171) -> 0
C172: Pre-16 School Budget Share | E172: =SUM(G172:H172) -> 0 | J172: =J171 -> -750000 | K172: 750000 | AE172: Consol, EFA/DfE SoCNE | AI172: 2 | AO172: =COUNTA(G172:H172) -> 0
C173: 16-19 School Budget Share | E173: 0 | J173: -750000 | K173: 750000 | AE173: Consol, EFA/DfE SoCNE | AI173: 2 | AO173: 0
C174: Academy Bursary Funding | E174: 0 | J174: -750000 | K174: 750000 | AE174: Consol, EFA/DfE SoCNE | AI174: 2 | AO174: 0
C175: Local Authority Central Spend Equivalent Grant | E175: 0 | J175: =J174 -> -750000 | K175: =K174 -> 750000 | AE175: Consol, EFA/DfE SoCNE | AI175: 2 | AO175: 0
C176: Teacher Threshold Grant | E176: 0 | J176: -750000 | K176: 750000 | AE176: Consol, EFA/DfE SoCNE | AI176: 2 | AO176: 0
C177: Pupil Premium | E177: 0 | J177: -750000 | K177: 750000 | AI177: 2 | AO177: 0
C178: Start-up Grant A | E178: 0 | J178: -750000 | K178: 750000 | AE178: Consol, EFA/DfE SoCNE | AI178: 2 | AO178: 0
C179: Start-up Grant B | E179: 0 | J179: -750000 | K179: 750000 | AE179: Consol, EFA/DfE SoCNE | AI179: 2 | AO179: 0
C180: Insurance | E180: 0 | J180: -750000 | K180: 750000 | AE180: Consol, EFA/DfE SoCNE | AI180: 2 | AO180: 0
C181: Mainstream Grants | E181: 0 | J181: -750000 | K181: 750000 | AE181: Consol, EFA/DfE SoCNE | AI181: 2 | AO181: 0
C182: Other | E182: 0 | J182: -750000 | K182: 750000 | AE182: Consol, EFA/DfE SoCNE | AI182: 2 | AO182: =COUNTA(G182:H182) -> 0
C184: Capital Grants
C185: 16-19 Demographic Growth Capital Fund | E185: 0 | J185: =J182 -> -750000 | K185: =K182 -> 750000 | AI185: 2 | AO185: =COUNTA(G185:H185) -> 0
C186: Devolved Formula Capital for Young People Aged Under 16 yrs | E186: 0 | J186: =J185 -> -750000 | K186: =K185 -> 750000 | AI186: 2 | AO186: 0
C187: Centrally Managed Programme - Framework Academies | E187: 0 | J187: =J186 -> -750000 | K187: =K186 -> 750000 | AI187: 2 | AO187: 0
C188: Centrally Managed Programme - BSF Legacy Academies | E188: 0 | J188: -750000 | K188: 750000 | AI188: 2 | AO188: 0
C189: Centrally Managed Programme - Free Schools | E189: 0 | J189: -750000 | K189: 750000 | AI189: 2 | AO189: 0
C190: Devolved Programmes - Academies Capital Maintenance | E190: 0 | J190: -750000 | K190: 750000 | AI190: 2 | AO190: 0
C191: Continuing Commitments - Building Schools for the Future | E191: 0 | J191: -750000 | K191: 750000 | AI191: 2 | AO191: 0
C192: Other | E192: 0 | J192: -750000 | K192: 750000 | AI192: 2 | AO192: 0
E194: =SUM(E171:E193) -> 0 | G194: =SUM(G171:G193) -> 0 | H194: 0
B195: DfE Family Revenue Grants:
C196: Department for Education (DfE) | E196: =SUM(G196:H196) -> 0 | J196: =J192 -> -750000 | K196: =K192 -> 750000 | AE196: Consol, EFA/DfE SoCNE | AI196: 2 | AO196: =COUNTA(G196:H196) -> 0
C197: Teaching Agency (TA) | E197: 0 | J197: =+(J196) -> -750000 | K197: =+(K196) -> 750000 | AE197: Consol, EFA/DfE SoCNE | AI197: 2 | AO197: 0
C198: National College for Teaching and Leadership (NCTL) | E198: 0 | J198: =+(J197) -> -750000 | K198: =+(K197) -> 750000 | AE198: Consol, EFA/DfE SoCNE | AI198: 2 | AO198: 0
C199: Standards and Testing Agency (STA) | E199: 0 | J199: -750000 | K199: 750000 | AE199: Consol, EFA/DfE SoCNE | AI199: 2 | AO199: 0
C200: Children and Family Court Advisory and Support Service (CAFCASS) | E200: 0 | J200: -750000 | K200: 750000 | AE200: Consol, EFA/DfE SoCNE | AI200: 2 | AO200: 0
C201: Office of the Children's Commissioner (OCC) | E201: 0 | J201: -750000 | K201: 750000 | AE201: Consol, EFA/DfE SoCNE | AI201: 2 | AO201: 0
E203: =SUM(E196:E202) -> 0 | G203: =SUM(G196:G202) -> 0 | H203: =SUM(H196:H202) -> 0
B204: DfE Family Capital Grants
C205: DfE | E205: =SUM(G205:H205) -> 0 | J205: =J201 -> -750000 | K205: =K201 -> 750000 | AE205: Consol, EFA/DfE SoCNE | AI205: 2 | AO205: =COUNTA(G205:H205) -> 0
C206: TA | E206: 0 | J206: =+(J205) -> -750000 | K206: =+(K205) -> 750000 | AE206: Consol, EFA/DfE SoCNE | AI206: 2 | AO206: 0
C207: NCTL | E207: 0 | J207: =(J206) -> -750000 | K207: =(K206) -> 750000 | AE207: Consol, EFA/DfE SoCNE | AI207: 2 | AO207: 0
C208: STA | E208: 0 | J208: -750000 | K208: 750000 | AE208: Consol, EFA/DfE SoCNE | AI208: 2 | AO208: 0
C209: CAFCASS | E209: 0 | J209: -750000 | K209: 750000 | AE209: Consol, EFA/DfE SoCNE | AI209: 2 | AO209: 0
C210: OCC | E210: 0 | J210: -750000 | K210: 750000 | AE210: Consol, EFA/DfE SoCNE | AI210: 2 | AO210: 0
E212: =SUM(E205:E211) -> 0 | G212: =SUM(G205:G211) -> 0 | H212: =SUM(H205:H211) -> 0
B213: Local Authority Grants | AO213: =COUNTA(G213:H213) -> 0
C214: SEN | E214: =SUM(G214:H214) -> 0 | J214: =(J210) -> -750000 | K214: =(K210) -> 750000 | AI214: 2 | AO214: 0
C215: Other Revenue | E215: 0 | J215: =(J214) -> -750000 | K215: 750000 | AI215: 2 | AO215: 0
C216: Capital | E216: 0 | J216: -750000 | K216: 750000 | AI216: 2 | AO216: 0
E218: =SUM(E214:E217) -> 0 | G218: =SUM(G211:G217) -> 0 | H218: =SUM(H211:H217) -> 0
B220: Other Government Grants
C221: Revenue | E221: =SUM(G221:H221) -> 0 | J221: =J210 -> -750000 | K221: =K210 -> 750000 | AE221: Consol, EFA/DfE SoCNE | AG221: 2 | AM221: =COUNTA(G221:H221) -> 0
C222: Capital | E222: 0 | J222: =J221 -> -750000 | K222: =K221 -> 750000 | AE222: Consol, EFA/DfE SoCNE | AG222: 2 | AM222: =COUNTA(G222:H222) -> 0
E224: =SUM(E221:E223) -> 0 | G224: =SUM(G221:G223) -> 0 | H224: =SUM(H221:H223) -> 0
B225: Other Income | AE225: Consol, EFA/DfE SoCNE
C226: Government sources (non-grant) | E226: =SUM(G226:H226) -> 0 | J226: =J222 -> -750000 | K226: =K222 -> 750000 | AG226: 2 | AM226: =COUNTA(G226:H226) -> 0
C227: Academies | E227: 0 | J227: =J226 -> -750000 | K227: =K226 -> 750000 | AG227: 2 | AM227: 0
C228: Non-Government - Revenue | E228: 0 | J228: -750000 | K228: =K227 -> 750000 | AG228: 2 | AM228: 0
C229: Non-Government - Capital | E229: 0 | J229: =J227 -> -750000 | K229: =K227 -> 750000 | AG229: 2 | AM229: 0
E231: =SUM(E226:E230) -> 0 | G231: =SUM(G226:G230) -> 0 | H231: 0
D233: =IF(E233<>(E194+E203+E212+E224+E231+E218),"Error - column does not cast","") ->  | E233: =E25 -> 0 | G233: =G25 -> 0 | H233: =SUM(H25:I25) -> 0 | AK233: 3 | AQ233: =COUNTIF(G233:H233,"<>0")+COUNTIF(E233:E233,"<>0") -> 0
D234: =IF(D233<>"","Error - Total does not agree - cell E25","") ->  | G234: =IF(G233<>(G194+G203+G212+G224+G231+G218),"Error - column does not cast","") ->  | H234: =IF(H233<>(H194+H203+H212+H224+H231+H218),"Error - column does not cast","") -> 
G235: =IF(G234<>"","Error - Total does not agree - G25","") ->  | H235: =IF(H234<>"","Error - Total does not agree - H25 & I25","") -> 
A237: RESOURCES EXPENDED | D237: Notes | E237: Total | G237: Staff Costs | H237: Premises | I237: Other Costs | K237: Lower limit | L237: Upper limit
A238: SoFA | E238: £000 | G238: £000 | H238: £000 | I238: £000 | K238: £000 | L238: £000
B239: Costs of generating voluntary income | D239: =IF(E239<>SUM(G239:I239),"Error - row does not cross cast","") ->  | E239: =E275 -> 0 | G239: =+(E268+E269) -> 0 | K239: =$L$20 -> -750000 | L239: =$M$20 -> 750000 | AE239: Consol, EFA/DfE SoCNE | AG239: 2 | AK239: 2 | AM239: =COUNTA(H239:I239) -> 0 | AQ239: =COUNTA(G239) -> 1
B240: Costs of activities for generating funds | D240: =IF(E240<>SUM(G240:I240),"Error - row does not cross cast","") ->  | E240: =E33 -> 0 | K240: =K239 -> -750000 | L240: 750000 | AE240: Consol, EFA/DfE SoCNE | AG240: 3 | AK240: 1 | AM240: =COUNTA(G240:I240) -> 0 | AQ240: =COUNTIF(E240:E240,"<>0") -> 0
B241: Academy's educational operations:
C242: Direct costs | D242: =IF(E242<>SUM(G242:I242),"Error - row does not cross cast","") ->  | E242: =E294 -> 0 | G242: =+(E281) -> 0 | K242: =K240 -> -750000 | L242: =L240 -> 750000 | AE242: Consol, EFA/DfE SoCNE | AG242: 2 | AK242: 2 | AM242: =COUNTA(H242:I242) -> 0 | AQ242: =COUNTA(G242) -> 1
C243: Allocated support costs | E243: =E325 -> 0 | G243: =+(E296) -> 0 | K243: =K242 -> -750000 | L243: =L242 -> 750000 | AE243: Consol, EFA/DfE SoCNE | AG243: 2 | AK243: 2 | AM243: =COUNTA(H243:I243) -> 0 | AQ243: 1
D245: =IF(E245<>SUM(G245:I245),"Error - row does not cross cast","") ->  | E245: =SUM(E239:E244) -> 0 | G245: =SUM(G239:G244) -> 0 | H245: =SUM(H239:H244) -> 0 | I245: =SUM(I239:I244) -> 0
B246: Governance costs including allocated support costs | E246: =E348 -> 0 | K246: =K243 -> -750000 | L246: =L243 -> 750000 | AE246: Consol, EFA/DfE SoCNE | AG246: 3 | AK246: 1 | AM246: =COUNTA(G246:I246) -> 0 | AQ246: =COUNTIF(E246:E246,"<>0") -> 0
B247: Provision of boarding activities | E247: =-E443-E463 -> 0 | G247: =-E437-E445 -> 0 | K247: =K246 -> -750000 | L247: =L246 -> 750000 | AI247: 2 | AK247: 2 | AO247: =COUNTA(H247:I247) -> 0 | AQ247: =COUNTIF(E247:E247,"<>0") -> 0
E249: =SUM(E245:E248) -> 0 | G249: =SUM(G245:G248) -> 0 | H249: =SUM(H245:H248) -> 0 | I249: =SUM(I245:I248) -> 0
... 965 more rows

Sheet CoPty.Return
A1: Accounts Return March 2014 - Counterparty Return
A3: Trust: | C3: ='Standing Data'!D3 -> Type name here | D3: NAVIGATION LINKS
A5: Period end: | C5: ='Standing Data'!D6 -> 2014-03-31 | D5: Incoming resources | E5: Resources expended | G5: Cells will populate automatically from elsewhere in the Return
D6: Assets | E6: Liabilities <1yr
A7: Company Number: | C7: ='Standing Data'!D12 -> Type number here | D7: Liabilities >1yr | E7: Provisions | G7: Additional to Financial Statements, prepared on a similar basis
D8: Pension deficit
A9: Academy UPIN: | C9: =Fin.Return!C9 ->  | G9: Non-financial cells to be populated by Academy Trust
C10: Above details will populate automatically
E11: Errors | G11: Comment cells available to the Academy Trust
A12: COUNTERPARTY RETURN | E12: =COUNTIF(A31:A721,"Error*")+COUNTIF(E31:E721,"Error*") -> 0 | F12: HELP
C15: Financial Return caption value | F15: =-Fin.Return!$E140 -> 0 | G15: =-Fin.Return!$E152 -> 0 | H15: =-Fin.Return!$E163 -> 0 | I15: =-Fin.Return!$E233 -> 0 | J15: =-Fin.Return!$G433 -> 0 | L15: =Fin.Return!$E354 -> 0 | M15: =Fin.Return!$E356 -> 0 | N15: =Fin.Return!$E253 -> 0 | P15: =Fin.Return!$E317 -> 0 | Q15: =Fin.Return!$E307-Fin.Return!$E449 -> 0 | S15: =-Fin.Return!G470 -> 0 | U15: =Fin.Return!E611 -> 0 | V15: =Fin.Return!E613 -> 0 | X15: =Fin.Return!E614 -> 0 | Y15: =Fin.Return!E615 -> 0 | AA15: =Fin.Return!G611 -> 0 | AB15: =Fin.Return!G613 -> 0 | AC15: =Fin.Return!G614 -> 0 | AD15: =Fin.Return!G615 -> 0 | AF15: =-Fin.Return!E674 -> 0 | AG15: =-Fin.Return!E675 -> 0 | AH15: =-Fin.Return!E677 -> 0 | AI15: =-Fin.Return!E678 -> 0 | AJ15: =-Fin.Return!E680 -> 0 | AK15: =-Fin.Return!E679 -> 0 | AL15: =-Fin.Return!E682 -> 0 | AO15: =-Fin.Return!E719 -> 0 | AP15: =-Fin.Return!E721 -> 0 | AQ15: =-Fin.Return!E722 -> 0 | AS15: =-Fin.Return!E764 -> 0 | AT15: =Fin.Return!K797 -> 0
F16: =+IF(F15-SUM(F22:F721)>0,"Error - counterparty balances exceed caption value","") ->  | G16: =+IF(G15-SUM(G22:G721)>0,"Error - counterparty balances exceed caption value","") ->  | H16: =+IF(H15-SUM(H22:H721)>0,"Error - counterparty balances exceed caption value","") ->  | I16: =+IF(I15-SUM(I22:I721)>0,"Error - counterparty balances exceed caption value","") ->  | J16: =+IF(J15-SUM(J22:J721)>0,"Error - counterparty balances exceed caption value","") ->  | L16: =+IF(L15-SUM(L22:L721)<0,"Error - counterparty balances exceed caption value","") ->  | M16: =+IF(M15-SUM(M22:M721)<0,"Error - counterparty balances exceed caption value","") ->  | N16: =+IF(N15-SUM(N22:O721)<0,"Error - counterparty balances exceed caption value","") ->  | P16: =+IF(P15-SUM(P22:P721)<0,"Error - counterparty balances exceed caption value","") ->  | Q16: =+IF(Q15-SUM(Q22:Q721)<0,"Error - counterparty balances exceed caption value","") ->  | S16: =+IF(S15-SUM(S22:S721)<0,"Error - counterparty balances exceed caption value","") ->  | U16: =+IF(U15-SUM(U22:U721)<0,"Error - counterparty balances exceed caption value","") ->  | V16: =+IF(V15-SUM(V22:W721)<0,"Error - counterparty balances exceed caption value","") ->  | X16: =+IF(X15-SUM(X22:X721)<0,"Error - counterparty balances exceed caption value","") ->  | Y16: =+IF(Y15-SUM(Y22:Y721)<0,"Error - counterparty balances exceed caption value","") ->  | AA16: =+IF(AA15-SUM(AA22:AA721)<0,"Error - counterparty balances exceed caption value","") ->  | AB16: =+IF(AB15-SUM(AB22:AB721)<0,"Error - counterparty balances exceed caption value","") ->  | AC16: =+IF(AC15-SUM(AC22:AC721)<0,"Error - counterparty balances exceed caption value","") ->  | AD16: =+IF(AD15-SUM(AD22:AD721)<0,"Error - counterparty balances exceed caption value","") ->  | AF16: =+IF(AF15-SUM(AF22:AF721)>0,"Error - counterparty balances exceed caption value","") ->  | AL16: =+IF(AL15-SUM(AL22:AM721)>0,"Error - counterparty balances exceed caption value","") ->  | AO16: =+IF(AO15-SUM(AO22:AO721)>0,"Error - counterparty balances exceed caption value","") ->  | AP16: =+IF(AP15-SUM(AP22:AP721)>0,"Error - counterparty balances exceed caption value","") ->  | AQ16: =+IF(AQ15-SUM(AQ22:AQ721)>0,"Error - counterparty balances exceed caption value","") ->  | AS16: =+IF(AS15-SUM(AS22:AS721)>0,"Error - counterparty balances exceed caption value","") ->  | AT16: =+IF(AT15-SUM(AT22:AT721)>0,"Error - counterparty balances exceed caption value","") -> 
A18: HELP | F18: Incoming Resources | L18: Resources Expended | U18: Debtors under one year | AA18: Debtors over more than one year | AF18: Liabilities less than one year | AO18: Liabilities over one year | AS18: Other | BA18: Blue | BB18: Grey | BC18: Amber | BD18: Total | BE18: Blue | BF18: Grey | BG18: Amber | BH18: Total
B20: CPID & Academy Code | C20: Name of Public Body and/or Academy (populate from drop-down boxes) | D20: Type | F20: Voluntary income | G20: Activities for generating funds | H20: Investment income | I20: Funding for the Academy's educational operations | J20: Provision of boarding activities | L20: Wages and salaries | M20: Employer's pension contributions | N20: Operating lease rentals - Buildings | O20: Operating lease rentals - Land | P20: Finance lease interest payments | Q20: Business rates | R20: Purchase of goods and services | S20: Boarding Activities | U20: Trade debtors | V20: Prepayments and accrued income (exc government grants) | W20: Accrued Government grants | X20: VAT recoverable | Y20: Other debtors | AA20: Trade debtors | AB20: Prepayments and accrued income | AC20: VAT recoverable | AD20: Other debtors | AF20: Loans within one year | AG20: Trade creditors | AH20: Taxes and social security | AI20: Finance lease creditors within one year | AJ20: Other creditors within one year | AK20: VAT Payable | AL20: Accruals and deferred income (excluding deferred government grants) | AM20: Deferred Government Grants | AO20: Loans | AP20: Finance lease creditors | AQ20: Other creditors | AS20: Provisions | AT20: Pension scheme surplus/(deficit) | AV20: Comment | AX20: Lower limit | AY20: Upper limit | BA20: =SUM(BA21:BA996) -> 692 | BB20: =SUM(BB21:BB996) -> 700 | BC20: =SUM(BC21:BC996) -> 21700 | BD20: =SUM(BA20:BC20) -> 23092 | BE20: =SUM(BE21:BE996) -> 1 | BF20: =SUM(BF21:BF996) -> 9 | BG20: =SUM(BG21:BG996) -> 17 | BH20: =SUM(BE20:BG20) -> 27
F21: £000 | G21: £000 | H21: £000 | I21: £000 | J21: £000 | L21: £000 | M21: £000 | N21: £000 | O21: £000 | P21: £000 | Q21: £000 | R21: £000 | S21: £000 | U21: £000 | V21: £000 | W21: £000 | X21: £000 | Y21: £000 | AA21: £000 | AB21: £000 | AC21: £000 | AD21: £000 | AF21: £000 | AG21: £000 | AH21: £000 | AI21: £000 | AJ21: £000 | AK21: £000 | AL21: £000 | AM21: £000 | AO21: £000 | AP21: £000 | AQ21: £000 | AS21: £000 | AT21: £000 | AX21: £000 | AY21: £000
B22: =IF(C22<>"",VLOOKUP(C22,'CP IDs'!A$2:B$5090,2,FALSE),"") -> DES022 | C22: Department for Education | D22: CenGov't | I22: =-(Fin.Return!E196+Fin.Return!E205) -> 0 | J22: =-(Fin.Return!G423) -> 0 | AX22: -500000 | AY22: 500000 | BB22: 1 | BC22: 31 | BF22: 1 | BG22: =COUNT(F22:AT22) -> 2
B23: =IF(C23<>"",VLOOKUP(C23,'CP IDs'!A$2:B$5090,2,FALSE),"") -> DES022a | C23: Education Funding Agency (EFA) | D23: CenGov't | I23: =-(Fin.Return!E194) -> 0 | J23: =-(Fin.Return!G421) -> 0 | AX23: =AX22 -> -500000 | AY23: =AY22 -> 500000 | BB23: 1 | BC23: 31 | BF23: 1 | BG23: 2
B24: =IF(C24<>"",VLOOKUP(C24,'CP IDs'!A$2:B$5090,2,FALSE),"") -> DES022b | C24: Teaching Agency (TA) | D24: CenGov't | I24: =-(Fin.Return!E197+Fin.Return!E206) -> 0 | J24: =-(Fin.Return!G424) -> 0 | AX24: =AX23 -> -500000 | AY24: =AY23 -> 500000 | BB24: 1 | BC24: 31 | BF24: 1 | BG24: 2
B25: =IF(C25<>"",VLOOKUP(C25,'CP IDs'!A$2:B$5090,2,FALSE),"") -> DES022e | C25: National College for Teaching and Leadership (NCTL) | D25: CenGov't | I25: =-(Fin.Return!E198+Fin.Return!E207) -> 0 | J25: =-(Fin.Return!G425) -> 0 | AX25: =AX24 -> -500000 | AY25: =AY24 -> 500000 | BB25: 1 | BC25: 31 | BF25: 1 | BG25: 2
B26: =IF(C26<>"",VLOOKUP(C26,'CP IDs'!A$2:B$5090,2,FALSE),"") -> DES022c | C26: Standards and Testing Agency (STA) | D26: CenGov't | I26: =-(Fin.Return!E199+Fin.Return!E208) -> 0 | J26: =-(Fin.Return!G426) -> 0 | AX26: -500000 | AY26: 500000 | BB26: 1 | BC26: 31 | BF26: 1 | BG26: 2
B27: =IF(C27<>"",VLOOKUP(C27,'CP IDs'!A$2:B$5090,2,FALSE),"") -> DES022d | C27: Office of the Children's Commissioner | D27: CenGov't | I27: =-(Fin.Return!E201+Fin.Return!E210) -> 0 | J27: =-(Fin.Return!G428) -> 0 | AX27: -500000 | AY27: 500000 | BB27: 1 | BC27: 31 | BF27: 1 | BG27: 2
B28: =IF(C28<>"",VLOOKUP(C28,'CP IDs'!A$2:B$5090,2,FALSE),"") -> CFA022 | C28: Children and Family Court Advisory and Support Service | D28: CenGov't | I28: =-(Fin.Return!E200+Fin.Return!E209) -> 0 | J28: =-(Fin.Return!G427) -> 0 | AX28: -500000 | AY28: 500000 | BB28: 1 | BC28: 31 | BF28: 1 | BG28: 2
B29: =IF(C29<>"",VLOOKUP(C29,'CP IDs'!A$2:B$5090,2,FALSE),"") -> TPS904 | C29: Teachers' Pension Scheme (England & Wales) | D29: CenGov't | AX29: -500000 | AY29: 500000 | BB29: 1 | BC29: 31 | BF29: 1 | BG29: 0
B30: =IF(C30<>"",VLOOKUP(C30,'CP IDs'!A$2:B$5090,2,FALSE),"") -> ILR041 | C30: HM Revenue and Customs | D30: CenGov't | X30: =+(Fin.Return!E614) -> 0 | AC30: =+(Fin.Return!G614) -> 0 | AK30: =+(Fin.Return!E679) -> 0 | AX30: -500000 | AY30: 500000 | BA30: 1 | BB30: 1 | BC30: 31 | BE30: =COUNTA(C30) -> 1 | BF30: =1-COUNTBLANK(B30) -> 1 | BG30: 3 | BI30: =AND(B30=$C$9,'Standing Data'!$D$9<>"Multi-academy Trust") -> 
A31: =IF(B31<>"",IF('Standing Data'!$D$9<>"Multi-academy Trust",IF('Standing Data'!$D$15=B31,"Error - counterparty with self",""),IF(N(ISNA(MATCH(B31,'Standing Data'!$E$49:$E$148,0)))<>0,"","Error - counterparty with self")),"") ->  | B31: =IF(C31<>"",VLOOKUP(C31,'CP IDs'!A$2:B$5122,2,FALSE),"") ->  | D31: =IFERROR(VLOOKUP(C31,'CP IDs'!$A$2:$D$4422,4,FALSE),"") ->  | E31: =IF(OR(AND(COUNT(F31:AT31)>0,C31=""),AND(COUNT(F31:AT31)=0,C31<>"")),"Error - on line","") ->  | AX31: -500000 | AY31: 500000 | BA31: 1 | BB31: 1 | BC31: 31 | BE31: 0 | BF31: 0 | BG31: 0 | BI31: =AND(B31=$C$9,'Standing Data'!$D$9<>"Multi-academy Trust") -> 
A32: =IF(B32<>"",IF('Standing Data'!$D$9<>"Multi-academy Trust",IF('Standing Data'!$D$15=B32,"Error - counterparty with self",""),IF(N(ISNA(MATCH(B32,'Standing Data'!$E$49:$E$148,0)))<>0,"","Error - counterparty with self")),"") ->  | B32: =IF(C32<>"",VLOOKUP(C32,'CP IDs'!A$2:B$5122,2,FALSE),"") ->  | D32: =IFERROR(VLOOKUP(C32,'CP IDs'!$A$2:$D$4422,4,FALSE),"") ->  | AX32: -500000 | AY32: 500000 | BA32: 1 | BB32: 1 | BC32: 31 | BE32: 0 | BF32: 0 | BG32: 0 | BI32: =AND(B32=$C$9,'Standing Data'!$D$9<>"Multi-academy Trust") -> 
A33: =IF(B33<>"",IF('Standing Data'!$D$9<>"Multi-academy Trust",IF('Standing Data'!$D$15=B33,"Error - counterparty with self",""),IF(N(ISNA(MATCH(B33,'Standing Data'!$E$49:$E$148,0)))<>0,"","Error - counterparty with self")),"") ->  | B33: =IF(C33<>"",VLOOKUP(C33,'CP IDs'!A$2:B$5122,2,FALSE),"") ->  | D33: =IFERROR(VLOOKUP(C33,'CP IDs'!$A$2:$D$4422,4,FALSE),"") ->  | AX33: -500000 | AY33: 500000 | BA33: 1 | BB33: 1 | BC33: 31 | BE33: 0 | BF33: 0 | BG33: 0 | BI33: =AND(B33=$C$9,'Standing Data'!$D$9<>"Multi-academy Trust") -> 
A34: =IF(B34<>"",IF('Standing Data'!$D$9<>"Multi-academy Trust",IF('Standing Data'!$D$15=B34,"Error - counterparty with self",""),IF(N(ISNA(MATCH(B34,'Standing Data'!$E$49:$E$148,0)))<>0,"","Error - counterparty with self")),"") ->  | B34: =IF(C34<>"",VLOOKUP(C34,'CP IDs'!A$2:B$5122,2,FALSE),"") ->  | D34: =IFERROR(VLOOKUP(C34,'CP IDs'!$A$2:$D$4422,4,FALSE),"") ->  | AX34: -500000 | AY34: 500000 | BA34: 1 | BB34: 1 | BC34: 31 | BE34: 0 | BF34: 0 | BG34: 0 | BI34: =AND(B34=$C$9,'Standing Data'!$D$9<>"Multi-academy Trust") -> 
A35: =IF(B35<>"",IF('Standing Data'!$D$9<>"Multi-academy Trust",IF('Standing Data'!$D$15=B35,"Error - counterparty with self",""),IF(N(ISNA(MATCH(B35,'Standing Data'!$E$49:$E$148,0)))<>0,"","Error - counterparty with self")),"") ->  | B35: =IF(C35<>"",VLOOKUP(C35,'CP IDs'!A$2:B$5122,2,FALSE),"") ->  | D35: =IFERROR(VLOOKUP(C35,'CP IDs'!$A$2:$D$4422,4,FALSE),"") ->  | AX35: -500000 | AY35: 500000 | BA35: 1 | BB35: 1 | BC35: 31 | BE35: 0 | BF35: 0 | BG35: 0 | BI35: =AND(B35=$C$9,'Standing Data'!$D$9<>"Multi-academy Trust") -> 
A36: =IF(B36<>"",IF('Standing Data'!$D$9<>"Multi-academy Trust",IF('Standing Data'!$D$15=B36,"Error - counterparty with self",""),IF(N(ISNA(MATCH(B36,'Standing Data'!$E$49:$E$148,0)))<>0,"","Error - counterparty with self")),"") ->  | B36: =IF(C36<>"",VLOOKUP(C36,'CP IDs'!A$2:B$5122,2,FALSE),"") ->  | D36: =IFERROR(VLOOKUP(C36,'CP IDs'!$A$2:$D$4422,4,FALSE),"") ->  | AX36: -500000 | AY36: 500000 | BA36: 1 | BB36: 1 | BC36: 31 | BE36: 0 | BF36: 0 | BG36: 0 | BI36: =AND(B36=$C$9,'Standing Data'!$D$9<>"Multi-academy Trust") -> 
A37: =IF(B37<>"",IF('Standing Data'!$D$9<>"Multi-academy Trust",IF('Standing Data'!$D$15=B37,"Error - counterparty with self",""),IF(N(ISNA(MATCH(B37,'Standing Data'!$E$49:$E$148,0)))<>0,"","Error - counterparty with self")),"") ->  | B37: =IF(C37<>"",VLOOKUP(C37,'CP IDs'!A$2:B$5122,2,FALSE),"") ->  | D37: =IFERROR(VLOOKUP(C37,'CP IDs'!$A$2:$D$4422,4,FALSE),"") ->  | AX37: -500000 | AY37: 500000 | BA37: 1 | BB37: 1 | BC37: 31 | BE37: 0 | BF37: 0 | BG37: 0 | BI37: =AND(B37=$C$9,'Standing Data'!$D$9<>"Multi-academy Trust") -> 
A38: =IF(B38<>"",IF('Standing Data'!$D$9<>"Multi-academy Trust",IF('Standing Data'!$D$15=B38,"Error - counterparty with self",""),IF(N(ISNA(MATCH(B38,'Standing Data'!$E$49:$E$148,0)))<>0,"","Error - counterparty with self")),"") ->  | B38: =IF(C38<>"",VLOOKUP(C38,'CP IDs'!A$2:B$5122,2,FALSE),"") ->  | D38: =IFERROR(VLOOKUP(C38,'CP IDs'!$A$2:$D$4422,4,FALSE),"") ->  | AX38: -500000 | AY38: 500000 | BA38: 1 | BB38: 1 | BC38: 31 | BE38: 0 | BF38: 0 | BG38: 0 | BI38: =AND(B38=$C$9,'Standing Data'!$D$9<>"Multi-academy Trust") -> 
A39: =IF(B39<>"",IF('Standing Data'!$D$9<>"Multi-academy Trust",IF('Standing Data'!$D$15=B39,"Error - counterparty with self",""),IF(N(ISNA(MATCH(B39,'Standing Data'!$E$49:$E$148,0)))<>0,"","Error - counterparty with self")),"") ->  | B39: =IF(C39<>"",VLOOKUP(C39,'CP IDs'!A$2:B$5122,2,FALSE),"") ->  | D39: =IFERROR(VLOOKUP(C39,'CP IDs'!$A$2:$D$4422,4,FALSE),"") ->  | AX39: -500000 | AY39: 500000 | BA39: 1 | BB39: 1 | BC39: 31 | BE39: 0 | BF39: 0 | BG39: 0 | BI39: =AND(B39=$C$9,'Standing Data'!$D$9<>"Multi-academy Trust") -> 
A40: =IF(B40<>"",IF('Standing Data'!$D$9<>"Multi-academy Trust",IF('Standing Data'!$D$15=B40,"Error - counterparty with self",""),IF(N(ISNA(MATCH(B40,'Standing Data'!$E$49:$E$148,0)))<>0,"","Error - counterparty with self")),"") ->  | B40: =IF(C40<>"",VLOOKUP(C40,'CP IDs'!A$2:B$5122,2,FALSE),"") ->  | D40: =IFERROR(VLOOKUP(C40,'CP IDs'!$A$2:$D$4422,4,FALSE),"") ->  | AX40: -500000 | AY40: 500000 | BA40: 1 | BB40: 1 | BC40: 31 | BE40: 0 | BF40: 0 | BG40: 0 | BI40: =AND(B40=$C$9,'Standing Data'!$D$9<>"Multi-academy Trust") -> 
A41: =IF(B41<>"",IF('Standing Data'!$D$9<>"Multi-academy Trust",IF('Standing Data'!$D$15=B41,"Error - counterparty with self",""),IF(N(ISNA(MATCH(B41,'Standing Data'!$E$49:$E$148,0)))<>0,"","Error - counterparty with self")),"") ->  | B41: =IF(C41<>"",VLOOKUP(C41,'CP IDs'!A$2:B$5122,2,FALSE),"") ->  | D41: =IFERROR(VLOOKUP(C41,'CP IDs'!$A$2:$D$4422,4,FALSE),"") ->  | AX41: -500000 | AY41: 500000 | BA41: 1 | BB41: 1 | BC41: 31 | BE41: 0 | BF41: 0 | BG41: 0 | BI41: =AND(B41=$C$9,'Standing Data'!$D$9<>"Multi-academy Trust") -> 
A42: =IF(B42<>"",IF('Standing Data'!$D$9<>"Multi-academy Trust",IF('Standing Data'!$D$15=B42,"Error - counterparty with self",""),IF(N(ISNA(MATCH(B42,'Standing Data'!$E$49:$E$148,0)))<>0,"","Error - counterparty with self")),"") ->  | B42: =IF(C42<>"",VLOOKUP(C42,'CP IDs'!A$2:B$5122,2,FALSE),"") ->  | D42: =IFERROR(VLOOKUP(C42,'CP IDs'!$A$2:$D$4422,4,FALSE),"") ->  | AX42: -500000 | AY42: 500000 | BA42: 1 | BB42: 1 | BC42: 31 | BE42: 0 | BF42: 0 | BG42: 0 | BI42: =AND(B42=$C$9,'Standing Data'!$D$9<>"Multi-academy Trust") -> 
A43: =IF(B43<>"",IF('Standing Data'!$D$9<>"Multi-academy Trust",IF('Standing Data'!$D$15=B43,"Error - counterparty with self",""),IF(N(ISNA(MATCH(B43,'Standing Data'!$E$49:$E$148,0)))<>0,"","Error - counterparty with self")),"") ->  | B43: =IF(C43<>"",VLOOKUP(C43,'CP IDs'!A$2:B$5122,2,FALSE),"") ->  | D43: =IFERROR(VLOOKUP(C43,'CP IDs'!$A$2:$D$4422,4,FALSE),"") ->  | AX43: -500000 | AY43: 500000 | BA43: 1 | BB43: 1 | BC43: 31 | BE43: 0 | BF43: 0 | BG43: 0 | BI43: =AND(B43=$C$9,'Standing Data'!$D$9<>"Multi-academy Trust") -> 
A44: =IF(B44<>"",IF('Standing Data'!$D$9<>"Multi-academy Trust",IF('Standing Data'!$D$15=B44,"Error - counterparty with self",""),IF(N(ISNA(MATCH(B44,'Standing Data'!$E$49:$E$148,0)))<>0,"","Error - counterparty with self")),"") ->  | B44: =IF(C44<>"",VLOOKUP(C44,'CP IDs'!A$2:B$5122,2,FALSE),"") ->  | D44: =IFERROR(VLOOKUP(C44,'CP IDs'!$A$2:$D$4422,4,FALSE),"") ->  | AX44: -500000 | AY44: 500000 | BA44: 1 | BB44: 1 | BC44: 31 | BE44: 0 | BF44: 0 | BG44: 0 | BI44: =AND(B44=$C$9,'Standing Data'!$D$9<>"Multi-academy Trust") -> 
A45: =IF(B45<>"",IF('Standing Data'!$D$9<>"Multi-academy Trust",IF('Standing Data'!$D$15=B45,"Error - counterparty with self",""),IF(N(ISNA(MATCH(B45,'Standing Data'!$E$49:$E$148,0)))<>0,"","Error - counterparty with self")),"") ->  | B45: =IF(C45<>"",VLOOKUP(C45,'CP IDs'!A$2:B$5122,2,FALSE),"") ->  | D45: =IFERROR(VLOOKUP(C45,'CP IDs'!$A$2:$D$4422,4,FALSE),"") ->  | AX45: -500000 | AY45: 500000 | BA45: 1 | BB45: 1 | BC45: 31 | BE45: 0 | BF45: 0 | BG45: 0 | BI45: =AND(B45=$C$9,'Standing Data'!$D$9<>"Multi-academy Trust") -> 
A46: =IF(B46<>"",IF('Standing Data'!$D$9<>"Multi-academy Trust",IF('Standing Data'!$D$15=B46,"Error - counterparty with self",""),IF(N(ISNA(MATCH(B46,'Standing Data'!$E$49:$E$148,0)))<>0,"","Error - counterparty with self")),"") ->  | B46: =IF(C46<>"",VLOOKUP(C46,'CP IDs'!A$2:B$5122,2,FALSE),"") ->  | D46: =IFERROR(VLOOKUP(C46,'CP IDs'!$A$2:$D$4422,4,FALSE),"") ->  | AX46: -500000 | AY46: 500000 | BA46: 1 | BB46: 1 | BC46: 31 | BE46: 0 | BF46: 0 | BG46: 0 | BI46: =AND(B46=$C$9,'Standing Data'!$D$9<>"Multi-academy Trust") -> 
A47: =IF(B47<>"",IF('Standing Data'!$D$9<>"Multi-academy Trust",IF('Standing Data'!$D$15=B47,"Error - counterparty with self",""),IF(N(ISNA(MATCH(B47,'Standing Data'!$E$49:$E$148,0)))<>0,"","Error - counterparty with self")),"") ->  | B47: =IF(C47<>"",VLOOKUP(C47,'CP IDs'!A$2:B$5122,2,FALSE),"") ->  | D47: =IFERROR(VLOOKUP(C47,'CP IDs'!$A$2:$D$4422,4,FALSE),"") ->  | AX47: -500000 | AY47: 500000 | BA47: 1 | BB47: 1 | BC47: 31 | BE47: 0 | BF47: 0 | BG47: 0 | BI47: =AND(B47=$C$9,'Standing Data'!$D$9<>"Multi-academy Trust") -> 
A48: =IF(B48<>"",IF('Standing Data'!$D$9<>"Multi-academy Trust",IF('Standing Data'!$D$15=B48,"Error - counterparty with self",""),IF(N(ISNA(MATCH(B48,'Standing Data'!$E$49:$E$148,0)))<>0,"","Error - counterparty with self")),"") ->  | B48: =IF(C48<>"",VLOOKUP(C48,'CP IDs'!A$2:B$5122,2,FALSE),"") ->  | D48: =IFERROR(VLOOKUP(C48,'CP IDs'!$A$2:$D$4422,4,FALSE),"") ->  | AX48: -500000 | AY48: 500000 | BA48: 1 | BB48: 1 | BC48: 31 | BE48: 0 | BF48: 0 | BG48: 0 | BI48: =AND(B48=$C$9,'Standing Data'!$D$9<>"Multi-academy Trust") -> 
A49: =IF(B49<>"",IF('Standing Data'!$D$9<>"Multi-academy Trust",IF('Standing Data'!$D$15=B49,"Error - counterparty with self",""),IF(N(ISNA(MATCH(B49,'Standing Data'!$E$49:$E$148,0)))<>0,"","Error - counterparty with self")),"") ->  | B49: =IF(C49<>"",VLOOKUP(C49,'CP IDs'!A$2:B$5122,2,FALSE),"") ->  | D49: =IFERROR(VLOOKUP(C49,'CP IDs'!$A$2:$D$4422,4,FALSE),"") ->  | AX49: -500000 | AY49: 500000 | BA49: 1 | BB49: 1 | BC49: 31 | BE49: 0 | BF49: 0 | BG49: 0 | BI49: =AND(B49=$C$9,'Standing Data'!$D$9<>"Multi-academy Trust") -> 
A50: =IF(B50<>"",IF('Standing Data'!$D$9<>"Multi-academy Trust",IF('Standing Data'!$D$15=B50,"Error - counterparty with self",""),IF(N(ISNA(MATCH(B50,'Standing Data'!$E$49:$E$148,0)))<>0,"","Error - counterparty with self")),"") ->  | B50: =IF(C50<>"",VLOOKUP(C50,'CP IDs'!A$2:B$5122,2,FALSE),"") ->  | D50: =IFERROR(VLOOKUP(C50,'CP IDs'!$A$2:$D$4422,4,FALSE),"") ->  | AX50: -500000 | AY50: 500000 | BA50: 1 | BB50: 1 | BC50: 31 | BE50: 0 | BF50: 0 | BG50: 0 | BI50: =AND(B50=$C$9,'Standing Data'!$D$9<>"Multi-academy Trust") -> 
A51: =IF(B51<>"",IF('Standing Data'!$D$9<>"Multi-academy Trust",IF('Standing Data'!$D$15=B51,"Error - counterparty with self",""),IF(N(ISNA(MATCH(B51,'Standing Data'!$E$49:$E$148,0)))<>0,"","Error - counterparty with self")),"") ->  | B51: =IF(C51<>"",VLOOKUP(C51,'CP IDs'!A$2:B$5122,2,FALSE),"") ->  | D51: =IFERROR(VLOOKUP(C51,'CP IDs'!$A$2:$D$4422,4,FALSE),"") ->  | AX51: -500000 | AY51: 500000 | BA51: 1 | BB51: 1 | BC51: 31 | BE51: 0 | BF51: 0 | BG51: 0 | BI51: =AND(B51=$C$9,'Standing Data'!$D$9<>"Multi-academy Trust") -> 
A52: =IF(B52<>"",IF('Standing Data'!$D$9<>"Multi-academy Trust",IF('Standing Data'!$D$15=B52,"Error - counterparty with self",""),IF(N(ISNA(MATCH(B52,'Standing Data'!$E$49:$E$148,0)))<>0,"","Error - counterparty with self")),"") ->  | B52: =IF(C52<>"",VLOOKUP(C52,'CP IDs'!A$2:B$5122,2,FALSE),"") ->  | D52: =IFERROR(VLOOKUP(C52,'CP IDs'!$A$2:$D$4422,4,FALSE),"") ->  | AX52: -500000 | AY52: 500000 | BA52: 1 | BB52: 1 | BC52: 31 | BE52: 0 | BF52: 0 | BG52: 0 | BI52: =AND(B52=$C$9,'Standing Data'!$D$9<>"Multi-academy Trust") -> 
A53: =IF(B53<>"",IF('Standing Data'!$D$9<>"Multi-academy Trust",IF('Standing Data'!$D$15=B53,"Error - counterparty with self",""),IF(N(ISNA(MATCH(B53,'Standing Data'!$E$49:$E$148,0)))<>0,"","Error - counterparty with self")),"") ->  | B53: =IF(C53<>"",VLOOKUP(C53,'CP IDs'!A$2:B$5122,2,FALSE),"") ->  | D53: =IFERROR(VLOOKUP(C53,'CP IDs'!$A$2:$D$4422,4,FALSE),"") ->  | AX53: -500000 | AY53: 500000 | BA53: 1 | BB53: 1 | BC53: 31 | BE53: 0 | BF53: 0 | BG53: 0 | BI53: =AND(B53=$C$9,'Standing Data'!$D$9<>"Multi-academy Trust") -> 
A54: =IF(B54<>"",IF('Standing Data'!$D$9<>"Multi-academy Trust",IF('Standing Data'!$D$15=B54,"Error - counterparty with self",""),IF(N(ISNA(MATCH(B54,'Standing Data'!$E$49:$E$148,0)))<>0,"","Error - counterparty with self")),"") ->  | B54: =IF(C54<>"",VLOOKUP(C54,'CP IDs'!A$2:B$5122,2,FALSE),"") ->  | D54: =IFERROR(VLOOKUP(C54,'CP IDs'!$A$2:$D$4422,4,FALSE),"") ->  | AX54: -500000 | AY54: 500000 | BA54: 1 | BB54: 1 | BC54: 31 | BE54: 0 | BF54: 0 | BG54: 0 | BI54: =AND(B54=$C$9,'Standing Data'!$D$9<>"Multi-academy Trust") -> 
A55: =IF(B55<>"",IF('Standing Data'!$D$9<>"Multi-academy Trust",IF('Standing Data'!$D$15=B55,"Error - counterparty with self",""),IF(N(ISNA(MATCH(B55,'Standing Data'!$E$49:$E$148,0)))<>0,"","Error - counterparty with self")),"") ->  | B55: =IF(C55<>"",VLOOKUP(C55,'CP IDs'!A$2:B$5122,2,FALSE),"") ->  | D55: =IFERROR(VLOOKUP(C55,'CP IDs'!$A$2:$D$4422,4,FALSE),"") ->  | AX55: -500000 | AY55: 500000 | BA55: 1 | BB55: 1 | BC55: 31 | BE55: 0 | BF55: 0 | BG55: 0 | BI55: =AND(B55=$C$9,'Standing Data'!$D$9<>"Multi-academy Trust") -> 
A56: =IF(B56<>"",IF('Standing Data'!$D$9<>"Multi-academy Trust",IF('Standing Data'!$D$15=B56,"Error - counterparty with self",""),IF(N(ISNA(MATCH(B56,'Standing Data'!$E$49:$E$148,0)))<>0,"","Error - counterparty with self")),"") ->  | B56: =IF(C56<>"",VLOOKUP(C56,'CP IDs'!A$2:B$5122,2,FALSE),"") ->  | D56: =IFERROR(VLOOKUP(C56,'CP IDs'!$A$2:$D$4422,4,FALSE),"") ->  | AX56: -500000 | AY56: 500000 | BA56: 1 | BB56: 1 | BC56: 31 | BE56: 0 | BF56: 0 | BG56: 0 | BI56: =AND(B56=$C$9,'Standing Data'!$D$9<>"Multi-academy Trust") -> 
A57: =IF(B57<>"",IF('Standing Data'!$D$9<>"Multi-academy Trust",IF('Standing Data'!$D$15=B57,"Error - counterparty with self",""),IF(N(ISNA(MATCH(B57,'Standing Data'!$E$49:$E$148,0)))<>0,"","Error - counterparty with self")),"") ->  | B57: =IF(C57<>"",VLOOKUP(C57,'CP IDs'!A$2:B$5122,2,FALSE),"") ->  | D57: =IFERROR(VLOOKUP(C57,'CP IDs'!$A$2:$D$4422,4,FALSE),"") ->  | AX57: -500000 | AY57: 500000 | BA57: 1 | BB57: 1 | BC57: 31 | BE57: 0 | BF57: 0 | BG57: 0 | BI57: =AND(B57=$C$9,'Standing Data'!$D$9<>"Multi-academy Trust") -> 
A58: =IF(B58<>"",IF('Standing Data'!$D$9<>"Multi-academy Trust",IF('Standing Data'!$D$15=B58,"Error - counterparty with self",""),IF(N(ISNA(MATCH(B58,'Standing Data'!$E$49:$E$148,0)))<>0,"","Error - counterparty with self")),"") ->  | B58: =IF(C58<>"",VLOOKUP(C58,'CP IDs'!A$2:B$5122,2,FALSE),"") ->  | D58: =IFERROR(VLOOKUP(C58,'CP IDs'!$A$2:$D$4422,4,FALSE),"") ->  | AX58: -500000 | AY58: 500000 | BA58: 1 | BB58: 1 | BC58: 31 | BE58: 0 | BF58: 0 | BG58: 0 | BI58: =AND(B58=$C$9,'Standing Data'!$D$9<>"Multi-academy Trust") -> 
A59: =IF(B59<>"",IF('Standing Data'!$D$9<>"Multi-academy Trust",IF('Standing Data'!$D$15=B59,"Error - counterparty with self",""),IF(N(ISNA(MATCH(B59,'Standing Data'!$E$49:$E$148,0)))<>0,"","Error - counterparty with self")),"") ->  | B59: =IF(C59<>"",VLOOKUP(C59,'CP IDs'!A$2:B$5122,2,FALSE),"") ->  | D59: =IFERROR(VLOOKUP(C59,'CP IDs'!$A$2:$D$4422,4,FALSE),"") ->  | AX59: -500000 | AY59: 500000 | BA59: 1 | BB59: 1 | BC59: 31 | BE59: 0 | BF59: 0 | BG59: 0 | BI59: =AND(B59=$C$9,'Standing Data'!$D$9<>"Multi-academy Trust") -> 
A60: =IF(B60<>"",IF('Standing Data'!$D$9<>"Multi-academy Trust",IF('Standing Data'!$D$15=B60,"Error - counterparty with self",""),IF(N(ISNA(MATCH(B60,'Standing Data'!$E$49:$E$148,0)))<>0,"","Error - counterparty with self")),"") ->  | B60: =IF(C60<>"",VLOOKUP(C60,'CP IDs'!A$2:B$5122,2,FALSE),"") ->  | D60: =IFERROR(VLOOKUP(C60,'CP IDs'!$A$2:$D$4422,4,FALSE),"") ->  | AX60: -500000 | AY60: 500000 | BA60: 1 | BB60: 1 | BC60: 31 | BE60: 0 | BF60: 0 | BG60: 0 | BI60: =AND(B60=$C$9,'Standing Data'!$D$9<>"Multi-academy Trust") -> 
A61: =IF(B61<>"",IF('Standing Data'!$D$9<>"Multi-academy Trust",IF('Standing Data'!$D$15=B61,"Error - counterparty with self",""),IF(N(ISNA(MATCH(B61,'Standing Data'!$E$49:$E$148,0)))<>0,"","Error - counterparty with self")),"") ->  | B61: =IF(C61<>"",VLOOKUP(C61,'CP IDs'!A$2:B$5122,2,FALSE),"") ->  | D61: =IFERROR(VLOOKUP(C61,'CP IDs'!$A$2:$D$4422,4,FALSE),"") ->  | AX61: -500000 | AY61: 500000 | BA61: 1 | BB61: 1 | BC61: 31 | BE61: 0 | BF61: 0 | BG61: 0 | BI61: =AND(B61=$C$9,'Standing Data'!$D$9<>"Multi-academy Trust") -> 
A62: =IF(B62<>"",IF('Standing Data'!$D$9<>"Multi-academy Trust",IF('Standing Data'!$D$15=B62,"Error - counterparty with self",""),IF(N(ISNA(MATCH(B62,'Standing Data'!$E$49:$E$148,0)))<>0,"","Error - counterparty with self")),"") ->  | B62: =IF(C62<>"",VLOOKUP(C62,'CP IDs'!A$2:B$5122,2,FALSE),"") ->  | D62: =IFERROR(VLOOKUP(C62,'CP IDs'!$A$2:$D$4422,4,FALSE),"") ->  | AX62: -500000 | AY62: 500000 | BA62: 1 | BB62: 1 | BC62: 31 | BE62: 0 | BF62: 0 | BG62: 0 | BI62: =AND(B62=$C$9,'Standing Data'!$D$9<>"Multi-academy Trust") -> 
A63: =IF(B63<>"",IF('Standing Data'!$D$9<>"Multi-academy Trust",IF('Standing Data'!$D$15=B63,"Error - counterparty with self",""),IF(N(ISNA(MATCH(B63,'Standing Data'!$E$49:$E$148,0)))<>0,"","Error - counterparty with self")),"") ->  | B63: =IF(C63<>"",VLOOKUP(C63,'CP IDs'!A$2:B$5122,2,FALSE),"") ->  | D63: =IFERROR(VLOOKUP(C63,'CP IDs'!$A$2:$D$4422,4,FALSE),"") ->  | AX63: -500000 | AY63: 500000 | BA63: 1 | BB63: 1 | BC63: 31 | BE63: 0 | BF63: 0 | BG63: 0 | BI63: =AND(B63=$C$9,'Standing Data'!$D$9<>"Multi-academy Trust") -> 
A64: =IF(B64<>"",IF('Standing Data'!$D$9<>"Multi-academy Trust",IF('Standing Data'!$D$15=B64,"Error - counterparty with self",""),IF(N(ISNA(MATCH(B64,'Standing Data'!$E$49:$E$148,0)))<>0,"","Error - counterparty with self")),"") ->  | B64: =IF(C64<>"",VLOOKUP(C64,'CP IDs'!A$2:B$5122,2,FALSE),"") ->  | D64: =IFERROR(VLOOKUP(C64,'CP IDs'!$A$2:$D$4422,4,FALSE),"") ->  | AX64: -500000 | AY64: 500000 | BA64: 1 | BB64: 1 | BC64: 31 | BE64: 0 | BF64: 0 | BG64: 0 | BI64: =AND(B64=$C$9,'Standing Data'!$D$9<>"Multi-academy Trust") -> 
A65: =IF(B65<>"",IF('Standing Data'!$D$9<>"Multi-academy Trust",IF('Standing Data'!$D$15=B65,"Error - counterparty with self",""),IF(N(ISNA(MATCH(B65,'Standing Data'!$E$49:$E$148,0)))<>0,"","Error - counterparty with self")),"") ->  | B65: =IF(C65<>"",VLOOKUP(C65,'CP IDs'!A$2:B$5122,2,FALSE),"") ->  | D65: =IFERROR(VLOOKUP(C65,'CP IDs'!$A$2:$D$4422,4,FALSE),"") ->  | AX65: -500000 | AY65: 500000 | BA65: 1 | BB65: 1 | BC65: 31 | BE65: 0 | BF65: 0 | BG65: 0 | BI65: =AND(B65=$C$9,'Standing Data'!$D$9<>"Multi-academy Trust") -> 
A66: =IF(B66<>"",IF('Standing Data'!$D$9<>"Multi-academy Trust",IF('Standing Data'!$D$15=B66,"Error - counterparty with self",""),IF(N(ISNA(MATCH(B66,'Standing Data'!$E$49:$E$148,0)))<>0,"","Error - counterparty with self")),"") ->  | B66: =IF(C66<>"",VLOOKUP(C66,'CP IDs'!A$2:B$5122,2,FALSE),"") ->  | D66: =IFERROR(VLOOKUP(C66,'CP IDs'!$A$2:$D$4422,4,FALSE),"") ->  | AX66: -500000 | AY66: 500000 | BA66: 1 | BB66: 1 | BC66: 31 | BE66: 0 | BF66: 0 | BG66: 0 | BI66: =AND(B66=$C$9,'Standing Data'!$D$9<>"Multi-academy Trust") -> 
A67: =IF(B67<>"",IF('Standing Data'!$D$9<>"Multi-academy Trust",IF('Standing Data'!$D$15=B67,"Error - counterparty with self",""),IF(N(ISNA(MATCH(B67,'Standing Data'!$E$49:$E$148,0)))<>0,"","Error - counterparty with self")),"") ->  | B67: =IF(C67<>"",VLOOKUP(C67,'CP IDs'!A$2:B$5122,2,FALSE),"") ->  | D67: =IFERROR(VLOOKUP(C67,'CP IDs'!$A$2:$D$4422,4,FALSE),"") ->  | AX67: -500000 | AY67: 500000 | BA67: 1 | BB67: 1 | BC67: 31 | BE67: 0 | BF67: 0 | BG67: 0 | BI67: =AND(B67=$C$9,'Standing Data'!$D$9<>"Multi-academy Trust") -> 
A68: =IF(B68<>"",IF('Standing Data'!$D$9<>"Multi-academy Trust",IF('Standing Data'!$D$15=B68,"Error - counterparty with self",""),IF(N(ISNA(MATCH(B68,'Standing Data'!$E$49:$E$148,0)))<>0,"","Error - counterparty with self")),"") ->  | B68: =IF(C68<>"",VLOOKUP(C68,'CP IDs'!A$2:B$5122,2,FALSE),"") ->  | D68: =IFERROR(VLOOKUP(C68,'CP IDs'!$A$2:$D$4422,4,FALSE),"") ->  | AX68: -500000 | AY68: 500000 | BA68: 1 | BB68: 1 | BC68: 31 | BE68: 0 | BF68: 0 | BG68: 0 | BI68: =AND(B68=$C$9,'Standing Data'!$D$9<>"Multi-academy Trust") -> 
A69: =IF(B69<>"",IF('Standing Data'!$D$9<>"Multi-academy Trust",IF('Standing Data'!$D$15=B69,"Error - counterparty with self",""),IF(N(ISNA(MATCH(B69,'Standing Data'!$E$49:$E$148,0)))<>0,"","Error - counterparty with self")),"") ->  | B69: =IF(C69<>"",VLOOKUP(C69,'CP IDs'!A$2:B$5122,2,FALSE),"") ->  | D69: =IFERROR(VLOOKUP(C69,'CP IDs'!$A$2:$D$4422,4,FALSE),"") ->  | AX69: -500000 | AY69: 500000 | BA69: 1 | BB69: 1 | BC69: 31 | BE69: 0 | BF69: 0 | BG69: 0 | BI69: =AND(B69=$C$9,'Standing Data'!$D$9<>"Multi-academy Trust") -> 
A70: =IF(B70<>"",IF('Standing Data'!$D$9<>"Multi-academy Trust",IF('Standing Data'!$D$15=B70,"Error - counterparty with self",""),IF(N(ISNA(MATCH(B70,'Standing Data'!$E$49:$E$148,0)))<>0,"","Error - counterparty with self")),"") ->  | B70: =IF(C70<>"",VLOOKUP(C70,'CP IDs'!A$2:B$5122,2,FALSE),"") ->  | D70: =IFERROR(VLOOKUP(C70,'CP IDs'!$A$2:$D$4422,4,FALSE),"") ->  | AX70: -500000 | AY70: 500000 | BA70: 1 | BB70: 1 | BC70: 31 | BE70: 0 | BF70: 0 | BG70: 0 | BI70: =AND(B70=$C$9,'Standing Data'!$D$9<>"Multi-academy Trust") -> 
A71: =IF(B71<>"",IF('Standing Data'!$D$9<>"Multi-academy Trust",IF('Standing Data'!$D$15=B71,"Error - counterparty with self",""),IF(N(ISNA(MATCH(B71,'Standing Data'!$E$49:$E$148,0)))<>0,"","Error - counterparty with self")),"") ->  | B71: =IF(C71<>"",VLOOKUP(C71,'CP IDs'!A$2:B$5122,2,FALSE),"") ->  | D71: =IFERROR(VLOOKUP(C71,'CP IDs'!$A$2:$D$4422,4,FALSE),"") ->  | AX71: -500000 | AY71: 500000 | BA71: 1 | BB71: 1 | BC71: 31 | BE71: 0 | BF71: 0 | BG71: 0 | BI71: =AND(B71=$C$9,'Standing Data'!$D$9<>"Multi-academy Trust") -> 
A72: =IF(B72<>"",IF('Standing Data'!$D$9<>"Multi-academy Trust",IF('Standing Data'!$D$15=B72,"Error - counterparty with self",""),IF(N(ISNA(MATCH(B72,'Standing Data'!$E$49:$E$148,0)))<>0,"","Error - counterparty with self")),"") ->  | B72: =IF(C72<>"",VLOOKUP(C72,'CP IDs'!A$2:B$5122,2,FALSE),"") ->  | D72: =IFERROR(VLOOKUP(C72,'CP IDs'!$A$2:$D$4422,4,FALSE),"") ->  | AX72: -500000 | AY72: 500000 | BA72: 1 | BB72: 1 | BC72: 31 | BE72: 0 | BF72: 0 | BG72: 0 | BI72: =AND(B72=$C$9,'Standing Data'!$D$9<>"Multi-academy Trust") -> 
A73: =IF(B73<>"",IF('Standing Data'!$D$9<>"Multi-academy Trust",IF('Standing Data'!$D$15=B73,"Error - counterparty with self",""),IF(N(ISNA(MATCH(B73,'Standing Data'!$E$49:$E$148,0)))<>0,"","Error - counterparty with self")),"") ->  | B73: =IF(C73<>"",VLOOKUP(C73,'CP IDs'!A$2:B$5122,2,FALSE),"") ->  | D73: =IFERROR(VLOOKUP(C73,'CP IDs'!$A$2:$D$4422,4,FALSE),"") ->  | AX73: -500000 | AY73: 500000 | BA73: 1 | BB73: 1 | BC73: 31 | BE73: 0 | BF73: 0 | BG73: 0 | BI73: =AND(B73=$C$9,'Standing Data'!$D$9<>"Multi-academy Trust") -> 
A74: =IF(B74<>"",IF('Standing Data'!$D$9<>"Multi-academy Trust",IF('Standing Data'!$D$15=B74,"Error - counterparty with self",""),IF(N(ISNA(MATCH(B74,'Standing Data'!$E$49:$E$148,0)))<>0,"","Error - counterparty with self")),"") ->  | B74: =IF(C74<>"",VLOOKUP(C74,'CP IDs'!A$2:B$5122,2,FALSE),"") ->  | D74: =IFERROR(VLOOKUP(C74,'CP IDs'!$A$2:$D$4422,4,FALSE),"") ->  | AX74: -500000 | AY74: 500000 | BA74: 1 | BB74: 1 | BC74: 31 | BE74: 0 | BF74: 0 | BG74: 0 | BI74: =AND(B74=$C$9,'Standing Data'!$D$9<>"Multi-academy Trust") -> 
A75: =IF(B75<>"",IF('Standing Data'!$D$9<>"Multi-academy Trust",IF('Standing Data'!$D$15=B75,"Error - counterparty with self",""),IF(N(ISNA(MATCH(B75,'Standing Data'!$E$49:$E$148,0)))<>0,"","Error - counterparty with self")),"") ->  | B75: =IF(C75<>"",VLOOKUP(C75,'CP IDs'!A$2:B$5122,2,FALSE),"") ->  | D75: =IFERROR(VLOOKUP(C75,'CP IDs'!$A$2:$D$4422,4,FALSE),"") ->  | AX75: -500000 | AY75: 500000 | BA75: 1 | BB75: 1 | BC75: 31 | BE75: 0 | BF75: 0 | BG75: 0 | BI75: =AND(B75=$C$9,'Standing Data'!$D$9<>"Multi-academy Trust") -> 
A76: =IF(B76<>"",IF('Standing Data'!$D$9<>"Multi-academy Trust",IF('Standing Data'!$D$15=B76,"Error - counterparty with self",""),IF(N(ISNA(MATCH(B76,'Standing Data'!$E$49:$E$148,0)))<>0,"","Error - counterparty with self")),"") ->  | B76: =IF(C76<>"",VLOOKUP(C76,'CP IDs'!A$2:B$5122,2,FALSE),"") ->  | D76: =IFERROR(VLOOKUP(C76,'CP IDs'!$A$2:$D$4422,4,FALSE),"") ->  | AX76: -500000 | AY76: 500000 | BA76: 1 | BB76: 1 | BC76: 31 | BE76: 0 | BF76: 0 | BG76: 0 | BI76: =AND(B76=$C$9,'Standing Data'!$D$9<>"Multi-academy Trust") -> 
A77: =IF(B77<>"",IF('Standing Data'!$D$9<>"Multi-academy Trust",IF('Standing Data'!$D$15=B77,"Error - counterparty with self",""),IF(N(ISNA(MATCH(B77,'Standing Data'!$E$49:$E$148,0)))<>0,"","Error - counterparty with self")),"") ->  | B77: =IF(C77<>"",VLOOKUP(C77,'CP IDs'!A$2:B$5122,2,FALSE),"") ->  | D77: =IFERROR(VLOOKUP(C77,'CP IDs'!$A$2:$D$4422,4,FALSE),"") ->  | AX77: -500000 | AY77: 500000 | BA77: 1 | BB77: 1 | BC77: 31 | BE77: 0 | BF77: 0 | BG77: 0 | BI77: =AND(B77=$C$9,'Standing Data'!$D$9<>"Multi-academy Trust") -> 
A78: =IF(B78<>"",IF('Standing Data'!$D$9<>"Multi-academy Trust",IF('Standing Data'!$D$15=B78,"Error - counterparty with self",""),IF(N(ISNA(MATCH(B78,'Standing Data'!$E$49:$E$148,0)))<>0,"","Error - counterparty with self")),"") ->  | B78: =IF(C78<>"",VLOOKUP(C78,'CP IDs'!A$2:B$5122,2,FALSE),"") ->  | D78: =IFERROR(VLOOKUP(C78,'CP IDs'!$A$2:$D$4422,4,FALSE),"") ->  | AX78: -500000 | AY78: 500000 | BA78: 1 | BB78: 1 | BC78: 31 | BE78: 0 | BF78: 0 | BG78: 0 | BI78: =AND(B78=$C$9,'Standing Data'!$D$9<>"Multi-academy Trust") -> 
A79: =IF(B79<>"",IF('Standing Data'!$D$9<>"Multi-academy Trust",IF('Standing Data'!$D$15=B79,"Error - counterparty with self",""),IF(N(ISNA(MATCH(B79,'Standing Data'!$E$49:$E$148,0)))<>0,"","Error - counterparty with self")),"") ->  | B79: =IF(C79<>"",VLOOKUP(C79,'CP IDs'!A$2:B$5122,2,FALSE),"") ->  | D79: =IFERROR(VLOOKUP(C79,'CP IDs'!$A$2:$D$4422,4,FALSE),"") ->  | AX79: -500000 | AY79: 500000 | BA79: 1 | BB79: 1 | BC79: 31 | BE79: 0 | BF79: 0 | BG79: 0 | BI79: =AND(B79=$C$9,'Standing Data'!$D$9<>"Multi-academy Trust") -> 
A80: =IF(B80<>"",IF('Standing Data'!$D$9<>"Multi-academy Trust",IF('Standing Data'!$D$15=B80,"Error - counterparty with self",""),IF(N(ISNA(MATCH(B80,'Standing Data'!$E$49:$E$148,0)))<>0,"","Error - counterparty with self")),"") ->  | B80: =IF(C80<>"",VLOOKUP(C80,'CP IDs'!A$2:B$5122,2,FALSE),"") ->  | D80: =IFERROR(VLOOKUP(C80,'CP IDs'!$A$2:$D$4422,4,FALSE),"") ->  | AX80: -500000 | AY80: 500000 | BA80: 1 | BB80: 1 | BC80: 31 | BE80: 0 | BF80: 0 | BG80: 0 | BI80: =AND(B80=$C$9,'Standing Data'!$D$9<>"Multi-academy Trust") -> 
A81: =IF(B81<>"",IF('Standing Data'!$D$9<>"Multi-academy Trust",IF('Standing Data'!$D$15=B81,"Error - counterparty with self",""),IF(N(ISNA(MATCH(B81,'Standing Data'!$E$49:$E$148,0)))<>0,"","Error - counterparty with self")),"") ->  | B81: =IF(C81<>"",VLOOKUP(C81,'CP IDs'!A$2:B$5122,2,FALSE),"") ->  | D81: =IFERROR(VLOOKUP(C81,'CP IDs'!$A$2:$D$4422,4,FALSE),"") ->  | AX81: -500000 | AY81: 500000 | BA81: 1 | BB81: 1 | BC81: 31 | BE81: 0 | BF81: 0 | BG81: 0 | BI81: =AND(B81=$C$9,'Standing Data'!$D$9<>"Multi-academy Trust") -> 
A82: =IF(B82<>"",IF('Standing Data'!$D$9<>"Multi-academy Trust",IF('Standing Data'!$D$15=B82,"Error - counterparty with self",""),IF(N(ISNA(MATCH(B82,'Standing Data'!$E$49:$E$148,0)))<>0,"","Error - counterparty with self")),"") ->  | B82: =IF(C82<>"",VLOOKUP(C82,'CP IDs'!A$2:B$5122,2,FALSE),"") ->  | D82: =IFERROR(VLOOKUP(C82,'CP IDs'!$A$2:$D$4422,4,FALSE),"") ->  | AX82: -500000 | AY82: 500000 | BA82: 1 | BB82: 1 | BC82: 31 | BE82: 0 | BF82: 0 | BG82: 0 | BI82: =AND(B82=$C$9,'Standing Data'!$D$9<>"Multi-academy Trust") -> 
A83: =IF(B83<>"",IF('Standing Data'!$D$9<>"Multi-academy Trust",IF('Standing Data'!$D$15=B83,"Error - counterparty with self",""),IF(N(ISNA(MATCH(B83,'Standing Data'!$E$49:$E$148,0)))<>0,"","Error - counterparty with self")),"") ->  | B83: =IF(C83<>"",VLOOKUP(C83,'CP IDs'!A$2:B$5122,2,FALSE),"") ->  | D83: =IFERROR(VLOOKUP(C83,'CP IDs'!$A$2:$D$4422,4,FALSE),"") ->  | AX83: -500000 | AY83: 500000 | BA83: 1 | BB83: 1 | BC83: 31 | BE83: 0 | BF83: 0 | BG83: 0 | BI83: =AND(B83=$C$9,'Standing Data'!$D$9<>"Multi-academy Trust") -> 
A84: =IF(B84<>"",IF('Standing Data'!$D$9<>"Multi-academy Trust",IF('Standing Data'!$D$15=B84,"Error - counterparty with self",""),IF(N(ISNA(MATCH(B84,'Standing Data'!$E$49:$E$148,0)))<>0,"","Error - counterparty with self")),"") ->  | B84: =IF(C84<>"",VLOOKUP(C84,'CP IDs'!A$2:B$5122,2,FALSE),"") ->  | D84: =IFERROR(VLOOKUP(C84,'CP IDs'!$A$2:$D$4422,4,FALSE),"") ->  | AX84: -500000 | AY84: 500000 | BA84: 1 | BB84: 1 | BC84: 31 | BE84: 0 | BF84: 0 | BG84: 0 | BI84: =AND(B84=$C$9,'Standing Data'!$D$9<>"Multi-academy Trust") -> 
A85: =IF(B85<>"",IF('Standing Data'!$D$9<>"Multi-academy Trust",IF('Standing Data'!$D$15=B85,"Error - counterparty with self",""),IF(N(ISNA(MATCH(B85,'Standing Data'!$E$49:$E$148,0)))<>0,"","Error - counterparty with self")),"") ->  | B85: =IF(C85<>"",VLOOKUP(C85,'CP IDs'!A$2:B$5122,2,FALSE),"") ->  | D85: =IFERROR(VLOOKUP(C85,'CP IDs'!$A$2:$D$4422,4,FALSE),"") ->  | AX85: -500000 | AY85: 500000 | BA85: 1 | BB85: 1 | BC85: 31 | BE85: 0 | BF85: 0 | BG85: =COUNT(F85:AT85) -> 0 | BI85: =AND(B85=$C$9,'Standing Data'!$D$9<>"Multi-academy Trust") -> 
A86: =IF(B86<>"",IF('Standing Data'!$D$9<>"Multi-academy Trust",IF('Standing Data'!$D$15=B86,"Error - counterparty with self",""),IF(N(ISNA(MATCH(B86,'Standing Data'!$E$49:$E$148,0)))<>0,"","Error - counterparty with self")),"") ->  | B86: =IF(C86<>"",VLOOKUP(C86,'CP IDs'!A$2:B$5122,2,FALSE),"") ->  | D86: =IFERROR(VLOOKUP(C86,'CP IDs'!$A$2:$D$4422,4,FALSE),"") ->  | AX86: -500000 | AY86: 500000 | BA86: 1 | BB86: 1 | BC86: 31 | BE86: 0 | BF86: 0 | BG86: 0 | BI86: =AND(B86=$C$9,'Standing Data'!$D$9<>"Multi-academy Trust") -> 
A87: =IF(B87<>"",IF('Standing Data'!$D$9<>"Multi-academy Trust",IF('Standing Data'!$D$15=B87,"Error - counterparty with self",""),IF(N(ISNA(MATCH(B87,'Standing Data'!$E$49:$E$148,0)))<>0,"","Error - counterparty with self")),"") ->  | B87: =IF(C87<>"",VLOOKUP(C87,'CP IDs'!A$2:B$5122,2,FALSE),"") ->  | D87: =IFERROR(VLOOKUP(C87,'CP IDs'!$A$2:$D$4422,4,FALSE),"") ->  | AX87: =AX86 -> -500000 | AY87: =AY86 -> 500000 | BA87: 1 | BB87: 1 | BC87: 31 | BE87: 0 | BF87: 0 | BG87: 0 | BI87: =AND(B87=$C$9,'Standing Data'!$D$9<>"Multi-academy Trust") -> 
A88: =IF(B88<>"",IF('Standing Data'!$D$9<>"Multi-academy Trust",IF('Standing Data'!$D$15=B88,"Error - counterparty with self",""),IF(N(ISNA(MATCH(B88,'Standing Data'!$E$49:$E$148,0)))<>0,"","Error - counterparty with self")),"") ->  | B88: =IF(C88<>"",VLOOKUP(C88,'CP IDs'!A$2:B$5122,2,FALSE),"") ->  | D88: =IFERROR(VLOOKUP(C88,'CP IDs'!$A$2:$D$4422,4,FALSE),"") ->  | AX88: -500000 | AY88: 500000 | BA88: 1 | BB88: 1 | BC88: 31 | BE88: 0 | BF88: 0 | BG88: 0 | BI88: =AND(B88=$C$9,'Standing Data'!$D$9<>"Multi-academy Trust") -> 
A89: =IF(B89<>"",IF('Standing Data'!$D$9<>"Multi-academy Trust",IF('Standing Data'!$D$15=B89,"Error - counterparty with self",""),IF(N(ISNA(MATCH(B89,'Standing Data'!$E$49:$E$148,0)))<>0,"","Error - counterparty with self")),"") ->  | B89: =IF(C89<>"",VLOOKUP(C89,'CP IDs'!A$2:B$5122,2,FALSE),"") ->  | D89: =IFERROR(VLOOKUP(C89,'CP IDs'!$A$2:$D$4422,4,FALSE),"") ->  | AX89: -500000 | AY89: 500000 | BA89: 1 | BB89: 1 | BC89: 31 | BE89: 0 | BF89: 0 | BG89: 0 | BI89: =AND(B89=$C$9,'Standing Data'!$D$9<>"Multi-academy Trust") -> 
A90: =IF(B90<>"",IF('Standing Data'!$D$9<>"Multi-academy Trust",IF('Standing Data'!$D$15=B90,"Error - counterparty with self",""),IF(N(ISNA(MATCH(B90,'Standing Data'!$E$49:$E$148,0)))<>0,"","Error - counterparty with self")),"") ->  | B90: =IF(C90<>"",VLOOKUP(C90,'CP IDs'!A$2:B$5122,2,FALSE),"") ->  | D90: =IFERROR(VLOOKUP(C90,'CP IDs'!$A$2:$D$4422,4,FALSE),"") ->  | AX90: -500000 | AY90: 500000 | BA90: 1 | BB90: 1 | BC90: 31 | BE90: 0 | BF90: 0 | BG90: 0 | BI90: =AND(B90=$C$9,'Standing Data'!$D$9<>"Multi-academy Trust") -> 
A91: =IF(B91<>"",IF('Standing Data'!$D$9<>"Multi-academy Trust",IF('Standing Data'!$D$15=B91,"Error - counterparty with self",""),IF(N(ISNA(MATCH(B91,'Standing Data'!$E$49:$E$148,0)))<>0,"","Error - counterparty with self")),"") ->  | B91: =IF(C91<>"",VLOOKUP(C91,'CP IDs'!A$2:B$5122,2,FALSE),"") ->  | D91: =IFERROR(VLOOKUP(C91,'CP IDs'!$A$2:$D$4422,4,FALSE),"") ->  | AX91: -500000 | AY91: 500000 | BA91: 1 | BB91: 1 | BC91: 31 | BE91: 0 | BF91: 0 | BG91: 0 | BI91: =AND(B91=$C$9,'Standing Data'!$D$9<>"Multi-academy Trust") -> 
A92: =IF(B92<>"",IF('Standing Data'!$D$9<>"Multi-academy Trust",IF('Standing Data'!$D$15=B92,"Error - counterparty with self",""),IF(N(ISNA(MATCH(B92,'Standing Data'!$E$49:$E$148,0)))<>0,"","Error - counterparty with self")),"") ->  | B92: =IF(C92<>"",VLOOKUP(C92,'CP IDs'!A$2:B$5122,2,FALSE),"") ->  | D92: =IFERROR(VLOOKUP(C92,'CP IDs'!$A$2:$D$4422,4,FALSE),"") ->  | AX92: -500000 | AY92: 500000 | BA92: 1 | BB92: 1 | BC92: 31 | BE92: 0 | BF92: 0 | BG92: 0 | BI92: =AND(B92=$C$9,'Standing Data'!$D$9<>"Multi-academy Trust") -> 
A93: =IF(B93<>"",IF('Standing Data'!$D$9<>"Multi-academy Trust",IF('Standing Data'!$D$15=B93,"Error - counterparty with self",""),IF(N(ISNA(MATCH(B93,'Standing Data'!$E$49:$E$148,0)))<>0,"","Error - counterparty with self")),"") ->  | B93: =IF(C93<>"",VLOOKUP(C93,'CP IDs'!A$2:B$5122,2,FALSE),"") ->  | D93: =IFERROR(VLOOKUP(C93,'CP IDs'!$A$2:$D$4422,4,FALSE),"") ->  | AX93: -500000 | AY93: 500000 | BA93: 1 | BB93: 1 | BC93: 31 | BE93: 0 | BF93: 0 | BG93: 0 | BI93: =AND(B93=$C$9,'Standing Data'!$D$9<>"Multi-academy Trust") -> 
A94: =IF(B94<>"",IF('Standing Data'!$D$9<>"Multi-academy Trust",IF('Standing Data'!$D$15=B94,"Error - counterparty with self",""),IF(N(ISNA(MATCH(B94,'Standing Data'!$E$49:$E$148,0)))<>0,"","Error - counterparty with self")),"") ->  | B94: =IF(C94<>"",VLOOKUP(C94,'CP IDs'!A$2:B$5122,2,FALSE),"") ->  | D94: =IFERROR(VLOOKUP(C94,'CP IDs'!$A$2:$D$4422,4,FALSE),"") ->  | AX94: -500000 | AY94: 500000 | BA94: 1 | BB94: 1 | BC94: 31 | BE94: =COUNTA(C94) -> 0 | BF94: =1-COUNTBLANK(B94) -> 0 | BG94: 0 | BI94: =AND(B94=$C$9,'Standing Data'!$D$9<>"Multi-academy Trust") -> 
A95: =IF(B95<>"",IF('Standing Data'!$D$9<>"Multi-academy Trust",IF('Standing Data'!$D$15=B95,"Error - counterparty with self",""),IF(N(ISNA(MATCH(B95,'Standing Data'!$E$49:$E$148,0)))<>0,"","Error - counterparty with self")),"") ->  | B95: =IF(C95<>"",VLOOKUP(C95,'CP IDs'!A$2:B$5122,2,FALSE),"") ->  | D95: =IFERROR(VLOOKUP(C95,'CP IDs'!$A$2:$D$4422,4,FALSE),"") ->  | E95: =IF(OR(AND(COUNT(F95:AT95)>0,C95=""),AND(COUNT(F95:AT95)=0,C95<>"")),"Error - on line","") ->  | AX95: -500000 | AY95: 500000 | BA95: 1 | BB95: 1 | BC95: 31 | BE95: 0 | BF95: 0 | BG95: 0 | BI95: =AND(B95=$C$9,'Standing Data'!$D$9<>"Multi-academy Trust") -> 
A96: =IF(B96<>"",IF('Standing Data'!$D$9<>"Multi-academy Trust",IF('Standing Data'!$D$15=B96,"Error - counterparty with self",""),IF(N(ISNA(MATCH(B96,'Standing Data'!$E$49:$E$148,0)))<>0,"","Error - counterparty with self")),"") ->  | B96: =IF(C96<>"",VLOOKUP(C96,'CP IDs'!A$2:B$5122,2,FALSE),"") ->  | D96: =IFERROR(VLOOKUP(C96,'CP IDs'!$A$2:$D$4422,4,FALSE),"") ->  | AX96: -500000 | AY96: 500000 | BA96: 1 | BB96: 1 | BC96: 31 | BE96: 0 | BF96: 0 | BG96: 0 | BI96: =AND(B96=$C$9,'Standing Data'!$D$9<>"Multi-academy Trust") -> 
A97: =IF(B97<>"",IF('Standing Data'!$D$9<>"Multi-academy Trust",IF('Standing Data'!$D$15=B97,"Error - counterparty with self",""),IF(N(ISNA(MATCH(B97,'Standing Data'!$E$49:$E$148,0)))<>0,"","Error - counterparty with self")),"") ->  | B97: =IF(C97<>"",VLOOKUP(C97,'CP IDs'!A$2:B$5122,2,FALSE),"") ->  | D97: =IFERROR(VLOOKUP(C97,'CP IDs'!$A$2:$D$4422,4,FALSE),"") ->  | AX97: -500000 | AY97: 500000 | BA97: 1 | BB97: 1 | BC97: 31 | BE97: 0 | BF97: 0 | BG97: 0 | BI97: =AND(B97=$C$9,'Standing Data'!$D$9<>"Multi-academy Trust") -> 
A98: =IF(B98<>"",IF('Standing Data'!$D$9<>"Multi-academy Trust",IF('Standing Data'!$D$15=B98,"Error - counterparty with self",""),IF(N(ISNA(MATCH(B98,'Standing Data'!$E$49:$E$148,0)))<>0,"","Error - counterparty with self")),"") ->  | B98: =IF(C98<>"",VLOOKUP(C98,'CP IDs'!A$2:B$5122,2,FALSE),"") ->  | D98: =IFERROR(VLOOKUP(C98,'CP IDs'!$A$2:$D$4422,4,FALSE),"") ->  | AX98: -500000 | AY98: 500000 | BA98: 1 | BB98: 1 | BC98: 31 | BE98: 0 | BF98: 0 | BG98: 0 | BI98: =AND(B98=$C$9,'Standing Data'!$D$9<>"Multi-academy Trust") -> 
A99: =IF(B99<>"",IF('Standing Data'!$D$9<>"Multi-academy Trust",IF('Standing Data'!$D$15=B99,"Error - counterparty with self",""),IF(N(ISNA(MATCH(B99,'Standing Data'!$E$49:$E$148,0)))<>0,"","Error - counterparty with self")),"") ->  | B99: =IF(C99<>"",VLOOKUP(C99,'CP IDs'!A$2:B$5122,2,FALSE),"") ->  | D99: =IFERROR(VLOOKUP(C99,'CP IDs'!$A$2:$D$4422,4,FALSE),"") ->  | AX99: -500000 | AY99: 500000 | BA99: 1 | BB99: 1 | BC99: 31 | BE99: 0 | BF99: 0 | BG99: 0 | BI99: =AND(B99=$C$9,'Standing Data'!$D$9<>"Multi-academy Trust") -> 
A100: =IF(B100<>"",IF('Standing Data'!$D$9<>"Multi-academy Trust",IF('Standing Data'!$D$15=B100,"Error - counterparty with self",""),IF(N(ISNA(MATCH(B100,'Standing Data'!$E$49:$E$148,0)))<>0,"","Error - counterparty with self")),"") ->  | B100: =IF(C100<>"",VLOOKUP(C100,'CP IDs'!A$2:B$5122,2,FALSE),"") ->  | D100: =IFERROR(VLOOKUP(C100,'CP IDs'!$A$2:$D$4422,4,FALSE),"") ->  | AX100: -500000 | AY100: 500000 | BA100: 1 | BB100: 1 | BC100: 31 | BE100: 0 | BF100: 0 | BG100: 0 | BI100: =AND(B100=$C$9,'Standing Data'!$D$9<>"Multi-academy Trust") -> 
A101: =IF(B101<>"",IF('Standing Data'!$D$9<>"Multi-academy Trust",IF('Standing Data'!$D$15=B101,"Error - counterparty with self",""),IF(N(ISNA(MATCH(B101,'Standing Data'!$E$49:$E$148,0)))<>0,"","Error - counterparty with self")),"") ->  | B101: =IF(C101<>"",VLOOKUP(C101,'CP IDs'!A$2:B$5122,2,FALSE),"") ->  | D101: =IFERROR(VLOOKUP(C101,'CP IDs'!$A$2:$D$4422,4,FALSE),"") ->  | AX101: -500000 | AY101: 500000 | BA101: 1 | BB101: 1 | BC101: 31 | BE101: 0 | BF101: 0 | BG101: 0 | BI101: =AND(B101=$C$9,'Standing Data'!$D$9<>"Multi-academy Trust") -> 
A102: =IF(B102<>"",IF('Standing Data'!$D$9<>"Multi-academy Trust",IF('Standing Data'!$D$15=B102,"Error - counterparty with self",""),IF(N(ISNA(MATCH(B102,'Standing Data'!$E$49:$E$148,0)))<>0,"","Error - counterparty with self")),"") ->  | B102: =IF(C102<>"",VLOOKUP(C102,'CP IDs'!A$2:B$5122,2,FALSE),"") ->  | D102: =IFERROR(VLOOKUP(C102,'CP IDs'!$A$2:$D$4422,4,FALSE),"") ->  | AX102: -500000 | AY102: 500000 | BA102: 1 | BB102: 1 | BC102: 31 | BE102: 0 | BF102: 0 | BG102: 0 | BI102: =AND(B102=$C$9,'Standing Data'!$D$9<>"Multi-academy Trust") -> 
A103: =IF(B103<>"",IF('Standing Data'!$D$9<>"Multi-academy Trust",IF('Standing Data'!$D$15=B103,"Error - counterparty with self",""),IF(N(ISNA(MATCH(B103,'Standing Data'!$E$49:$E$148,0)))<>0,"","Error - counterparty with self")),"") ->  | B103: =IF(C103<>"",VLOOKUP(C103,'CP IDs'!A$2:B$5122,2,FALSE),"") ->  | D103: =IFERROR(VLOOKUP(C103,'CP IDs'!$A$2:$D$4422,4,FALSE),"") ->  | AX103: -500000 | AY103: 500000 | BA103: 1 | BB103: 1 | BC103: 31 | BE103: 0 | BF103: 0 | BG103: 0 | BI103: =AND(B103=$C$9,'Standing Data'!$D$9<>"Multi-academy Trust") -> 
A104: =IF(B104<>"",IF('Standing Data'!$D$9<>"Multi-academy Trust",IF('Standing Data'!$D$15=B104,"Error - counterparty with self",""),IF(N(ISNA(MATCH(B104,'Standing Data'!$E$49:$E$148,0)))<>0,"","Error - counterparty with self")),"") ->  | B104: =IF(C104<>"",VLOOKUP(C104,'CP IDs'!A$2:B$5122,2,FALSE),"") ->  | D104: =IFERROR(VLOOKUP(C104,'CP IDs'!$A$2:$D$4422,4,FALSE),"") ->  | AX104: -500000 | AY104: 500000 | BA104: 1 | BB104: 1 | BC104: 31 | BE104: 0 | BF104: 0 | BG104: 0 | BI104: =AND(B104=$C$9,'Standing Data'!$D$9<>"Multi-academy Trust") -> 
A105: =IF(B105<>"",IF('Standing Data'!$D$9<>"Multi-academy Trust",IF('Standing Data'!$D$15=B105,"Error - counterparty with self",""),IF(N(ISNA(MATCH(B105,'Standing Data'!$E$49:$E$148,0)))<>0,"","Error - counterparty with self")),"") ->  | B105: =IF(C105<>"",VLOOKUP(C105,'CP IDs'!A$2:B$5122,2,FALSE),"") ->  | D105: =IFERROR(VLOOKUP(C105,'CP IDs'!$A$2:$D$4422,4,FALSE),"") ->  | AX105: -500000 | AY105: 500000 | BA105: 1 | BB105: 1 | BC105: 31 | BE105: 0 | BF105: 0 | BG105: 0 | BI105: =AND(B105=$C$9,'Standing Data'!$D$9<>"Multi-academy Trust") -> 
A106: =IF(B106<>"",IF('Standing Data'!$D$9<>"Multi-academy Trust",IF('Standing Data'!$D$15=B106,"Error - counterparty with self",""),IF(N(ISNA(MATCH(B106,'Standing Data'!$E$49:$E$148,0)))<>0,"","Error - counterparty with self")),"") ->  | B106: =IF(C106<>"",VLOOKUP(C106,'CP IDs'!A$2:B$5122,2,FALSE),"") ->  | D106: =IFERROR(VLOOKUP(C106,'CP IDs'!$A$2:$D$4422,4,FALSE),"") ->  | AX106: -500000 | AY106: 500000 | BA106: 1 | BB106: 1 | BC106: 31 | BE106: 0 | BF106: 0 | BG106: 0 | BI106: =AND(B106=$C$9,'Standing Data'!$D$9<>"Multi-academy Trust") -> 
A107: =IF(B107<>"",IF('Standing Data'!$D$9<>"Multi-academy Trust",IF('Standing Data'!$D$15=B107,"Error - counterparty with self",""),IF(N(ISNA(MATCH(B107,'Standing Data'!$E$49:$E$148,0)))<>0,"","Error - counterparty with self")),"") ->  | B107: =IF(C107<>"",VLOOKUP(C107,'CP IDs'!A$2:B$5122,2,FALSE),"") ->  | D107: =IFERROR(VLOOKUP(C107,'CP IDs'!$A$2:$D$4422,4,FALSE),"") ->  | AX107: -500000 | AY107: 500000 | BA107: 1 | BB107: 1 | BC107: 31 | BE107: 0 | BF107: 0 | BG107: 0 | BI107: =AND(B107=$C$9,'Standing Data'!$D$9<>"Multi-academy Trust") -> 
A108: =IF(B108<>"",IF('Standing Data'!$D$9<>"Multi-academy Trust",IF('Standing Data'!$D$15=B108,"Error - counterparty with self",""),IF(N(ISNA(MATCH(B108,'Standing Data'!$E$49:$E$148,0)))<>0,"","Error - counterparty with self")),"") ->  | B108: =IF(C108<>"",VLOOKUP(C108,'CP IDs'!A$2:B$5122,2,FALSE),"") ->  | D108: =IFERROR(VLOOKUP(C108,'CP IDs'!$A$2:$D$4422,4,FALSE),"") ->  | AX108: -500000 | AY108: 500000 | BA108: 1 | BB108: 1 | BC108: 31 | BE108: 0 | BF108: 0 | BG108: 0 | BI108: =AND(B108=$C$9,'Standing Data'!$D$9<>"Multi-academy Trust") -> 
A109: =IF(B109<>"",IF('Standing Data'!$D$9<>"Multi-academy Trust",IF('Standing Data'!$D$15=B109,"Error - counterparty with self",""),IF(N(ISNA(MATCH(B109,'Standing Data'!$E$49:$E$148,0)))<>0,"","Error - counterparty with self")),"") ->  | B109: =IF(C109<>"",VLOOKUP(C109,'CP IDs'!A$2:B$5122,2,FALSE),"") ->  | D109: =IFERROR(VLOOKUP(C109,'CP IDs'!$A$2:$D$4422,4,FALSE),"") ->  | AX109: -500000 | AY109: 500000 | BA109: 1 | BB109: 1 | BC109: 31 | BE109: 0 | BF109: 0 | BG109: 0 | BI109: =AND(B109=$C$9,'Standing Data'!$D$9<>"Multi-academy Trust") -> 
A110: =IF(B110<>"",IF('Standing Data'!$D$9<>"Multi-academy Trust",IF('Standing Data'!$D$15=B110,"Error - counterparty with self",""),IF(N(ISNA(MATCH(B110,'Standing Data'!$E$49:$E$148,0)))<>0,"","Error - counterparty with self")),"") ->  | B110: =IF(C110<>"",VLOOKUP(C110,'CP IDs'!A$2:B$5122,2,FALSE),"") ->  | D110: =IFERROR(VLOOKUP(C110,'CP IDs'!$A$2:$D$4422,4,FALSE),"") ->  | AX110: -500000 | AY110: 500000 | BA110: 1 | BB110: 1 | BC110: 31 | BE110: 0 | BF110: 0 | BG110: 0 | BI110: =AND(B110=$C$9,'Standing Data'!$D$9<>"Multi-academy Trust") -> 
A111: =IF(B111<>"",IF('Standing Data'!$D$9<>"Multi-academy Trust",IF('Standing Data'!$D$15=B111,"Error - counterparty with self",""),IF(N(ISNA(MATCH(B111,'Standing Data'!$E$49:$E$148,0)))<>0,"","Error - counterparty with self")),"") ->  | B111: =IF(C111<>"",VLOOKUP(C111,'CP IDs'!A$2:B$5122,2,FALSE),"") ->  | D111: =IFERROR(VLOOKUP(C111,'CP IDs'!$A$2:$D$4422,4,FALSE),"") ->  | AX111: -500000 | AY111: 500000 | BA111: 1 | BB111: 1 | BC111: 31 | BE111: 0 | BF111: 0 | BG111: 0 | BI111: =AND(B111=$C$9,'Standing Data'!$D$9<>"Multi-academy Trust") -> 
A112: =IF(B112<>"",IF('Standing Data'!$D$9<>"Multi-academy Trust",IF('Standing Data'!$D$15=B112,"Error - counterparty with self",""),IF(N(ISNA(MATCH(B112,'Standing Data'!$E$49:$E$148,0)))<>0,"","Error - counterparty with self")),"") ->  | B112: =IF(C112<>"",VLOOKUP(C112,'CP IDs'!A$2:B$5122,2,FALSE),"") ->  | D112: =IFERROR(VLOOKUP(C112,'CP IDs'!$A$2:$D$4422,4,FALSE),"") ->  | AX112: -500000 | AY112: 500000 | BA112: 1 | BB112: 1 | BC112: 31 | BE112: 0 | BF112: 0 | BG112: 0 | BI112: =AND(B112=$C$9,'Standing Data'!$D$9<>"Multi-academy Trust") -> 
A113: =IF(B113<>"",IF('Standing Data'!$D$9<>"Multi-academy Trust",IF('Standing Data'!$D$15=B113,"Error - counterparty with self",""),IF(N(ISNA(MATCH(B113,'Standing Data'!$E$49:$E$148,0)))<>0,"","Error - counterparty with self")),"") ->  | B113: =IF(C113<>"",VLOOKUP(C113,'CP IDs'!A$2:B$5122,2,FALSE),"") ->  | D113: =IFERROR(VLOOKUP(C113,'CP IDs'!$A$2:$D$4422,4,FALSE),"") ->  | AX113: -500000 | AY113: 500000 | BA113: 1 | BB113: 1 | BC113: 31 | BE113: 0 | BF113: 0 | BG113: 0 | BI113: =AND(B113=$C$9,'Standing Data'!$D$9<>"Multi-academy Trust") -> 
A114: =IF(B114<>"",IF('Standing Data'!$D$9<>"Multi-academy Trust",IF('Standing Data'!$D$15=B114,"Error - counterparty with self",""),IF(N(ISNA(MATCH(B114,'Standing Data'!$E$49:$E$148,0)))<>0,"","Error - counterparty with self")),"") ->  | B114: =IF(C114<>"",VLOOKUP(C114,'CP IDs'!A$2:B$5122,2,FALSE),"") ->  | D114: =IFERROR(VLOOKUP(C114,'CP IDs'!$A$2:$D$4422,4,FALSE),"") ->  | AX114: -500000 | AY114: 500000 | BA114: 1 | BB114: 1 | BC114: 31 | BE114: 0 | BF114: 0 | BG114: 0 | BI114: =AND(B114=$C$9,'Standing Data'!$D$9<>"Multi-academy Trust") -> 
A115: =IF(B115<>"",IF('Standing Data'!$D$9<>"Multi-academy Trust",IF('Standing Data'!$D$15=B115,"Error - counterparty with self",""),IF(N(ISNA(MATCH(B115,'Standing Data'!$E$49:$E$148,0)))<>0,"","Error - counterparty with self")),"") ->  | B115: =IF(C115<>"",VLOOKUP(C115,'CP IDs'!A$2:B$5122,2,FALSE),"") ->  | D115: =IFERROR(VLOOKUP(C115,'CP IDs'!$A$2:$D$4422,4,FALSE),"") ->  | AX115: -500000 | AY115: 500000 | BA115: 1 | BB115: 1 | BC115: 31 | BE115: 0 | BF115: 0 | BG115: 0 | BI115: =AND(B115=$C$9,'Standing Data'!$D$9<>"Multi-academy Trust") -> 
A116: =IF(B116<>"",IF('Standing Data'!$D$9<>"Multi-academy Trust",IF('Standing Data'!$D$15=B116,"Error - counterparty with self",""),IF(N(ISNA(MATCH(B116,'Standing Data'!$E$49:$E$148,0)))<>0,"","Error - counterparty with self")),"") ->  | B116: =IF(C116<>"",VLOOKUP(C116,'CP IDs'!A$2:B$5122,2,FALSE),"") ->  | D116: =IFERROR(VLOOKUP(C116,'CP IDs'!$A$2:$D$4422,4,FALSE),"") ->  | AX116: -500000 | AY116: 500000 | BA116: 1 | BB116: 1 | BC116: 31 | BE116: 0 | BF116: 0 | BG116: 0 | BI116: =AND(B116=$C$9,'Standing Data'!$D$9<>"Multi-academy Trust") -> 
A117: =IF(B117<>"",IF('Standing Data'!$D$9<>"Multi-academy Trust",IF('Standing Data'!$D$15=B117,"Error - counterparty with self",""),IF(N(ISNA(MATCH(B117,'Standing Data'!$E$49:$E$148,0)))<>0,"","Error - counterparty with self")),"") ->  | B117: =IF(C117<>"",VLOOKUP(C117,'CP IDs'!A$2:B$5122,2,FALSE),"") ->  | D117: =IFERROR(VLOOKUP(C117,'CP IDs'!$A$2:$D$4422,4,FALSE),"") ->  | AX117: -500000 | AY117: 500000 | BA117: 1 | BB117: 1 | BC117: 31 | BE117: 0 | BF117: 0 | BG117: 0 | BI117: =AND(B117=$C$9,'Standing Data'!$D$9<>"Multi-academy Trust") -> 
A118: =IF(B118<>"",IF('Standing Data'!$D$9<>"Multi-academy Trust",IF('Standing Data'!$D$15=B118,"Error - counterparty with self",""),IF(N(ISNA(MATCH(B118,'Standing Data'!$E$49:$E$148,0)))<>0,"","Error - counterparty with self")),"") ->  | B118: =IF(C118<>"",VLOOKUP(C118,'CP IDs'!A$2:B$5122,2,FALSE),"") ->  | D118: =IFERROR(VLOOKUP(C118,'CP IDs'!$A$2:$D$4422,4,FALSE),"") ->  | AX118: -500000 | AY118: 500000 | BA118: 1 | BB118: 1 | BC118: 31 | BE118: 0 | BF118: 0 | BG118: 0 | BI118: =AND(B118=$C$9,'Standing Data'!$D$9<>"Multi-academy Trust") -> 
A119: =IF(B119<>"",IF('Standing Data'!$D$9<>"Multi-academy Trust",IF('Standing Data'!$D$15=B119,"Error - counterparty with self",""),IF(N(ISNA(MATCH(B119,'Standing Data'!$E$49:$E$148,0)))<>0,"","Error - counterparty with self")),"") ->  | B119: =IF(C119<>"",VLOOKUP(C119,'CP IDs'!A$2:B$5122,2,FALSE),"") ->  | D119: =IFERROR(VLOOKUP(C119,'CP IDs'!$A$2:$D$4422,4,FALSE),"") ->  | AX119: -500000 | AY119: 500000 | BA119: 1 | BB119: 1 | BC119: 31 | BE119: 0 | BF119: 0 | BG119: 0 | BI119: =AND(B119=$C$9,'Standing Data'!$D$9<>"Multi-academy Trust") -> 
A120: =IF(B120<>"",IF('Standing Data'!$D$9<>"Multi-academy Trust",IF('Standing Data'!$D$15=B120,"Error - counterparty with self",""),IF(N(ISNA(MATCH(B120,'Standing Data'!$E$49:$E$148,0)))<>0,"","Error - counterparty with self")),"") ->  | B120: =IF(C120<>"",VLOOKUP(C120,'CP IDs'!A$2:B$5122,2,FALSE),"") ->  | D120: =IFERROR(VLOOKUP(C120,'CP IDs'!$A$2:$D$4422,4,FALSE),"") ->  | AX120: -500000 | AY120: 500000 | BA120: 1 | BB120: 1 | BC120: 31 | BE120: 0 | BF120: 0 | BG120: 0 | BI120: =AND(B120=$C$9,'Standing Data'!$D$9<>"Multi-academy Trust") -> 
A121: =IF(B121<>"",IF('Standing Data'!$D$9<>"Multi-academy Trust",IF('Standing Data'!$D$15=B121,"Error - counterparty with self",""),IF(N(ISNA(MATCH(B121,'Standing Data'!$E$49:$E$148,0)))<>0,"","Error - counterparty with self")),"") ->  | B121: =IF(C121<>"",VLOOKUP(C121,'CP IDs'!A$2:B$5122,2,FALSE),"") ->  | D121: =IFERROR(VLOOKUP(C121,'CP IDs'!$A$2:$D$4422,4,FALSE),"") ->  | AX121: -500000 | AY121: 500000 | BA121: 1 | BB121: 1 | BC121: 31 | BE121: 0 | BF121: 0 | BG121: 0 | BI121: =AND(B121=$C$9,'Standing Data'!$D$9<>"Multi-academy Trust") -> 
A122: =IF(B122<>"",IF('Standing Data'!$D$9<>"Multi-academy Trust",IF('Standing Data'!$D$15=B122,"Error - counterparty with self",""),IF(N(ISNA(MATCH(B122,'Standing Data'!$E$49:$E$148,0)))<>0,"","Error - counterparty with self")),"") ->  | B122: =IF(C122<>"",VLOOKUP(C122,'CP IDs'!A$2:B$5122,2,FALSE),"") ->  | D122: =IFERROR(VLOOKUP(C122,'CP IDs'!$A$2:$D$4422,4,FALSE),"") ->  | AX122: -500000 | AY122: 500000 | BA122: 1 | BB122: 1 | BC122: 31 | BE122: 0 | BF122: 0 | BG122: 0 | BI122: =AND(B122=$C$9,'Standing Data'!$D$9<>"Multi-academy Trust") -> 
A123: =IF(B123<>"",IF('Standing Data'!$D$9<>"Multi-academy Trust",IF('Standing Data'!$D$15=B123,"Error - counterparty with self",""),IF(N(ISNA(MATCH(B123,'Standing Data'!$E$49:$E$148,0)))<>0,"","Error - counterparty with self")),"") ->  | B123: =IF(C123<>"",VLOOKUP(C123,'CP IDs'!A$2:B$5122,2,FALSE),"") ->  | D123: =IFERROR(VLOOKUP(C123,'CP IDs'!$A$2:$D$4422,4,FALSE),"") ->  | AX123: -500000 | AY123: 500000 | BA123: 1 | BB123: 1 | BC123: 31 | BE123: 0 | BF123: 0 | BG123: 0 | BI123: =AND(B123=$C$9,'Standing Data'!$D$9<>"Multi-academy Trust") -> 
A124: =IF(B124<>"",IF('Standing Data'!$D$9<>"Multi-academy Trust",IF('Standing Data'!$D$15=B124,"Error - counterparty with self",""),IF(N(ISNA(MATCH(B124,'Standing Data'!$E$49:$E$148,0)))<>0,"","Error - counterparty with self")),"") ->  | B124: =IF(C124<>"",VLOOKUP(C124,'CP IDs'!A$2:B$5122,2,FALSE),"") ->  | D124: =IFERROR(VLOOKUP(C124,'CP IDs'!$A$2:$D$4422,4,FALSE),"") ->  | AX124: -500000 | AY124: 500000 | BA124: 1 | BB124: 1 | BC124: 31 | BE124: 0 | BF124: 0 | BG124: 0 | BI124: =AND(B124=$C$9,'Standing Data'!$D$9<>"Multi-academy Trust") -> 
A125: =IF(B125<>"",IF('Standing Data'!$D$9<>"Multi-academy Trust",IF('Standing Data'!$D$15=B125,"Error - counterparty with self",""),IF(N(ISNA(MATCH(B125,'Standing Data'!$E$49:$E$148,0)))<>0,"","Error - counterparty with self")),"") ->  | B125: =IF(C125<>"",VLOOKUP(C125,'CP IDs'!A$2:B$5122,2,FALSE),"") ->  | D125: =IFERROR(VLOOKUP(C125,'CP IDs'!$A$2:$D$4422,4,FALSE),"") ->  | AX125: -500000 | AY125: 500000 | BA125: 1 | BB125: 1 | BC125: 31 | BE125: 0 | BF125: 0 | BG125: 0 | BI125: =AND(B125=$C$9,'Standing Data'!$D$9<>"Multi-academy Trust") -> 
A126: =IF(B126<>"",IF('Standing Data'!$D$9<>"Multi-academy Trust",IF('Standing Data'!$D$15=B126,"Error - counterparty with self",""),IF(N(ISNA(MATCH(B126,'Standing Data'!$E$49:$E$148,0)))<>0,"","Error - counterparty with self")),"") ->  | B126: =IF(C126<>"",VLOOKUP(C126,'CP IDs'!A$2:B$5122,2,FALSE),"") ->  | D126: =IFERROR(VLOOKUP(C126,'CP IDs'!$A$2:$D$4422,4,FALSE),"") ->  | AX126: -500000 | AY126: 500000 | BA126: 1 | BB126: 1 | BC126: 31 | BE126: 0 | BF126: 0 | BG126: 0 | BI126: =AND(B126=$C$9,'Standing Data'!$D$9<>"Multi-academy Trust") -> 
A127: =IF(B127<>"",IF('Standing Data'!$D$9<>"Multi-academy Trust",IF('Standing Data'!$D$15=B127,"Error - counterparty with self",""),IF(N(ISNA(MATCH(B127,'Standing Data'!$E$49:$E$148,0)))<>0,"","Error - counterparty with self")),"") ->  | B127: =IF(C127<>"",VLOOKUP(C127,'CP IDs'!A$2:B$5122,2,FALSE),"") ->  | D127: =IFERROR(VLOOKUP(C127,'CP IDs'!$A$2:$D$4422,4,FALSE),"") ->  | AX127: -500000 | AY127: 500000 | BA127: 1 | BB127: 1 | BC127: 31 | BE127: 0 | BF127: 0 | BG127: 0 | BI127: =AND(B127=$C$9,'Standing Data'!$D$9<>"Multi-academy Trust") -> 
A128: =IF(B128<>"",IF('Standing Data'!$D$9<>"Multi-academy Trust",IF('Standing Data'!$D$15=B128,"Error - counterparty with self",""),IF(N(ISNA(MATCH(B128,'Standing Data'!$E$49:$E$148,0)))<>0,"","Error - counterparty with self")),"") ->  | B128: =IF(C128<>"",VLOOKUP(C128,'CP IDs'!A$2:B$5122,2,FALSE),"") ->  | D128: =IFERROR(VLOOKUP(C128,'CP IDs'!$A$2:$D$4422,4,FALSE),"") ->  | AX128: -500000 | AY128: 500000 | BA128: 1 | BB128: 1 | BC128: 31 | BE128: 0 | BF128: 0 | BG128: 0 | BI128: =AND(B128=$C$9,'Standing Data'!$D$9<>"Multi-academy Trust") -> 
A129: =IF(B129<>"",IF('Standing Data'!$D$9<>"Multi-academy Trust",IF('Standing Data'!$D$15=B129,"Error - counterparty with self",""),IF(N(ISNA(MATCH(B129,'Standing Data'!$E$49:$E$148,0)))<>0,"","Error - counterparty with self")),"") ->  | B129: =IF(C129<>"",VLOOKUP(C129,'CP IDs'!A$2:B$5122,2,FALSE),"") ->  | D129: =IFERROR(VLOOKUP(C129,'CP IDs'!$A$2:$D$4422,4,FALSE),"") ->  | AX129: -500000 | AY129: 500000 | BA129: 1 | BB129: 1 | BC129: 31 | BE129: 0 | BF129: 0 | BG129: 0 | BI129: =AND(B129=$C$9,'Standing Data'!$D$9<>"Multi-academy Trust") -> 
A130: =IF(B130<>"",IF('Standing Data'!$D$9<>"Multi-academy Trust",IF('Standing Data'!$D$15=B130,"Error - counterparty with self",""),IF(N(ISNA(MATCH(B130,'Standing Data'!$E$49:$E$148,0)))<>0,"","Error - counterparty with self")),"") ->  | B130: =IF(C130<>"",VLOOKUP(C130,'CP IDs'!A$2:B$5122,2,FALSE),"") ->  | D130: =IFERROR(VLOOKUP(C130,'CP IDs'!$A$2:$D$4422,4,FALSE),"") ->  | AX130: -500000 | AY130: 500000 | BA130: 1 | BB130: 1 | BC130: 31 | BE130: 0 | BF130: 0 | BG130: 0 | BI130: =AND(B130=$C$9,'Standing Data'!$D$9<>"Multi-academy Trust") -> 
A131: =IF(B131<>"",IF('Standing Data'!$D$9<>"Multi-academy Trust",IF('Standing Data'!$D$15=B131,"Error - counterparty with self",""),IF(N(ISNA(MATCH(B131,'Standing Data'!$E$49:$E$148,0)))<>0,"","Error - counterparty with self")),"") ->  | B131: =IF(C131<>"",VLOOKUP(C131,'CP IDs'!A$2:B$5122,2,FALSE),"") ->  | D131: =IFERROR(VLOOKUP(C131,'CP IDs'!$A$2:$D$4422,4,FALSE),"") ->  | AX131: -500000 | AY131: 500000 | BA131: 1 | BB131: 1 | BC131: 31 | BE131: 0 | BF131: 0 | BG131: 0 | BI131: =AND(B131=$C$9,'Standing Data'!$D$9<>"Multi-academy Trust") -> 
A132: =IF(B132<>"",IF('Standing Data'!$D$9<>"Multi-academy Trust",IF('Standing Data'!$D$15=B132,"Error - counterparty with self",""),IF(N(ISNA(MATCH(B132,'Standing Data'!$E$49:$E$148,0)))<>0,"","Error - counterparty with self")),"") ->  | B132: =IF(C132<>"",VLOOKUP(C132,'CP IDs'!A$2:B$5122,2,FALSE),"") ->  | D132: =IFERROR(VLOOKUP(C132,'CP IDs'!$A$2:$D$4422,4,FALSE),"") ->  | AX132: -500000 | AY132: 500000 | BA132: 1 | BB132: 1 | BC132: 31 | BE132: 0 | BF132: 0 | BG132: 0 | BI132: =AND(B132=$C$9,'Standing Data'!$D$9<>"Multi-academy Trust") -> 
A133: =IF(B133<>"",IF('Standing Data'!$D$9<>"Multi-academy Trust",IF('Standing Data'!$D$15=B133,"Error - counterparty with self",""),IF(N(ISNA(MATCH(B133,'Standing Data'!$E$49:$E$148,0)))<>0,"","Error - counterparty with self")),"") ->  | B133: =IF(C133<>"",VLOOKUP(C133,'CP IDs'!A$2:B$5122,2,FALSE),"") ->  | D133: =IFERROR(VLOOKUP(C133,'CP IDs'!$A$2:$D$4422,4,FALSE),"") ->  | AX133: -500000 | AY133: 500000 | BA133: 1 | BB133: 1 | BC133: 31 | BE133: 0 | BF133: 0 | BG133: 0 | BI133: =AND(B133=$C$9,'Standing Data'!$D$9<>"Multi-academy Trust") -> 
A134: =IF(B134<>"",IF('Standing Data'!$D$9<>"Multi-academy Trust",IF('Standing Data'!$D$15=B134,"Error - counterparty with self",""),IF(N(ISNA(MATCH(B134,'Standing Data'!$E$49:$E$148,0)))<>0,"","Error - counterparty with self")),"") ->  | B134: =IF(C134<>"",VLOOKUP(C134,'CP IDs'!A$2:B$5122,2,FALSE),"") ->  | D134: =IFERROR(VLOOKUP(C134,'CP IDs'!$A$2:$D$4422,4,FALSE),"") ->  | AX134: -500000 | AY134: 500000 | BA134: 1 | BB134: 1 | BC134: 31 | BE134: 0 | BF134: 0 | BG134: 0 | BI134: =AND(B134=$C$9,'Standing Data'!$D$9<>"Multi-academy Trust") -> 
A135: =IF(B135<>"",IF('Standing Data'!$D$9<>"Multi-academy Trust",IF('Standing Data'!$D$15=B135,"Error - counterparty with self",""),IF(N(ISNA(MATCH(B135,'Standing Data'!$E$49:$E$148,0)))<>0,"","Error - counterparty with self")),"") ->  | B135: =IF(C135<>"",VLOOKUP(C135,'CP IDs'!A$2:B$5122,2,FALSE),"") ->  | D135: =IFERROR(VLOOKUP(C135,'CP IDs'!$A$2:$D$4422,4,FALSE),"") ->  | AX135: -500000 | AY135: 500000 | BA135: 1 | BB135: 1 | BC135: 31 | BE135: 0 | BF135: 0 | BG135: 0 | BI135: =AND(B135=$C$9,'Standing Data'!$D$9<>"Multi-academy Trust") -> 
A136: =IF(B136<>"",IF('Standing Data'!$D$9<>"Multi-academy Trust",IF('Standing Data'!$D$15=B136,"Error - counterparty with self",""),IF(N(ISNA(MATCH(B136,'Standing Data'!$E$49:$E$148,0)))<>0,"","Error - counterparty with self")),"") ->  | B136: =IF(C136<>"",VLOOKUP(C136,'CP IDs'!A$2:B$5122,2,FALSE),"") ->  | D136: =IFERROR(VLOOKUP(C136,'CP IDs'!$A$2:$D$4422,4,FALSE),"") ->  | AX136: -500000 | AY136: 500000 | BA136: 1 | BB136: 1 | BC136: 31 | BE136: 0 | BF136: 0 | BG136: 0 | BI136: =AND(B136=$C$9,'Standing Data'!$D$9<>"Multi-academy Trust") -> 
A137: =IF(B137<>"",IF('Standing Data'!$D$9<>"Multi-academy Trust",IF('Standing Data'!$D$15=B137,"Error - counterparty with self",""),IF(N(ISNA(MATCH(B137,'Standing Data'!$E$49:$E$148,0)))<>0,"","Error - counterparty with self")),"") ->  | B137: =IF(C137<>"",VLOOKUP(C137,'CP IDs'!A$2:B$5122,2,FALSE),"") ->  | D137: =IFERROR(VLOOKUP(C137,'CP IDs'!$A$2:$D$4422,4,FALSE),"") ->  | AX137: -500000 | AY137: 500000 | BA137: 1 | BB137: 1 | BC137: 31 | BE137: 0 | BF137: 0 | BG137: 0 | BI137: =AND(B137=$C$9,'Standing Data'!$D$9<>"Multi-academy Trust") -> 
A138: =IF(B138<>"",IF('Standing Data'!$D$9<>"Multi-academy Trust",IF('Standing Data'!$D$15=B138,"Error - counterparty with self",""),IF(N(ISNA(MATCH(B138,'Standing Data'!$E$49:$E$148,0)))<>0,"","Error - counterparty with self")),"") ->  | B138: =IF(C138<>"",VLOOKUP(C138,'CP IDs'!A$2:B$5122,2,FALSE),"") ->  | D138: =IFERROR(VLOOKUP(C138,'CP IDs'!$A$2:$D$4422,4,FALSE),"") ->  | AX138: -500000 | AY138: 500000 | BA138: 1 | BB138: 1 | BC138: 31 | BE138: 0 | BF138: 0 | BG138: 0 | BI138: =AND(B138=$C$9,'Standing Data'!$D$9<>"Multi-academy Trust") -> 
A139: =IF(B139<>"",IF('Standing Data'!$D$9<>"Multi-academy Trust",IF('Standing Data'!$D$15=B139,"Error - counterparty with self",""),IF(N(ISNA(MATCH(B139,'Standing Data'!$E$49:$E$148,0)))<>0,"","Error - counterparty with self")),"") ->  | B139: =IF(C139<>"",VLOOKUP(C139,'CP IDs'!A$2:B$5122,2,FALSE),"") ->  | D139: =IFERROR(VLOOKUP(C139,'CP IDs'!$A$2:$D$4422,4,FALSE),"") ->  | AX139: -500000 | AY139: 500000 | BA139: 1 | BB139: 1 | BC139: 31 | BE139: 0 | BF139: 0 | BG139: 0 | BI139: =AND(B139=$C$9,'Standing Data'!$D$9<>"Multi-academy Trust") -> 
A140: =IF(B140<>"",IF('Standing Data'!$D$9<>"Multi-academy Trust",IF('Standing Data'!$D$15=B140,"Error - counterparty with self",""),IF(N(ISNA(MATCH(B140,'Standing Data'!$E$49:$E$148,0)))<>0,"","Error - counterparty with self")),"") ->  | B140: =IF(C140<>"",VLOOKUP(C140,'CP IDs'!A$2:B$5122,2,FALSE),"") ->  | D140: =IFERROR(VLOOKUP(C140,'CP IDs'!$A$2:$D$4422,4,FALSE),"") ->  | AX140: -500000 | AY140: 500000 | BA140: 1 | BB140: 1 | BC140: 31 | BE140: 0 | BF140: 0 | BG140: 0 | BI140: =AND(B140=$C$9,'Standing Data'!$D$9<>"Multi-academy Trust") -> 
A141: =IF(B141<>"",IF('Standing Data'!$D$9<>"Multi-academy Trust",IF('Standing Data'!$D$15=B141,"Error - counterparty with self",""),IF(N(ISNA(MATCH(B141,'Standing Data'!$E$49:$E$148,0)))<>0,"","Error - counterparty with self")),"") ->  | B141: =IF(C141<>"",VLOOKUP(C141,'CP IDs'!A$2:B$5122,2,FALSE),"") ->  | D141: =IFERROR(VLOOKUP(C141,'CP IDs'!$A$2:$D$4422,4,FALSE),"") ->  | AX141: -500000 | AY141: 500000 | BA141: 1 | BB141: 1 | BC141: 31 | BE141: 0 | BF141: 0 | BG141: 0 | BI141: =AND(B141=$C$9,'Standing Data'!$D$9<>"Multi-academy Trust") -> 
A142: =IF(B142<>"",IF('Standing Data'!$D$9<>"Multi-academy Trust",IF('Standing Data'!$D$15=B142,"Error - counterparty with self",""),IF(N(ISNA(MATCH(B142,'Standing Data'!$E$49:$E$148,0)))<>0,"","Error - counterparty with self")),"") ->  | B142: =IF(C142<>"",VLOOKUP(C142,'CP IDs'!A$2:B$5122,2,FALSE),"") ->  | D142: =IFERROR(VLOOKUP(C142,'CP IDs'!$A$2:$D$4422,4,FALSE),"") ->  | AX142: -500000 | AY142: 500000 | BA142: 1 | BB142: 1 | BC142: 31 | BE142: 0 | BF142: 0 | BG142: 0 | BI142: =AND(B142=$C$9,'Standing Data'!$D$9<>"Multi-academy Trust") -> 
A143: =IF(B143<>"",IF('Standing Data'!$D$9<>"Multi-academy Trust",IF('Standing Data'!$D$15=B143,"Error - counterparty with self",""),IF(N(ISNA(MATCH(B143,'Standing Data'!$E$49:$E$148,0)))<>0,"","Error - counterparty with self")),"") ->  | B143: =IF(C143<>"",VLOOKUP(C143,'CP IDs'!A$2:B$5122,2,FALSE),"") ->  | D143: =IFERROR(VLOOKUP(C143,'CP IDs'!$A$2:$D$4422,4,FALSE),"") ->  | AX143: -500000 | AY143: 500000 | BA143: 1 | BB143: 1 | BC143: 31 | BE143: 0 | BF143: 0 | BG143: 0 | BI143: =AND(B143=$C$9,'Standing Data'!$D$9<>"Multi-academy Trust") -> 
A144: =IF(B144<>"",IF('Standing Data'!$D$9<>"Multi-academy Trust",IF('Standing Data'!$D$15=B144,"Error - counterparty with self",""),IF(N(ISNA(MATCH(B144,'Standing Data'!$E$49:$E$148,0)))<>0,"","Error - counterparty with self")),"") ->  | B144: =IF(C144<>"",VLOOKUP(C144,'CP IDs'!A$2:B$5122,2,FALSE),"") ->  | D144: =IFERROR(VLOOKUP(C144,'CP IDs'!$A$2:$D$4422,4,FALSE),"") ->  | AX144: -500000 | AY144: 500000 | BA144: 1 | BB144: 1 | BC144: 31 | BE144: 0 | BF144: 0 | BG144: 0 | BI144: =AND(B144=$C$9,'Standing Data'!$D$9<>"Multi-academy Trust") -> 
A145: =IF(B145<>"",IF('Standing Data'!$D$9<>"Multi-academy Trust",IF('Standing Data'!$D$15=B145,"Error - counterparty with self",""),IF(N(ISNA(MATCH(B145,'Standing Data'!$E$49:$E$148,0)))<>0,"","Error - counterparty with self")),"") ->  | B145: =IF(C145<>"",VLOOKUP(C145,'CP IDs'!A$2:B$5122,2,FALSE),"") ->  | D145: =IFERROR(VLOOKUP(C145,'CP IDs'!$A$2:$D$4422,4,FALSE),"") ->  | AX145: -500000 | AY145: 500000 | BA145: 1 | BB145: 1 | BC145: 31 | BE145: 0 | BF145: 0 | BG145: 0 | BI145: =AND(B145=$C$9,'Standing Data'!$D$9<>"Multi-academy Trust") -> 
A146: =IF(B146<>"",IF('Standing Data'!$D$9<>"Multi-academy Trust",IF('Standing Data'!$D$15=B146,"Error - counterparty with self",""),IF(N(ISNA(MATCH(B146,'Standing Data'!$E$49:$E$148,0)))<>0,"","Error - counterparty with self")),"") ->  | B146: =IF(C146<>"",VLOOKUP(C146,'CP IDs'!A$2:B$5122,2,FALSE),"") ->  | D146: =IFERROR(VLOOKUP(C146,'CP IDs'!$A$2:$D$4422,4,FALSE),"") ->  | AX146: -500000 | AY146: 500000 | BA146: 1 | BB146: 1 | BC146: 31 | BE146: 0 | BF146: 0 | BG146: 0 | BI146: =AND(B146=$C$9,'Standing Data'!$D$9<>"Multi-academy Trust") -> 
A147: =IF(B147<>"",IF('Standing Data'!$D$9<>"Multi-academy Trust",IF('Standing Data'!$D$15=B147,"Error - counterparty with self",""),IF(N(ISNA(MATCH(B147,'Standing Data'!$E$49:$E$148,0)))<>0,"","Error - counterparty with self")),"") ->  | B147: =IF(C147<>"",VLOOKUP(C147,'CP IDs'!A$2:B$5122,2,FALSE),"") ->  | D147: =IFERROR(VLOOKUP(C147,'CP IDs'!$A$2:$D$4422,4,FALSE),"") ->  | AX147: -500000 | AY147: 500000 | BA147: 1 | BB147: 1 | BC147: 31 | BE147: 0 | BF147: 0 | BG147: 0 | BI147: =AND(B147=$C$9,'Standing Data'!$D$9<>"Multi-academy Trust") -> 
A148: =IF(B148<>"",IF('Standing Data'!$D$9<>"Multi-academy Trust",IF('Standing Data'!$D$15=B148,"Error - counterparty with self",""),IF(N(ISNA(MATCH(B148,'Standing Data'!$E$49:$E$148,0)))<>0,"","Error - counterparty with self")),"") ->  | B148: =IF(C148<>"",VLOOKUP(C148,'CP IDs'!A$2:B$5122,2,FALSE),"") ->  | D148: =IFERROR(VLOOKUP(C148,'CP IDs'!$A$2:$D$4422,4,FALSE),"") ->  | AX148: -500000 | AY148: 500000 | BA148: 1 | BB148: 1 | BC148: 31 | BE148: 0 | BF148: 0 | BG148: 0 | BI148: =AND(B148=$C$9,'Standing Data'!$D$9<>"Multi-academy Trust") -> 
A149: =IF(B149<>"",IF('Standing Data'!$D$9<>"Multi-academy Trust",IF('Standing Data'!$D$15=B149,"Error - counterparty with self",""),IF(N(ISNA(MATCH(B149,'Standing Data'!$E$49:$E$148,0)))<>0,"","Error - counterparty with self")),"") ->  | B149: =IF(C149<>"",VLOOKUP(C149,'CP IDs'!A$2:B$5122,2,FALSE),"") ->  | D149: =IFERROR(VLOOKUP(C149,'CP IDs'!$A$2:$D$4422,4,FALSE),"") ->  | AX149: -500000 | AY149: 500000 | BA149: 1 | BB149: 1 | BC149: 31 | BE149: 0 | BF149: 0 | BG149: =COUNT(F149:AT149) -> 0 | BI149: =AND(B149=$C$9,'Standing Data'!$D$9<>"Multi-academy Trust") -> 
A150: =IF(B150<>"",IF('Standing Data'!$D$9<>"Multi-academy Trust",IF('Standing Data'!$D$15=B150,"Error - counterparty with self",""),IF(N(ISNA(MATCH(B150,'Standing Data'!$E$49:$E$148,0)))<>0,"","Error - counterparty with self")),"") ->  | B150: =IF(C150<>"",VLOOKUP(C150,'CP IDs'!A$2:B$5122,2,FALSE),"") ->  | D150: =IFERROR(VLOOKUP(C150,'CP IDs'!$A$2:$D$4422,4,FALSE),"") ->  | AX150: -500000 | AY150: 500000 | BA150: 1 | BB150: 1 | BC150: 31 | BE150: 0 | BF150: 0 | BG150: 0 | BI150: =AND(B150=$C$9,'Standing Data'!$D$9<>"Multi-academy Trust") -> 
A151: =IF(B151<>"",IF('Standing Data'!$D$9<>"Multi-academy Trust",IF('Standing Data'!$D$15=B151,"Error - counterparty with self",""),IF(N(ISNA(MATCH(B151,'Standing Data'!$E$49:$E$148,0)))<>0,"","Error - counterparty with self")),"") ->  | B151: =IF(C151<>"",VLOOKUP(C151,'CP IDs'!A$2:B$5122,2,FALSE),"") ->  | D151: =IFERROR(VLOOKUP(C151,'CP IDs'!$A$2:$D$4422,4,FALSE),"") ->  | AX151: =AX150 -> -500000 | AY151: =AY150 -> 500000 | BA151: 1 | BB151: 1 | BC151: 31 | BE151: 0 | BF151: 0 | BG151: 0 | BI151: =AND(B151=$C$9,'Standing Data'!$D$9<>"Multi-academy Trust") -> 
A152: =IF(B152<>"",IF('Standing Data'!$D$9<>"Multi-academy Trust",IF('Standing Data'!$D$15=B152,"Error - counterparty with self",""),IF(N(ISNA(MATCH(B152,'Standing Data'!$E$49:$E$148,0)))<>0,"","Error - counterparty with self")),"") ->  | B152: =IF(C152<>"",VLOOKUP(C152,'CP IDs'!A$2:B$5122,2,FALSE),"") ->  | D152: =IFERROR(VLOOKUP(C152,'CP IDs'!$A$2:$D$4422,4,FALSE),"") ->  | AX152: -500000 | AY152: 500000 | BA152: 1 | BB152: 1 | BC152: 31 | BE152: 0 | BF152: 0 | BG152: 0 | BI152: =AND(B152=$C$9,'Standing Data'!$D$9<>"Multi-academy Trust") -> 
A153: =IF(B153<>"",IF('Standing Data'!$D$9<>"Multi-academy Trust",IF('Standing Data'!$D$15=B153,"Error - counterparty with self",""),IF(N(ISNA(MATCH(B153,'Standing Data'!$E$49:$E$148,0)))<>0,"","Error - counterparty with self")),"") ->  | B153: =IF(C153<>"",VLOOKUP(C153,'CP IDs'!A$2:B$5122,2,FALSE),"") ->  | D153: =IFERROR(VLOOKUP(C153,'CP IDs'!$A$2:$D$4422,4,FALSE),"") ->  | AX153: -500000 | AY153: 500000 | BA153: 1 | BB153: 1 | BC153: 31 | BE153: 0 | BF153: 0 | BG153: 0 | BI153: =AND(B153=$C$9,'Standing Data'!$D$9<>"Multi-academy Trust") -> 
A154: =IF(B154<>"",IF('Standing Data'!$D$9<>"Multi-academy Trust",IF('Standing Data'!$D$15=B154,"Error - counterparty with self",""),IF(N(ISNA(MATCH(B154,'Standing Data'!$E$49:$E$148,0)))<>0,"","Error - counterparty with self")),"") ->  | B154: =IF(C154<>"",VLOOKUP(C154,'CP IDs'!A$2:B$5122,2,FALSE),"") ->  | D154: =IFERROR(VLOOKUP(C154,'CP IDs'!$A$2:$D$4422,4,FALSE),"") ->  | AX154: -500000 | AY154: 500000 | BA154: 1 | BB154: 1 | BC154: 31 | BE154: 0 | BF154: 0 | BG154: 0 | BI154: =AND(B154=$C$9,'Standing Data'!$D$9<>"Multi-academy Trust") -> 
A155: =IF(B155<>"",IF('Standing Data'!$D$9<>"Multi-academy Trust",IF('Standing Data'!$D$15=B155,"Error - counterparty with self",""),IF(N(ISNA(MATCH(B155,'Standing Data'!$E$49:$E$148,0)))<>0,"","Error - counterparty with self")),"") ->  | B155: =IF(C155<>"",VLOOKUP(C155,'CP IDs'!A$2:B$5122,2,FALSE),"") ->  | D155: =IFERROR(VLOOKUP(C155,'CP IDs'!$A$2:$D$4422,4,FALSE),"") ->  | AX155: -500000 | AY155: 500000 | BA155: 1 | BB155: 1 | BC155: 31 | BE155: 0 | BF155: 0 | BG155: 0 | BI155: =AND(B155=$C$9,'Standing Data'!$D$9<>"Multi-academy Trust") -> 
A156: =IF(B156<>"",IF('Standing Data'!$D$9<>"Multi-academy Trust",IF('Standing Data'!$D$15=B156,"Error - counterparty with self",""),IF(N(ISNA(MATCH(B156,'Standing Data'!$E$49:$E$148,0)))<>0,"","Error - counterparty with self")),"") ->  | B156: =IF(C156<>"",VLOOKUP(C156,'CP IDs'!A$2:B$5122,2,FALSE),"") ->  | D156: =IFERROR(VLOOKUP(C156,'CP IDs'!$A$2:$D$4422,4,FALSE),"") ->  | AX156: -500000 | AY156: 500000 | BA156: 1 | BB156: 1 | BC156: 31 | BE156: 0 | BF156: 0 | BG156: 0 | BI156: =AND(B156=$C$9,'Standing Data'!$D$9<>"Multi-academy Trust") -> 
A157: =IF(B157<>"",IF('Standing Data'!$D$9<>"Multi-academy Trust",IF('Standing Data'!$D$15=B157,"Error - counterparty with self",""),IF(N(ISNA(MATCH(B157,'Standing Data'!$E$49:$E$148,0)))<>0,"","Error - counterparty with self")),"") ->  | B157: =IF(C157<>"",VLOOKUP(C157,'CP IDs'!A$2:B$5122,2,FALSE),"") ->  | D157: =IFERROR(VLOOKUP(C157,'CP IDs'!$A$2:$D$4422,4,FALSE),"") ->  | AX157: -500000 | AY157: 500000 | BA157: 1 | BB157: 1 | BC157: 31 | BE157: 0 | BF157: 0 | BG157: 0 | BI157: =AND(B157=$C$9,'Standing Data'!$D$9<>"Multi-academy Trust") -> 
A158: =IF(B158<>"",IF('Standing Data'!$D$9<>"Multi-academy Trust",IF('Standing Data'!$D$15=B158,"Error - counterparty with self",""),IF(N(ISNA(MATCH(B158,'Standing Data'!$E$49:$E$148,0)))<>0,"","Error - counterparty with self")),"") ->  | B158: =IF(C158<>"",VLOOKUP(C158,'CP IDs'!A$2:B$5122,2,FALSE),"") ->  | D158: =IFERROR(VLOOKUP(C158,'CP IDs'!$A$2:$D$4422,4,FALSE),"") ->  | AX158: -500000 | AY158: 500000 | BA158: 1 | BB158: 1 | BC158: 31 | BE158: =COUNTA(C158) -> 0 | BF158: =1-COUNTBLANK(B158) -> 0 | BG158: 0 | BI158: =AND(B158=$C$9,'Standing Data'!$D$9<>"Multi-academy Trust") -> 
A159: =IF(B159<>"",IF('Standing Data'!$D$9<>"Multi-academy Trust",IF('Standing Data'!$D$15=B159,"Error - counterparty with self",""),IF(N(ISNA(MATCH(B159,'Standing Data'!$E$49:$E$148,0)))<>0,"","Error - counterparty with self")),"") ->  | B159: =IF(C159<>"",VLOOKUP(C159,'CP IDs'!A$2:B$5122,2,FALSE),"") ->  | D159: =IFERROR(VLOOKUP(C159,'CP IDs'!$A$2:$D$4422,4,FALSE),"") ->  | E159: =IF(OR(AND(COUNT(F159:AT159)>0,C159=""),AND(COUNT(F159:AT159)=0,C159<>"")),"Error - on line","") ->  | AX159: -500000 | AY159: 500000 | BA159: 1 | BB159: 1 | BC159: 31 | BE159: 0 | BF159: 0 | BG159: 0 | BI159: =AND(B159=$C$9,'Standing Data'!$D$9<>"Multi-academy Trust") -> 
A160: =IF(B160<>"",IF('Standing Data'!$D$9<>"Multi-academy Trust",IF('Standing Data'!$D$15=B160,"Error - counterparty with self",""),IF(N(ISNA(MATCH(B160,'Standing Data'!$E$49:$E$148,0)))<>0,"","Error - counterparty with self")),"") ->  | B160: =IF(C160<>"",VLOOKUP(C160,'CP IDs'!A$2:B$5122,2,FALSE),"") ->  | D160: =IFERROR(VLOOKUP(C160,'CP IDs'!$A$2:$D$4422,4,FALSE),"") ->  | AX160: -500000 | AY160: 500000 | BA160: 1 | BB160: 1 | BC160: 31 | BE160: 0 | BF160: 0 | BG160: 0 | BI160: =AND(B160=$C$9,'Standing Data'!$D$9<>"Multi-academy Trust") -> 
A161: =IF(B161<>"",IF('Standing Data'!$D$9<>"Multi-academy Trust",IF('Standing Data'!$D$15=B161,"Error - counterparty with self",""),IF(N(ISNA(MATCH(B161,'Standing Data'!$E$49:$E$148,0)))<>0,"","Error - counterparty with self")),"") ->  | B161: =IF(C161<>"",VLOOKUP(C161,'CP IDs'!A$2:B$5122,2,FALSE),"") ->  | D161: =IFERROR(VLOOKUP(C161,'CP IDs'!$A$2:$D$4422,4,FALSE),"") ->  | AX161: -500000 | AY161: 500000 | BA161: 1 | BB161: 1 | BC161: 31 | BE161: 0 | BF161: 0 | BG161: 0 | BI161: =AND(B161=$C$9,'Standing Data'!$D$9<>"Multi-academy Trust") -> 
A162: =IF(B162<>"",IF('Standing Data'!$D$9<>"Multi-academy Trust",IF('Standing Data'!$D$15=B162,"Error - counterparty with self",""),IF(N(ISNA(MATCH(B162,'Standing Data'!$E$49:$E$148,0)))<>0,"","Error - counterparty with self")),"") ->  | B162: =IF(C162<>"",VLOOKUP(C162,'CP IDs'!A$2:B$5122,2,FALSE),"") ->  | D162: =IFERROR(VLOOKUP(C162,'CP IDs'!$A$2:$D$4422,4,FALSE),"") ->  | AX162: -500000 | AY162: 500000 | BA162: 1 | BB162: 1 | BC162: 31 | BE162: 0 | BF162: 0 | BG162: 0 | BI162: =AND(B162=$C$9,'Standing Data'!$D$9<>"Multi-academy Trust") -> 
A163: =IF(B163<>"",IF('Standing Data'!$D$9<>"Multi-academy Trust",IF('Standing Data'!$D$15=B163,"Error - counterparty with self",""),IF(N(ISNA(MATCH(B163,'Standing Data'!$E$49:$E$148,0)))<>0,"","Error - counterparty with self")),"") ->  | B163: =IF(C163<>"",VLOOKUP(C163,'CP IDs'!A$2:B$5122,2,FALSE),"") ->  | D163: =IFERROR(VLOOKUP(C163,'CP IDs'!$A$2:$D$4422,4,FALSE),"") ->  | AX163: -500000 | AY163: 500000 | BA163: 1 | BB163: 1 | BC163: 31 | BE163: 0 | BF163: 0 | BG163: 0 | BI163: =AND(B163=$C$9,'Standing Data'!$D$9<>"Multi-academy Trust") -> 
A164: =IF(B164<>"",IF('Standing Data'!$D$9<>"Multi-academy Trust",IF('Standing Data'!$D$15=B164,"Error - counterparty with self",""),IF(N(ISNA(MATCH(B164,'Standing Data'!$E$49:$E$148,0)))<>0,"","Error - counterparty with self")),"") ->  | B164: =IF(C164<>"",VLOOKUP(C164,'CP IDs'!A$2:B$5122,2,FALSE),"") ->  | D164: =IFERROR(VLOOKUP(C164,'CP IDs'!$A$2:$D$4422,4,FALSE),"") ->  | AX164: -500000 | AY164: 500000 | BA164: 1 | BB164: 1 | BC164: 31 | BE164: 0 | BF164: 0 | BG164: 0 | BI164: =AND(B164=$C$9,'Standing Data'!$D$9<>"Multi-academy Trust") -> 
A165: =IF(B165<>"",IF('Standing Data'!$D$9<>"Multi-academy Trust",IF('Standing Data'!$D$15=B165,"Error - counterparty with self",""),IF(N(ISNA(MATCH(B165,'Standing Data'!$E$49:$E$148,0)))<>0,"","Error - counterparty with self")),"") ->  | B165: =IF(C165<>"",VLOOKUP(C165,'CP IDs'!A$2:B$5122,2,FALSE),"") ->  | D165: =IFERROR(VLOOKUP(C165,'CP IDs'!$A$2:$D$4422,4,FALSE),"") ->  | AX165: -500000 | AY165: 500000 | BA165: 1 | BB165: 1 | BC165: 31 | BE165: 0 | BF165: 0 | BG165: 0 | BI165: =AND(B165=$C$9,'Standing Data'!$D$9<>"Multi-academy Trust") -> 
A166: =IF(B166<>"",IF('Standing Data'!$D$9<>"Multi-academy Trust",IF('Standing Data'!$D$15=B166,"Error - counterparty with self",""),IF(N(ISNA(MATCH(B166,'Standing Data'!$E$49:$E$148,0)))<>0,"","Error - counterparty with self")),"") ->  | B166: =IF(C166<>"",VLOOKUP(C166,'CP IDs'!A$2:B$5122,2,FALSE),"") ->  | D166: =IFERROR(VLOOKUP(C166,'CP IDs'!$A$2:$D$4422,4,FALSE),"") ->  | AX166: -500000 | AY166: 500000 | BA166: 1 | BB166: 1 | BC166: 31 | BE166: 0 | BF166: 0 | BG166: 0 | BI166: =AND(B166=$C$9,'Standing Data'!$D$9<>"Multi-academy Trust") -> 
A167: =IF(B167<>"",IF('Standing Data'!$D$9<>"Multi-academy Trust",IF('Standing Data'!$D$15=B167,"Error - counterparty with self",""),IF(N(ISNA(MATCH(B167,'Standing Data'!$E$49:$E$148,0)))<>0,"","Error - counterparty with self")),"") ->  | B167: =IF(C167<>"",VLOOKUP(C167,'CP IDs'!A$2:B$5122,2,FALSE),"") ->  | D167: =IFERROR(VLOOKUP(C167,'CP IDs'!$A$2:$D$4422,4,FALSE),"") ->  | AX167: -500000 | AY167: 500000 | BA167: 1 | BB167: 1 | BC167: 31 | BE167: 0 | BF167: 0 | BG167: 0 | BI167: =AND(B167=$C$9,'Standing Data'!$D$9<>"Multi-academy Trust") -> 
A168: =IF(B168<>"",IF('Standing Data'!$D$9<>"Multi-academy Trust",IF('Standing Data'!$D$15=B168,"Error - counterparty with self",""),IF(N(ISNA(MATCH(B168,'Standing Data'!$E$49:$E$148,0)))<>0,"","Error - counterparty with self")),"") ->  | B168: =IF(C168<>"",VLOOKUP(C168,'CP IDs'!A$2:B$5122,2,FALSE),"") ->  | D168: =IFERROR(VLOOKUP(C168,'CP IDs'!$A$2:$D$4422,4,FALSE),"") ->  | AX168: -500000 | AY168: 500000 | BA168: 1 | BB168: 1 | BC168: 31 | BE168: 0 | BF168: 0 | BG168: 0 | BI168: =AND(B168=$C$9,'Standing Data'!$D$9<>"Multi-academy Trust") -> 
A169: =IF(B169<>"",IF('Standing Data'!$D$9<>"Multi-academy Trust",IF('Standing Data'!$D$15=B169,"Error - counterparty with self",""),IF(N(ISNA(MATCH(B169,'Standing Data'!$E$49:$E$148,0)))<>0,"","Error - counterparty with self")),"") ->  | B169: =IF(C169<>"",VLOOKUP(C169,'CP IDs'!A$2:B$5122,2,FALSE),"") ->  | D169: =IFERROR(VLOOKUP(C169,'CP IDs'!$A$2:$D$4422,4,FALSE),"") ->  | AX169: -500000 | AY169: 500000 | BA169: 1 | BB169: 1 | BC169: 31 | BE169: 0 | BF169: 0 | BG169: 0 | BI169: =AND(B169=$C$9,'Standing Data'!$D$9<>"Multi-academy Trust") -> 
A170: =IF(B170<>"",IF('Standing Data'!$D$9<>"Multi-academy Trust",IF('Standing Data'!$D$15=B170,"Error - counterparty with self",""),IF(N(ISNA(MATCH(B170,'Standing Data'!$E$49:$E$148,0)))<>0,"","Error - counterparty with self")),"") ->  | B170: =IF(C170<>"",VLOOKUP(C170,'CP IDs'!A$2:B$5122,2,FALSE),"") ->  | D170: =IFERROR(VLOOKUP(C170,'CP IDs'!$A$2:$D$4422,4,FALSE),"") ->  | AX170: -500000 | AY170: 500000 | BA170: 1 | BB170: 1 | BC170: 31 | BE170: 0 | BF170: 0 | BG170: 0 | BI170: =AND(B170=$C$9,'Standing Data'!$D$9<>"Multi-academy Trust") -> 
A171: =IF(B171<>"",IF('Standing Data'!$D$9<>"Multi-academy Trust",IF('Standing Data'!$D$15=B171,"Error - counterparty with self",""),IF(N(ISNA(MATCH(B171,'Standing Data'!$E$49:$E$148,0)))<>0,"","Error - counterparty with self")),"") ->  | B171: =IF(C171<>"",VLOOKUP(C171,'CP IDs'!A$2:B$5122,2,FALSE),"") ->  | D171: =IFERROR(VLOOKUP(C171,'CP IDs'!$A$2:$D$4422,4,FALSE),"") ->  | AX171: -500000 | AY171: 500000 | BA171: 1 | BB171: 1 | BC171: 31 | BE171: 0 | BF171: 0 | BG171: 0 | BI171: =AND(B171=$C$9,'Standing Data'!$D$9<>"Multi-academy Trust") -> 
A172: =IF(B172<>"",IF('Standing Data'!$D$9<>"Multi-academy Trust",IF('Standing Data'!$D$15=B172,"Error - counterparty with self",""),IF(N(ISNA(MATCH(B172,'Standing Data'!$E$49:$E$148,0)))<>0,"","Error - counterparty with self")),"") ->  | B172: =IF(C172<>"",VLOOKUP(C172,'CP IDs'!A$2:B$5122,2,FALSE),"") ->  | D172: =IFERROR(VLOOKUP(C172,'CP IDs'!$A$2:$D$4422,4,FALSE),"") ->  | AX172: -500000 | AY172: 500000 | BA172: 1 | BB172: 1 | BC172: 31 | BE172: 0 | BF172: 0 | BG172: 0 | BI172: =AND(B172=$C$9,'Standing Data'!$D$9<>"Multi-academy Trust") -> 
A173: =IF(B173<>"",IF('Standing Data'!$D$9<>"Multi-academy Trust",IF('Standing Data'!$D$15=B173,"Error - counterparty with self",""),IF(N(ISNA(MATCH(B173,'Standing Data'!$E$49:$E$148,0)))<>0,"","Error - counterparty with self")),"") ->  | B173: =IF(C173<>"",VLOOKUP(C173,'CP IDs'!A$2:B$5122,2,FALSE),"") ->  | D173: =IFERROR(VLOOKUP(C173,'CP IDs'!$A$2:$D$4422,4,FALSE),"") ->  | AX173: -500000 | AY173: 500000 | BA173: 1 | BB173: 1 | BC173: 31 | BE173: 0 | BF173: 0 | BG173: 0 | BI173: =AND(B173=$C$9,'Standing Data'!$D$9<>"Multi-academy Trust") -> 
A174: =IF(B174<>"",IF('Standing Data'!$D$9<>"Multi-academy Trust",IF('Standing Data'!$D$15=B174,"Error - counterparty with self",""),IF(N(ISNA(MATCH(B174,'Standing Data'!$E$49:$E$148,0)))<>0,"","Error - counterparty with self")),"") ->  | B174: =IF(C174<>"",VLOOKUP(C174,'CP IDs'!A$2:B$5122,2,FALSE),"") ->  | D174: =IFERROR(VLOOKUP(C174,'CP IDs'!$A$2:$D$4422,4,FALSE),"") ->  | AX174: -500000 | AY174: 500000 | BA174: 1 | BB174: 1 | BC174: 31 | BE174: 0 | BF174: 0 | BG174: 0 | BI174: =AND(B174=$C$9,'Standing Data'!$D$9<>"Multi-academy Trust") -> 
A175: =IF(B175<>"",IF('Standing Data'!$D$9<>"Multi-academy Trust",IF('Standing Data'!$D$15=B175,"Error - counterparty with self",""),IF(N(ISNA(MATCH(B175,'Standing Data'!$E$49:$E$148,0)))<>0,"","Error - counterparty with self")),"") ->  | B175: =IF(C175<>"",VLOOKUP(C175,'CP IDs'!A$2:B$5122,2,FALSE),"") ->  | D175: =IFERROR(VLOOKUP(C175,'CP IDs'!$A$2:$D$4422,4,FALSE),"") ->  | AX175: -500000 | AY175: 500000 | BA175: 1 | BB175: 1 | BC175: 31 | BE175: 0 | BF175: 0 | BG175: 0 | BI175: =AND(B175=$C$9,'Standing Data'!$D$9<>"Multi-academy Trust") -> 
A176: =IF(B176<>"",IF('Standing Data'!$D$9<>"Multi-academy Trust",IF('Standing Data'!$D$15=B176,"Error - counterparty with self",""),IF(N(ISNA(MATCH(B176,'Standing Data'!$E$49:$E$148,0)))<>0,"","Error - counterparty with self")),"") ->  | B176: =IF(C176<>"",VLOOKUP(C176,'CP IDs'!A$2:B$5122,2,FALSE),"") ->  | D176: =IFERROR(VLOOKUP(C176,'CP IDs'!$A$2:$D$4422,4,FALSE),"") ->  | AX176: -500000 | AY176: 500000 | BA176: 1 | BB176: 1 | BC176: 31 | BE176: 0 | BF176: 0 | BG176: 0 | BI176: =AND(B176=$C$9,'Standing Data'!$D$9<>"Multi-academy Trust") -> 
A177: =IF(B177<>"",IF('Standing Data'!$D$9<>"Multi-academy Trust",IF('Standing Data'!$D$15=B177,"Error - counterparty with self",""),IF(N(ISNA(MATCH(B177,'Standing Data'!$E$49:$E$148,0)))<>0,"","Error - counterparty with self")),"") ->  | B177: =IF(C177<>"",VLOOKUP(C177,'CP IDs'!A$2:B$5122,2,FALSE),"") ->  | D177: =IFERROR(VLOOKUP(C177,'CP IDs'!$A$2:$D$4422,4,FALSE),"") ->  | AX177: -500000 | AY177: 500000 | BA177: 1 | BB177: 1 | BC177: 31 | BE177: 0 | BF177: 0 | BG177: 0 | BI177: =AND(B177=$C$9,'Standing Data'!$D$9<>"Multi-academy Trust") -> 
A178: =IF(B178<>"",IF('Standing Data'!$D$9<>"Multi-academy Trust",IF('Standing Data'!$D$15=B178,"Error - counterparty with self",""),IF(N(ISNA(MATCH(B178,'Standing Data'!$E$49:$E$148,0)))<>0,"","Error - counterparty with self")),"") ->  | B178: =IF(C178<>"",VLOOKUP(C178,'CP IDs'!A$2:B$5122,2,FALSE),"") ->  | D178: =IFERROR(VLOOKUP(C178,'CP IDs'!$A$2:$D$4422,4,FALSE),"") ->  | AX178: -500000 | AY178: 500000 | BA178: 1 | BB178: 1 | BC178: 31 | BE178: 0 | BF178: 0 | BG178: 0 | BI178: =AND(B178=$C$9,'Standing Data'!$D$9<>"Multi-academy Trust") -> 
A179: =IF(B179<>"",IF('Standing Data'!$D$9<>"Multi-academy Trust",IF('Standing Data'!$D$15=B179,"Error - counterparty with self",""),IF(N(ISNA(MATCH(B179,'Standing Data'!$E$49:$E$148,0)))<>0,"","Error - counterparty with self")),"") ->  | B179: =IF(C179<>"",VLOOKUP(C179,'CP IDs'!A$2:B$5122,2,FALSE),"") ->  | D179: =IFERROR(VLOOKUP(C179,'CP IDs'!$A$2:$D$4422,4,FALSE),"") ->  | AX179: -500000 | AY179: 500000 | BA179: 1 | BB179: 1 | BC179: 31 | BE179: 0 | BF179: 0 | BG179: 0 | BI179: =AND(B179=$C$9,'Standing Data'!$D$9<>"Multi-academy Trust") -> 
A180: =IF(B180<>"",IF('Standing Data'!$D$9<>"Multi-academy Trust",IF('Standing Data'!$D$15=B180,"Error - counterparty with self",""),IF(N(ISNA(MATCH(B180,'Standing Data'!$E$49:$E$148,0)))<>0,"","Error - counterparty with self")),"") ->  | B180: =IF(C180<>"",VLOOKUP(C180,'CP IDs'!A$2:B$5122,2,FALSE),"") ->  | D180: =IFERROR(VLOOKUP(C180,'CP IDs'!$A$2:$D$4422,4,FALSE),"") ->  | AX180: -500000 | AY180: 500000 | BA180: 1 | BB180: 1 | BC180: 31 | BE180: 0 | BF180: 0 | BG180: 0 | BI180: =AND(B180=$C$9,'Standing Data'!$D$9<>"Multi-academy Trust") -> 
A181: =IF(B181<>"",IF('Standing Data'!$D$9<>"Multi-academy Trust",IF('Standing Data'!$D$15=B181,"Error - counterparty with self",""),IF(N(ISNA(MATCH(B181,'Standing Data'!$E$49:$E$148,0)))<>0,"","Error - counterparty with self")),"") ->  | B181: =IF(C181<>"",VLOOKUP(C181,'CP IDs'!A$2:B$5122,2,FALSE),"") ->  | D181: =IFERROR(VLOOKUP(C181,'CP IDs'!$A$2:$D$4422,4,FALSE),"") ->  | AX181: -500000 | AY181: 500000 | BA181: 1 | BB181: 1 | BC181: 31 | BE181: 0 | BF181: 0 | BG181: 0 | BI181: =AND(B181=$C$9,'Standing Data'!$D$9<>"Multi-academy Trust") -> 
A182: =IF(B182<>"",IF('Standing Data'!$D$9<>"Multi-academy Trust",IF('Standing Data'!$D$15=B182,"Error - counterparty with self",""),IF(N(ISNA(MATCH(B182,'Standing Data'!$E$49:$E$148,0)))<>0,"","Error - counterparty with self")),"") ->  | B182: =IF(C182<>"",VLOOKUP(C182,'CP IDs'!A$2:B$5122,2,FALSE),"") ->  | D182: =IFERROR(VLOOKUP(C182,'CP IDs'!$A$2:$D$4422,4,FALSE),"") ->  | AX182: -500000 | AY182: 500000 | BA182: 1 | BB182: 1 | BC182: 31 | BE182: 0 | BF182: 0 | BG182: 0 | BI182: =AND(B182=$C$9,'Standing Data'!$D$9<>"Multi-academy Trust") -> 
A183: =IF(B183<>"",IF('Standing Data'!$D$9<>"Multi-academy Trust",IF('Standing Data'!$D$15=B183,"Error - counterparty with self",""),IF(N(ISNA(MATCH(B183,'Standing Data'!$E$49:$E$148,0)))<>0,"","Error - counterparty with self")),"") ->  | B183: =IF(C183<>"",VLOOKUP(C183,'CP IDs'!A$2:B$5122,2,FALSE),"") ->  | D183: =IFERROR(VLOOKUP(C183,'CP IDs'!$A$2:$D$4422,4,FALSE),"") ->  | AX183: -500000 | AY183: 500000 | BA183: 1 | BB183: 1 | BC183: 31 | BE183: 0 | BF183: 0 | BG183: 0 | BI183: =AND(B183=$C$9,'Standing Data'!$D$9<>"Multi-academy Trust") -> 
A184: =IF(B184<>"",IF('Standing Data'!$D$9<>"Multi-academy Trust",IF('Standing Data'!$D$15=B184,"Error - counterparty with self",""),IF(N(ISNA(MATCH(B184,'Standing Data'!$E$49:$E$148,0)))<>0,"","Error - counterparty with self")),"") ->  | B184: =IF(C184<>"",VLOOKUP(C184,'CP IDs'!A$2:B$5122,2,FALSE),"") ->  | D184: =IFERROR(VLOOKUP(C184,'CP IDs'!$A$2:$D$4422,4,FALSE),"") ->  | AX184: -500000 | AY184: 500000 | BA184: 1 | BB184: 1 | BC184: 31 | BE184: 0 | BF184: 0 | BG184: 0 | BI184: =AND(B184=$C$9,'Standing Data'!$D$9<>"Multi-academy Trust") -> 
A185: =IF(B185<>"",IF('Standing Data'!$D$9<>"Multi-academy Trust",IF('Standing Data'!$D$15=B185,"Error - counterparty with self",""),IF(N(ISNA(MATCH(B185,'Standing Data'!$E$49:$E$148,0)))<>0,"","Error - counterparty with self")),"") ->  | B185: =IF(C185<>"",VLOOKUP(C185,'CP IDs'!A$2:B$5122,2,FALSE),"") ->  | D185: =IFERROR(VLOOKUP(C185,'CP IDs'!$A$2:$D$4422,4,FALSE),"") ->  | AX185: -500000 | AY185: 500000 | BA185: 1 | BB185: 1 | BC185: 31 | BE185: 0 | BF185: 0 | BG185: 0 | BI185: =AND(B185=$C$9,'Standing Data'!$D$9<>"Multi-academy Trust") -> 
A186: =IF(B186<>"",IF('Standing Data'!$D$9<>"Multi-academy Trust",IF('Standing Data'!$D$15=B186,"Error - counterparty with self",""),IF(N(ISNA(MATCH(B186,'Standing Data'!$E$49:$E$148,0)))<>0,"","Error - counterparty with self")),"") ->  | B186: =IF(C186<>"",VLOOKUP(C186,'CP IDs'!A$2:B$5122,2,FALSE),"") ->  | D186: =IFERROR(VLOOKUP(C186,'CP IDs'!$A$2:$D$4422,4,FALSE),"") ->  | AX186: -500000 | AY186: 500000 | BA186: 1 | BB186: 1 | BC186: 31 | BE186: 0 | BF186: 0 | BG186: 0 | BI186: =AND(B186=$C$9,'Standing Data'!$D$9<>"Multi-academy Trust") -> 
A187: =IF(B187<>"",IF('Standing Data'!$D$9<>"Multi-academy Trust",IF('Standing Data'!$D$15=B187,"Error - counterparty with self",""),IF(N(ISNA(MATCH(B187,'Standing Data'!$E$49:$E$148,0)))<>0,"","Error - counterparty with self")),"") ->  | B187: =IF(C187<>"",VLOOKUP(C187,'CP IDs'!A$2:B$5122,2,FALSE),"") ->  | D187: =IFERROR(VLOOKUP(C187,'CP IDs'!$A$2:$D$4422,4,FALSE),"") ->  | AX187: -500000 | AY187: 500000 | BA187: 1 | BB187: 1 | BC187: 31 | BE187: 0 | BF187: 0 | BG187: 0 | BI187: =AND(B187=$C$9,'Standing Data'!$D$9<>"Multi-academy Trust") -> 
A188: =IF(B188<>"",IF('Standing Data'!$D$9<>"Multi-academy Trust",IF('Standing Data'!$D$15=B188,"Error - counterparty with self",""),IF(N(ISNA(MATCH(B188,'Standing Data'!$E$49:$E$148,0)))<>0,"","Error - counterparty with self")),"") ->  | B188: =IF(C188<>"",VLOOKUP(C188,'CP IDs'!A$2:B$5122,2,FALSE),"") ->  | D188: =IFERROR(VLOOKUP(C188,'CP IDs'!$A$2:$D$4422,4,FALSE),"") ->  | AX188: -500000 | AY188: 500000 | BA188: 1 | BB188: 1 | BC188: 31 | BE188: 0 | BF188: 0 | BG188: 0 | BI188: =AND(B188=$C$9,'Standing Data'!$D$9<>"Multi-academy Trust") -> 
A189: =IF(B189<>"",IF('Standing Data'!$D$9<>"Multi-academy Trust",IF('Standing Data'!$D$15=B189,"Error - counterparty with self",""),IF(N(ISNA(MATCH(B189,'Standing Data'!$E$49:$E$148,0)))<>0,"","Error - counterparty with self")),"") ->  | B189: =IF(C189<>"",VLOOKUP(C189,'CP IDs'!A$2:B$5122,2,FALSE),"") ->  | D189: =IFERROR(VLOOKUP(C189,'CP IDs'!$A$2:$D$4422,4,FALSE),"") ->  | AX189: -500000 | AY189: 500000 | BA189: 1 | BB189: 1 | BC189: 31 | BE189: 0 | BF189: 0 | BG189: 0 | BI189: =AND(B189=$C$9,'Standing Data'!$D$9<>"Multi-academy Trust") -> 
A190: =IF(B190<>"",IF('Standing Data'!$D$9<>"Multi-academy Trust",IF('Standing Data'!$D$15=B190,"Error - counterparty with self",""),IF(N(ISNA(MATCH(B190,'Standing Data'!$E$49:$E$148,0)))<>0,"","Error - counterparty with self")),"") ->  | B190: =IF(C190<>"",VLOOKUP(C190,'CP IDs'!A$2:B$5122,2,FALSE),"") ->  | D190: =IFERROR(VLOOKUP(C190,'CP IDs'!$A$2:$D$4422,4,FALSE),"") ->  | AX190: -500000 | AY190: 500000 | BA190: 1 | BB190: 1 | BC190: 31 | BE190: 0 | BF190: 0 | BG190: 0 | BI190: =AND(B190=$C$9,'Standing Data'!$D$9<>"Multi-academy Trust") -> 
A191: =IF(B191<>"",IF('Standing Data'!$D$9<>"Multi-academy Trust",IF('Standing Data'!$D$15=B191,"Error - counterparty with self",""),IF(N(ISNA(MATCH(B191,'Standing Data'!$E$49:$E$148,0)))<>0,"","Error - counterparty with self")),"") ->  | B191: =IF(C191<>"",VLOOKUP(C191,'CP IDs'!A$2:B$5122,2,FALSE),"") ->  | D191: =IFERROR(VLOOKUP(C191,'CP IDs'!$A$2:$D$4422,4,FALSE),"") ->  | AX191: -500000 | AY191: 500000 | BA191: 1 | BB191: 1 | BC191: 31 | BE191: 0 | BF191: 0 | BG191: 0 | BI191: =AND(B191=$C$9,'Standing Data'!$D$9<>"Multi-academy Trust") -> 
A192: =IF(B192<>"",IF('Standing Data'!$D$9<>"Multi-academy Trust",IF('Standing Data'!$D$15=B192,"Error - counterparty with self",""),IF(N(ISNA(MATCH(B192,'Standing Data'!$E$49:$E$148,0)))<>0,"","Error - counterparty with self")),"") ->  | B192: =IF(C192<>"",VLOOKUP(C192,'CP IDs'!A$2:B$5122,2,FALSE),"") ->  | D192: =IFERROR(VLOOKUP(C192,'CP IDs'!$A$2:$D$4422,4,FALSE),"") ->  | AX192: -500000 | AY192: 500000 | BA192: 1 | BB192: 1 | BC192: 31 | BE192: 0 | BF192: 0 | BG192: 0 | BI192: =AND(B192=$C$9,'Standing Data'!$D$9<>"Multi-academy Trust") -> 
A193: =IF(B193<>"",IF('Standing Data'!$D$9<>"Multi-academy Trust",IF('Standing Data'!$D$15=B193,"Error - counterparty with self",""),IF(N(ISNA(MATCH(B193,'Standing Data'!$E$49:$E$148,0)))<>0,"","Error - counterparty with self")),"") ->  | B193: =IF(C193<>"",VLOOKUP(C193,'CP IDs'!A$2:B$5122,2,FALSE),"") ->  | D193: =IFERROR(VLOOKUP(C193,'CP IDs'!$A$2:$D$4422,4,FALSE),"") ->  | AX193: -500000 | AY193: 500000 | BA193: 1 | BB193: 1 | BC193: 31 | BE193: 0 | BF193: 0 | BG193: 0 | BI193: =AND(B193=$C$9,'Standing Data'!$D$9<>"Multi-academy Trust") -> 
A194: =IF(B194<>"",IF('Standing Data'!$D$9<>"Multi-academy Trust",IF('Standing Data'!$D$15=B194,"Error - counterparty with self",""),IF(N(ISNA(MATCH(B194,'Standing Data'!$E$49:$E$148,0)))<>0,"","Error - counterparty with self")),"") ->  | B194: =IF(C194<>"",VLOOKUP(C194,'CP IDs'!A$2:B$5122,2,FALSE),"") ->  | D194: =IFERROR(VLOOKUP(C194,'CP IDs'!$A$2:$D$4422,4,FALSE),"") ->  | AX194: -500000 | AY194: 500000 | BA194: 1 | BB194: 1 | BC194: 31 | BE194: 0 | BF194: 0 | BG194: 0 | BI194: =AND(B194=$C$9,'Standing Data'!$D$9<>"Multi-academy Trust") -> 
A195: =IF(B195<>"",IF('Standing Data'!$D$9<>"Multi-academy Trust",IF('Standing Data'!$D$15=B195,"Error - counterparty with self",""),IF(N(ISNA(MATCH(B195,'Standing Data'!$E$49:$E$148,0)))<>0,"","Error - counterparty with self")),"") ->  | B195: =IF(C195<>"",VLOOKUP(C195,'CP IDs'!A$2:B$5122,2,FALSE),"") ->  | D195: =IFERROR(VLOOKUP(C195,'CP IDs'!$A$2:$D$4422,4,FALSE),"") ->  | AX195: -500000 | AY195: 500000 | BA195: 1 | BB195: 1 | BC195: 31 | BE195: 0 | BF195: 0 | BG195: 0 | BI195: =AND(B195=$C$9,'Standing Data'!$D$9<>"Multi-academy Trust") -> 
A196: =IF(B196<>"",IF('Standing Data'!$D$9<>"Multi-academy Trust",IF('Standing Data'!$D$15=B196,"Error - counterparty with self",""),IF(N(ISNA(MATCH(B196,'Standing Data'!$E$49:$E$148,0)))<>0,"","Error - counterparty with self")),"") ->  | B196: =IF(C196<>"",VLOOKUP(C196,'CP IDs'!A$2:B$5122,2,FALSE),"") ->  | D196: =IFERROR(VLOOKUP(C196,'CP IDs'!$A$2:$D$4422,4,FALSE),"") ->  | AX196: -500000 | AY196: 500000 | BA196: 1 | BB196: 1 | BC196: 31 | BE196: 0 | BF196: 0 | BG196: 0 | BI196: =AND(B196=$C$9,'Standing Data'!$D$9<>"Multi-academy Trust") -> 
A197: =IF(B197<>"",IF('Standing Data'!$D$9<>"Multi-academy Trust",IF('Standing Data'!$D$15=B197,"Error - counterparty with self",""),IF(N(ISNA(MATCH(B197,'Standing Data'!$E$49:$E$148,0)))<>0,"","Error - counterparty with self")),"") ->  | B197: =IF(C197<>"",VLOOKUP(C197,'CP IDs'!A$2:B$5122,2,FALSE),"") ->  | D197: =IFERROR(VLOOKUP(C197,'CP IDs'!$A$2:$D$4422,4,FALSE),"") ->  | AX197: -500000 | AY197: 500000 | BA197: 1 | BB197: 1 | BC197: 31 | BE197: 0 | BF197: 0 | BG197: 0 | BI197: =AND(B197=$C$9,'Standing Data'!$D$9<>"Multi-academy Trust") -> 
A198: =IF(B198<>"",IF('Standing Data'!$D$9<>"Multi-academy Trust",IF('Standing Data'!$D$15=B198,"Error - counterparty with self",""),IF(N(ISNA(MATCH(B198,'Standing Data'!$E$49:$E$148,0)))<>0,"","Error - counterparty with self")),"") ->  | B198: =IF(C198<>"",VLOOKUP(C198,'CP IDs'!A$2:B$5122,2,FALSE),"") ->  | D198: =IFERROR(VLOOKUP(C198,'CP IDs'!$A$2:$D$4422,4,FALSE),"") ->  | AX198: -500000 | AY198: 500000 | BA198: 1 | BB198: 1 | BC198: 31 | BE198: 0 | BF198: 0 | BG198: 0 | BI198: =AND(B198=$C$9,'Standing Data'!$D$9<>"Multi-academy Trust") -> 
A199: =IF(B199<>"",IF('Standing Data'!$D$9<>"Multi-academy Trust",IF('Standing Data'!$D$15=B199,"Error - counterparty with self",""),IF(N(ISNA(MATCH(B199,'Standing Data'!$E$49:$E$148,0)))<>0,"","Error - counterparty with self")),"") ->  | B199: =IF(C199<>"",VLOOKUP(C199,'CP IDs'!A$2:B$5122,2,FALSE),"") ->  | D199: =IFERROR(VLOOKUP(C199,'CP IDs'!$A$2:$D$4422,4,FALSE),"") ->  | AX199: -500000 | AY199: 500000 | BA199: 1 | BB199: 1 | BC199: 31 | BE199: 0 | BF199: 0 | BG199: 0 | BI199: =AND(B199=$C$9,'Standing Data'!$D$9<>"Multi-academy Trust") -> 
A200: =IF(B200<>"",IF('Standing Data'!$D$9<>"Multi-academy Trust",IF('Standing Data'!$D$15=B200,"Error - counterparty with self",""),IF(N(ISNA(MATCH(B200,'Standing Data'!$E$49:$E$148,0)))<>0,"","Error - counterparty with self")),"") ->  | B200: =IF(C200<>"",VLOOKUP(C200,'CP IDs'!A$2:B$5122,2,FALSE),"") ->  | D200: =IFERROR(VLOOKUP(C200,'CP IDs'!$A$2:$D$4422,4,FALSE),"") ->  | AX200: -500000 | AY200: 500000 | BA200: 1 | BB200: 1 | BC200: 31 | BE200: 0 | BF200: 0 | BG200: 0 | BI200: =AND(B200=$C$9,'Standing Data'!$D$9<>"Multi-academy Trust") -> 
A201: =IF(B201<>"",IF('Standing Data'!$D$9<>"Multi-academy Trust",IF('Standing Data'!$D$15=B201,"Error - counterparty with self",""),IF(N(ISNA(MATCH(B201,'Standing Data'!$E$49:$E$148,0)))<>0,"","Error - counterparty with self")),"") ->  | B201: =IF(C201<>"",VLOOKUP(C201,'CP IDs'!A$2:B$5122,2,FALSE),"") ->  | D201: =IFERROR(VLOOKUP(C201,'CP IDs'!$A$2:$D$4422,4,FALSE),"") ->  | AX201: -500000 | AY201: 500000 | BA201: 1 | BB201: 1 | BC201: 31 | BE201: 0 | BF201: 0 | BG201: 0 | BI201: =AND(B201=$C$9,'Standing Data'!$D$9<>"Multi-academy Trust") -> 
A202: =IF(B202<>"",IF('Standing Data'!$D$9<>"Multi-academy Trust",IF('Standing Data'!$D$15=B202,"Error - counterparty with self",""),IF(N(ISNA(MATCH(B202,'Standing Data'!$E$49:$E$148,0)))<>0,"","Error - counterparty with self")),"") ->  | B202: =IF(C202<>"",VLOOKUP(C202,'CP IDs'!A$2:B$5122,2,FALSE),"") ->  | D202: =IFERROR(VLOOKUP(C202,'CP IDs'!$A$2:$D$4422,4,FALSE),"") ->  | AX202: -500000 | AY202: 500000 | BA202: 1 | BB202: 1 | BC202: 31 | BE202: 0 | BF202: 0 | BG202: 0 | BI202: =AND(B202=$C$9,'Standing Data'!$D$9<>"Multi-academy Trust") -> 
A203: =IF(B203<>"",IF('Standing Data'!$D$9<>"Multi-academy Trust",IF('Standing Data'!$D$15=B203,"Error - counterparty with self",""),IF(N(ISNA(MATCH(B203,'Standing Data'!$E$49:$E$148,0)))<>0,"","Error - counterparty with self")),"") ->  | B203: =IF(C203<>"",VLOOKUP(C203,'CP IDs'!A$2:B$5122,2,FALSE),"") ->  | D203: =IFERROR(VLOOKUP(C203,'CP IDs'!$A$2:$D$4422,4,FALSE),"") ->  | AX203: -500000 | AY203: 500000 | BA203: 1 | BB203: 1 | BC203: 31 | BE203: 0 | BF203: 0 | BG203: 0 | BI203: =AND(B203=$C$9,'Standing Data'!$D$9<>"Multi-academy Trust") -> 
A204: =IF(B204<>"",IF('Standing Data'!$D$9<>"Multi-academy Trust",IF('Standing Data'!$D$15=B204,"Error - counterparty with self",""),IF(N(ISNA(MATCH(B204,'Standing Data'!$E$49:$E$148,0)))<>0,"","Error - counterparty with self")),"") ->  | B204: =IF(C204<>"",VLOOKUP(C204,'CP IDs'!A$2:B$5122,2,FALSE),"") ->  | D204: =IFERROR(VLOOKUP(C204,'CP IDs'!$A$2:$D$4422,4,FALSE),"") ->  | AX204: -500000 | AY204: 500000 | BA204: 1 | BB204: 1 | BC204: 31 | BE204: 0 | BF204: 0 | BG204: 0 | BI204: =AND(B204=$C$9,'Standing Data'!$D$9<>"Multi-academy Trust") -> 
A205: =IF(B205<>"",IF('Standing Data'!$D$9<>"Multi-academy Trust",IF('Standing Data'!$D$15=B205,"Error - counterparty with self",""),IF(N(ISNA(MATCH(B205,'Standing Data'!$E$49:$E$148,0)))<>0,"","Error - counterparty with self")),"") ->  | B205: =IF(C205<>"",VLOOKUP(C205,'CP IDs'!A$2:B$5122,2,FALSE),"") ->  | D205: =IFERROR(VLOOKUP(C205,'CP IDs'!$A$2:$D$4422,4,FALSE),"") ->  | AX205: -500000 | AY205: 500000 | BA205: 1 | BB205: 1 | BC205: 31 | BE205: 0 | BF205: 0 | BG205: 0 | BI205: =AND(B205=$C$9,'Standing Data'!$D$9<>"Multi-academy Trust") -> 
A206: =IF(B206<>"",IF('Standing Data'!$D$9<>"Multi-academy Trust",IF('Standing Data'!$D$15=B206,"Error - counterparty with self",""),IF(N(ISNA(MATCH(B206,'Standing Data'!$E$49:$E$148,0)))<>0,"","Error - counterparty with self")),"") ->  | B206: =IF(C206<>"",VLOOKUP(C206,'CP IDs'!A$2:B$5122,2,FALSE),"") ->  | D206: =IFERROR(VLOOKUP(C206,'CP IDs'!$A$2:$D$4422,4,FALSE),"") ->  | AX206: -500000 | AY206: 500000 | BA206: 1 | BB206: 1 | BC206: 31 | BE206: 0 | BF206: 0 | BG206: 0 | BI206: =AND(B206=$C$9,'Standing Data'!$D$9<>"Multi-academy Trust") -> 
... 515 more rows

Sheet Subsidiaries (hidden)
A1: Accounts Return March 2014 - Subsidiaries
A3: Trust: | C3: ='Standing Data'!$D$3 -> Type name here | G3: % of cells
A5: Period end: | C5: ='Standing Data'!$D$6 -> 2014-03-31 | F5: Sourced directly from Financial Statements | G5: =+(N11/R11) -> 0.625
A7: Co. No.: | C7: ='Standing Data'!D12 -> Type number here | F7: Additional to Financial Statements, prepared on a similar basis | G7: =+(O11/R11) -> 0.25
A9: Academy UPIN: | C9: =IF(AND(OR('Standing Data'!D9="Multi-academy Trust",'Standing Data'!D9="Federation"),'Standing Data'!M49=0),'Standing Data'!E49,IF('Standing Data'!M49<>0,'Standing Data'!M49,IF(OR('Standing Data'!D9="Other",'Standing Data'!F15<>""),'Standing Data'!F15,'Standing Data'!D15))) ->  | F9: Additional to Financial Statements, prepared on a different/new basis | G9: =+(P11/R11) -> 0.125 | N9: Possible Cells | S9: Completed Cells
C10: Above details will populate automatically | D10: Error check cells | N10: Green | O10: Amber | P10: Red | Q10: Grey | R10: Total | S10: Green | T10: Amber | U10: Red | V10: Grey | W10: Total
E11: For the period | G11: At the period end | N11: =+SUM(N14:N23) -> 50 | O11: =+SUM(O14:O23) -> 20 | P11: 10 | Q11: 0 | R11: 80
C12: Full name of subsidiary company | D12: Company number | E12: Turnover | F12: Profit | G12: Assets | H12: Loans | I12: Other Liabilities | J12: Capital and Reserves | L12: Lower limit | M12: Upper limit
E13: £000 | F13: £000 | G13: £000 | H13: £000 | I13: £000 | J13: £000 | L13: £000 | M13: £000
C14: Subsidiary 1 | K14: =+IF(G14<>SUM(H14:J14), "Error-balance sheet does not balance","") ->  | L14: -500000 | M14: 500000 | N14: 5 | O14: 2 | P14: 1 | R14: =+SUM(N14:Q14) -> 8
C15: Subsidiary 2 | K15: =+IF(G15<>SUM(H15:J15), "Error-balance sheet does not balance","") ->  | L15: -500000 | M15: 500000 | N15: 5 | O15: 2 | P15: 1 | R15: =+SUM(N15:Q15) -> 8
C16: Subsidiary 3 | L16: -500000 | M16: 500000 | N16: 5 | O16: 2 | P16: 1 | R16: 8
C17: Subsidiary 4 | L17: -500000 | M17: 500000 | N17: 5 | O17: 2 | P17: 1 | R17: 8
C18: Subsidiary 5 | L18: -500000 | M18: 500000 | N18: 5 | O18: 2 | P18: 1 | R18: 8
C19: Subsidiary 6 | L19: -500000 | M19: 500000 | N19: 5 | O19: 2 | P19: 1 | R19: 8
C20: Subsidiary 7 | L20: -500000 | M20: 500000 | N20: 5 | O20: 2 | P20: 1 | R20: 8
C21: Subsidiary 8 | L21: -500000 | M21: 500000 | N21: 5 | O21: 2 | P21: 1 | R21: 8
C22: Subsidiary 9 | L22: -500000 | M22: 500000 | N22: 5 | O22: 2 | P22: 1 | R22: 8
C23: Subsidiary 10 | L23: -500000 | M23: 500000 | N23: 5 | O23: 2 | P23: 1 | R23: 8

Sheet Bench.Return (hidden)
A1: Accounts Return March 2014 - Benchmarking Return
A3: Trust: | C3: ='Standing Data'!$D$3 -> Type name here
A5: Period end: | C5: ='Standing Data'!$D$6 -> 2014-03-31 | F5: Sourced directly from Financial Statements
A7: Co. No.: | C7: ='Standing Data'!D12 -> Type number here | F7: Additional to Financial Statements, prepared on a similar basis
A9: Academy UPIN: | C9: =Fin.Return!C9 ->  | F9: Cells populate automatically from elsewhere in the Return
C10: Above details will populate automatically
A12: BENCHMARKING RETURN | K12: These columns are for MATs only
C13: Academy Name | F13: =+(C3) -> Type name here | K13: Central Services | L13: ='Standing Data'!D49 -> Academy name | M13: ='Standing Data'!D50 -> Academy name | N13: ='Standing Data'!D51 -> Academy name | O13: ='Standing Data'!D52 -> Academy name | P13: ='Standing Data'!D53 -> Academy name | Q13: ='Standing Data'!D54 -> Academy name | R13: ='Standing Data'!D55 -> Academy name | S13: ='Standing Data'!D56 -> Academy name | T13: ='Standing Data'!D57 -> Academy name | U13: ='Standing Data'!D58 -> Academy name | V13: ='Standing Data'!D59 -> Academy name | W13: ='Standing Data'!D60 -> Academy name | X13: ='Standing Data'!D61 -> Academy name | Y13: ='Standing Data'!D62 -> Academy name | Z13: ='Standing Data'!D63 -> Academy name | AA13: ='Standing Data'!D64 -> Academy name | AB13: ='Standing Data'!D65 -> Academy name | AC13: ='Standing Data'!D66 -> Academy name | AD13: ='Standing Data'!D67 -> Academy name | AE13: ='Standing Data'!D68 -> Academy name | AF13: ='Standing Data'!D69 -> Academy name | AG13: ='Standing Data'!D70 -> Academy name | AH13: ='Standing Data'!D71 -> Academy name | AI13: ='Standing Data'!D72 -> Academy name | AJ13: ='Standing Data'!D73 -> Academy name | AK13: ='Standing Data'!D74 -> Academy name | AL13: ='Standing Data'!D75 -> Academy name | AM13: ='Standing Data'!D76 -> Academy name | AN13: ='Standing Data'!D77 -> Academy name | AO13: ='Standing Data'!D78 -> Academy name | AP13: ='Standing Data'!D79 -> Academy name | AQ13: ='Standing Data'!D80 -> Academy name | AR13: ='Standing Data'!D81 -> Academy name | AS13: ='Standing Data'!D82 -> Academy name | AT13: ='Standing Data'!D83 -> Academy name | AU13: ='Standing Data'!D84 -> Academy name | AV13: ='Standing Data'!D85 -> Academy name | AW13: ='Standing Data'!D86 -> Academy name | AX13: ='Standing Data'!D87 -> Academy name | AY13: ='Standing Data'!D88 -> Academy name | AZ13: ='Standing Data'!D89 -> Academy name | BA13: ='Standing Data'!D90 -> Academy name | BB13: ='Standing Data'!D91 -> Academy name | BC13: ='Standing Data'!D92 -> Academy name | BD13: ='Standing Data'!D93 -> Academy name | BE13: ='Standing Data'!D94 -> Academy name | BF13: ='Standing Data'!D95 -> Academy name | BG13: ='Standing Data'!D96 -> Academy name | BH13: ='Standing Data'!D97 -> Academy name | BI13: ='Standing Data'!D98 -> Academy name | BJ13: ='Standing Data'!D99 -> Academy name | BK13: ='Standing Data'!D100 -> Academy name | BL13: ='Standing Data'!D101 -> Academy name | BM13: ='Standing Data'!D102 -> Academy name | BN13: ='Standing Data'!D103 -> Academy name | BO13: ='Standing Data'!D104 -> Academy name | BP13: ='Standing Data'!D105 -> Academy name | BQ13: ='Standing Data'!D106 -> Academy name | BR13: ='Standing Data'!D107 -> Academy name | BS13: ='Standing Data'!D108 -> Academy name | BT13: ='Standing Data'!D109 -> Academy name | BU13: ='Standing Data'!D110 -> Academy name | BV13: ='Standing Data'!D111 -> Academy name | BW13: ='Standing Data'!D112 -> Academy name | BX13: ='Standing Data'!D113 -> Academy name | BY13: ='Standing Data'!D114 -> Academy name | BZ13: ='Standing Data'!D115 -> Academy name | CA13: ='Standing Data'!D116 -> Academy name | CB13: ='Standing Data'!D117 -> Academy name | CC13: ='Standing Data'!D118 -> Academy name | CD13: ='Standing Data'!D119 -> Academy name | CE13: ='Standing Data'!D120 -> Academy name | CF13: ='Standing Data'!D121 -> Academy name | CG13: ='Standing Data'!D122 -> Academy name | CH13: ='Standing Data'!D123 -> Academy name | CI13: ='Standing Data'!D124 -> Academy name | CJ13: ='Standing Data'!D125 -> Academy name | CK13: ='Standing Data'!D126 -> Academy name | CL13: ='Standing Data'!D127 -> Academy name | CM13: ='Standing Data'!D128 -> Academy name | CN13: ='Standing Data'!D129 -> Academy name | CO13: ='Standing Data'!D130 -> Academy name | CP13: ='Standing Data'!D131 -> Academy name | CQ13: ='Standing Data'!D132 -> Academy name | CR13: ='Standing Data'!D133 -> Academy name | CS13: ='Standing Data'!D134 -> Academy name | CT13: ='Standing Data'!D135 -> Academy name | CU13: ='Standing Data'!D136 -> Academy name | CV13: ='Standing Data'!D137 -> Academy name | CW13: ='Standing Data'!D138 -> Academy name | CX13: ='Standing Data'!D139 -> Academy name | CY13: ='Standing Data'!D140 -> Academy name | CZ13: ='Standing Data'!D141 -> Academy name | DA13: ='Standing Data'!D142 -> Academy name | DB13: ='Standing Data'!D143 -> Academy name | DC13: ='Standing Data'!D144 -> Academy name | DD13: ='Standing Data'!D145 -> Academy name | DE13: ='Standing Data'!D146 -> Academy name | DF13: ='Standing Data'!D147 -> Academy name | DG13: ='Standing Data'!D148 -> Academy name
C14: Period Length (months)
C15: UPIN | E15: Errors | F15: =IFERROR(VLOOKUP(F$1031,Reference!$O$11:$S$2833,5,FALSE),"") ->  | G15: =IFERROR(VLOOKUP(G$1031,Reference!$O$11:$S$2833,5,FALSE),"") ->  | H15: =IFERROR(VLOOKUP(H$1031,Reference!$O$11:$S$2833,5,FALSE),"") ->  | I15: =IFERROR(VLOOKUP(I$1031,Reference!$O$11:$S$2833,5,FALSE),"") ->  | K15: =IFERROR(VLOOKUP(K$1031,Reference!$O$11:$S$2833,5,FALSE),"") ->  | L15: =+('Standing Data'!$E49) ->  | M15: =+('Standing Data'!$E50) ->  | N15: =+('Standing Data'!$E51) ->  | O15: =+('Standing Data'!$E52) ->  | P15: =+('Standing Data'!$E53) ->  | Q15: =+('Standing Data'!$E54) ->  | R15: =+('Standing Data'!$E55) ->  | S15: =+('Standing Data'!$E56) ->  | T15: =+('Standing Data'!$E57) ->  | U15: =+('Standing Data'!$E58) ->  | V15: =+('Standing Data'!$E59) ->  | W15: =+('Standing Data'!$E60) ->  | X15: =+('Standing Data'!$E61) ->  | Y15: =+('Standing Data'!$E62) ->  | Z15: =+('Standing Data'!$E63) ->  | AA15: =+('Standing Data'!$E64) ->  | AB15: =+('Standing Data'!$E65) ->  | AC15: =+('Standing Data'!$E66) ->  | AD15: =+('Standing Data'!$E67) ->  | AE15: =+('Standing Data'!$E68) ->  | AF15: =+('Standing Data'!$E69) ->  | AG15: =+('Standing Data'!$E70) ->  | AH15: =+('Standing Data'!$E71) ->  | AI15: =+('Standing Data'!$E72) ->  | AJ15: =+('Standing Data'!$E73) ->  | AK15: =+('Standing Data'!$E74) ->  | AL15: =+('Standing Data'!$E75) ->  | AM15: =+('Standing Data'!$E76) ->  | AN15: =+('Standing Data'!$E77) ->  | AO15: =+('Standing Data'!$E78) ->  | AP15: =+('Standing Data'!$E79) ->  | AQ15: =+('Standing Data'!$E80) ->  | AR15: =+('Standing Data'!$E81) ->  | AS15: =+('Standing Data'!$E82) ->  | AT15: =+('Standing Data'!$E83) ->  | AU15: =+('Standing Data'!$E84) ->  | AV15: =+('Standing Data'!$E85) ->  | AW15: =+('Standing Data'!$E86) ->  | AX15: =+('Standing Data'!$E87) ->  | AY15: =+('Standing Data'!$E88) ->  | AZ15: =+('Standing Data'!$E89) ->  | BA15: =+('Standing Data'!$E90) ->  | BB15: =+('Standing Data'!$E91) ->  | BC15: =+('Standing Data'!$E92) ->  | BD15: =+('Standing Data'!$E93) ->  | BE15: =+('Standing Data'!$E94) ->  | BF15: =+('Standing Data'!$E95) ->  | BG15: =+('Standing Data'!$E96) ->  | BH15: =+('Standing Data'!$E97) ->  | BI15: =+('Standing Data'!$E98) ->  | BJ15: =+('Standing Data'!$E99) ->  | BK15: =+('Standing Data'!$E100) ->  | BL15: =+('Standing Data'!$E101) ->  | BM15: =+('Standing Data'!$E102) ->  | BN15: =+('Standing Data'!$E103) ->  | BO15: =+('Standing Data'!$E104) ->  | BP15: =+('Standing Data'!$E105) ->  | BQ15: =+('Standing Data'!$E106) ->  | BR15: =+('Standing Data'!$E107) ->  | BS15: =+('Standing Data'!$E108) ->  | BT15: =+('Standing Data'!$E109) ->  | BU15: =+('Standing Data'!$E110) ->  | BV15: =+('Standing Data'!$E111) ->  | BW15: =+('Standing Data'!$E112) ->  | BX15: =+('Standing Data'!$E113) ->  | BY15: =+('Standing Data'!$E114) ->  | BZ15: =+('Standing Data'!$E115) ->  | CA15: =+('Standing Data'!$E116) ->  | CB15: =+('Standing Data'!$E117) ->  | CC15: =+('Standing Data'!$E118) ->  | CD15: =+('Standing Data'!$E119) ->  | CE15: =+('Standing Data'!$E120) ->  | CF15: =+('Standing Data'!$E121) ->  | CG15: =+('Standing Data'!$E122) ->  | CH15: =+('Standing Data'!$E123) ->  | CI15: =+('Standing Data'!$E124) ->  | CJ15: =+('Standing Data'!$E125) ->  | CK15: =+('Standing Data'!$E126) ->  | CL15: =+('Standing Data'!$E127) ->  | CM15: =+('Standing Data'!$E128) ->  | CN15: =+('Standing Data'!$E129) ->  | CO15: =+('Standing Data'!$E130) ->  | CP15: =+('Standing Data'!$E131) ->  | CQ15: =+('Standing Data'!$E132) ->  | CR15: =+('Standing Data'!$E133) ->  | CS15: =+('Standing Data'!$E134) ->  | CT15: =+('Standing Data'!$E135) ->  | CU15: =+('Standing Data'!$E136) ->  | CV15: =+('Standing Data'!$E137) ->  | CW15: =+('Standing Data'!$E138) ->  | CX15: =+('Standing Data'!$E139) ->  | CY15: =+('Standing Data'!$E140) ->  | CZ15: =+('Standing Data'!$E141) ->  | DA15: =+('Standing Data'!$E142) ->  | DB15: =+('Standing Data'!$E143) ->  | DC15: =+('Standing Data'!$E144) ->  | DD15: =+('Standing Data'!$E145) ->  | DE15: =+('Standing Data'!$E146) ->  | DF15: =+('Standing Data'!$E147) ->  | DG15: =+('Standing Data'!$E148) -> 
D16: Line no. | F16: £000 | G16: £000 | I16: £000 | K16: £000 | L16: £000 | M16: £000 | N16: £000 | O16: £000 | P16: £000 | Q16: £000 | R16: £000 | S16: £000 | T16: £000 | U16: £000 | V16: £000 | W16: £000 | X16: £000 | Y16: £000 | Z16: £000 | AA16: £000 | AB16: £000 | AC16: £000 | AD16: £000 | AE16: £000 | AF16: £000 | AG16: £000 | AH16: £000 | AI16: £000 | AJ16: £000 | AK16: £000 | AL16: £000 | AM16: £000 | AN16: £000 | AO16: £000 | AP16: £000 | AQ16: £000 | AR16: £000 | AS16: £000 | AT16: £000 | AU16: £000 | AV16: £000 | AW16: £000 | AX16: £000 | AY16: £000 | AZ16: £000 | BA16: £000 | BB16: £000 | BC16: £000 | BD16: £000 | BE16: £000 | BF16: £000 | BG16: £000 | BH16: £000 | BI16: £000 | BJ16: £000 | BK16: £000 | BL16: £000 | BM16: £000 | BN16: £000 | BO16: £000 | BP16: £000 | BQ16: £000 | BR16: £000 | BS16: £000 | BT16: £000 | BU16: £000 | BV16: £000 | BW16: £000 | BX16: £000 | BY16: £000 | BZ16: £000 | CA16: £000 | CB16: £000 | CC16: £000 | CD16: £000 | CE16: £000 | CF16: £000 | CG16: £000 | CH16: £000 | CI16: £000 | CJ16: £000 | CK16: £000 | CL16: £000 | CM16: £000 | CN16: £000 | CO16: £000 | CP16: £000 | CQ16: £000 | CR16: £000 | CS16: £000 | CT16: £000 | CU16: £000 | CV16: £000 | CW16: £000 | CX16: £000 | CY16: £000 | CZ16: £000 | DA16: £000 | DB16: £000 | DC16: £000 | DD16: £000 | DE16: £000 | DF16: £000 | DG16: £000
A17: REVENUE INCOME
B18: Grant funding
B19: EFA | C19: Rates Relief | D19: 1 | E19: =IF(DI19=TRUE, "Error - imbalance","") ->  | G19: =Fin.Return!E171 -> 0 | DI19: =AND(G19<>SUM(K19:DG19),'Standing Data'!$D$9="Multi-academy Trust") -> FALSE
C20: Pre-16 School Budget Share | D20: 2 | E20: =IF(DI20=TRUE, "Error - imbalance","") ->  | G20: =Fin.Return!E172 -> 0 | DI20: =AND(G20<>SUM(K20:DG20),'Standing Data'!$D$9="Multi-academy Trust") -> FALSE
C21: 16-19 School Budget Share | D21: 3 | G21: =Fin.Return!E173 -> 0 | DI21: =AND(G21<>SUM(K21:DG21),'Standing Data'!$D$9="Multi-academy Trust") -> FALSE
C22: Academy Bursary Funding | D22: 4 | G22: =Fin.Return!E174 -> 0 | DI22: =AND(G22<>SUM(K22:DG22),'Standing Data'!$D$9="Multi-academy Trust") -> FALSE
C23: Local Authority Central Support Equipment Grant | D23: 5 | G23: =Fin.Return!E175 -> 0 | DI23: =AND(G23<>SUM(K23:DG23),'Standing Data'!$D$9="Multi-academy Trust") -> FALSE
C24: Teacher Threshold Grant | D24: 6 | G24: =Fin.Return!E176 -> 0 | DI24: =AND(G24<>SUM(K24:DG24),'Standing Data'!$D$9="Multi-academy Trust") -> FALSE
C25: Pupil Premium | D25: 7 | G25: =Fin.Return!E177 -> 0 | DI25: =AND(G25<>SUM(K25:DG25),'Standing Data'!$D$9="Multi-academy Trust") -> FALSE
C26: Start-up Grant A | D26: 8 | G26: =Fin.Return!E178 -> 0 | DI26: =AND(G26<>SUM(K26:DG26),'Standing Data'!$D$9="Multi-academy Trust") -> FALSE
C27: Start-up Grant B | D27: 9 | G27: =Fin.Return!E179 -> 0 | DI27: =AND(G27<>SUM(K27:DG27),'Standing Data'!$D$9="Multi-academy Trust") -> FALSE
C28: Insurance | D28: 10 | G28: =Fin.Return!E180 -> 0 | DI28: =AND(G28<>SUM(K28:DG28),'Standing Data'!$D$9="Multi-academy Trust") -> FALSE
C29: Mainstream Grants | D29: 11 | G29: =Fin.Return!E181 -> 0 | DI29: =AND(G29<>SUM(K29:DG29),'Standing Data'!$D$9="Multi-academy Trust") -> FALSE
C30: Other | D30: 12 | G30: =Fin.Return!E182 -> 0 | DI30: =AND(G30<>SUM(K30:DG30),'Standing Data'!$D$9="Multi-academy Trust") -> FALSE
B31: DfE | C31: Other DfE grants (Revenue) | D31: 13 | G31: =Fin.Return!E203 -> 0 | DI31: =AND(G31<>SUM(K31:DG31),'Standing Data'!$D$9="Multi-academy Trust") -> FALSE
B32: LA | C32: SEN | D32: 14 | G32: =Fin.Return!E214 -> 0 | DI32: =AND(G32<>SUM(K32:DG32),'Standing Data'!$D$9="Multi-academy Trust") -> FALSE
B33: LA | C33: Other income | D33: 15 | G33: =Fin.Return!E215 -> 0 | DI33: =AND(G33<>SUM(K33:DG33),'Standing Data'!$D$9="Multi-academy Trust") -> FALSE
B34: Other | C34: Other Government grants | D34: 16 | G34: =Fin.Return!E221 -> 0 | DI34: =AND(G34<>SUM(K34:DG34),'Standing Data'!$D$9="Multi-academy Trust") -> FALSE
I35: =SUM(G19:G34) -> 0 | K35: =SUM(K19:K34) -> 0 | L35: =SUM(L19:L34) -> 0 | M35: 0 | N35: 0 | O35: 0 | P35: 0 | Q35: 0 | R35: 0 | S35: 0 | T35: 0 | U35: 0 | V35: 0 | W35: 0 | X35: 0 | Y35: 0 | Z35: 0 | AA35: 0 | AB35: 0 | AC35: 0 | AD35: 0 | AE35: 0 | AF35: 0 | AG35: 0 | AH35: 0 | AI35: 0 | AJ35: 0 | AK35: 0 | AL35: 0 | AM35: 0 | AN35: 0 | AO35: 0 | AP35: 0 | AQ35: 0 | AR35: 0 | AS35: 0 | AT35: 0 | AU35: 0 | AV35: 0 | AW35: 0 | AX35: =SUM(AX19:AX34) -> 0 | AY35: 0 | AZ35: 0 | BA35: 0 | BB35: 0 | BC35: 0 | BD35: 0 | BE35: 0 | BF35: 0 | BG35: 0 | BH35: 0 | BI35: 0 | BJ35: 0 | BK35: 0 | BL35: 0 | BM35: 0 | BN35: 0 | BO35: 0 | BP35: 0 | BQ35: 0 | BR35: 0 | BS35: 0 | BT35: 0 | BU35: 0 | BV35: 0 | BW35: 0 | BX35: 0 | BY35: 0 | BZ35: 0 | CA35: 0 | CB35: 0 | CC35: 0 | CD35: 0 | CE35: 0 | CF35: 0 | CG35: 0 | CH35: 0 | CI35: 0 | CJ35: 0 | CK35: 0 | CL35: 0 | CM35: 0 | CN35: 0 | CO35: 0 | CP35: 0 | CQ35: 0 | CR35: 0 | CS35: 0 | CT35: 0 | CU35: 0 | CV35: 0 | CW35: 0 | CX35: 0 | CY35: 0 | CZ35: 0 | DA35: 0 | DB35: 0 | DC35: 0 | DD35: 0 | DE35: 0 | DF35: 0 | DG35: 0
B36: Other Revenue income
C37: Government source (non-grant) | D37: 17 | E37: =IF(DI37=TRUE, "Error - imbalance","") ->  | G37: =Fin.Return!E226 -> 0 | DI37: =AND(G37<>SUM(K37:DG37),'Standing Data'!$D$9="Multi-academy Trust") -> FALSE
C38: Academies | D38: 18 | G38: =Fin.Return!E227 -> 0 | DI38: =AND(G38<>SUM(K38:DG38),'Standing Data'!$D$9="Multi-academy Trust") -> FALSE
C39: Non- Government | D39: 19 | G39: =Fin.Return!E228 -> 0 | DI39: =AND(G39<>SUM(K39:DG39),'Standing Data'!$D$9="Multi-academy Trust") -> FALSE
I40: =SUM(G37:G39) -> 0 | K40: =SUM(K37:K39) -> 0 | L40: =SUM(L37:L39) -> 0 | M40: 0 | N40: 0 | O40: 0 | P40: 0 | Q40: 0 | R40: 0 | S40: 0 | T40: 0 | U40: 0 | V40: 0 | W40: 0 | X40: 0 | Y40: 0 | Z40: 0 | AA40: 0 | AB40: 0 | AC40: 0 | AD40: 0 | AE40: 0 | AF40: 0 | AG40: 0 | AH40: 0 | AI40: 0 | AJ40: 0 | AK40: 0 | AL40: 0 | AM40: 0 | AN40: 0 | AO40: 0 | AP40: 0 | AQ40: 0 | AR40: 0 | AS40: 0 | AT40: 0 | AU40: 0 | AV40: 0 | AW40: 0 | AX40: =SUM(AX37:AX39) -> 0 | AY40: 0 | AZ40: 0 | BA40: 0 | BB40: 0 | BC40: 0 | BD40: 0 | BE40: 0 | BF40: 0 | BG40: 0 | BH40: 0 | BI40: 0 | BJ40: 0 | BK40: 0 | BL40: 0 | BM40: 0 | BN40: 0 | BO40: 0 | BP40: 0 | BQ40: 0 | BR40: 0 | BS40: 0 | BT40: 0 | BU40: 0 | BV40: 0 | BW40: 0 | BX40: 0 | BY40: 0 | BZ40: 0 | CA40: 0 | CB40: 0 | CC40: 0 | CD40: 0 | CE40: 0 | CF40: 0 | CG40: 0 | CH40: 0 | CI40: 0 | CJ40: 0 | CK40: 0 | CL40: 0 | CM40: 0 | CN40: 0 | CO40: 0 | CP40: 0 | CQ40: 0 | CR40: 0 | CS40: 0 | CT40: 0 | CU40: 0 | CV40: 0 | CW40: 0 | CX40: 0 | CY40: 0 | CZ40: 0 | DA40: 0 | DB40: 0 | DC40: 0 | DD40: 0 | DE40: 0 | DF40: 0 | DG40: 0
B41: Self-generated income
C42: Income from facilities and services | D42: 20 | E42: =IF(DI42=TRUE, "Error - imbalance","") ->  | G42: =Fin.Return!E146+Fin.Return!E148 -> 0 | DI42: =AND(G42<>SUM(K42:DG42),'Standing Data'!$D$9="Multi-academy Trust") -> FALSE
C43: Income from catering | D43: 21 | G43: =Fin.Return!E147 -> 0 | DI43: =AND(G43<>SUM(K43:DG43),'Standing Data'!$D$9="Multi-academy Trust") -> FALSE
C44: Receipts from supply teacher insurance claims | D44: 22 | G44: =+(Fin.Return!E149) -> 0 | DI44: =AND(G44<>SUM(K44:DG44),'Standing Data'!$D$9="Multi-academy Trust") -> FALSE
C45: Other income - revenue | D45: 23 | G45: =Fin.Return!E150 -> 0 | DI45: =AND(G45<>SUM(K45:DG45),'Standing Data'!$D$9="Multi-academy Trust") -> FALSE
I46: =SUM(G42:G45) -> 0 | K46: =SUM(K42:K45) -> 0 | L46: =SUM(L42:L45) -> 0 | M46: 0 | N46: 0 | O46: 0 | P46: 0 | Q46: 0 | R46: 0 | S46: 0 | T46: 0 | U46: 0 | V46: 0 | W46: 0 | X46: 0 | Y46: 0 | Z46: 0 | AA46: 0 | AB46: 0 | AC46: 0 | AD46: 0 | AE46: 0 | AF46: 0 | AG46: 0 | AH46: 0 | AI46: 0 | AJ46: 0 | AK46: 0 | AL46: 0 | AM46: 0 | AN46: 0 | AO46: 0 | AP46: 0 | AQ46: 0 | AR46: 0 | AS46: 0 | AT46: 0 | AU46: 0 | AV46: 0 | AW46: 0 | AX46: 0 | AY46: 0 | AZ46: 0 | BA46: 0 | BB46: 0 | BC46: 0 | BD46: 0 | BE46: 0 | BF46: 0 | BG46: 0 | BH46: 0 | BI46: 0 | BJ46: 0 | BK46: 0 | BL46: 0 | BM46: 0 | BN46: 0 | BO46: 0 | BP46: 0 | BQ46: 0 | BR46: 0 | BS46: 0 | BT46: 0 | BU46: 0 | BV46: 0 | BW46: 0 | BX46: =SUM(BX42:BX45) -> 0 | BY46: 0 | BZ46: 0 | CA46: 0 | CB46: 0 | CC46: 0 | CD46: 0 | CE46: 0 | CF46: 0 | CG46: 0 | CH46: 0 | CI46: 0 | CJ46: 0 | CK46: 0 | CL46: 0 | CM46: 0 | CN46: 0 | CO46: 0 | CP46: 0 | CQ46: 0 | CR46: 0 | CS46: 0 | CT46: 0 | CU46: 0 | CV46: 0 | CW46: 0 | CX46: 0 | CY46: 0 | CZ46: 0 | DA46: 0 | DB46: 0 | DC46: 0 | DD46: 0 | DE46: 0 | DF46: 0 | DG46: 0
B47: Voluntary income
C48: Donations and/or voluntary funds - revenue | D48: 24 | E48: =IF(DI48=TRUE, "Error - imbalance","") ->  | G48: =Fin.Return!E137+Fin.Return!E138 -> 0 | DI48: =AND(G48<>SUM(K48:DG48),'Standing Data'!$D$9="Multi-academy Trust") -> FALSE
I49: =SUM(G48) -> 0
B50: Investment income
C51: Investment income | D51: 25 | E51: =IF(DI51=TRUE, "Error - imbalance","") ->  | G51: =Fin.Return!E163 -> 0 | I51: =G51 -> 0 | DI51: =AND(G51<>SUM(K51:DG51),'Standing Data'!$D$9="Multi-academy Trust") -> FALSE
A54: TOTAL REVENUE INCOME | D54: 26 | E54: =IF(DI54=TRUE, "Error - imbalance","") ->  | I54: =SUM(I35:I53) -> 0 | K54: =+K51+K48+K46+K40+K35 -> 0 | L54: =+L51+L48+L46+L40+L35 -> 0 | M54: 0 | N54: 0 | O54: 0 | P54: 0 | Q54: 0 | R54: 0 | S54: 0 | T54: 0 | U54: 0 | V54: 0 | W54: 0 | X54: 0 | Y54: 0 | Z54: 0 | AA54: 0 | AB54: 0 | AC54: 0 | AD54: 0 | AE54: 0 | AF54: 0 | AG54: 0 | AH54: 0 | AI54: 0 | AJ54: 0 | AK54: 0 | AL54: 0 | AM54: 0 | AN54: 0 | AO54: 0 | AP54: 0 | AQ54: 0 | AR54: 0 | AS54: 0 | AT54: 0 | AU54: 0 | AV54: 0 | AW54: 0 | AX54: 0 | AY54: 0 | AZ54: 0 | BA54: 0 | BB54: 0 | BC54: 0 | BD54: 0 | BE54: 0 | BF54: 0 | BG54: 0 | BH54: 0 | BI54: 0 | BJ54: 0 | BK54: 0 | BL54: 0 | BM54: 0 | BN54: 0 | BO54: 0 | BP54: 0 | BQ54: 0 | BR54: 0 | BS54: 0 | BT54: 0 | BU54: 0 | BV54: 0 | BW54: 0 | BX54: =+BX51+BX48+BX46+BX40+BX35 -> 0 | BY54: 0 | BZ54: 0 | CA54: 0 | CB54: 0 | CC54: 0 | CD54: 0 | CE54: 0 | CF54: 0 | CG54: 0 | CH54: 0 | CI54: 0 | CJ54: 0 | CK54: 0 | CL54: 0 | CM54: 0 | CN54: 0 | CO54: 0 | CP54: 0 | CQ54: 0 | CR54: 0 | CS54: 0 | CT54: 0 | CU54: 0 | CV54: 0 | CW54: 0 | CX54: 0 | CY54: 0 | CZ54: 0 | DA54: 0 | DB54: 0 | DC54: 0 | DD54: 0 | DE54: 0 | DF54: 0 | DG54: 0 | DI54: =AND(I54<>SUM(K54:DG54),'Standing Data'!$D$9="Multi-academy Trust") -> FALSE
A56: CAPITAL INCOME
B57: EFA | C57: 16-19 Demographic Growth Capital Fund | D57: 27 | E57: =IF(DI57=TRUE, "Error - imbalance","") ->  | G57: =Fin.Return!E185 -> 0 | DI57: =AND(G57<>SUM(K57:DG57),'Standing Data'!$D$9="Multi-academy Trust") -> FALSE
C58: Devolved Formula Capital for Young People Aged Under 16 yrs | D58: 28 | G58: =Fin.Return!E186 -> 0 | DI58: =AND(G58<>SUM(K58:DG58),'Standing Data'!$D$9="Multi-academy Trust") -> FALSE
C59: Centrally Managed Programme - Framework Academies | D59: 29 | G59: =Fin.Return!E187 -> 0 | DI59: =AND(G59<>SUM(K59:DG59),'Standing Data'!$D$9="Multi-academy Trust") -> FALSE
C60: Centrally Managed Programme - BSF Legacy Academies | D60: 30 | G60: =Fin.Return!E188 -> 0 | DI60: =AND(G60<>SUM(K60:DG60),'Standing Data'!$D$9="Multi-academy Trust") -> FALSE
C61: Centrally Managed Programme - Free Schools | D61: 31 | G61: =Fin.Return!E189 -> 0 | DI61: =AND(G61<>SUM(K61:DG61),'Standing Data'!$D$9="Multi-academy Trust") -> FALSE
C62: Devolved Programmes - Academies Capital Maintenance | D62: 32 | G62: =Fin.Return!E190 -> 0 | DI62: =AND(G62<>SUM(K62:DG62),'Standing Data'!$D$9="Multi-academy Trust") -> FALSE
C63: Continuing Commitments - Building Schools for the Future | D63: 33 | G63: =Fin.Return!E191 -> 0 | DI63: =AND(G63<>SUM(K63:DG63),'Standing Data'!$D$9="Multi-academy Trust") -> FALSE
C64: Other | D64: 34 | G64: =Fin.Return!E192 -> 0 | DI64: =AND(G64<>SUM(K64:DG64),'Standing Data'!$D$9="Multi-academy Trust") -> FALSE
B65: DfE | C65: Other DfE grants (Capital) | D65: 35 | G65: =Fin.Return!E212 -> 0 | DI65: =AND(G65<>SUM(K65:DG65),'Standing Data'!$D$9="Multi-academy Trust") -> FALSE
B66: Other | C66: Other Government grants | D66: 36 | G66: =+Fin.Return!E216+Fin.Return!E222 -> 0 | DI66: =AND(G66<>SUM(K66:DG66),'Standing Data'!$D$9="Multi-academy Trust") -> FALSE
C67: Other grants and payments received | D67: 37 | G67: =+Fin.Return!E229+Fin.Return!E136 -> 0 | DI67: =AND(G67<>SUM(K67:DG67),'Standing Data'!$D$9="Multi-academy Trust") -> FALSE
C68: Direct revenue financing (Revenue contributions to capital) | D68: 38 | G68: =F121 -> 0 | DI68: =AND(G68<>SUM(K68:DG68),'Standing Data'!$D$9="Multi-academy Trust") -> FALSE
I69: =SUM(G57:G68) -> 0 | K69: =SUM(K57:K68) -> 0 | L69: 0 | M69: 0 | N69: 0 | O69: 0 | P69: 0 | Q69: 0 | R69: 0 | S69: 0 | T69: 0 | U69: 0 | V69: 0 | W69: 0 | X69: 0 | Y69: 0 | Z69: 0 | AA69: 0 | AB69: 0 | AC69: 0 | AD69: 0 | AE69: 0 | AF69: 0 | AG69: 0 | AH69: 0 | AI69: 0 | AJ69: 0 | AK69: 0 | AL69: 0 | AM69: 0 | AN69: 0 | AO69: 0 | AP69: 0 | AQ69: 0 | AR69: 0 | AS69: 0 | AT69: 0 | AU69: 0 | AV69: 0 | AW69: 0 | AX69: 0 | AY69: 0 | AZ69: 0 | BA69: 0 | BB69: 0 | BC69: 0 | BD69: 0 | BE69: 0 | BF69: 0 | BG69: 0 | BH69: 0 | BI69: 0 | BJ69: 0 | BK69: 0 | BL69: 0 | BM69: 0 | BN69: 0 | BO69: 0 | BP69: 0 | BQ69: 0 | BR69: 0 | BS69: 0 | BT69: 0 | BU69: 0 | BV69: 0 | BW69: =SUM(BW57:BW68) -> 0 | BX69: 0 | BY69: 0 | BZ69: 0 | CA69: 0 | CB69: 0 | CC69: 0 | CD69: 0 | CE69: 0 | CF69: 0 | CG69: 0 | CH69: 0 | CI69: 0 | CJ69: 0 | CK69: 0 | CL69: 0 | CM69: 0 | CN69: 0 | CO69: 0 | CP69: 0 | CQ69: 0 | CR69: 0 | CS69: 0 | CT69: 0 | CU69: 0 | CV69: 0 | CW69: 0 | CX69: 0 | CY69: 0 | CZ69: 0 | DA69: 0 | DB69: 0 | DC69: 0 | DD69: 0 | DE69: 0 | DF69: 0 | DG69: 0
B71: TOTAL INCOME | D71: 39 | E71: =IF(DI71=TRUE, "Error - imbalance","") ->  | I71: =SUM(I54:I69) -> 0 | K71: =+K69+K54 -> 0 | L71: 0 | M71: 0 | N71: 0 | O71: 0 | P71: 0 | Q71: 0 | R71: 0 | S71: 0 | T71: 0 | U71: 0 | V71: 0 | W71: 0 | X71: 0 | Y71: 0 | Z71: 0 | AA71: 0 | AB71: 0 | AC71: 0 | AD71: 0 | AE71: 0 | AF71: 0 | AG71: 0 | AH71: 0 | AI71: 0 | AJ71: 0 | AK71: 0 | AL71: 0 | AM71: 0 | AN71: 0 | AO71: 0 | AP71: 0 | AQ71: 0 | AR71: 0 | AS71: 0 | AT71: 0 | AU71: 0 | AV71: 0 | AW71: 0 | AX71: 0 | AY71: 0 | AZ71: 0 | BA71: 0 | BB71: 0 | BC71: 0 | BD71: 0 | BE71: 0 | BF71: 0 | BG71: 0 | BH71: 0 | BI71: 0 | BJ71: 0 | BK71: 0 | BL71: 0 | BM71: 0 | BN71: 0 | BO71: 0 | BP71: 0 | BQ71: 0 | BR71: 0 | BS71: 0 | BT71: 0 | BU71: 0 | BV71: 0 | BW71: =+BW69+BW54 -> 0 | BX71: 0 | BY71: 0 | BZ71: 0 | CA71: 0 | CB71: 0 | CC71: 0 | CD71: 0 | CE71: 0 | CF71: 0 | CG71: 0 | CH71: 0 | CI71: 0 | CJ71: 0 | CK71: 0 | CL71: 0 | CM71: 0 | CN71: 0 | CO71: 0 | CP71: 0 | CQ71: 0 | CR71: 0 | CS71: 0 | CT71: 0 | CU71: 0 | CV71: 0 | CW71: 0 | CX71: 0 | CY71: 0 | CZ71: 0 | DA71: 0 | DB71: 0 | DC71: 0 | DD71: 0 | DE71: 0 | DF71: 0 | DG71: 0 | DI71: =AND(I71<>SUM(K71:DG71),'Standing Data'!$D$9="Multi-academy Trust") -> FALSE
A73: FUNDS INHERITED ON CONVERSION | D73: 40 | E73: =IF(DI73=TRUE, "Error - imbalance","") ->  | I73: =Fin.Return!E21 -> 0 | DI73: =AND(I73<>SUM(K73:DG73),'Standing Data'!$D$9="Multi-academy Trust") -> FALSE
A75: REVENUE EXPENDITURE
B76: Staff costs - extra note for guidance for Staff re-structure
C77: Teaching staff | D77: 41 | E77: =IF(DI77=TRUE, "Error - imbalance","") ->  | DI77: =AND(F77<>SUM(K77:DG77),'Standing Data'!$D$9="Multi-academy Trust") -> FALSE
C78: Supply teaching staff - extra note in guidance | D78: 42 | DI78: =AND(F78<>SUM(K78:DG78),'Standing Data'!$D$9="Multi-academy Trust") -> FALSE
C79: Education support staff | D79: 43 | DI79: =AND(F79<>SUM(K79:DG79),'Standing Data'!$D$9="Multi-academy Trust") -> FALSE
C80: Administrative and clerical staff | D80: 44 | DI80: =AND(F80<>SUM(K80:DG80),'Standing Data'!$D$9="Multi-academy Trust") -> FALSE
C81: Premises staff | D81: 45 | DI81: =AND(F81<>SUM(K81:DG81),'Standing Data'!$D$9="Multi-academy Trust") -> FALSE
C82: Catering staff | D82: 46 | DI82: =AND(F82<>SUM(K82:DG82),'Standing Data'!$D$9="Multi-academy Trust") -> FALSE
C83: Other staff | D83: 47 | DI83: =AND(F83<>SUM(K83:DG83),'Standing Data'!$D$9="Multi-academy Trust") -> FALSE
E84: =IF(G84<>Fin.Return!E366,"Error - does not equal staff note in financial return","") ->  | G84: =SUM(F77:F83) -> 0 | K84: =SUM(K76:K83) -> 0 | L84: =SUM(L76:L83) -> 0 | M84: 0 | N84: 0 | O84: 0 | P84: 0 | Q84: 0 | R84: 0 | S84: 0 | T84: 0 | U84: 0 | V84: 0 | W84: 0 | X84: 0 | Y84: 0 | Z84: 0 | AA84: 0 | AB84: 0 | AC84: 0 | AD84: 0 | AE84: 0 | AF84: 0 | AG84: 0 | AH84: 0 | AI84: 0 | AJ84: 0 | AK84: 0 | AL84: 0 | AM84: 0 | AN84: 0 | AO84: 0 | AP84: 0 | AQ84: 0 | AR84: 0 | AS84: 0 | AT84: 0 | AU84: 0 | AV84: 0 | AW84: 0 | AX84: =SUM(AX76:AX83) -> 0 | AY84: 0 | AZ84: 0 | BA84: 0 | BB84: 0 | BC84: 0 | BD84: 0 | BE84: 0 | BF84: 0 | BG84: 0 | BH84: 0 | BI84: 0 | BJ84: 0 | BK84: 0 | BL84: 0 | BM84: 0 | BN84: 0 | BO84: 0 | BP84: 0 | BQ84: 0 | BR84: 0 | BS84: 0 | BT84: 0 | BU84: 0 | BV84: 0 | BW84: 0 | BX84: 0 | BY84: 0 | BZ84: 0 | CA84: 0 | CB84: 0 | CC84: 0 | CD84: 0 | CE84: 0 | CF84: 0 | CG84: 0 | CH84: 0 | CI84: 0 | CJ84: 0 | CK84: 0 | CL84: 0 | CM84: 0 | CN84: 0 | CO84: 0 | CP84: 0 | CQ84: 0 | CR84: 0 | CS84: 0 | CT84: 0 | CU84: 0 | CV84: 0 | CW84: 0 | CX84: 0 | CY84: 0 | CZ84: 0 | DA84: 0 | DB84: 0 | DC84: 0 | DD84: 0 | DE84: 0 | DF84: 0 | DG84: 0
C86: Indirect employee expenses | D86: 48 | E86: =IF(DI86=TRUE, "Error - imbalance","") ->  | F86: =+Fin.Return!E319 -> 0 | DI86: =AND(F86<>SUM(K86:DG86),'Standing Data'!$D$9="Multi-academy Trust") -> FALSE
C87: Staff development and training | D87: 49 | F87: =+Fin.Return!E287 -> 0 | DI87: =AND(F87<>SUM(K87:DG87),'Standing Data'!$D$9="Multi-academy Trust") -> FALSE
C88: Staff-related insurance | D88: 50 | F88: =+Fin.Return!E288 -> 0 | DI88: =AND(F88<>SUM(K88:DG88),'Standing Data'!$D$9="Multi-academy Trust") -> FALSE
G89: =SUM(F86:F88) -> 0 | K89: =SUM(K86:K88) -> 0 | L89: =SUM(L86:L88) -> 0 | M89: 0 | N89: 0 | O89: 0 | P89: 0 | Q89: 0 | R89: 0 | S89: 0 | T89: 0 | U89: 0 | V89: 0 | W89: 0 | X89: 0 | Y89: 0 | Z89: 0 | AA89: 0 | AB89: 0 | AC89: 0 | AD89: 0 | AE89: 0 | AF89: 0 | AG89: 0 | AH89: 0 | AI89: 0 | AJ89: 0 | AK89: 0 | AL89: 0 | AM89: 0 | AN89: 0 | AO89: 0 | AP89: 0 | AQ89: 0 | AR89: 0 | AS89: 0 | AT89: 0 | AU89: 0 | AV89: 0 | AW89: 0 | AX89: =SUM(AX86:AX88) -> 0 | AY89: 0 | AZ89: 0 | BA89: 0 | BB89: 0 | BC89: 0 | BD89: 0 | BE89: 0 | BF89: 0 | BG89: 0 | BH89: 0 | BI89: 0 | BJ89: 0 | BK89: 0 | BL89: 0 | BM89: 0 | BN89: 0 | BO89: 0 | BP89: 0 | BQ89: 0 | BR89: 0 | BS89: 0 | BT89: 0 | BU89: 0 | BV89: 0 | BW89: 0 | BX89: 0 | BY89: 0 | BZ89: 0 | CA89: 0 | CB89: 0 | CC89: 0 | CD89: 0 | CE89: 0 | CF89: 0 | CG89: 0 | CH89: 0 | CI89: 0 | CJ89: 0 | CK89: 0 | CL89: 0 | CM89: 0 | CN89: 0 | CO89: 0 | CP89: 0 | CQ89: 0 | CR89: 0 | CS89: 0 | CT89: 0 | CU89: 0 | CV89: 0 | CW89: 0 | CX89: 0 | CY89: 0 | CZ89: 0 | DA89: 0 | DB89: 0 | DC89: 0 | DD89: 0 | DE89: 0 | DF89: 0 | DG89: 0
B91: Maintenance of premises | D91: 51 | E91: =IF(DI91=TRUE, "Error - imbalance","") ->  | G91: =+Fin.Return!E302+Fin.Return!E303 -> 0 | DI91: =AND(G91<>SUM(K91:DG91),'Standing Data'!$D$9="Multi-academy Trust") -> FALSE
B93: Other occupancy costs
C94: Cleaning | D94: 52 | E94: =IF(DI94=TRUE, "Error - imbalance","") ->  | F94: =+Fin.Return!E304 -> 0 | DI94: =AND(F94<>SUM(K94:DG94),'Standing Data'!$D$9="Multi-academy Trust") -> FALSE
C95: Water and sewerage | D95: 53 | F95: =+Fin.Return!E308 -> 0 | DI95: =AND(F95<>SUM(K95:DG95),'Standing Data'!$D$9="Multi-academy Trust") -> FALSE
C96: Energy | D96: 54 | F96: =+Fin.Return!E309 -> 0 | DI96: =AND(F96<>SUM(K96:DG96),'Standing Data'!$D$9="Multi-academy Trust") -> FALSE
C97: Rates | D97: 55 | F97: =+Fin.Return!E307 -> 0 | DI97: =AND(F97<>SUM(K97:DG97),'Standing Data'!$D$9="Multi-academy Trust") -> FALSE
C98: Rent | D98: 56 | F98: =+Fin.Return!E306 -> 0 | DI98: =AND(F98<>SUM(K98:DG98),'Standing Data'!$D$9="Multi-academy Trust") -> FALSE
C99: Other occupation costs | D99: 57 | F99: =Fin.Return!E311 -> 0 | DI99: =AND(F99<>SUM(K99:DG99),'Standing Data'!$D$9="Multi-academy Trust") -> FALSE
G100: =SUM(F94:F99) -> 0 | K100: =SUM(K94:K99) -> 0 | L100: =SUM(L94:L99) -> 0 | M100: 0 | N100: 0 | O100: 0 | P100: 0 | Q100: 0 | R100: 0 | S100: 0 | T100: 0 | U100: 0 | V100: 0 | W100: 0 | X100: 0 | Y100: 0 | Z100: 0 | AA100: 0 | AB100: 0 | AC100: 0 | AD100: 0 | AE100: 0 | AF100: 0 | AG100: 0 | AH100: 0 | AI100: 0 | AJ100: 0 | AK100: 0 | AL100: 0 | AM100: 0 | AN100: 0 | AO100: 0 | AP100: 0 | AQ100: 0 | AR100: 0 | AS100: 0 | AT100: 0 | AU100: 0 | AV100: 0 | AW100: 0 | AX100: 0 | AY100: 0 | AZ100: 0 | BA100: 0 | BB100: 0 | BC100: 0 | BD100: 0 | BE100: 0 | BF100: 0 | BG100: 0 | BH100: 0 | BI100: 0 | BJ100: 0 | BK100: 0 | BL100: 0 | BM100: 0 | BN100: 0 | BO100: 0 | BP100: 0 | BQ100: 0 | BR100: 0 | BS100: 0 | BT100: 0 | BU100: 0 | BV100: 0 | BW100: 0 | BX100: =SUM(BX94:BX99) -> 0 | BY100: 0 | BZ100: 0 | CA100: 0 | CB100: 0 | CC100: 0 | CD100: 0 | CE100: 0 | CF100: 0 | CG100: 0 | CH100: 0 | CI100: 0 | CJ100: 0 | CK100: 0 | CL100: 0 | CM100: 0 | CN100: 0 | CO100: 0 | CP100: 0 | CQ100: 0 | CR100: 0 | CS100: 0 | CT100: 0 | CU100: 0 | CV100: 0 | CW100: 0 | CX100: 0 | CY100: 0 | CZ100: 0 | DA100: 0 | DB100: 0 | DC100: 0 | DD100: 0 | DE100: 0 | DF100: 0 | DG100: 0
B102: Special facilities | D102: 58 | E102: =IF(DI102=TRUE, "Error - imbalance","") ->  | G102: =+Fin.Return!E463+Fin.Return!E240 -> 0 | DI102: =AND(G102<>SUM(K102:DG102),'Standing Data'!$D$9="Multi-academy Trust") -> FALSE
B104: Educational supplies and services
C105: Learning resources (not ICT equipment) | D105: 59 | E105: =IF(DI105=TRUE, "Error - imbalance","") ->  | F105: =+Fin.Return!E285+Fin.Return!E292 -> 0 | DI105: =AND(F105<>SUM(K105:DG105),'Standing Data'!$D$9="Multi-academy Trust") -> FALSE
C106: ICT learning resources | D106: 60 | F106: =+Fin.Return!E289 -> 0 | DI106: =AND(F106<>SUM(K106:DG106),'Standing Data'!$D$9="Multi-academy Trust") -> FALSE
C107: Examination fees | D107: 61 | F107: =+Fin.Return!E286 -> 0 | DI107: =AND(F107<>SUM(K107:DG107),'Standing Data'!$D$9="Multi-academy Trust") -> FALSE
C108: Educational Consultancy | D108: 62 | F108: =+Fin.Return!E290 -> 0 | DI108: =AND(F108<>SUM(K108:DG108),'Standing Data'!$D$9="Multi-academy Trust") -> FALSE
C109: Supply teacher insurance | D109: 63 | F109: =Fin.Return!E297 -> 0 | DI109: =AND(F109<>SUM(K109:DG109),'Standing Data'!$D$9="Multi-academy Trust") -> FALSE
C110: Agency supply teaching staff | D110: 64 | F110: =Fin.Return!E359 -> 0 | DI110: =AND(F110<>SUM(K110:DG110),'Standing Data'!$D$9="Multi-academy Trust") -> FALSE
G111: =SUM(F105:F110) -> 0 | K111: =SUM(K105:K110) -> 0 | L111: =SUM(L105:L110) -> 0 | M111: 0 | N111: 0 | O111: 0 | P111: 0 | Q111: 0 | R111: 0 | S111: 0 | T111: 0 | U111: 0 | V111: 0 | W111: 0 | X111: 0 | Y111: 0 | Z111: 0 | AA111: 0 | AB111: 0 | AC111: 0 | AD111: 0 | AE111: 0 | AF111: 0 | AG111: 0 | AH111: 0 | AI111: 0 | AJ111: 0 | AK111: 0 | AL111: 0 | AM111: 0 | AN111: 0 | AO111: 0 | AP111: 0 | AQ111: 0 | AR111: 0 | AS111: 0 | AT111: 0 | AU111: 0 | AV111: 0 | AW111: 0 | AX111: =SUM(AX105:AX110) -> 0 | AY111: 0 | AZ111: 0 | BA111: 0 | BB111: 0 | BC111: 0 | BD111: 0 | BE111: 0 | BF111: 0 | BG111: 0 | BH111: 0 | BI111: 0 | BJ111: 0 | BK111: 0 | BL111: 0 | BM111: 0 | BN111: 0 | BO111: 0 | BP111: 0 | BQ111: 0 | BR111: 0 | BS111: 0 | BT111: 0 | BU111: 0 | BV111: 0 | BW111: 0 | BX111: 0 | BY111: 0 | BZ111: 0 | CA111: 0 | CB111: 0 | CC111: 0 | CD111: 0 | CE111: 0 | CF111: 0 | CG111: 0 | CH111: 0 | CI111: 0 | CJ111: 0 | CK111: 0 | CL111: 0 | CM111: 0 | CN111: 0 | CO111: 0 | CP111: 0 | CQ111: 0 | CR111: 0 | CS111: 0 | CT111: 0 | CU111: 0 | CV111: 0 | CW111: 0 | CX111: 0 | CY111: 0 | CZ111: 0 | DA111: 0 | DB111: 0 | DC111: 0 | DD111: 0 | DE111: 0 | DF111: 0 | DG111: 0
B114: Other supplies and services
C115: Catering supplies | D115: 65 | E115: =IF(DI115=TRUE, "Error - imbalance","") ->  | F115: =Fin.Return!E313 -> 0 | DI115: =AND(F115<>SUM(K115:DG115),'Standing Data'!$D$9="Multi-academy Trust") -> FALSE
C116: Legal & Professional | D116: 66 | F116: =Fin.Return!E332 -> 0 | DI116: =AND(F116<>SUM(K116:DG116),'Standing Data'!$D$9="Multi-academy Trust") -> FALSE
C117: Auditor costs - Audit fees | D117: 67 | F117: =Fin.Return!E337 -> 0 | DI117: =AND(F117<>SUM(K117:DG117),'Standing Data'!$D$9="Multi-academy Trust") -> FALSE
C118: Auditor costs - Other fees | D118: 68 | F118: =Fin.Return!E338 -> 0 | DI118: =AND(F118<>SUM(K118:DG118),'Standing Data'!$D$9="Multi-academy Trust") -> FALSE
C119: Other insurance premiums | D119: 69 | F119: =Fin.Return!E310 -> 0 | DI119: =AND(F119<>SUM(K119:DG119),'Standing Data'!$D$9="Multi-academy Trust") -> FALSE
C120: Administrative supplies - non educational | D120: 70 | F120: =+Fin.Return!E273+Fin.Return!E301+Fin.Return!E305+Fin.Return!E312+Fin.Return!E314+Fin.Return!E323+Fin.Return!E342+Fin.Return!E344+Fin.Return!E345+Fin.Return!E346 -> 0 | DI120: =AND(F120<>SUM(K120:DG120),'Standing Data'!$D$9="Multi-academy Trust") -> FALSE
C121: Direct revenue financing (Revenue contributions to capital) | D121: 71 | F121: =Fin.Return!I41 -> 0 | DI121: =AND(F121<>SUM(K121:DG121),'Standing Data'!$D$9="Multi-academy Trust") -> FALSE
C122: Other | D122: 72 | F122: =+Fin.Return!E320+Fin.Return!E321+Fin.Return!E322+Fin.Return!E339+Fin.Return!E340+Fin.Return!E341 -> 0 | DI122: =AND(F122<>SUM(K122:DG122),'Standing Data'!$D$9="Multi-academy Trust") -> FALSE
G123: =SUM(F115:F122) -> 0 | K123: =SUM(K115:K122) -> 0 | L123: =SUM(L115:L122) -> 0 | M123: 0 | N123: 0 | O123: 0 | P123: 0 | Q123: 0 | R123: 0 | S123: 0 | T123: 0 | U123: 0 | V123: 0 | W123: 0 | X123: 0 | Y123: 0 | Z123: 0 | AA123: 0 | AB123: 0 | AC123: 0 | AD123: 0 | AE123: 0 | AF123: 0 | AG123: 0 | AH123: 0 | AI123: 0 | AJ123: 0 | AK123: 0 | AL123: 0 | AM123: 0 | AN123: 0 | AO123: 0 | AP123: 0 | AQ123: 0 | AR123: 0 | AS123: 0 | AT123: 0 | AU123: 0 | AV123: 0 | AW123: 0 | AX123: 0 | AY123: 0 | AZ123: 0 | BA123: 0 | BB123: 0 | BC123: 0 | BD123: 0 | BE123: 0 | BF123: 0 | BG123: 0 | BH123: 0 | BI123: 0 | BJ123: 0 | BK123: 0 | BL123: 0 | BM123: 0 | BN123: 0 | BO123: 0 | BP123: 0 | BQ123: 0 | BR123: 0 | BS123: 0 | BT123: 0 | BU123: 0 | BV123: 0 | BW123: 0 | BX123: =SUM(BX115:BX122) -> 0 | BY123: 0 | BZ123: 0 | CA123: 0 | CB123: 0 | CC123: 0 | CD123: 0 | CE123: 0 | CF123: 0 | CG123: 0 | CH123: 0 | CI123: 0 | CJ123: 0 | CK123: 0 | CL123: 0 | CM123: 0 | CN123: 0 | CO123: 0 | CP123: 0 | CQ123: 0 | CR123: 0 | CS123: 0 | CT123: 0 | CU123: 0 | CV123: 0 | CW123: 0 | CX123: 0 | CY123: 0 | CZ123: 0 | DA123: 0 | DB123: 0 | DC123: 0 | DD123: 0 | DE123: 0 | DF123: 0 | DG123: 0
B125: Funding costs
C126: Interest charges for Loan and bank | D126: 73 | E126: =IF(DI126=TRUE, "Error - imbalance","") ->  | F126: =+Fin.Return!E317+Fin.Return!E318 -> 0 | DI126: =AND(F126<>SUM(K126:DG126),'Standing Data'!$D$9="Multi-academy Trust") -> FALSE
C127: PFI Charges | D127: 74 | F127: =+Fin.Return!E316 -> 0 | DI127: =AND(F127<>SUM(K127:DG127),'Standing Data'!$D$9="Multi-academy Trust") -> FALSE
C128: Central Recharges - MATs only | D128: 75 | DI128: =AND(F128<>SUM(K128:DG128),'Standing Data'!$D$9="Multi-academy Trust") -> FALSE
G129: =SUM(F126:F128) -> 0 | K129: =SUM(K126:K128) -> 0 | L129: =SUM(L126:L128) -> 0 | M129: 0 | N129: 0 | O129: 0 | P129: 0 | Q129: 0 | R129: 0 | S129: 0 | T129: 0 | U129: 0 | V129: 0 | W129: 0 | X129: 0 | Y129: 0 | Z129: 0 | AA129: 0 | AB129: 0 | AC129: 0 | AD129: 0 | AE129: 0 | AF129: 0 | AG129: 0 | AH129: 0 | AI129: 0 | AJ129: 0 | AK129: 0 | AL129: 0 | AM129: 0 | AN129: 0 | AO129: 0 | AP129: 0 | AQ129: 0 | AR129: 0 | AS129: 0 | AT129: 0 | AU129: 0 | AV129: 0 | AW129: 0 | AX129: =SUM(AX126:AX128) -> 0 | AY129: 0 | AZ129: 0 | BA129: 0 | BB129: 0 | BC129: 0 | BD129: 0 | BE129: 0 | BF129: 0 | BG129: 0 | BH129: 0 | BI129: 0 | BJ129: 0 | BK129: 0 | BL129: 0 | BM129: 0 | BN129: 0 | BO129: 0 | BP129: 0 | BQ129: 0 | BR129: 0 | BS129: 0 | BT129: 0 | BU129: 0 | BV129: 0 | BW129: 0 | BX129: 0 | BY129: 0 | BZ129: 0 | CA129: 0 | CB129: 0 | CC129: 0 | CD129: 0 | CE129: 0 | CF129: 0 | CG129: 0 | CH129: 0 | CI129: 0 | CJ129: 0 | CK129: 0 | CL129: 0 | CM129: 0 | CN129: 0 | CO129: 0 | CP129: 0 | CQ129: 0 | CR129: 0 | CS129: 0 | CT129: 0 | CU129: 0 | CV129: 0 | CW129: 0 | CX129: 0 | CY129: 0 | CZ129: 0 | DA129: 0 | DB129: 0 | DC129: 0 | DD129: 0 | DE129: 0 | DF129: 0 | DG129: 0
I131: =SUM(G77:G129)+I73 -> 0 | K131: =+K129+K123+K111+K102+K100+K91+K89+K84+K73 -> 0 | L131: =+L129+L123+L111+L102+L100+L91+L89+L84+L73 -> 0 | M131: 0 | N131: 0 | O131: 0 | P131: 0 | Q131: 0 | R131: 0 | S131: 0 | T131: 0 | U131: 0 | V131: 0 | W131: 0 | X131: 0 | Y131: 0 | Z131: 0 | AA131: 0 | AB131: 0 | AC131: 0 | AD131: 0 | AE131: 0 | AF131: 0 | AG131: 0 | AH131: 0 | AI131: 0 | AJ131: 0 | AK131: 0 | AL131: 0 | AM131: 0 | AN131: 0 | AO131: 0 | AP131: 0 | AQ131: 0 | AR131: 0 | AS131: 0 | AT131: 0 | AU131: 0 | AV131: 0 | AW131: 0 | AX131: 0 | AY131: 0 | AZ131: 0 | BA131: 0 | BB131: 0 | BC131: 0 | BD131: 0 | BE131: 0 | BF131: 0 | BG131: 0 | BH131: 0 | BI131: 0 | BJ131: 0 | BK131: 0 | BL131: 0 | BM131: 0 | BN131: 0 | BO131: 0 | BP131: 0 | BQ131: 0 | BR131: 0 | BS131: 0 | BT131: 0 | BU131: 0 | BV131: 0 | BW131: 0 | BX131: =+BX129+BX123+BX111+BX102+BX100+BX91+BX89+BX84+BX73 -> 0 | BY131: 0 | BZ131: 0 | CA131: 0 | CB131: 0 | CC131: 0 | CD131: 0 | CE131: 0 | CF131: 0 | CG131: 0 | CH131: 0 | CI131: 0 | CJ131: 0 | CK131: 0 | CL131: 0 | CM131: 0 | CN131: 0 | CO131: 0 | CP131: 0 | CQ131: 0 | CR131: 0 | CS131: 0 | CT131: 0 | CU131: 0 | CV131: 0 | CW131: 0 | CX131: 0 | CY131: 0 | CZ131: 0 | DA131: 0 | DB131: 0 | DC131: 0 | DD131: 0 | DE131: 0 | DF131: 0 | DG131: 0
A132: CAPITAL COSTS
B133: Tangible Fixed Assets
C134: Purchase of tangible fixed assets | D134: 76 | E134: =IF(DI134=TRUE, "Error - imbalance","") ->  | G134: =Fin.Return!E483 -> 0 | DI134: =AND(G134<>SUM(K134:DG134),'Standing Data'!$D$9="Multi-academy Trust") -> FALSE
C135: Depreciation | D135: 77 | G135: =Fin.Return!E495 -> 0 | DI135: =AND(G135<>SUM(K135:DG135),'Standing Data'!$D$9="Multi-academy Trust") -> FALSE
C136: Impairment | D136: 78 | G136: =Fin.Return!E504 -> 0 | DI136: =AND(G136<>SUM(K136:DG136),'Standing Data'!$D$9="Multi-academy Trust") -> FALSE
C137: Net book Value (NBV) | D137: 79 | G137: =+(Fin.Return!E513) -> 0 | DI137: =AND(G137<>SUM(K137:DG137),'Standing Data'!$D$9="Multi-academy Trust") -> FALSE
B138: Intangible Fixed Assets
C139: Purchase of intangible fixed assets | D139: 80 | E139: =IF(DI139=TRUE, "Error - imbalance","") ->  | G139: =Fin.Return!E540 -> 0 | DI139: =AND(G139<>SUM(K139:DG139),'Standing Data'!$D$9="Multi-academy Trust") -> FALSE
C140: Amortisation | D140: 81 | G140: =Fin.Return!E551 -> 0 | DI140: =AND(G140<>SUM(K140:DG140),'Standing Data'!$D$9="Multi-academy Trust") -> FALSE
C141: Impairment | D141: 82 | G141: =Fin.Return!E560 -> 0 | DI141: =AND(G141<>SUM(K141:DG141),'Standing Data'!$D$9="Multi-academy Trust") -> FALSE
C142: Net book Value (NBV) | D142: 83 | G142: =+(Fin.Return!E569) -> 0 | DI142: =AND(G142<>SUM(K142:DG142),'Standing Data'!$D$9="Multi-academy Trust") -> FALSE
B143: Purchase of investments | D143: 84 | G143: =Fin.Return!E580 -> 0 | DI143: =AND(G143<>SUM(K143:DG143),'Standing Data'!$D$9="Multi-academy Trust") -> FALSE
I144: =SUM(G134:G143) -> 0 | K144: =SUM(K134:K143) -> 0 | L144: =SUM(L134:L143) -> 0 | M144: 0 | N144: 0 | O144: 0 | P144: 0 | Q144: 0 | R144: 0 | S144: 0 | T144: 0 | U144: 0 | V144: 0 | W144: 0 | X144: 0 | Y144: 0 | Z144: 0 | AA144: 0 | AB144: 0 | AC144: 0 | AD144: 0 | AE144: 0 | AF144: 0 | AG144: 0 | AH144: 0 | AI144: 0 | AJ144: 0 | AK144: 0 | AL144: 0 | AM144: 0 | AN144: 0 | AO144: 0 | AP144: 0 | AQ144: 0 | AR144: 0 | AS144: 0 | AT144: 0 | AU144: 0 | AV144: 0 | AW144: 0 | AX144: =SUM(AX134:AX143) -> 0 | AY144: 0 | AZ144: 0 | BA144: 0 | BB144: 0 | BC144: 0 | BD144: 0 | BE144: 0 | BF144: 0 | BG144: 0 | BH144: 0 | BI144: 0 | BJ144: 0 | BK144: 0 | BL144: 0 | BM144: 0 | BN144: 0 | BO144: 0 | BP144: 0 | BQ144: 0 | BR144: 0 | BS144: 0 | BT144: 0 | BU144: 0 | BV144: 0 | BW144: 0 | BX144: 0 | BY144: 0 | BZ144: 0 | CA144: 0 | CB144: 0 | CC144: 0 | CD144: 0 | CE144: 0 | CF144: 0 | CG144: 0 | CH144: 0 | CI144: 0 | CJ144: 0 | CK144: 0 | CL144: 0 | CM144: 0 | CN144: 0 | CO144: 0 | CP144: 0 | CQ144: 0 | CR144: 0 | CS144: 0 | CT144: 0 | CU144: 0 | CV144: 0 | CW144: 0 | CX144: 0 | CY144: 0 | CZ144: 0 | DA144: 0 | DB144: 0 | DC144: 0 | DD144: 0 | DE144: 0 | DF144: 0 | DG144: 0
B147: TOTAL COSTS | D147: 85 | E147: =IF(DI147=TRUE, "Error - imbalance","") ->  | I147: =SUM(I131:I146) -> 0 | K147: =+K144+K131 -> 0 | L147: =+L144+L131 -> 0 | M147: 0 | N147: 0 | O147: 0 | P147: 0 | Q147: 0 | R147: 0 | S147: 0 | T147: 0 | U147: 0 | V147: 0 | W147: 0 | X147: 0 | Y147: 0 | Z147: 0 | AA147: 0 | AB147: 0 | AC147: 0 | AD147: 0 | AE147: 0 | AF147: 0 | AG147: 0 | AH147: 0 | AI147: 0 | AJ147: 0 | AK147: 0 | AL147: 0 | AM147: 0 | AN147: 0 | AO147: 0 | AP147: 0 | AQ147: 0 | AR147: 0 | AS147: 0 | AT147: 0 | AU147: 0 | AV147: 0 | AW147: 0 | AX147: 0 | AY147: 0 | AZ147: 0 | BA147: 0 | BB147: 0 | BC147: 0 | BD147: 0 | BE147: 0 | BF147: 0 | BG147: 0 | BH147: 0 | BI147: 0 | BJ147: 0 | BK147: 0 | BL147: 0 | BM147: 0 | BN147: 0 | BO147: 0 | BP147: 0 | BQ147: 0 | BR147: 0 | BS147: 0 | BT147: 0 | BU147: 0 | BV147: 0 | BW147: 0 | BX147: =+BX144+BX131 -> 0 | BY147: 0 | BZ147: 0 | CA147: 0 | CB147: 0 | CC147: 0 | CD147: 0 | CE147: 0 | CF147: 0 | CG147: 0 | CH147: 0 | CI147: 0 | CJ147: 0 | CK147: 0 | CL147: 0 | CM147: 0 | CN147: 0 | CO147: 0 | CP147: 0 | CQ147: 0 | CR147: 0 | CS147: 0 | CT147: 0 | CU147: 0 | CV147: 0 | CW147: 0 | CX147: 0 | CY147: 0 | CZ147: 0 | DA147: 0 | DB147: 0 | DC147: 0 | DD147: 0 | DE147: 0 | DF147: 0 | DG147: 0 | DI147: =AND(I147<>SUM(K147:DG147),'Standing Data'!$D$9="Multi-academy Trust") -> FALSE
A150: Average staff numbers (full time equivalent) | F150: Total Number | G150: Permanently Employed Number | H150: Temporary/ Interim Staff Number
C152: Teachers | D152: 86 | E152: =IF(DI152=TRUE, "Error - imbalance","") ->  | F152: =Fin.Return!E371 -> 0 | G152: =Fin.Return!G371 -> 0 | H152: =Fin.Return!H371 -> 0 | DI152: =AND(F152<>SUM(K152:DG152),'Standing Data'!$D$9="Multi-academy Trust") -> FALSE
C153: Administration & Support | D153: 87 | F153: =Fin.Return!E372 -> 0 | G153: =Fin.Return!G372 -> 0 | H153: =Fin.Return!H372 -> 0 | DI153: =AND(F153<>SUM(K153:DG153),'Standing Data'!$D$9="Multi-academy Trust") -> FALSE
C154: Management | D154: 88 | F154: =Fin.Return!E373 -> 0 | G154: =Fin.Return!G373 -> 0 | H154: =Fin.Return!H373 -> 0 | DI154: =AND(F154<>SUM(K154:DG154),'Standing Data'!$D$9="Multi-academy Trust") -> FALSE
F155: =SUM(F152:F154) -> 0 | G155: =SUM(G152:G154) -> 0 | H155: =SUM(H152:H154) -> 0 | K155: =SUM(K152:K154) -> 0 | L155: =SUM(L152:L154) -> 0 | M155: 0 | N155: 0 | O155: 0 | P155: 0 | Q155: 0 | R155: 0 | S155: 0 | T155: 0 | U155: 0 | V155: 0 | W155: 0 | X155: 0 | Y155: 0 | Z155: 0 | AA155: 0 | AB155: 0 | AC155: 0 | AD155: 0 | AE155: 0 | AF155: 0 | AG155: 0 | AH155: 0 | AI155: 0 | AJ155: 0 | AK155: 0 | AL155: 0 | AM155: 0 | AN155: 0 | AO155: 0 | AP155: 0 | AQ155: 0 | AR155: 0 | AS155: 0 | AT155: 0 | AU155: 0 | AV155: 0 | AW155: 0 | AX155: =SUM(AX152:AX154) -> 0 | AY155: 0 | AZ155: 0 | BA155: 0 | BB155: 0 | BC155: 0 | BD155: 0 | BE155: 0 | BF155: 0 | BG155: 0 | BH155: 0 | BI155: 0 | BJ155: 0 | BK155: 0 | BL155: 0 | BM155: 0 | BN155: 0 | BO155: 0 | BP155: 0 | BQ155: 0 | BR155: 0 | BS155: 0 | BT155: 0 | BU155: 0 | BV155: 0 | BW155: 0 | BX155: 0 | BY155: 0 | BZ155: 0 | CA155: 0 | CB155: 0 | CC155: 0 | CD155: 0 | CE155: 0 | CF155: 0 | CG155: 0 | CH155: 0 | CI155: 0 | CJ155: 0 | CK155: 0 | CL155: 0 | CM155: 0 | CN155: 0 | CO155: 0 | CP155: 0 | CQ155: 0 | CR155: 0 | CS155: 0 | CT155: 0 | CU155: 0 | CV155: 0 | CW155: 0 | CX155: 0 | CY155: 0 | CZ155: 0 | DA155: 0 | DB155: 0 | DC155: 0 | DD155: 0 | DE155: 0 | DF155: 0 | DG155: 0

Sheet Land and Property
A1: Accounts Return March 2014 - Land and property | H1: Below | I1: Fin.Return | J1: Diff. | K1: Validation
H2: £'000 | I2: £'000 | J2: £'000
A3: Trust: | C3: ='Standing Data'!$D$3 -> Type name here | G3: Freehold Land and Buildings | H3: =SUMIF($G$14:$G$112,G3,$F$14:$F$112) -> 0 | I3: =Fin.Return!G510 -> 0 | J3: =H3-I3 -> 0 | K3: =IF(J3<>0,"ERROR","OK") -> OK
G4: Leasehold Land and Buildings | H4: =SUMIF($G$14:$G$112,G4,$F$14:$F$112) -> 0 | I4: =Fin.Return!H510 -> 0 | J4: =H4-I4 -> 0 | K4: =IF(J4<>0,"ERROR","OK") -> OK
A5: Period end: | C5: =('Standing Data'!D6) -> 2014-03-31 | D5: Cells will populate automatically from elsewhere in the Return | G5: Leasehold Improvements | H5: 0 | I5: =Fin.Return!I510 -> 0 | J5: 0 | K5: OK
A7: Company No.: | C7: ='Standing Data'!D12 -> Type number here | D7: Additional to Financial Statements, prepared on a similar basis
A9: Academy UPIN: | C9: =Fin.Return!C9 ->  | D9: Non-financial cells to be populated by Academy Trust
C10: Above details will populate automatically | E10: Error check cells
C12: Academy Name | D12: UPIN | E12: Description of property | F12: Net Book Value included in financial return | G12: Leasehold / Freehold / Leasehold Improvements | H12: Donor/ Lessor/ Purchaser Type | I12: Lease term if applicable (years) | J12: If leasehold, lease type | K12: Rental/lease payment type (if applicable) | N12: Lower limit | O12: Upper limit
F13: £000 | N13: £000 | O13: £000
D14: =IF(C14<>"", VLOOKUP(C14,Reference!$O$10:$P$3888,2,FALSE),"") ->  | L14: =IF(AND(F14<>0,G14=""),"Complete column G",IF(AND(LEFT(G14,9)="Leasehold",OR(I14="",I14=0)),"ERROR - Missing lease input",IF(AND(LEFT(G14,9)="Leasehold",OR(J14="",J14=0,J14="n/a")),"ERROR - Missing lease input",IF(AND(LEFT(G14,9)="Leasehold",OR(K14="",K14=0,K14="n/a")),"ERROR - Missing lease input","")))) ->  | N14: 0 | O14: 100000
D15: =IF(C15<>"", VLOOKUP(C15,Reference!$O$10:$P$3888,2,FALSE),"") ->  | L15: =IF(AND(F15<>0,G15=""),"Complete column G",IF(AND(LEFT(G15,9)="Leasehold",OR(I15="",I15=0)),"ERROR - Missing lease input",IF(AND(LEFT(G15,9)="Leasehold",OR(J15="",J15=0,J15="n/a")),"ERROR - Missing lease input",IF(AND(LEFT(G15,9)="Leasehold",OR(K15="",K15=0,K15="n/a")),"ERROR - Missing lease input","")))) -> 
D16: =IF(C16<>"", VLOOKUP(C16,[2]Reference!$O$11:$P$3755,2,FALSE),"") -> 
D17: =IF(C17<>"", VLOOKUP(C17,[2]Reference!$O$11:$P$3755,2,FALSE),"") -> 
D18: =IF(C18<>"", VLOOKUP(C18,[2]Reference!$O$11:$P$3755,2,FALSE),"") -> 
D19: =IF(C19<>"", VLOOKUP(C19,[2]Reference!$O$11:$P$3755,2,FALSE),"") -> 
D20: =IF(C20<>"", VLOOKUP(C20,[2]Reference!$O$11:$P$3755,2,FALSE),"") -> 
D21: =IF(C21<>"", VLOOKUP(C21,[2]Reference!$O$11:$P$3755,2,FALSE),"") -> 
D22: =IF(C22<>"", VLOOKUP(C22,[2]Reference!$O$11:$P$3755,2,FALSE),"") -> 
D23: =IF(C23<>"", VLOOKUP(C23,[2]Reference!$O$11:$P$3755,2,FALSE),"") -> 
D24: =IF(C24<>"", VLOOKUP(C24,[2]Reference!$O$11:$P$3755,2,FALSE),"") -> 
D25: =IF(C25<>"", VLOOKUP(C25,[2]Reference!$O$11:$P$3755,2,FALSE),"") -> 
D26: =IF(C26<>"", VLOOKUP(C26,[2]Reference!$O$11:$P$3755,2,FALSE),"") -> 
D27: =IF(C27<>"", VLOOKUP(C27,[2]Reference!$O$11:$P$3755,2,FALSE),"") -> 
D28: =IF(C28<>"", VLOOKUP(C28,[2]Reference!$O$11:$P$3755,2,FALSE),"") -> 
D29: =IF(C29<>"", VLOOKUP(C29,[2]Reference!$O$11:$P$3755,2,FALSE),"") -> 
D30: =IF(C30<>"", VLOOKUP(C30,[2]Reference!$O$11:$P$3755,2,FALSE),"") -> 
D31: =IF(C31<>"", VLOOKUP(C31,[2]Reference!$O$11:$P$3755,2,FALSE),"") -> 
D32: =IF(C32<>"", VLOOKUP(C32,[2]Reference!$O$11:$P$3755,2,FALSE),"") -> 
D33: =IF(C33<>"", VLOOKUP(C33,[2]Reference!$O$11:$P$3755,2,FALSE),"") -> 
D34: =IF(C34<>"", VLOOKUP(C34,[2]Reference!$O$11:$P$3755,2,FALSE),"") -> 
D35: =IF(C35<>"", VLOOKUP(C35,[2]Reference!$O$11:$P$3755,2,FALSE),"") -> 
D36: =IF(C36<>"", VLOOKUP(C36,[2]Reference!$O$11:$P$3755,2,FALSE),"") -> 
D37: =IF(C37<>"", VLOOKUP(C37,[2]Reference!$O$11:$P$3755,2,FALSE),"") -> 
D38: =IF(C38<>"", VLOOKUP(C38,[2]Reference!$O$11:$P$3755,2,FALSE),"") -> 
D39: =IF(C39<>"", VLOOKUP(C39,[2]Reference!$O$11:$P$3755,2,FALSE),"") -> 
D40: =IF(C40<>"", VLOOKUP(C40,[2]Reference!$O$11:$P$3755,2,FALSE),"") -> 
D41: =IF(C41<>"", VLOOKUP(C41,[2]Reference!$O$11:$P$3755,2,FALSE),"") -> 
D42: =IF(C42<>"", VLOOKUP(C42,[2]Reference!$O$11:$P$3755,2,FALSE),"") -> 
D43: =IF(C43<>"", VLOOKUP(C43,[2]Reference!$O$11:$P$3755,2,FALSE),"") -> 
D44: =IF(C44<>"", VLOOKUP(C44,[2]Reference!$O$11:$P$3755,2,FALSE),"") -> 
D45: =IF(C45<>"", VLOOKUP(C45,[2]Reference!$O$11:$P$3755,2,FALSE),"") -> 
D46: =IF(C46<>"", VLOOKUP(C46,[2]Reference!$O$11:$P$3755,2,FALSE),"") -> 
D47: =IF(C47<>"", VLOOKUP(C47,[2]Reference!$O$11:$P$3755,2,FALSE),"") -> 
D48: =IF(C48<>"", VLOOKUP(C48,[2]Reference!$O$11:$P$3755,2,FALSE),"") -> 
D49: =IF(C49<>"", VLOOKUP(C49,[2]Reference!$O$11:$P$3755,2,FALSE),"") -> 
D50: =IF(C50<>"", VLOOKUP(C50,[2]Reference!$O$11:$P$3755,2,FALSE),"") -> 
D51: =IF(C51<>"", VLOOKUP(C51,[2]Reference!$O$11:$P$3755,2,FALSE),"") -> 
D52: =IF(C52<>"", VLOOKUP(C52,[2]Reference!$O$11:$P$3755,2,FALSE),"") -> 
D53: =IF(C53<>"", VLOOKUP(C53,[2]Reference!$O$11:$P$3755,2,FALSE),"") -> 
D54: =IF(C54<>"", VLOOKUP(C54,[2]Reference!$O$11:$P$3755,2,FALSE),"") -> 
D55: =IF(C55<>"", VLOOKUP(C55,[2]Reference!$O$11:$P$3755,2,FALSE),"") -> 
D56: =IF(C56<>"", VLOOKUP(C56,[2]Reference!$O$11:$P$3755,2,FALSE),"") -> 
D57: =IF(C57<>"", VLOOKUP(C57,[2]Reference!$O$11:$P$3755,2,FALSE),"") -> 
D58: =IF(C58<>"", VLOOKUP(C58,[2]Reference!$O$11:$P$3755,2,FALSE),"") -> 
D59: =IF(C59<>"", VLOOKUP(C59,[2]Reference!$O$11:$P$3755,2,FALSE),"") -> 
D60: =IF(C60<>"", VLOOKUP(C60,[2]Reference!$O$11:$P$3755,2,FALSE),"") -> 
D61: =IF(C61<>"", VLOOKUP(C61,[2]Reference!$O$11:$P$3755,2,FALSE),"") -> 
D62: =IF(C62<>"", VLOOKUP(C62,[2]Reference!$O$11:$P$3755,2,FALSE),"") -> 
D63: =IF(C63<>"", VLOOKUP(C63,[2]Reference!$O$11:$P$3755,2,FALSE),"") -> 
D64: =IF(C64<>"", VLOOKUP(C64,[2]Reference!$O$11:$P$3755,2,FALSE),"") -> 
D65: =IF(C65<>"", VLOOKUP(C65,[2]Reference!$O$11:$P$3755,2,FALSE),"") -> 
D66: =IF(C66<>"", VLOOKUP(C66,[2]Reference!$O$11:$P$3755,2,FALSE),"") -> 
D67: =IF(C67<>"", VLOOKUP(C67,[2]Reference!$O$11:$P$3755,2,FALSE),"") -> 
D68: =IF(C68<>"", VLOOKUP(C68,[2]Reference!$O$11:$P$3755,2,FALSE),"") -> 
D69: =IF(C69<>"", VLOOKUP(C69,[2]Reference!$O$11:$P$3755,2,FALSE),"") -> 
D70: =IF(C70<>"", VLOOKUP(C70,[2]Reference!$O$11:$P$3755,2,FALSE),"") -> 
D71: =IF(C71<>"", VLOOKUP(C71,[2]Reference!$O$11:$P$3755,2,FALSE),"") -> 
D72: =IF(C72<>"", VLOOKUP(C72,[2]Reference!$O$11:$P$3755,2,FALSE),"") -> 
D73: =IF(C73<>"", VLOOKUP(C73,[2]Reference!$O$11:$P$3755,2,FALSE),"") -> 
D74: =IF(C74<>"", VLOOKUP(C74,[2]Reference!$O$11:$P$3755,2,FALSE),"") -> 
D75: =IF(C75<>"", VLOOKUP(C75,[2]Reference!$O$11:$P$3755,2,FALSE),"") -> 
D76: =IF(C76<>"", VLOOKUP(C76,[2]Reference!$O$11:$P$3755,2,FALSE),"") -> 
D77: =IF(C77<>"", VLOOKUP(C77,[2]Reference!$O$11:$P$3755,2,FALSE),"") -> 
D78: =IF(C78<>"", VLOOKUP(C78,[2]Reference!$O$11:$P$3755,2,FALSE),"") -> 
D79: =IF(C79<>"", VLOOKUP(C79,[2]Reference!$O$11:$P$3755,2,FALSE),"") ->  | L79: =IF(AND(F79<>0,G79=""),"Complete column G",IF(AND(LEFT(G79,9)="Leasehold",OR(I79="",I79=0)),"ERROR - Missing lease input",IF(AND(LEFT(G79,9)="Leasehold",OR(J79="",J79=0,J79="n/a")),"ERROR - Missing lease input",IF(AND(LEFT(G79,9)="Leasehold",OR(K79="",K79=0,K79="n/a")),"ERROR - Missing lease input","")))) -> 
D80: =IF(C80<>"", VLOOKUP(C80,[2]Reference!$O$11:$P$3755,2,FALSE),"") -> 
D81: =IF(C81<>"", VLOOKUP(C81,[2]Reference!$O$11:$P$3755,2,FALSE),"") -> 
D82: =IF(C82<>"", VLOOKUP(C82,[2]Reference!$O$11:$P$3755,2,FALSE),"") -> 
D83: =IF(C83<>"", VLOOKUP(C83,[2]Reference!$O$11:$P$3755,2,FALSE),"") -> 
D84: =IF(C84<>"", VLOOKUP(C84,[2]Reference!$O$11:$P$3755,2,FALSE),"") -> 
D85: =IF(C85<>"", VLOOKUP(C85,[2]Reference!$O$11:$P$3755,2,FALSE),"") -> 
D86: =IF(C86<>"", VLOOKUP(C86,[2]Reference!$O$11:$P$3755,2,FALSE),"") -> 
D87: =IF(C87<>"", VLOOKUP(C87,[2]Reference!$O$11:$P$3755,2,FALSE),"") -> 
D88: =IF(C88<>"", VLOOKUP(C88,[2]Reference!$O$11:$P$3755,2,FALSE),"") -> 
D89: =IF(C89<>"", VLOOKUP(C89,[2]Reference!$O$11:$P$3755,2,FALSE),"") -> 
D90: =IF(C90<>"", VLOOKUP(C90,[2]Reference!$O$11:$P$3755,2,FALSE),"") -> 
D91: =IF(C91<>"", VLOOKUP(C91,[2]Reference!$O$11:$P$3755,2,FALSE),"") -> 
D92: =IF(C92<>"", VLOOKUP(C92,[2]Reference!$O$11:$P$3755,2,FALSE),"") -> 
D93: =IF(C93<>"", VLOOKUP(C93,[2]Reference!$O$11:$P$3755,2,FALSE),"") -> 
D94: =IF(C94<>"", VLOOKUP(C94,[2]Reference!$O$11:$P$3755,2,FALSE),"") -> 
D95: =IF(C95<>"", VLOOKUP(C95,[2]Reference!$O$11:$P$3755,2,FALSE),"") -> 
D96: =IF(C96<>"", VLOOKUP(C96,[2]Reference!$O$11:$P$3755,2,FALSE),"") -> 
D97: =IF(C97<>"", VLOOKUP(C97,[2]Reference!$O$11:$P$3755,2,FALSE),"") -> 
D98: =IF(C98<>"", VLOOKUP(C98,[2]Reference!$O$11:$P$3755,2,FALSE),"") -> 
D99: =IF(C99<>"", VLOOKUP(C99,[2]Reference!$O$11:$P$3755,2,FALSE),"") -> 
D100: =IF(C100<>"", VLOOKUP(C100,[2]Reference!$O$11:$P$3755,2,FALSE),"") -> 
D101: =IF(C101<>"", VLOOKUP(C101,[2]Reference!$O$11:$P$3755,2,FALSE),"") -> 
D102: =IF(C102<>"", VLOOKUP(C102,[2]Reference!$O$11:$P$3755,2,FALSE),"") -> 
D103: =IF(C103<>"", VLOOKUP(C103,[2]Reference!$O$11:$P$3755,2,FALSE),"") -> 
D104: =IF(C104<>"", VLOOKUP(C104,[2]Reference!$O$11:$P$3755,2,FALSE),"") -> 
D105: =IF(C105<>"", VLOOKUP(C105,[2]Reference!$O$11:$P$3755,2,FALSE),"") -> 
D106: =IF(C106<>"", VLOOKUP(C106,[2]Reference!$O$11:$P$3755,2,FALSE),"") -> 
D107: =IF(C107<>"", VLOOKUP(C107,[2]Reference!$O$11:$P$3755,2,FALSE),"") -> 
D108: =IF(C108<>"", VLOOKUP(C108,[2]Reference!$O$11:$P$3755,2,FALSE),"") -> 
D109: =IF(C109<>"", VLOOKUP(C109,[2]Reference!$O$11:$P$3755,2,FALSE),"") -> 
D110: =IF(C110<>"", VLOOKUP(C110,[2]Reference!$O$11:$P$3755,2,FALSE),"") -> 
D111: =IF(C111<>"", VLOOKUP(C111,[2]Reference!$O$11:$P$3755,2,FALSE),"") -> 
D112: =IF(C112<>"", VLOOKUP(C112,[2]Reference!$O$11:$P$3755,2,FALSE),"") -> 

Sheet CP IDs
A1: NAME | B1: CODE | C1: Counterparty Type | D1: Counterparty Gross
A2: Abacus Belsize Primary School | B2: 123288 | C2: Academy | D2: Academy
A3: Abbey College - Ramsey | B3: 120322 | C3: Academy | D3: Academy
A4: Abbey Grange Church of England High School | B4: 120083 | C4: Academy | D4: Academy
A5: Abbey Hey Primary School | B5: 124243 | C5: Academy | D5: Academy
A6: Abbey Hill School and Technology College | B6: 124569 | C6: Academy | D6: Academy
A7: Abbey Infants' School | B7: 119988 | C7: Academy | D7: Academy
A8: Abbey Junior School | B8: 119989 | C8: Academy | D8: Academy
A9: Abbey Park Junior, Infant and Nursery School | B9: 126329 | C9: Academy | D9: Academy
A10: Abbey School, The | B10: 120154 | C10: Academy | D10: Academy
A11: Abbey View | B11: 123404 | C11: Academy | D11: Academy
A12: Abbey Woods Academy | B12: 123534 | C12: Academy | D12: Academy
A13: Abbeyfield School | B13: 122250 | C13: Academy | D13: Academy
A14: Abbeywood Community School | B14: 122309 | C14: Academy | D14: Academy
A15: Abbots Hall Primary School | B15: 122896 | C15: Academy | D15: Academy
A16: Abbs Cross Academy and Art College | B16: 119551 | C16: Academy | D16: Academy
A17: Abington Academy | B17: 121203 | C17: Academy | D17: Academy
A18: Abington Vale Primary School | B18: 121187 | C18: Academy | D18: Academy
A19: Abraham Darby Academy | B19: 119101 | C19: Academy | D19: Academy
A20: Abraham Guest Academy | B20: 120210 | C20: Academy | D20: Academy
A21: Academies Consolidated Account | B21: CAD022 | C21: CenGov't | D21: CenGov't
A22: Academy @ Worden | B22: 122270 | C22: Academy | D22: Academy
A23: Academy 360 | B23: 119119 | C23: Academy | D23: Academy
A24: Academy at Shotton Hall, The | B24: 119508 | C24: Academy | D24: Academy
A25: Academy of Central Bedfordshire, THe | B25: 123407 | C25: Academy | D25: Academy
A26: Academy of St Francis of Assisi, The | B26: 119111 | C26: Academy | D26: Academy
A27: Academy of Trinity C of E Primary | B27: 119813 | C27: Academy | D27: Academy
A28: Academy St Joseph’s Catholic Primary School - Aylesham | B28: 125019 | C28: Academy | D28: Academy
A29: Accrington Academy | B29: 118597 | C29: Academy | D29: Academy
A30: Accrington St Christopher's Church of England High School | B30: 120359 | C30: Academy | D30: Academy
A31: ACE Academy, The | B31: 122775 | C31: Academy | D31: Academy
A32: Acle High School | B32: 122565 | C32: Academy | D32: Academy
A33: Acocks Green Primary School | B33: 123272 | C33: Academy | D33: Academy
A34: Acorn Free School, The | B34: 123412 | C34: Academy | D34: Academy
A35: Acre Hall Academy | B35: 122311 | C35: Academy | D35: Academy
A36: Acre Rigg Junior School | B36: 122739 | C36: Academy | D36: Academy
A37: Adams' Grammar School | B37: 120418 | C37: Academy | D37: Academy
A38: Addington High School | B38: 122641 | C38: Academy | D38: Academy
A39: Adelaide School | B39: 129409 | C39: Academy | D39: Academy
A40: Admirals' Junior School | B40: 122656 | C40: Academy | D40: Academy
A41: Adur District Council | B41: E3831 | C41: EngLocGov't | D41: LocGov't
A42: Advantage West Midlands | B42: WMD084 | C42: CenGov't | D42: CenGov't
A43: Aerodrome School, The | B43: 123037 | C43: Academy | D43: Academy
A44: Agriculture & Horticulture Development Board | B44: AHD003 | C44: CenGov't | D44: CenGov't
A45: Agrifood and Biosciences Institute of Northern Ireland | B45: ARI201 | C45: CenGov't | D45: CenGov't
A46: Ainthorpe Primary School | B46: 124306 | C46: Academy | D46: Academy
A47: Airedale Academy Trust | B47: 119563 | C47: Academy | D47: Academy
A48: Al Madinah School | B48: 122100 | C48: Academy | D48: Academy
A49: Alameda Middle School | B49: 120249 | C49: Academy | D49: Academy
A50: Alban Church of England Academy Trust | B50: 119583 | C50: Academy | D50: Academy
A51: Alban City Free School | B51: 122102 | C51: Academy | D51: Academy
A52: Albany Academy - Chorley | B52: 121853 | C52: Academy | D52: Academy
A53: Albany, The - Havering | B53: 120189 | C53: Academy | D53: Academy
A54: Albion Academy, The | B54: 121940 | C54: Academy | D54: Academy
A55: Alcester Academy | B55: 120172 | C55: Academy | D55: Academy
A56: Alcester Grammar School | B56: 119579 | C56: Academy | D56: Academy
A57: Aldborough E-ACT Free School | B57: 120534 | C57: Academy | D57: Academy
A58: Alderbrook Leading Edge School and Arts College | B58: 119994 | C58: Academy | D58: Academy
A59: Alderman Jacobs Primary School | B59: 119676 | C59: Academy | D59: Academy
A60: Alderman White School | B60: 122717 | C60: Academy | D60: Academy
A61: Aldersley High School | B61: 122992 | C61: Academy | D61: Academy
A62: Aldridge School - A Science College | B62: 121205 | C62: Academy | D62: Academy
A63: Alec Hunter Humanities College | B63: 123939 | C63: Academy | D63: Academy
A64: Alec Reed Academy, The | B64: 118409 | C64: Academy | D64: Academy
A65: Alexandra Infant School | B65: 125230 | C65: Academy | D65: Academy
A66: Alexandra Junior School | B66: 125200 | C66: Academy | D66: Academy
A67: Alexandra Park School | B67: 120567 | C67: Academy | D67: Academy
A68: Alexandra School | B68: 124171 | C68: Academy | D68: Academy
A69: Alfriston School | B69: 120753 | C69: Academy | D69: Academy
A70: All Faiths' Children's Community School | B70: 121000 | C70: Academy | D70: Academy
A71: All Hallows Catholic College | B71: 123111 | C71: Academy | D71: Academy
A72: All Saints Academy - Barnsley | B72: 120930 | C72: Academy | D72: Academy
A73: All Saints Academy - Bedford | B73: 119040 | C73: Academy | D73: Academy
A74: All Saints Academy - Stockton-on-Tees | B74: 120760 | C74: Academy | D74: Academy
A75: All Saints' Academy, The - Cheltenham | B75: 119150 | C75: Academy | D75: Academy
A76: All Saints Babbacombe CofE Primary School | B76: 130163 | C76: Academy | D76: Academy
A77: All Saints Catholic College - Dukinfield | B77: 124644 | C77: Academy | D77: Academy
A78: All Saints' Catholic High School - Sheffield | B78: 121197 | C78: Academy | D78: Academy
A79: All Saints Church of England Academy - Plymouth | B79: 119199 | C79: Academy | D79: Academy
A80: All Saints Interchurch Academy - March | B80: 124183 | C80: Academy | D80: Academy
A81: All Saints Junior School - Reading | B81: 120504 | C81: Academy | D81: Academy
A82: Allerdale Borough Council | B82: E0931 | C82: EngLocGov't | D82: LocGov't
A83: Alleyne's Academy | B83: 123084 | C83: Academy | D83: Academy
A84: Allhallows Primary School | B84: 124701 | C84: Academy | D84: Academy
A85: Allington Primary School | B85: 122969 | C85: Academy | D85: Academy
A86: Alma Primary | B86: 123357 | C86: Academy | D86: Academy
A87: Alperton Community School | B87: 122325 | C87: Academy | D87: Academy
A88: Alsager School | B88: 124251 | C88: Academy | D88: Academy
A89: Altrincham College of Arts | B89: 122124 | C89: Academy | D89: Academy
A90: Altrincham Grammar School for Boys | B90: 119511 | C90: Academy | D90: Academy
A91: Altrincham Grammar School for Girls | B91: 120289 | C91: Academy | D91: Academy
A92: Altwood CofE Secondary School | B92: 122326 | C92: Academy | D92: Academy
A93: Amber Valley Borough Council | B93: E1031 | C93: EngLocGov't | D93: LocGov't
A94: Ambleside Primary School | B94: 122945 | C94: Academy | D94: Academy
A95: Amersham School | B95: 120372 | C95: Academy | D95: Academy
A96: Amery Hill School | B96: 120500 | C96: Academy | D96: Academy
A97: Amherst School | B97: 119499 | C97: Academy | D97: Academy
A98: Anand Primary School | B98: 123289 | C98: Academy | D98: Academy
A99: Anchorsholme Primary School | B99: 124111 | C99: Academy | D99: Academy
A100: Anglesey Primary Academy | B100: 123086 | C100: Academy | D100: Academy
A101: Anglo European School | B101: 120813 | C101: Academy | D101: Academy
A102: Ansford Academy | B102: 119839 | C102: Academy | D102: Academy
A103: Appleby Grammar School | B103: 120251 | C103: Academy | D103: Academy
A104: Applecroft School | B104: 120654 | C104: Academy | D104: Academy
A105: Applegarth Nursery and Infant School | B105: 123941 | C105: Academy | D105: Academy
A106: Appleton Academy - Bradford | B106: 119126 | C106: Academy | D106: Academy
A107: Appleton Primary School - Hull | B107: 124252 | C107: Academy | D107: Academy
A108: Appleton School, The - Benfleet | B108: 119556 | C108: Academy | D108: Academy
A109: Arbours Academy, The | B109: 122541 | C109: Academy | D109: Academy
A110: Archbishop Benson CofE Primary School | B110: 120258 | C110: Academy | D110: Academy
A111: Archbishop Cranmer Church of England Academy | B111: 124584 | C111: Academy | D111: Academy
A112: Archbishop Holgate's School | B112: 119523 | C112: Academy | D112: Academy
A113: Archbishop Sentamu Academy | B113: 119095 | C113: Academy | D113: Academy
A114: Archer Academy, The | B114: 123349 | C114: Academy | D114: Academy
A115: Arden Academy | B115: 119276 | C115: Academy | D115: Academy
A116: Arden Grove Infant and Nursery School | B116: 124389 | C116: Academy | D116: Academy
A117: Ardley Hill Academy | B117: 121192 | C117: Academy | D117: Academy
A118: Ark Academy | B118: 118659 | C118: Academy | D118: Academy
A119: ARK All Saints Academy | B119: 122186 | C119: Academy | D119: Academy
A120: ARK Atwood Primary Academy | B120: 120505 | C120: Academy | D120: Academy
A121: ARK Ayrton Primary Academy | B121: 123906 | C121: Academy | D121: Academy
A122: ARK Bentworth Primary Academy | B122: 122381 | C122: Academy | D122: Academy
A123: ARK Bolingbroke Academy | B123: 122013 | C123: Academy | D123: Academy
A124: ARK Brunel Primary Academy | B124: 124488 | C124: Academy | D124: Academy
A125: ARK Conway Primary Academy | B125: 120506 | C125: Academy | D125: Academy
A126: ARK Franklin Primary Academy | B126: 124680 | C126: Academy | D126: Academy
A127: ARK Globe Academy | B127: 118614 | C127: Academy | D127: Academy
A128: ARK John Keats Academy | B128: 123290 | C128: Academy | D128: Academy
A129: ARK Kings Academy | B129: 120907 | C129: Academy | D129: Academy
A130: ARK Oval Primary Academy | B130: 120114 | C130: Academy | D130: Academy
A131: ARK Priory Primary Academy | B131: 121923 | C131: Academy | D131: Academy
A132: ARK Putney Academy | B132: 122388 | C132: Academy | D132: Academy
A133: ARK Rose Academy | B133: 121847 | C133: Academy | D133: Academy
A134: ARK Swift Primary Academy | B134: 124224 | C134: Academy | D134: Academy
A135: ARK Tindal Primary Academy | B135: 120992 | C135: Academy | D135: Academy
A136: ARK William Parker Academy | B136: 124511 | C136: Academy | D136: Academy
A137: Armagh Planetarium and Observatory | B137: APO202 | C137: CenGov't | D137: CenGov't
A138: Armed Forces Retired Pay, Pensions etc | B138: AFS902 | C138: CenGov't | D138: CenGov't
A139: Armthorpe School, The | B139: 121002 | C139: Academy | D139: Academy
A140: Arnewood School Academy, The | B140: 119649 | C140: Academy | D140: Academy
A141: Arnold Academy | B141: 119841 | C141: Academy | D141: Academy
A142: Arnold Hill School and Technology College | B142: 120591 | C142: Academy | D142: Academy
A143: Arnside National CofE School | B143: 120652 | C143: Academy | D143: Academy
A144: Arrow Vale RSA Academy | B144: 122314 | C144: Academy | D144: Academy
A145: Arthur Mellows Village College | B145: 119274 | C145: Academy | D145: Academy
A146: Arthur Terry School, The | B146: 120018 | C146: Academy | D146: Academy
A147: Arts and Humanities Research Council | B147: AHC084 | C147: CenGov't | D147: CenGov't
A148: Arts Council of England | B148: ACE048 | C148: CenGov't | D148: CenGov't
A149: Arts Council of England Lottery | B149: ACL048 | C149: CenGov't | D149: CenGov't
A150: Arts Council of Northern Ireland | B150: ACI202 | C150: CenGov't | D150: CenGov't
A151: Arts Council of Northern Ireland Lottery Distribution Account | B151: ANL850 | C151: CenGov't | D151: CenGov't
A152: Arts Council of Wales | B152: ACW090 | C152: CenGov't | D152: CenGov't
A153: Arts Council of Wales National Lottery | B153: AWL090 | C153: CenGov't | D153: CenGov't
A154: Arun District Council | B154: E3832 | C154: EngLocGov't | D154: LocGov't
A155: Asfordby Hill Primary School | B155: 124150 | C155: Academy | D155: Academy
A156: Ash Field Academy | B156: 121036 | C156: Academy | D156: Academy
A157: Ash Green School and Arts College | B157: 120803 | C157: Academy | D157: Academy
A158: Ash Grove Primary and Nursery School | B158: 124642 | C158: Academy | D158: Academy
A159: Ash Hill Academy | B159: 120458 | C159: Academy | D159: Academy
A160: Ashburton Primary School | B160: 119678 | C160: Academy | D160: Academy
A161: Ashby Hill Top Primary School | B161: 122680 | C161: Academy | D161: Academy
A162: Ashby School | B162: 122080 | C162: Academy | D162: Academy
A163: Ashcroft Technology Academy | B163: 118598 | C163: Academy | D163: Academy
A164: Ashfield Comprehensive School | B164: 121097 | C164: Academy | D164: Academy
A165: Ashfield District Council | B165: E3031 | C165: EngLocGov't | D165: LocGov't
A166: Ashford Borough Council | B166: E2231 | C166: EngLocGov't | D166: LocGov't
A167: Ashingdon Primary Academy | B167: 120332 | C167: Academy | D167: Academy
A168: Ashlawn School Academy Trust | B168: 119553 | C168: Academy | D168: Academy
A169: Ashley School, The | B169: 120339 | C169: Academy | D169: Academy
A170: Ashmole Academy | B170: 119277 | C170: Academy | D170: Academy
A171: Ashperton Primary Academy | B171: 119524 | C171: Academy | D171: Academy
A172: Ashton-on-Mersey School | B172: 122001 | C172: Academy | D172: Academy
A173: Ashwell Pupil Referral Unit | B173: 123233 | C173: Academy | D173: Academy
A174: Aston Academy - Rotherham | B174: 119718 | C174: Academy | D174: Academy
A175: Aston Manor Academy - Birmingham | B175: 119882 | C175: Academy | D175: Academy
A176: Aston UTC - Birmingham | B176: 122150 | C176: Academy | D176: Academy
A177: Astor College | B177: 122113 | C177: Academy | D177: Academy
A178: Astwood Bank First School | B178: 124767 | C178: Academy | D178: Academy
A179: Atherton Community School | B179: 121960 | C179: Academy | D179: Academy
A180: Atkinson Road Primary School | B180: 121210 | C180: Academy | D180: Academy
A181: Attleborough High School | B181: 127652 | C181: Academy | D181: Academy
A182: Atwood Primary School | B182: 128107 | C182: Academy | D182: Academy
A183: Auckley Junior and Infant School | B183: 120431 | C183: Academy | D183: Academy
A184: Audenshaw School | B184: 119350 | C184: Academy | D184: Academy
A185: Austrey CofE Primary School | B185: 123227 | C185: Academy | D185: Academy
A186: Avanti House School | B186: 123026 | C186: Academy | D186: Academy
A187: Avenue School, The | B187: 120383 | C187: Academy | D187: Academy
A188: Aveton Gifford CofE Primary School | B188: 122910 | C188: Academy | D188: Academy
A189: Avishayes Community Primary School | B189: 120174 | C189: Academy | D189: Academy
A190: Avon and Somerset Police Authority | B190: E6050 | C190: EngLocGov't | D190: LocGov't
A191: Avon Fire Authority | B191: E6101 | C191: EngLocGov't | D191: LocGov't
A192: Avonbourne School | B192: 121944 | C192: Academy | D192: Academy
A193: Axbridge Church of England First School | B193: 122395 | C193: Academy | D193: Academy
A194: Axholme Academy, The | B194: 120982 | C194: Academy | D194: Academy
A195: Aylesbury Grammar School | B195: 119884 | C195: Academy | D195: Academy
A196: Aylesbury High School | B196: 119846 | C196: Academy | D196: Academy
A197: Aylesbury Vale Academy, The | B197: 118894 | C197: Academy | D197: Academy
A198: Aylesbury Vale District Council | B198: E0431 | C198: EngLocGov't | D198: LocGov't
A199: Aylesford Primary School | B199: 124228 | C199: Academy | D199: Academy
A200: Aylesford School & Sixth Form College | B200: 120810 | C200: Academy | D200: Academy
... 4922 more rows

Sheet Reference (hidden)
A1: EFA Accounts Return
A2: Period end: | B2: ='Standing Data'!D6 -> 2014-03-31
A4: LOOKUPS AND DATA TABLES
O5: Academy schools - as at 13th March 2014
A7: Period End | E7: Period length | G7: New or existing member | I7: Pension Schemes | L7: Pension scheme types | O7: NAME | P7: CODE | Q7: Date of conversion | R7: Region | S7: Local Authority
A8: 2014-03-31 | C8: Yes | E8: Year | G8: Existing member | I8: LGPS | J8: 1 | L8: Defined benefit scheme(s) - multi-employer allocated scheme assets and liabilities
C9: No | E9: Short first period | G9: New member | I9: Teachers Pension Scheme | J9: 2 | L9: Defined benefit scheme(s) - single employer | O9: Multi-academy Trust | P9: Multiple | Q9: Multiple | R9: Multiple | S9: Multiple
E10: Long first period | I10: Stakeholder/private pension scheme provider | J10: 3 | L10: Defined benefit scheme(s) - multi-employer unallocated scheme assets and liabilities | O10: Abacus Belsize Primary School | P10: 123288 | Q10: 2013-09-01 | R10: London | S10: Camden London Borough Council
E11: Short later period | I11: Other | J11: 4 | L11: Defined contribution scheme(s) | O11: Abbey College - Ramsey | P11: 120322 | Q11: 2011-09-01 | R11: East of England | S11: Cambridgeshire County Council
E12: Long later period | I12: Scheme Name | J12: 5 | L12: Stakeholder/private pension provision | O12: Abbey Grange Church of England High School | P12: 120083 | Q12: 2011-08-01 | R12: Yorkshire & Humberside | S12: Leeds City Council
A13: Predecessor School Type | J13: 6 | L13: Scheme Type | O13: Abbey Hey Primary School | P13: 124243 | Q13: 2013-12-01 | R13: North West | S13: Manchester City Council
A14: LA school | J14: 7 | O14: Abbey Hill School and Technology College | P14: 124569 | Q14: 2013-08-01 | R14: North East | S14: Stockton-on-Tees Borough Council
A15: Independent school | J15: 8 | O15: Abbey Infants' School | P15: 119988 | Q15: 2011-08-01 | R15: North East | S15: Darlington Borough Council
A16: Faith school | J16: 9 | O16: Abbey Junior School | P16: 119989 | Q16: 2011-08-01 | R16: North East | S16: Darlington Borough Council
A17: Foundation school | J17: 10 | O17: Abbey Park Junior, Infant and Nursery School | P17: 126329 | Q17: 2013-12-01 | R17: Yorkshire & Humberside | S17: Calderdale Metropolitan Borough Council
A18: Voluntary aided/controlled | E18: Special payments and losses | G18: Related parties | O18: Abbey School, The | P18: 120154 | Q18: 2011-08-01 | R18: South East | S18: Kent County Council
A19: No predecessor | E19: Cash losses | G19: No transactions | O19: Abbey View | P19: 123404 | Q19: 2013-09-01 | R19: South West | S19: Gloucestershire County Council
E20: Claims abandoned | G20: Transactions | O20: Abbey Woods Academy | P20: 123534 | Q20: 2013-09-01 | R20: South East | S20: Oxfordshire County Council
A21: Audit opinion | E21: Administration write-offs | O21: Abbeyfield School | P21: 122250 | Q21: 2012-10-01T15:56:04 | R21: East Midlands | S21: Northamptonshire County Council
A22: Unqualified | E22: Fruitless payments | O22: Abbeywood Community School | P22: 122309 | Q22: 2013-01-01 | R22: South West | S22: South Gloucestershire Council
A23: Qualified | E23: Store/stock losses | I23: Assurance report on regularity conclusion | L23: LGPS Schemes | O23: Abbots Hall Primary School | P23: 122896 | Q23: 2013-05-01 | R23: East of England | S23: Thurrock Borough Council
A24: Emphasis of Matter | E24: Special payments - non contractual exit packages | I24: No matters by exception | L24: Barking and Dagenham - LGPS | O24: Abbs Cross Academy and Art College | P24: 119551 | Q24: 2011-04-01 | R24: London | S24: Havering London Borough Council
A25: Adverse | E25: Special payments -other | I25: Matters by exception | L25: Barnet - LGPS | O25: Abington Academy | P25: 121203 | Q25: 2012-04-01 | R25: East Midlands | S25: Leicestershire County Council
A26: N/A - 31 March | E26: Gifts | I26: N/A - 31 March | L26: Bath and North East Somerset Council - LGPS | O26: Abington Vale Primary School | P26: 121187 | Q26: 2012-11-01 | R26: East Midlands | S26: Northamptonshire County Council
L27: Bedfordshire Pension Fund - LGPS | O27: Abraham Darby Academy | P27: 119101 | Q27: 2008-09-02 | R27: West Midlands | S27: Telford and Wrekin Council
I28: Benchmarking period | L28: Bexley - LGPS | O28: Abraham Guest Academy | P28: 120210 | Q28: 2012-01-01 | R28: North West | S28: Wigan Metropolitan Borough Council
E29: Academy Type | L29: Brent - LGPS | O29: Academy @ Worden | P29: 122270 | Q29: 2013-02-01 | R29: North West | S29: Lancashire County Council
E30: Sponsored Academy | I30: 0 -6 months | L30: Bromley - LGPS | O30: Academy 360 | P30: 119119 | Q30: 2008-09-01 | R30: North East | S30: Sunderland City Council
E31: Converter Academy | I31: 6 - 12 months | L31: Buckinghamshire County Council- LGPS | O31: Academy at Shotton Hall, The | P31: 119508 | Q31: 2011-02-01 | R31: North East | S31: Durham County Council
E32: Fast Track Sponsored | I32: 12 months | L32: Cambridgeshire County Council - LGPS | O32: Academy of Central Bedfordshire, THe | P32: 123407 | Q32: 2013-09-01 | R32: East of England | S32: Bedford Borough Council
E33: Free School | I33: 12 - 18 months | L33: Camden - LGPS | O33: Academy of St Francis of Assisi, The | P33: 119111 | Q33: 2005-09-01 | R33: North West | S33: Liverpool City Council
E34: University Technical College | I34: 18 + months | L34: Cheshire Pension Fund - LGPS | O34: Academy of Trinity C of E Primary | P34: 119813 | Q34: 2011-06-01 | R34: South West | S34: Bath & North East Somerset Council
E35: Special School | L35: Cornwall County Council - LGPS | O35: Academy St Joseph’s Catholic Primary School - Aylesham | P35: 125019 | Q35: 2014-01-01 | R35: South East | S35: Kent County Council
E36: Studio School | I36: Land and Buildings | L36: Corporation of London - LGPS | O36: Accrington Academy | P36: 118597 | Q36: 2008-09-01 | R36: North West | S36: Lancashire County Council
E37: Multiple | I37: Land and Buildings - school buildings | L37: Croydon - LGPS | O37: Accrington St Christopher's Church of England High School | P37: 120359 | Q37: 2011-09-01 | R37: North West | S37: Lancashire County Council
E38: Other | I38: Land and Buildings - sports facilities | L38: Cumbria County Council - LGPS | O38: ACE Academy, The | P38: 122775 | Q38: 2013-03-01T15:53:24 | R38: West Midlands | S38: Sandwell Metropolitan Borough Council
I39: Land and Buildings - HQ/admin | L39: Derbyshire County Council - LGPS | O39: Acle High School | P39: 122565 | Q39: 2012-09-01 | R39: East of England | S39: Norfolk County Council
E40: Freehold/leasehold | I40: Land and Buildings - Other | L40: Devon County Council - LGPS | O40: Acocks Green Primary School | P40: 123272 | Q40: 2013-04-01 | R40: West Midlands | S40: Birmingham City Council
E41: Freehold Land and Buildings | F41: _FreeholdLandandBuildings | G41: _FreeholdLBRental | I41: Land only - sports pitches | L41: Dorset County Council - LGPS | O41: Acorn Free School, The | P41: 123412 | Q41: 2013-09-01 | R41: East Midlands | S41: Lincolnshire County Council
E42: Leasehold Land and Buildings | F42: _LeaseholdLandandBuildings | G42: _LeaseholdLBRental | I42: Land only - car parks | L42: Durham County Council - LGPS | O42: Acre Hall Academy | P42: 122311 | Q42: 2013-07-01 | R42: North West | S42: Trafford Borough Council
E43: Leasehold Improvements | F43: _LeaseholdImprovements | G43: _ImprovementsLBRental | I43: Land only - other | L43: Ealing - LGPS | O43: Acre Rigg Junior School | P43: 122739 | Q43: 2012-12-01 | R43: North East | S43: Durham County Council
E44: Donor/lessor | L44: East Riding Pension Fund - LGPS | O44: Adams' Grammar School | P44: 120418 | Q44: 2011-09-01 | R44: West Midlands | S44: Telford and Wrekin Council
E45: Purchase by trust | L45: East Sussex County Council - LGPS | O45: Addington High School | P45: 122641 | Q45: 2013-06-01 | R45: London | S45: Croydon London Borough Council
E46: Local authority | L46: Enfield - LGPS | O46: Adelaide School | P46: 129409 | Q46: 2013-12-01 | R46: North West | S46: Cheshire East Council
E47: Church | L47: Environment Agency - LGPS | O47: Admirals' Junior School | P47: 122656 | Q47: 2012-11-01 | R47: East of England | S47: Norfolk County Council
E48: Other faith body | I48: _LeaseholdLandandBuildings | L48: Essex County Council - LGPS | O48: Aerodrome School, The | P48: 123037 | Q48: 2012-12-01 | R48: London | S48: Croydon London Borough Council
E49: Other | I49: Operating | L49: Gloucestershire County Council - LGPS | O49: Ainthorpe Primary School | P49: 124306 | Q49: 2013-12-01 | R49: Yorkshire & Humberside | S49: Hull City Council
I50: Finance | L50: Greater Manchester Pension Fund - LGPS | O50: Airedale Academy Trust | P50: 119563 | Q50: 2011-04-01 | R50: Yorkshire & Humberside | S50: Wakefield Council
E51: _FreeholdLBRental | L51: Greenwich - LGPS | O51: Al Madinah School | P51: 122100 | Q51: 2012-09-01 | R51: East Midlands | S51: Derby City Council
E52: n/a | L52: Hackney - LGPS | O52: Alameda Middle School | P52: 120249 | Q52: 2011-08-01 | R52: East of England | S52: Central Bedfordshire Council
I53: _LeaseholdImprovements | L53: Hammersmith and Fulham - LGPS | O53: Alban Church of England Academy Trust | P53: 119583 | Q53: 2011-04-01 | R53: East of England | S53: Bedford Borough Council
I54: Operating | L54: Hampshire Pension Fund - LGPS | O54: Alban City Free School | P54: 122102 | Q54: 2012-09-01 | R54: East of England | S54: Hertfordshire County Council
E55: _LeaseholdLBRental | I55: Finance | L55: Haringey - LGPS | O55: Albany Academy - Chorley | P55: 121853 | Q55: 2012-08-01 | R55: North West | S55: Lancashire County Council
E56: Nominal | I56: Rental | L56: Harrow - LGPS | O56: Albany, The - Havering | P56: 120189 | Q56: 2011-08-01 | R56: London | S56: Havering London Borough Council
E57: Market Value | L57: Havering - LGPS | O57: Albion Academy, The | P57: 121940 | Q57: 2012-09-01 | R57: North West | S57: Salford City Council
I58: _FreeholdLandandBuildings | L58: Hertfordshire County Council - LGPS | O58: Alcester Academy | P58: 120172 | Q58: 2011-08-01 | R58: West Midlands | S58: Warwickshire County Council
E59: _ImprovementsLBRental | I59: n/a | L59: Hillingdon - LGPS | O59: Alcester Grammar School | P59: 119579 | Q59: 2011-04-01 | R59: West Midlands | S59: Warwickshire County Council
E60: Nominal | L60: Hounslow - LGPS | O60: Aldborough E-ACT Free School | P60: 120534 | Q60: 2011-09-01 | R60: London | S60: Redbridge London Borough Council
E61: Market Value | L61: Isle of Wight Council - LGPS | O61: Alderbrook Leading Edge School and Arts College | P61: 119994 | Q61: 2011-08-01 | R61: West Midlands | S61: Solihull Metropolitan Borough Council
L62: Islington - LGPS | O62: Alderman Jacobs Primary School | P62: 119676 | Q62: 2011-04-01 | R62: East of England | S62: Cambridgeshire County Council
L63: Kensington and Chelsea - LGPS | O63: Alderman White School | P63: 122717 | Q63: 2012-10-01 | R63: East Midlands | S63: Nottinghamshire County Council
L64: Kent County Council (Kent Pension Fund) - LGPS | O64: Aldersley High School | P64: 122992 | Q64: 2013-01-01 | R64: West Midlands | S64: Wolverhampton City Council
L65: Kingston upon Thames - LGPS | O65: Aldridge School - A Science College | P65: 121205 | Q65: 2012-04-01 | R65: West Midlands | S65: Walsall Metropolitan Borough Council
L66: Lambeth - LGPS | O66: Alec Hunter Humanities College | P66: 123939 | Q66: 2013-04-01 | R66: East of England | S66: Essex County Council
L67: Lancashire County Council - LGPS | O67: Alec Reed Academy, The | P67: 118409 | Q67: 2003-09-01 | R67: London | S67: Ealing London Borough Council
L68: Leicestershire County Council - LGPS | O68: Alexandra Infant School | P68: 125230 | Q68: 2013-12-01 | R68: London | S68: Bromley London Borough Council
L69: Lewisham - LGPS | O69: Alexandra Junior School | P69: 125200 | Q69: 2013-09-01 | R69: London | S69: Bromley London Borough Council
L70: Lincolnshire County Council - LGPS | O70: Alexandra Park School | P70: 120567 | Q70: 2011-10-01 | R70: London | S70: Haringey London Borough Council
L71: London Pension Fund Authority - LGPS | O71: Alexandra School | P71: 124171 | Q71: 2013-09-01 | R71: London | S71: Harrow London Borough Council
L72: Merseyside Pension Fund - LGPS | O72: Alfriston School | P72: 120753 | Q72: 2012-03-01 | R72: South East | S72: Buckinghamshire County Council
L73: Merton - LGPS | O73: All Faiths' Children's Community School | P73: 121000 | Q73: 2012-06-01 | R73: South East | S73: Medway Council
L74: Newham - LGPS | O74: All Hallows Catholic College | P74: 123111 | Q74: 2013-01-01 | R74: North West | S74: Cheshire East Council
L75: Norfolk County Council - LGPS | O75: All Saints Academy - Barnsley | P75: 120930 | Q75: 2012-09-01 | R75: Yorkshire & Humberside | S75: Barnsley Metropolitan Borough Council
L76: North Yorkshire County Council - LGPS | O76: All Saints Academy - Bedford | P76: 119040 | Q76: 2009-09-01 | R76: East of England | S76: Central Bedfordshire Council
L77: Northamptonshire County Council - LGPS | O77: All Saints Academy - Stockton-on-Tees | P77: 120760 | Q77: 2013-05-01 | R77: North East | S77: Stockton-on-Tees Borough Council
L78: Northumberland County Council - LGPS | O78: All Saints' Academy, The - Cheltenham | P78: 119150 | Q78: 2011-09-01 | R78: South West | S78: Gloucestershire County Council
L79: Nottinghamshire County Council - LGPS | O79: All Saints Babbacombe CofE Primary School | P79: 130163 | Q79: 2014-03-01 | R79: South West | S79: Torbay Council
L80: Oxfordshire County Council - LGPS | O80: All Saints Catholic College - Dukinfield | P80: 124644 | Q80: 2013-06-01 | R80: North West | S80: Tameside Metropolitan Borough Council
L81: Redbridge - LGPS | O81: All Saints' Catholic High School - Sheffield | P81: 121197 | Q81: 2012-07-01 | R81: Yorkshire & Humberside | S81: Sheffield City Council
L82: Richmond upon Thames - LGPS | O82: All Saints Church of England Academy - Plymouth | P82: 119199 | Q82: 2010-09-01 | R82: South West | S82: Plymouth City Council
L83: Royal County of Berkshire Pension Fund - LGPS | O83: All Saints Interchurch Academy - March | P83: 124183 | Q83: 2013-04-01 | R83: East of England | S83: Cambridgeshire County Council
L84: Shropshire County Pension Fund - LGPS | O84: All Saints Junior School - Reading | P84: 120504 | Q84: 2011-09-01 | R84: South East | S84: Reading Borough Council
L85: Somerset County Council - LGPS | O85: Alleyne's Academy | P85: 123084 | Q85: 2013-09-01 | R85: West Midlands | S85: Staffordshire County Council
L86: South Yorkshire Integrated Transport Pension Fund - LGPS | O86: Allhallows Primary School | P86: 124701 | Q86: 2013-09-01 | R86: South East | S86: Medway Council
L87: South Yorkshire Pension Authority - LGPS | O87: Allington Primary School | P87: 122969 | Q87: 2012-12-01 | R87: South East | S87: Kent County Council
L88: Southwark - LGPS | O88: Alma Primary | P88: 123357 | Q88: 2013-09-01 | R88: London | S88: Barnet London Borough Council
L89: Staffordshire County Council - LGPS | O89: Alperton Community School | P89: 122325 | Q89: 2012-09-01 | R89: London | S89: Brent London Borough Council
L90: Suffolk County Council - LGPS | O90: Alsager School | P90: 124251 | Q90: 2013-09-01 | R90: North West | S90: Cheshire East Council
L91: Surrey County Council - LGPS | O91: Altrincham College of Arts | P91: 122124 | Q91: 2012-09-01 | R91: North West | S91: Trafford Borough Council
L92: Sutton - LGPS | O92: Altrincham Grammar School for Boys | P92: 119511 | Q92: 2011-02-01 | R92: North West | S92: Trafford Borough Council
L93: Teesside Pension Fund - LPGS | O93: Altrincham Grammar School for Girls | P93: 120289 | Q93: 2011-08-17 | R93: North West | S93: Trafford Borough Council
L94: Tower Hamlets - LGPS | O94: Altwood CofE Secondary School | P94: 122326 | Q94: 2012-07-01 | R94: South East | S94: Royal Borough of Windsor and Maidenhead
L95: Tyne and Wear Pension Fund - LGPS | O95: Ambleside Primary School | P95: 122945 | Q95: 2013-04-01 | R95: East Midlands | S95: Nottingham City Council
L96: Waltham Forest - LGPS | O96: Amersham School | P96: 120372 | Q96: 2011-09-01 | R96: South East | S96: Buckinghamshire County Council
L97: Wandsworth - LGPS | O97: Amery Hill School | P97: 120500 | Q97: 2011-10-01 | R97: South East | S97: Hampshire County Council
L98: Warwickshire County Council - LGPS | O98: Amherst School | P98: 119499 | Q98: 2011-03-01 | R98: South East | S98: Kent County Council
L99: West Midlands Pension Fund - LGPS | O99: Anand Primary School | P99: 123289 | Q99: 2013-09-01 | R99: West Midlands | S99: Wolverhampton City Council
L100: West Sussex County Council - LGPS | O100: Anchorsholme Primary School | P100: 124111 | Q100: 2013-09-01 | R100: North West | S100: Blackpool Council
L101: West Yorkshire Pension Fund - LGPS | O101: Anglesey Primary Academy | P101: 123086 | Q101: 2012-12-01 | R101: West Midlands | S101: Staffordshire County Council
L102: Westminster City Council - LGPS | O102: Anglo European School | P102: 120813 | Q102: 2011-12-01T12:06:56 | R102: East of England | S102: Essex County Council
L103: Wiltshire County Council - LGPS | O103: Ansford Academy | P103: 119839 | Q103: 2011-07-01 | R103: South West | S103: Somerset County Council
L104: Worcestershire County Council - LGPS | O104: Appleby Grammar School | P104: 120251 | Q104: 2011-08-01 | R104: North West | S104: Cumbria County Council
O105: Applecroft School | P105: 120654 | Q105: 2012-03-01 | R105: East of England | S105: Hertfordshire County Council
O106: Applegarth Nursery and Infant School | P106: 123941 | Q106: 2013-04-01 | R106: London | S106: Croydon London Borough Council
O107: Appleton Academy - Bradford | P107: 119126 | Q107: 2009-09-01 | R107: Yorkshire & Humberside | S107: Bradford Metropolitan District Council
O108: Appleton Primary School - Hull | P108: 124252 | Q108: 2013-10-01 | R108: Yorkshire & Humberside | S108: Hull City Council
O109: Appleton School, The - Benfleet | P109: 119556 | Q109: 2011-04-01 | R109: East of England | S109: Essex County Council
O110: Arbours Academy, The | P110: 122541 | Q110: 2013-01-01 | R110: East Midlands | S110: Northamptonshire County Council
O111: Archbishop Benson CofE Primary School | P111: 120258 | Q111: 2011-08-01 | R111: South West | S111: Cornwall Council
O112: Archbishop Cranmer Church of England Academy | P112: 124584 | Q112: 2014-02-01 | R112: East Midlands | S112: Nottinghamshire County Council
O113: Archbishop Holgate's School | P113: 119523 | Q113: 2011-04-01 | R113: Yorkshire & Humberside | S113: City of York Council
O114: Archbishop Sentamu Academy | P114: 119095 | Q114: 2008-09-01 | R114: Yorkshire & Humberside | S114: Hull City Council
O115: Archer Academy, The | P115: 123349 | Q115: 2013-09-01 | R115: London | S115: Barnet London Borough Council
O116: Arden Academy | P116: 119276 | Q116: 2010-10-01 | R116: West Midlands | S116: Solihull Metropolitan Borough Council
O117: Arden Grove Infant and Nursery School | P117: 124389 | Q117: 2013-06-01 | R117: East of England | S117: Norfolk County Council
O118: Ardley Hill Academy | P118: 121192 | Q118: 2012-06-01 | R118: East of England | S118: Central Bedfordshire Council
O119: Ark Academy | P119: 118659 | Q119: 2008-09-30 | R119: London | S119: Brent London Borough Council
O120: ARK All Saints Academy | P120: 122186 | Q120: 2013-09-01 | R120: London | S120: Southwark London Borough Council
O121: ARK Atwood Primary Academy | P121: 120505 | Q121: 2011-09-01 | R121: London | S121: Westminster City Council
O122: ARK Ayrton Primary Academy | P122: 123906 | Q122: 2013-09-01 | R122: South East | S122: Portsmouth City Council
O123: ARK Bentworth Primary Academy | P123: 122381 | Q123: 2012-09-01 | R123: London | S123: Hammersmith and Fulham London Borough Council
O124: ARK Bolingbroke Academy | P124: 122013 | Q124: 2012-09-01 | R124: London | S124: Wandsworth London Borough Council
O125: ARK Brunel Primary Academy | P125: 124488 | Q125: 2013-09-01 | R125: London | S125: Royal Borough of Kensington and Chelsea Council
O126: ARK Conway Primary Academy | P126: 120506 | Q126: 2011-09-01 | R126: London | S126: Hammersmith and Fulham London Borough Council
O127: ARK Franklin Primary Academy | P127: 124680 | Q127: 2013-09-01 | R127: London | S127: Brent London Borough Council
O128: ARK Globe Academy | P128: 118614 | Q128: 2008-09-01 | R128: London | S128: Southwark London Borough Council
O129: ARK John Keats Academy | P129: 123290 | Q129: 2013-09-01 | R129: London | S129: Enfield London Borough Council
O130: ARK Kings Academy | P130: 120907 | Q130: 2012-09-01 | R130: West Midlands | S130: Birmingham City Council
O131: ARK Oval Primary Academy | P131: 120114 | Q131: 2011-09-01 | R131: London | S131: Croydon London Borough Council
O132: ARK Priory Primary Academy | P132: 121923 | Q132: 2013-09-01 | R132: London | S132: Ealing London Borough Council
O133: ARK Putney Academy | P133: 122388 | Q133: 2012-09-01 | R133: London | S133: Wandsworth London Borough Council
O134: ARK Rose Academy | P134: 121847 | Q134: 2012-09-01 | R134: West Midlands | S134: Birmingham City Council
O135: ARK Swift Primary Academy | P135: 124224 | Q135: 2013-09-01 | R135: London | S135: Hammersmith and Fulham London Borough Council
O136: ARK Tindal Primary Academy | P136: 120992 | Q136: 2012-09-01 | R136: West Midlands | S136: Birmingham City Council
O137: ARK William Parker Academy | P137: 124511 | Q137: 2013-09-01 | R137: South East | S137: East Sussex County Council
O138: Armthorpe School, The | P138: 121002 | Q138: 2012-07-01 | R138: Yorkshire & Humberside | S138: Doncaster Metropolitan Borough Council
O139: Arnewood School Academy, The | P139: 119649 | Q139: 2011-04-01 | R139: South East | S139: Hampshire County Council
O140: Arnold Academy | P140: 119841 | Q140: 2011-07-01 | R140: East of England | S140: Central Bedfordshire Council
O141: Arnold Hill School and Technology College | P141: 120591 | Q141: 2011-10-01 | R141: East Midlands | S141: Nottinghamshire County Council
O142: Arnside National CofE School | P142: 120652 | Q142: 2011-12-01 | R142: North West | S142: Cumbria County Council
O143: Arrow Vale RSA Academy | P143: 122314 | Q143: 2012-09-01 | R143: West Midlands | S143: Worcestershire County Council
O144: Arthur Mellows Village College | P144: 119274 | Q144: 2010-09-01 | R144: East of England | S144: Peterborough City Council
O145: Arthur Terry School, The | P145: 120018 | Q145: 2012-05-01 | R145: West Midlands | S145: Birmingham City Council
O146: Asfordby Hill Primary School | P146: 124150 | Q146: 2013-03-01 | R146: East Midlands | S146: Leicestershire County Council
O147: Ash Field Academy | P147: 121036 | Q147: 2012-04-01 | R147: East Midlands | S147: Leicester City Council
O148: Ash Green School and Arts College | P148: 120803 | Q148: 2012-01-01 | R148: West Midlands | S148: Warwickshire County Council
O149: Ash Grove Primary and Nursery School | P149: 124642 | Q149: 2013-12-01 | R149: North West | S149: Cheshire East Council
O150: Ash Hill Academy | P150: 120458 | Q150: 2011-09-01 | R150: Yorkshire & Humberside | S150: Doncaster Metropolitan Borough Council
O151: Ashburton Primary School | P151: 119678 | Q151: 2011-04-01 | R151: South West | S151: Devon County Council
O152: Ashby Hill Top Primary School | P152: 122680 | Q152: 2012-10-01 | R152: East Midlands | S152: Leicestershire County Council
O153: Ashby School | P153: 122080 | Q153: 2012-10-01 | R153: East Midlands | S153: Leicestershire County Council
O154: Ashcroft Technology Academy | P154: 118598 | Q154: 2007-09-01 | R154: London | S154: Wandsworth London Borough Council
O155: Ashfield Comprehensive School | P155: 121097 | Q155: 2012-04-01 | R155: East Midlands | S155: Nottingham City Council
O156: Ashingdon Primary Academy | P156: 120332 | Q156: 2011-09-01 | R156: East of England | S156: Essex County Council
O157: Ashlawn School Academy Trust | P157: 119553 | Q157: 2011-04-01 | R157: West Midlands | S157: Warwickshire County Council
O158: Ashley School, The | P158: 120339 | Q158: 2011-09-01 | R158: East of England | S158: Suffolk County Council
O159: Ashmole Academy | P159: 119277 | Q159: 2010-10-01 | R159: London | S159: Barnet London Borough Council
O160: Ashperton Primary Academy | P160: 119524 | Q160: 2011-04-01 | R160: West Midlands | S160: Herefordshire Council
O161: Ashton-on-Mersey School | P161: 122001 | Q161: 2012-05-01T14:15:11 | R161: North West | S161: Trafford Borough Council
O162: Ashwell Pupil Referral Unit | P162: 123233 | Q162: 2013-04-01 | R162: Yorkshire & Humberside | S162: Hull City Council
O163: Aston Academy - Rotherham | P163: 119718 | Q163: 2011-05-01 | R163: Yorkshire & Humberside | S163: Rotherham Metropolitan Borough Council
O164: Aston Manor Academy - Birmingham | P164: 119882 | Q164: 2011-07-01 | R164: West Midlands | S164: Birmingham City Council
O165: Aston UTC - Birmingham | P165: 122150 | Q165: 2012-09-01 | R165: West Midlands | S165: Birmingham City Council
O166: Astor College | P166: 122113 | Q166: 2012-06-01 | R166: South East | S166: Kent County Council
O167: Astwood Bank First School | P167: 124767 | Q167: 2013-10-01 | R167: West Midlands | S167: Worcestershire County Council
O168: Atherton Community School | P168: 121960 | Q168: 2012-09-01 | R168: North West | S168: Wigan Metropolitan Borough Council
O169: Atkinson Road Primary School | P169: 121210 | Q169: 2012-06-01 | R169: North East | S169: Newcastle Upon Tyne City Council
O170: Attleborough High School | P170: 127652 | Q170: 2014-01-01 | R170: East of England | S170: Norfolk County Council
O171: Atwood Primary School | P171: 128107 | Q171: 2014-01-01 | R171: London | S171: Croydon London Borough Council
O172: Auckley Junior and Infant School | P172: 120431 | Q172: 2011-09-01 | R172: Yorkshire & Humberside | S172: Doncaster Metropolitan Borough Council
O173: Audenshaw School | P173: 119350 | Q173: 2010-09-01 | R173: North West | S173: Tameside Metropolitan Borough Council
O174: Austrey CofE Primary School | P174: 123227 | Q174: 2013-09-01 | R174: West Midlands | S174: Warwickshire County Council
O175: Avanti House School | P175: 123026 | Q175: 2012-09-01 | R175: London | S175: Harrow London Borough Council
O176: Avenue School, The | P176: 120383 | Q176: 2011-09-01 | R176: South East | S176: Reading Borough Council
O177: Aveton Gifford CofE Primary School | P177: 122910 | Q177: 2012-09-01 | R177: South West | S177: Devon County Council
O178: Avishayes Community Primary School | P178: 120174 | Q178: 2011-08-01 | R178: South West | S178: Somerset County Council
O179: Avonbourne School | P179: 121944 | Q179: 2012-06-01 | R179: South West | S179: Bournemouth Borough Council
O180: Axbridge Church of England First School | P180: 122395 | Q180: 2012-09-01 | R180: South West | S180: Somerset County Council
O181: Axholme Academy, The | P181: 120982 | Q181: 2012-01-01 | R181: Yorkshire & Humberside | S181: North Lincolnshire Council
O182: Aylesbury Grammar School | P182: 119884 | Q182: 2011-07-01 | R182: South East | S182: Buckinghamshire County Council
O183: Aylesbury High School | P183: 119846 | Q183: 2011-07-01 | R183: South East | S183: Buckinghamshire County Council
O184: Aylesbury Vale Academy, The | P184: 118894 | Q184: 2009-09-01 | R184: South East | S184: Buckinghamshire County Council
O185: Aylesford Primary School | P185: 124228 | Q185: 2013-12-01 | R185: South East | S185: Kent County Council
O186: Aylesford School & Sixth Form College | P186: 120810 | Q186: 2012-01-01 | R186: West Midlands | S186: Warwickshire County Council
O187: Aylward Academy | P187: 119211 | Q187: 2010-09-01 | R187: London | S187: Enfield London Borough Council
O188: Backwell School | P188: 119719 | Q188: 2011-05-01 | R188: South West | S188: North Somerset District Council
O189: Bacon's College | P189: 118383 | Q189: 2007-09-01 | R189: London | S189: Southwark London Borough Council
O190: Bacup and Rawtenstall Grammar School | P190: 122800 | Q190: 2012-10-01 | R190: North West | S190: Lancashire County Council
O191: Baird Primary Academy, The | P191: 124819 | Q191: 2014-01-01 | R191: South East | S191: East Sussex County Council
O192: Balby Carr Community Sports and Science College | P192: 124987 | Q192: 2013-11-01 | R192: Yorkshire & Humberside | S192: Doncaster Metropolitan Borough Council
O193: Balcarras School | P193: 119474 | Q193: 2011-02-01 | R193: South West | S193: Gloucestershire County Council
O194: Balgowan Primary School | P194: 120216 | Q194: 2011-08-01 | R194: London | S194: Bromley London Borough Council
O195: Balsall Common Primary School | P195: 122160 | Q195: 2012-08-01 | R195: West Midlands | S195: Solihull Metropolitan Borough Council
O196: Bamford Academy | P196: 120360 | Q196: 2011-09-01 | R196: North West | S196: Rochdale Metropolitan Borough Council
O197: Banbury Academy | P197: 120641 | Q197: 2012-08-01T12:41:05 | R197: South East | S197: Oxfordshire County Council
O198: Bannerman Road Community Academy | P198: 122940 | Q198: 2013-01-01 | R198: South West | S198: Bristol City Council
O199: Barbara Priestman School | P199: 122338 | Q199: 2012-08-01 | R199: North East | S199: Sunderland City Council
O200: Barclay Primary School | P200: 122408 | Q200: 2012-09-01 | R200: London | S200: Waltham Forest London Borough Council
O201: Barnby Dun Primary School | P201: 121426 | Q201: 2012-06-01 | R201: Yorkshire & Humberside | S201: Doncaster Metropolitan Borough Council
O202: Barnby Road Academy Primary and Nursery school | P202: 119256 | Q202: 2010-09-06 | R202: East Midlands | S202: Nottinghamshire County Council
... 3720 more rows

Sheet NumData (hidden)
A1: Academy ID 1 | B1: Academy ID 2 | C1: Academy Name 2 | D1: Sheet Name | E1: Cell ID | F1: Value
A2: ='Standing Data'!$D$15 ->  | B2: ='Standing Data'!$F$15 -> 0 | C2: ='Standing Data'!$F$9 -> 0 | D2: Fin.Return | E2: E18 | F2: =Fin.Return!E20 -> 0
A3: ='Standing Data'!$D$15 ->  | B3: ='Standing Data'!$F$15 -> 0 | C3: ='Standing Data'!$F$9 -> 0 | D3: Fin.Return | E3: E19 | F3: =Fin.Return!E21 -> 0
A4: ='Standing Data'!$D$15 ->  | B4: ='Standing Data'!$F$15 -> 0 | C4: ='Standing Data'!$F$9 -> 0 | D4: Fin.Return | E4: E20 | F4: =Fin.Return!E22 -> 0
A5: ='Standing Data'!$D$15 ->  | B5: ='Standing Data'!$F$15 -> 0 | C5: ='Standing Data'!$F$9 -> 0 | D5: Fin.Return | E5: E21 | F5: =Fin.Return!E23 -> 0
A6: ='Standing Data'!$D$15 ->  | B6: ='Standing Data'!$F$15 -> 0 | C6: ='Standing Data'!$F$9 -> 0 | D6: Fin.Return | E6: E23 | F6: =Fin.Return!E25 -> 0
A7: ='Standing Data'!$D$15 ->  | B7: ='Standing Data'!$F$15 -> 0 | C7: ='Standing Data'!$F$9 -> 0 | D7: Fin.Return | E7: E24 | F7: =Fin.Return!E26 -> 0
A8: ='Standing Data'!$D$15 ->  | B8: ='Standing Data'!$F$15 -> 0 | C8: ='Standing Data'!$F$9 -> 0 | D8: Fin.Return | E8: E26 | F8: =Fin.Return!E28 -> 0
A9: ='Standing Data'!$D$15 ->  | B9: ='Standing Data'!$F$15 -> 0 | C9: ='Standing Data'!$F$9 -> 0 | D9: Fin.Return | E9: E29 | F9: =Fin.Return!E31 -> 0
A10: ='Standing Data'!$D$15 ->  | B10: ='Standing Data'!$F$15 -> 0 | C10: ='Standing Data'!$F$9 -> 0 | D10: Fin.Return | E10: E30 | F10: =Fin.Return!E32 -> 0
A11: ='Standing Data'!$D$15 ->  | B11: ='Standing Data'!$F$15 -> 0 | C11: ='Standing Data'!$F$9 -> 0 | D11: Fin.Return | E11: E31 | F11: =Fin.Return!E33 -> 0
A12: ='Standing Data'!$D$15 ->  | B12: ='Standing Data'!$F$15 -> 0 | C12: ='Standing Data'!$F$9 -> 0 | D12: Fin.Return | E12: E33 | F12: =Fin.Return!E35 -> 0
A13: ='Standing Data'!$D$15 ->  | B13: ='Standing Data'!$F$15 -> 0 | C13: ='Standing Data'!$F$9 -> 0 | D13: Fin.Return | E13: E34 | F13: =Fin.Return!E36 -> 0
A14: ='Standing Data'!$D$15 ->  | B14: ='Standing Data'!$F$15 -> 0 | C14: ='Standing Data'!$F$9 -> 0 | D14: Fin.Return | E14: E35 | F14: =Fin.Return!E37 -> 0
A15: ='Standing Data'!$D$15 ->  | B15: ='Standing Data'!$F$15 -> 0 | C15: ='Standing Data'!$F$9 -> 0 | D15: Fin.Return | E15: E37 | F15: =Fin.Return!E39 -> 0
A16: ='Standing Data'!$D$15 ->  | B16: ='Standing Data'!$F$15 -> 0 | C16: ='Standing Data'!$F$9 -> 0 | D16: Fin.Return | E16: E38 | F16: =Fin.Return!E40 -> 0
A17: ='Standing Data'!$D$15 ->  | B17: ='Standing Data'!$F$15 -> 0 | C17: ='Standing Data'!$F$9 -> 0 | D17: Fin.Return | E17: E39 | F17: =Fin.Return!E41 -> 0
A18: ='Standing Data'!$D$15 ->  | B18: ='Standing Data'!$F$15 -> 0 | C18: ='Standing Data'!$F$9 -> 0 | D18: Fin.Return | E18: E41 | F18: =Fin.Return!E43 -> 0
A19: ='Standing Data'!$D$15 ->  | B19: ='Standing Data'!$F$15 -> 0 | C19: ='Standing Data'!$F$9 -> 0 | D19: Fin.Return | E19: E43 | F19: =Fin.Return!E45 -> 0
A20: ='Standing Data'!$D$15 ->  | B20: ='Standing Data'!$F$15 -> 0 | C20: ='Standing Data'!$F$9 -> 0 | D20: Fin.Return | E20: E44 | F20: =Fin.Return!E46 -> 0
A21: ='Standing Data'!$D$15 ->  | B21: ='Standing Data'!$F$15 -> 0 | C21: ='Standing Data'!$F$9 -> 0 | D21: Fin.Return | E21: E45 | F21: =Fin.Return!E47 -> 0
A22: ='Standing Data'!$D$15 ->  | B22: ='Standing Data'!$F$15 -> 0 | C22: ='Standing Data'!$F$9 -> 0 | D22: Fin.Return | E22: E46 | F22: =Fin.Return!E48 -> 0
A23: ='Standing Data'!$D$15 ->  | B23: ='Standing Data'!$F$15 -> 0 | C23: ='Standing Data'!$F$9 -> 0 | D23: Fin.Return | E23: E48 | F23: =Fin.Return!E50 -> 0
A24: ='Standing Data'!$D$15 ->  | B24: ='Standing Data'!$F$15 -> 0 | C24: ='Standing Data'!$F$9 -> 0 | D24: Fin.Return | E24: E50 | F24: =Fin.Return!E52 -> 0
A25: ='Standing Data'!$D$15 ->  | B25: ='Standing Data'!$F$15 -> 0 | C25: ='Standing Data'!$F$9 -> 0 | D25: Fin.Return | E25: E51 | F25: =Fin.Return!E53 -> 0
A26: ='Standing Data'!$D$15 ->  | B26: ='Standing Data'!$F$15 -> 0 | C26: ='Standing Data'!$F$9 -> 0 | D26: Fin.Return | E26: E52 | F26: =Fin.Return!E54 -> 0
A27: ='Standing Data'!$D$15 ->  | B27: ='Standing Data'!$F$15 -> 0 | C27: ='Standing Data'!$F$9 -> 0 | D27: Fin.Return | E27: E54 | F27: =Fin.Return!E56 -> 0
A28: ='Standing Data'!$D$15 ->  | B28: ='Standing Data'!$F$15 -> 0 | C28: ='Standing Data'!$F$9 -> 0 | D28: Fin.Return | E28: E69 | F28: =Fin.Return!E71 -> 0
A29: ='Standing Data'!$D$15 ->  | B29: ='Standing Data'!$F$15 -> 0 | C29: ='Standing Data'!$F$9 -> 0 | D29: Fin.Return | E29: E70 | F29: =Fin.Return!E72 -> 0
A30: ='Standing Data'!$D$15 ->  | B30: ='Standing Data'!$F$15 -> 0 | C30: ='Standing Data'!$F$9 -> 0 | D30: Fin.Return | E30: E71 | F30: =Fin.Return!E73 -> 0
A31: ='Standing Data'!$D$15 ->  | B31: ='Standing Data'!$F$15 -> 0 | C31: ='Standing Data'!$F$9 -> 0 | D31: Fin.Return | E31: E72 | F31: =Fin.Return!E74 -> 0
A32: ='Standing Data'!$D$15 ->  | B32: ='Standing Data'!$F$15 -> 0 | C32: ='Standing Data'!$F$9 -> 0 | D32: Fin.Return | E32: E73 | F32: =Fin.Return!E75 -> 0
A33: ='Standing Data'!$D$15 ->  | B33: ='Standing Data'!$F$15 -> 0 | C33: ='Standing Data'!$F$9 -> 0 | D33: Fin.Return | E33: E75 | F33: =Fin.Return!E77 -> 0
A34: ='Standing Data'!$D$15 ->  | B34: ='Standing Data'!$F$15 -> 0 | C34: ='Standing Data'!$F$9 -> 0 | D34: Fin.Return | E34: E76 | F34: =Fin.Return!E78 -> 0
A35: ='Standing Data'!$D$15 ->  | B35: ='Standing Data'!$F$15 -> 0 | C35: ='Standing Data'!$F$9 -> 0 | D35: Fin.Return | E35: E134 | F35: =Fin.Return!E136 -> 0
A36: ='Standing Data'!$D$15 ->  | B36: ='Standing Data'!$F$15 -> 0 | C36: ='Standing Data'!$F$9 -> 0 | D36: Fin.Return | E36: E135 | F36: =Fin.Return!E137 -> 0
A37: ='Standing Data'!$D$15 ->  | B37: ='Standing Data'!$F$15 -> 0 | C37: ='Standing Data'!$F$9 -> 0 | D37: Fin.Return | E37: E136 | F37: =Fin.Return!E138 -> 0
A38: ='Standing Data'!$D$15 ->  | B38: ='Standing Data'!$F$15 -> 0 | C38: ='Standing Data'!$F$9 -> 0 | D38: Fin.Return | E38: E138 | F38: =Fin.Return!E140 -> 0
A39: ='Standing Data'!$D$15 ->  | B39: ='Standing Data'!$F$15 -> 0 | C39: ='Standing Data'!$F$9 -> 0 | D39: Fin.Return | E39: E144 | F39: =Fin.Return!E146 -> 0
A40: ='Standing Data'!$D$15 ->  | B40: ='Standing Data'!$F$15 -> 0 | C40: ='Standing Data'!$F$9 -> 0 | D40: Fin.Return | E40: E145 | F40: =Fin.Return!E147 -> 0
A41: ='Standing Data'!$D$15 ->  | B41: ='Standing Data'!$F$15 -> 0 | C41: ='Standing Data'!$F$9 -> 0 | D41: Fin.Return | E41: E146 | F41: =Fin.Return!E148 -> 0
A42: ='Standing Data'!$D$15 ->  | B42: ='Standing Data'!$F$15 -> 0 | C42: ='Standing Data'!$F$9 -> 0 | D42: Fin.Return | E42: E147 | F42: =Fin.Return!E150 -> 0
A43: ='Standing Data'!$D$15 ->  | B43: ='Standing Data'!$F$15 -> 0 | C43: ='Standing Data'!$F$9 -> 0 | D43: Fin.Return | E43: E149 | F43: =Fin.Return!E152 -> 0
A44: ='Standing Data'!$D$15 ->  | B44: ='Standing Data'!$F$15 -> 0 | C44: ='Standing Data'!$F$9 -> 0 | D44: Fin.Return | E44: E155 | F44: =Fin.Return!E158 -> 0
A45: ='Standing Data'!$D$15 ->  | B45: ='Standing Data'!$F$15 -> 0 | C45: ='Standing Data'!$F$9 -> 0 | D45: Fin.Return | E45: E156 | F45: =Fin.Return!E159 -> 0
A46: ='Standing Data'!$D$15 ->  | B46: ='Standing Data'!$F$15 -> 0 | C46: ='Standing Data'!$F$9 -> 0 | D46: Fin.Return | E46: E157 | F46: =Fin.Return!E160 -> 0
A47: ='Standing Data'!$D$15 ->  | B47: ='Standing Data'!$F$15 -> 0 | C47: ='Standing Data'!$F$9 -> 0 | D47: Fin.Return | E47: E158 | F47: =Fin.Return!E161 -> 0
A48: ='Standing Data'!$D$15 ->  | B48: ='Standing Data'!$F$15 -> 0 | C48: ='Standing Data'!$F$9 -> 0 | D48: Fin.Return | E48: E160 | F48: =Fin.Return!E163 -> 0
A49: ='Standing Data'!$D$15 ->  | B49: ='Standing Data'!$F$15 -> 0 | C49: ='Standing Data'!$F$9 -> 0 | D49: Fin.Return | E49: E168 | F49: =Fin.Return!E171 -> 0
A50: ='Standing Data'!$D$15 ->  | B50: ='Standing Data'!$F$15 -> 0 | C50: ='Standing Data'!$F$9 -> 0 | D50: Fin.Return | E50: E169 | F50: =Fin.Return!E172 -> 0
A51: ='Standing Data'!$D$15 ->  | B51: ='Standing Data'!$F$15 -> 0 | C51: ='Standing Data'!$F$9 -> 0 | D51: Fin.Return | E51: E170 | F51: =Fin.Return!E173 -> 0
A52: ='Standing Data'!$D$15 ->  | B52: ='Standing Data'!$F$15 -> 0 | C52: ='Standing Data'!$F$9 -> 0 | D52: Fin.Return | E52: E171 | F52: =Fin.Return!E174 -> 0
A53: ='Standing Data'!$D$15 ->  | B53: ='Standing Data'!$F$15 -> 0 | C53: ='Standing Data'!$F$9 -> 0 | D53: Fin.Return | E53: E172 | F53: =Fin.Return!E175 -> 0
A54: ='Standing Data'!$D$15 ->  | B54: ='Standing Data'!$F$15 -> 0 | C54: ='Standing Data'!$F$9 -> 0 | D54: Fin.Return | E54: E173 | F54: =Fin.Return!E176 -> 0
A55: ='Standing Data'!$D$15 ->  | B55: ='Standing Data'!$F$15 -> 0 | C55: ='Standing Data'!$F$9 -> 0 | D55: Fin.Return | E55: E174 | F55: =Fin.Return!E177 -> 0
A56: ='Standing Data'!$D$15 ->  | B56: ='Standing Data'!$F$15 -> 0 | C56: ='Standing Data'!$F$9 -> 0 | D56: Fin.Return | E56: E175 | F56: =Fin.Return!E178 -> 0
A57: ='Standing Data'!$D$15 ->  | B57: ='Standing Data'!$F$15 -> 0 | C57: ='Standing Data'!$F$9 -> 0 | D57: Fin.Return | E57: E176 | F57: =Fin.Return!E179 -> 0
A58: ='Standing Data'!$D$15 ->  | B58: ='Standing Data'!$F$15 -> 0 | C58: ='Standing Data'!$F$9 -> 0 | D58: Fin.Return | E58: E177 | F58: =Fin.Return!E180 -> 0
A59: ='Standing Data'!$D$15 ->  | B59: ='Standing Data'!$F$15 -> 0 | C59: ='Standing Data'!$F$9 -> 0 | D59: Fin.Return | E59: E178 | F59: =Fin.Return!E181 -> 0
A60: ='Standing Data'!$D$15 ->  | B60: ='Standing Data'!$F$15 -> 0 | C60: ='Standing Data'!$F$9 -> 0 | D60: Fin.Return | E60: E179 | F60: =Fin.Return!E182 -> 0
A61: ='Standing Data'!$D$15 ->  | B61: ='Standing Data'!$F$15 -> 0 | C61: ='Standing Data'!$F$9 -> 0 | D61: Fin.Return | E61: E182 | F61: =Fin.Return!E185 -> 0
A62: ='Standing Data'!$D$15 ->  | B62: ='Standing Data'!$F$15 -> 0 | C62: ='Standing Data'!$F$9 -> 0 | D62: Fin.Return | E62: E183 | F62: =Fin.Return!E186 -> 0
A63: ='Standing Data'!$D$15 ->  | B63: ='Standing Data'!$F$15 -> 0 | C63: ='Standing Data'!$F$9 -> 0 | D63: Fin.Return | E63: E184 | F63: =Fin.Return!E187 -> 0
A64: ='Standing Data'!$D$15 ->  | B64: ='Standing Data'!$F$15 -> 0 | C64: ='Standing Data'!$F$9 -> 0 | D64: Fin.Return | E64: E185 | F64: =Fin.Return!E188 -> 0
A65: ='Standing Data'!$D$15 ->  | B65: ='Standing Data'!$F$15 -> 0 | C65: ='Standing Data'!$F$9 -> 0 | D65: Fin.Return | E65: E186 | F65: =Fin.Return!E189 -> 0
A66: ='Standing Data'!$D$15 ->  | B66: ='Standing Data'!$F$15 -> 0 | C66: ='Standing Data'!$F$9 -> 0 | D66: Fin.Return | E66: E187 | F66: =Fin.Return!E190 -> 0
A67: ='Standing Data'!$D$15 ->  | B67: ='Standing Data'!$F$15 -> 0 | C67: ='Standing Data'!$F$9 -> 0 | D67: Fin.Return | E67: E188 | F67: =Fin.Return!E191 -> 0
A68: ='Standing Data'!$D$15 ->  | B68: ='Standing Data'!$F$15 -> 0 | C68: ='Standing Data'!$F$9 -> 0 | D68: Fin.Return | E68: E189 | F68: =Fin.Return!E192 -> 0
A69: ='Standing Data'!$D$15 ->  | B69: ='Standing Data'!$F$15 -> 0 | C69: ='Standing Data'!$F$9 -> 0 | D69: Fin.Return | E69: E191 | F69: =Fin.Return!E194 -> 0
A70: ='Standing Data'!$D$15 ->  | B70: ='Standing Data'!$F$15 -> 0 | C70: ='Standing Data'!$F$9 -> 0 | D70: Fin.Return | E70: E193 | F70: =Fin.Return!E196 -> 0
A71: ='Standing Data'!$D$15 ->  | B71: ='Standing Data'!$F$15 -> 0 | C71: ='Standing Data'!$F$9 -> 0 | D71: Fin.Return | E71: E194 | F71: =Fin.Return!E197 -> 0
A72: ='Standing Data'!$D$15 ->  | B72: ='Standing Data'!$F$15 -> 0 | C72: ='Standing Data'!$F$9 -> 0 | D72: Fin.Return | E72: E195 | F72: =Fin.Return!E198 -> 0
A73: ='Standing Data'!$D$15 ->  | B73: ='Standing Data'!$F$15 -> 0 | C73: ='Standing Data'!$F$9 -> 0 | D73: Fin.Return | E73: E196 | F73: =Fin.Return!E199 -> 0
A74: ='Standing Data'!$D$15 ->  | B74: ='Standing Data'!$F$15 -> 0 | C74: ='Standing Data'!$F$9 -> 0 | D74: Fin.Return | E74: E197 | F74: =Fin.Return!E200 -> 0
A75: ='Standing Data'!$D$15 ->  | B75: ='Standing Data'!$F$15 -> 0 | C75: ='Standing Data'!$F$9 -> 0 | D75: Fin.Return | E75: E198 | F75: =Fin.Return!E201 -> 0
A76: ='Standing Data'!$D$15 ->  | B76: ='Standing Data'!$F$15 -> 0 | C76: ='Standing Data'!$F$9 -> 0 | D76: Fin.Return | E76: E200 | F76: =Fin.Return!E203 -> 0
A77: ='Standing Data'!$D$15 ->  | B77: ='Standing Data'!$F$15 -> 0 | C77: ='Standing Data'!$F$9 -> 0 | D77: Fin.Return | E77: E202 | F77: =Fin.Return!E205 -> 0
A78: ='Standing Data'!$D$15 ->  | B78: ='Standing Data'!$F$15 -> 0 | C78: ='Standing Data'!$F$9 -> 0 | D78: Fin.Return | E78: E203 | F78: =Fin.Return!E206 -> 0
A79: ='Standing Data'!$D$15 ->  | B79: ='Standing Data'!$F$15 -> 0 | C79: ='Standing Data'!$F$9 -> 0 | D79: Fin.Return | E79: E204 | F79: =Fin.Return!E207 -> 0
A80: ='Standing Data'!$D$15 ->  | B80: ='Standing Data'!$F$15 -> 0 | C80: ='Standing Data'!$F$9 -> 0 | D80: Fin.Return | E80: E205 | F80: =Fin.Return!E208 -> 0
A81: ='Standing Data'!$D$15 ->  | B81: ='Standing Data'!$F$15 -> 0 | C81: ='Standing Data'!$F$9 -> 0 | D81: Fin.Return | E81: E206 | F81: =Fin.Return!E209 -> 0
A82: ='Standing Data'!$D$15 ->  | B82: ='Standing Data'!$F$15 -> 0 | C82: ='Standing Data'!$F$9 -> 0 | D82: Fin.Return | E82: E207 | F82: =Fin.Return!E210 -> 0
A83: ='Standing Data'!$D$15 ->  | B83: ='Standing Data'!$F$15 -> 0 | C83: ='Standing Data'!$F$9 -> 0 | D83: Fin.Return | E83: E209 | F83: =Fin.Return!E212 -> 0
A84: ='Standing Data'!$D$15 ->  | B84: ='Standing Data'!$F$15 -> 0 | C84: ='Standing Data'!$F$9 -> 0 | D84: Fin.Return | E84: E211 | F84: =Fin.Return!E221 -> 0
A85: ='Standing Data'!$D$15 ->  | B85: ='Standing Data'!$F$15 -> 0 | C85: ='Standing Data'!$F$9 -> 0 | D85: Fin.Return | E85: E212 | F85: =Fin.Return!E222 -> 0
A86: ='Standing Data'!$D$15 ->  | B86: ='Standing Data'!$F$15 -> 0 | C86: ='Standing Data'!$F$9 -> 0 | D86: Fin.Return | E86: E214 | F86: =Fin.Return!E224 -> 0
A87: ='Standing Data'!$D$15 ->  | B87: ='Standing Data'!$F$15 -> 0 | C87: ='Standing Data'!$F$9 -> 0 | D87: Fin.Return | E87: E216 | F87: =Fin.Return!E226 -> 0
A88: ='Standing Data'!$D$15 ->  | B88: ='Standing Data'!$F$15 -> 0 | C88: ='Standing Data'!$F$9 -> 0 | D88: Fin.Return | E88: E217 | F88: =Fin.Return!E227 -> 0
A89: ='Standing Data'!$D$15 ->  | B89: ='Standing Data'!$F$15 -> 0 | C89: ='Standing Data'!$F$9 -> 0 | D89: Fin.Return | E89: E218 | F89: =Fin.Return!E229 -> 0
A90: ='Standing Data'!$D$15 ->  | B90: ='Standing Data'!$F$15 -> 0 | C90: ='Standing Data'!$F$9 -> 0 | D90: Fin.Return | E90: E220 | F90: =Fin.Return!E231 -> 0
A91: ='Standing Data'!$D$15 ->  | B91: ='Standing Data'!$F$15 -> 0 | C91: ='Standing Data'!$F$9 -> 0 | D91: Fin.Return | E91: E222 | F91: =Fin.Return!E233 -> 0
A92: ='Standing Data'!$D$15 ->  | B92: ='Standing Data'!$F$15 -> 0 | C92: ='Standing Data'!$F$9 -> 0 | D92: Fin.Return | E92: E228 | F92: =Fin.Return!E239 -> 0
A93: ='Standing Data'!$D$15 ->  | B93: ='Standing Data'!$F$15 -> 0 | C93: ='Standing Data'!$F$9 -> 0 | D93: Fin.Return | E93: E229 | F93: =Fin.Return!E240 -> 0
A94: ='Standing Data'!$D$15 ->  | B94: ='Standing Data'!$F$15 -> 0 | C94: ='Standing Data'!$F$9 -> 0 | D94: Fin.Return | E94: E231 | F94: =Fin.Return!E242 -> 0
A95: ='Standing Data'!$D$15 ->  | B95: ='Standing Data'!$F$15 -> 0 | C95: ='Standing Data'!$F$9 -> 0 | D95: Fin.Return | E95: E232 | F95: =Fin.Return!E243 -> 0
A96: ='Standing Data'!$D$15 ->  | B96: ='Standing Data'!$F$15 -> 0 | C96: ='Standing Data'!$F$9 -> 0 | D96: Fin.Return | E96: E234 | F96: =Fin.Return!E245 -> 0
A97: ='Standing Data'!$D$15 ->  | B97: ='Standing Data'!$F$15 -> 0 | C97: ='Standing Data'!$F$9 -> 0 | D97: Fin.Return | E97: E235 | F97: =Fin.Return!E246 -> 0
A98: ='Standing Data'!$D$15 ->  | B98: ='Standing Data'!$F$15 -> 0 | C98: ='Standing Data'!$F$9 -> 0 | D98: Fin.Return | E98: E236 | F98: =Fin.Return!E247 -> 0
A99: ='Standing Data'!$D$15 ->  | B99: ='Standing Data'!$F$15 -> 0 | C99: ='Standing Data'!$F$9 -> 0 | D99: Fin.Return | E99: E238 | F99: =Fin.Return!E249 -> 0
A100: ='Standing Data'!$D$15 ->  | B100: ='Standing Data'!$F$15 -> 0 | C100: ='Standing Data'!$F$9 -> 0 | D100: Fin.Return | E100: E242 | F100: =Fin.Return!E253 -> 0
A101: ='Standing Data'!$D$15 ->  | B101: ='Standing Data'!$F$15 -> 0 | C101: ='Standing Data'!$F$9 -> 0 | D101: Fin.Return | E101: E243 | F101: =Fin.Return!E254 -> 0
A102: ='Standing Data'!$D$15 ->  | B102: ='Standing Data'!$F$15 -> 0 | C102: ='Standing Data'!$F$9 -> 0 | D102: Fin.Return | E102: E244 | F102: =Fin.Return!E255 -> 0
A103: ='Standing Data'!$D$15 ->  | B103: ='Standing Data'!$F$15 -> 0 | C103: ='Standing Data'!$F$9 -> 0 | D103: Fin.Return | E103: E245 | F103: =Fin.Return!E256 -> 0
A104: ='Standing Data'!$D$15 ->  | B104: ='Standing Data'!$F$15 -> 0 | C104: ='Standing Data'!$F$9 -> 0 | D104: Fin.Return | E104: E246 | F104: =Fin.Return!E257 -> 0
A105: ='Standing Data'!$D$15 ->  | B105: ='Standing Data'!$F$15 -> 0 | C105: ='Standing Data'!$F$9 -> 0 | D105: Fin.Return | E105: E248 | F105: =Fin.Return!E259 -> 0
A106: ='Standing Data'!$D$15 ->  | B106: ='Standing Data'!$F$15 -> 0 | C106: ='Standing Data'!$F$9 -> 0 | D106: Fin.Return | E106: E249 | F106: =Fin.Return!E260 -> 0
A107: ='Standing Data'!$D$15 ->  | B107: ='Standing Data'!$F$15 -> 0 | C107: ='Standing Data'!$F$9 -> 0 | D107: Fin.Return | E107: E250 | F107: =Fin.Return!E261 -> 0
A108: ='Standing Data'!$D$15 ->  | B108: ='Standing Data'!$F$15 -> 0 | C108: ='Standing Data'!$F$9 -> 0 | D108: Fin.Return | E108: E251 | F108: =Fin.Return!E262 -> 0
A109: ='Standing Data'!$D$15 ->  | B109: ='Standing Data'!$F$15 -> 0 | C109: ='Standing Data'!$F$9 -> 0 | D109: Fin.Return | E109: E252 | F109: =Fin.Return!E263 -> 0
A110: ='Standing Data'!$D$15 ->  | B110: ='Standing Data'!$F$15 -> 0 | C110: ='Standing Data'!$F$9 -> 0 | D110: Fin.Return | E110: E257 | F110: =Fin.Return!E268 -> 0
A111: ='Standing Data'!$D$15 ->  | B111: ='Standing Data'!$F$15 -> 0 | C111: ='Standing Data'!$F$9 -> 0 | D111: Fin.Return | E111: E258 | F111: =Fin.Return!E269 -> 0
A112: ='Standing Data'!$D$15 ->  | B112: ='Standing Data'!$F$15 -> 0 | C112: ='Standing Data'!$F$9 -> 0 | D112: Fin.Return | E112: E259 | F112: =Fin.Return!E270 -> 0
A113: ='Standing Data'!$D$15 ->  | B113: ='Standing Data'!$F$15 -> 0 | C113: ='Standing Data'!$F$9 -> 0 | D113: Fin.Return | E113: E260 | F113: =Fin.Return!E271 -> 0
A114: ='Standing Data'!$D$15 ->  | B114: ='Standing Data'!$F$15 -> 0 | C114: ='Standing Data'!$F$9 -> 0 | D114: Fin.Return | E114: E261 | F114: =Fin.Return!E272 -> 0
A115: ='Standing Data'!$D$15 ->  | B115: ='Standing Data'!$F$15 -> 0 | C115: ='Standing Data'!$F$9 -> 0 | D115: Fin.Return | E115: E262 | F115: =Fin.Return!E273 -> 0
A116: ='Standing Data'!$D$15 ->  | B116: ='Standing Data'!$F$15 -> 0 | C116: ='Standing Data'!$F$9 -> 0 | D116: Fin.Return | E116: E264 | F116: =Fin.Return!E275 -> 0
A117: ='Standing Data'!$D$15 ->  | B117: ='Standing Data'!$F$15 -> 0 | C117: ='Standing Data'!$F$9 -> 0 | D117: Fin.Return | E117: E270 | F117: =Fin.Return!E281 -> 0
A118: ='Standing Data'!$D$15 ->  | B118: ='Standing Data'!$F$15 -> 0 | C118: ='Standing Data'!$F$9 -> 0 | D118: Fin.Return | E118: E271 | F118: =Fin.Return!E282 -> 0
A119: ='Standing Data'!$D$15 ->  | B119: ='Standing Data'!$F$15 -> 0 | C119: ='Standing Data'!$F$9 -> 0 | D119: Fin.Return | E119: E272 | F119: =Fin.Return!E283 -> 0
A120: ='Standing Data'!$D$15 ->  | B120: ='Standing Data'!$F$15 -> 0 | C120: ='Standing Data'!$F$9 -> 0 | D120: Fin.Return | E120: E273 | F120: =Fin.Return!E284 -> 0
A121: ='Standing Data'!$D$15 ->  | B121: ='Standing Data'!$F$15 -> 0 | C121: ='Standing Data'!$F$9 -> 0 | D121: Fin.Return | E121: E274 | F121: =Fin.Return!E285 -> 0
A122: ='Standing Data'!$D$15 ->  | B122: ='Standing Data'!$F$15 -> 0 | C122: ='Standing Data'!$F$9 -> 0 | D122: Fin.Return | E122: E275 | F122: =Fin.Return!E286 -> 0
A123: ='Standing Data'!$D$15 ->  | B123: ='Standing Data'!$F$15 -> 0 | C123: ='Standing Data'!$F$9 -> 0 | D123: Fin.Return | E123: E276 | F123: =Fin.Return!E287 -> 0
A124: ='Standing Data'!$D$15 ->  | B124: ='Standing Data'!$F$15 -> 0 | C124: ='Standing Data'!$F$9 -> 0 | D124: Fin.Return | E124: E277 | F124: =Fin.Return!E289 -> 0
A125: ='Standing Data'!$D$15 ->  | B125: ='Standing Data'!$F$15 -> 0 | C125: ='Standing Data'!$F$9 -> 0 | D125: Fin.Return | E125: E278 | F125: =Fin.Return!E290 -> 0
A126: ='Standing Data'!$D$15 ->  | B126: ='Standing Data'!$F$15 -> 0 | C126: ='Standing Data'!$F$9 -> 0 | D126: Fin.Return | E126: E279 | F126: =Fin.Return!E291 -> 0
A127: ='Standing Data'!$D$15 ->  | B127: ='Standing Data'!$F$15 -> 0 | C127: ='Standing Data'!$F$9 -> 0 | D127: Fin.Return | E127: E280 | F127: =Fin.Return!E292 -> 0
A128: ='Standing Data'!$D$15 ->  | B128: ='Standing Data'!$F$15 -> 0 | C128: ='Standing Data'!$F$9 -> 0 | D128: Fin.Return | E128: E282 | F128: =Fin.Return!E294 -> 0
A129: ='Standing Data'!$D$15 ->  | B129: ='Standing Data'!$F$15 -> 0 | C129: ='Standing Data'!$F$9 -> 0 | D129: Fin.Return | E129: E284 | F129: =Fin.Return!E296 -> 0
A130: ='Standing Data'!$D$15 ->  | B130: ='Standing Data'!$F$15 -> 0 | C130: ='Standing Data'!$F$9 -> 0 | D130: Fin.Return | E130: E285 | F130: =Fin.Return!E298 -> 0
A131: ='Standing Data'!$D$15 ->  | B131: ='Standing Data'!$F$15 -> 0 | C131: ='Standing Data'!$F$9 -> 0 | D131: Fin.Return | E131: E286 | F131: =Fin.Return!E299 -> 0
A132: ='Standing Data'!$D$15 ->  | B132: ='Standing Data'!$F$15 -> 0 | C132: ='Standing Data'!$F$9 -> 0 | D132: Fin.Return | E132: E287 | F132: =Fin.Return!E300 -> 0
A133: ='Standing Data'!$D$15 ->  | B133: ='Standing Data'!$F$15 -> 0 | C133: ='Standing Data'!$F$9 -> 0 | D133: Fin.Return | E133: E288 | F133: =Fin.Return!E301 -> 0
A134: ='Standing Data'!$D$15 ->  | B134: ='Standing Data'!$F$15 -> 0 | C134: ='Standing Data'!$F$9 -> 0 | D134: Fin.Return | E134: E289 | F134: =Fin.Return!E302 -> 0
A135: ='Standing Data'!$D$15 ->  | B135: ='Standing Data'!$F$15 -> 0 | C135: ='Standing Data'!$F$9 -> 0 | D135: Fin.Return | E135: E290 | F135: =Fin.Return!E303 -> 0
A136: ='Standing Data'!$D$15 ->  | B136: ='Standing Data'!$F$15 -> 0 | C136: ='Standing Data'!$F$9 -> 0 | D136: Fin.Return | E136: E291 | F136: =Fin.Return!E304 -> 0
A137: ='Standing Data'!$D$15 ->  | B137: ='Standing Data'!$F$15 -> 0 | C137: ='Standing Data'!$F$9 -> 0 | D137: Fin.Return | E137: E292 | F137: =Fin.Return!E305 -> 0
A138: ='Standing Data'!$D$15 ->  | B138: ='Standing Data'!$F$15 -> 0 | C138: ='Standing Data'!$F$9 -> 0 | D138: Fin.Return | E138: E293 | F138: =Fin.Return!E306 -> 0
A139: ='Standing Data'!$D$15 ->  | B139: ='Standing Data'!$F$15 -> 0 | C139: ='Standing Data'!$F$9 -> 0 | D139: Fin.Return | E139: E294 | F139: =Fin.Return!E307 -> 0
A140: ='Standing Data'!$D$15 ->  | B140: ='Standing Data'!$F$15 -> 0 | C140: ='Standing Data'!$F$9 -> 0 | D140: Fin.Return | E140: E295 | F140: =Fin.Return!E308 -> 0
A141: ='Standing Data'!$D$15 ->  | B141: ='Standing Data'!$F$15 -> 0 | C141: ='Standing Data'!$F$9 -> 0 | D141: Fin.Return | E141: E296 | F141: =Fin.Return!E309 -> 0
A142: ='Standing Data'!$D$15 ->  | B142: ='Standing Data'!$F$15 -> 0 | C142: ='Standing Data'!$F$9 -> 0 | D142: Fin.Return | E142: E297 | F142: =Fin.Return!E310 -> 0
A143: ='Standing Data'!$D$15 ->  | B143: ='Standing Data'!$F$15 -> 0 | C143: ='Standing Data'!$F$9 -> 0 | D143: Fin.Return | E143: E298 | F143: =Fin.Return!E311 -> 0
A144: ='Standing Data'!$D$15 ->  | B144: ='Standing Data'!$F$15 -> 0 | C144: ='Standing Data'!$F$9 -> 0 | D144: Fin.Return | E144: E299 | F144: =Fin.Return!E312 -> 0
A145: ='Standing Data'!$D$15 ->  | B145: ='Standing Data'!$F$15 -> 0 | C145: ='Standing Data'!$F$9 -> 0 | D145: Fin.Return | E145: E300 | F145: =Fin.Return!E313 -> 0
A146: ='Standing Data'!$D$15 ->  | B146: ='Standing Data'!$F$15 -> 0 | C146: ='Standing Data'!$F$9 -> 0 | D146: Fin.Return | E146: E301 | F146: =Fin.Return!E314 -> 0
A147: ='Standing Data'!$D$15 ->  | B147: ='Standing Data'!$F$15 -> 0 | C147: ='Standing Data'!$F$9 -> 0 | D147: Fin.Return | E147: E302 | F147: =Fin.Return!E315 -> 0
A148: ='Standing Data'!$D$15 ->  | B148: ='Standing Data'!$F$15 -> 0 | C148: ='Standing Data'!$F$9 -> 0 | D148: Fin.Return | E148: E303 | F148: =Fin.Return!E317 -> 0
A149: ='Standing Data'!$D$15 ->  | B149: ='Standing Data'!$F$15 -> 0 | C149: ='Standing Data'!$F$9 -> 0 | D149: Fin.Return | E149: E304 | F149: =Fin.Return!E318 -> 0
A150: ='Standing Data'!$D$15 ->  | B150: ='Standing Data'!$F$15 -> 0 | C150: ='Standing Data'!$F$9 -> 0 | D150: Fin.Return | E150: E305 | F150: =Fin.Return!E319 -> 0
A151: ='Standing Data'!$D$15 ->  | B151: ='Standing Data'!$F$15 -> 0 | C151: ='Standing Data'!$F$9 -> 0 | D151: Fin.Return | E151: E306 | F151: =Fin.Return!E320 -> 0
A152: ='Standing Data'!$D$15 ->  | B152: ='Standing Data'!$F$15 -> 0 | C152: ='Standing Data'!$F$9 -> 0 | D152: Fin.Return | E152: E307 | F152: =Fin.Return!E321 -> 0
A153: ='Standing Data'!$D$15 ->  | B153: ='Standing Data'!$F$15 -> 0 | C153: ='Standing Data'!$F$9 -> 0 | D153: Fin.Return | E153: E308 | F153: =Fin.Return!E322 -> 0
A154: ='Standing Data'!$D$15 ->  | B154: ='Standing Data'!$F$15 -> 0 | C154: ='Standing Data'!$F$9 -> 0 | D154: Fin.Return | E154: E309 | F154: =Fin.Return!E323 -> 0
A155: ='Standing Data'!$D$15 ->  | B155: ='Standing Data'!$F$15 -> 0 | C155: ='Standing Data'!$F$9 -> 0 | D155: Fin.Return | E155: E311 | F155: =Fin.Return!E325 -> 0
A156: ='Standing Data'!$D$15 ->  | B156: ='Standing Data'!$F$15 -> 0 | C156: ='Standing Data'!$F$9 -> 0 | D156: Fin.Return | E156: E313 | F156: =Fin.Return!E327 -> 0
A157: ='Standing Data'!$D$15 ->  | B157: ='Standing Data'!$F$15 -> 0 | C157: ='Standing Data'!$F$9 -> 0 | D157: Fin.Return | E157: E318 | F157: =Fin.Return!E332 -> 0
A158: ='Standing Data'!$D$15 ->  | B158: ='Standing Data'!$F$15 -> 0 | C158: ='Standing Data'!$F$9 -> 0 | D158: Fin.Return | E158: E319 | F158: =Fin.Return!E333 -> 0
A159: ='Standing Data'!$D$15 ->  | B159: ='Standing Data'!$F$15 -> 0 | C159: ='Standing Data'!$F$9 -> 0 | D159: Fin.Return | E159: E320 | F159: =Fin.Return!E334 -> 0
A160: ='Standing Data'!$D$15 ->  | B160: ='Standing Data'!$F$15 -> 0 | C160: ='Standing Data'!$F$9 -> 0 | D160: Fin.Return | E160: E321 | F160: =Fin.Return!E335 -> 0
A161: ='Standing Data'!$D$15 ->  | B161: ='Standing Data'!$F$15 -> 0 | C161: ='Standing Data'!$F$9 -> 0 | D161: Fin.Return | E161: E323 | F161: =Fin.Return!E337 -> 0
A162: ='Standing Data'!$D$15 ->  | B162: ='Standing Data'!$F$15 -> 0 | C162: ='Standing Data'!$F$9 -> 0 | D162: Fin.Return | E162: E324 | F162: =Fin.Return!E338 -> 0
A163: ='Standing Data'!$D$15 ->  | B163: ='Standing Data'!$F$15 -> 0 | C163: ='Standing Data'!$F$9 -> 0 | D163: Fin.Return | E163: E325 | F163: =Fin.Return!E339 -> 0
A164: ='Standing Data'!$D$15 ->  | B164: ='Standing Data'!$F$15 -> 0 | C164: ='Standing Data'!$F$9 -> 0 | D164: Fin.Return | E164: E326 | F164: =Fin.Return!E340 -> 0
A165: ='Standing Data'!$D$15 ->  | B165: ='Standing Data'!$F$15 -> 0 | C165: ='Standing Data'!$F$9 -> 0 | D165: Fin.Return | E165: E327 | F165: =Fin.Return!E341 -> 0
A166: ='Standing Data'!$D$15 ->  | B166: ='Standing Data'!$F$15 -> 0 | C166: ='Standing Data'!$F$9 -> 0 | D166: Fin.Return | E166: E328 | F166: =Fin.Return!E342 -> 0
A167: ='Standing Data'!$D$15 ->  | B167: ='Standing Data'!$F$15 -> 0 | C167: ='Standing Data'!$F$9 -> 0 | D167: Fin.Return | E167: E330 | F167: =Fin.Return!E344 -> 0
A168: ='Standing Data'!$D$15 ->  | B168: ='Standing Data'!$F$15 -> 0 | C168: ='Standing Data'!$F$9 -> 0 | D168: Fin.Return | E168: E331 | F168: =Fin.Return!E345 -> 0
A169: ='Standing Data'!$D$15 ->  | B169: ='Standing Data'!$F$15 -> 0 | C169: ='Standing Data'!$F$9 -> 0 | D169: Fin.Return | E169: E332 | F169: =Fin.Return!E346 -> 0
A170: ='Standing Data'!$D$15 ->  | B170: ='Standing Data'!$F$15 -> 0 | C170: ='Standing Data'!$F$9 -> 0 | D170: Fin.Return | E170: E334 | F170: =Fin.Return!E348 -> 0
A171: ='Standing Data'!$D$15 ->  | B171: ='Standing Data'!$F$15 -> 0 | C171: ='Standing Data'!$F$9 -> 0 | D171: Fin.Return | E171: E340 | F171: =Fin.Return!E354 -> 0
A172: ='Standing Data'!$D$15 ->  | B172: ='Standing Data'!$F$15 -> 0 | C172: ='Standing Data'!$F$9 -> 0 | D172: Fin.Return | E172: E341 | F172: =Fin.Return!E355 -> 0
A173: ='Standing Data'!$D$15 ->  | B173: ='Standing Data'!$F$15 -> 0 | C173: ='Standing Data'!$F$9 -> 0 | D173: Fin.Return | E173: E342 | F173: =Fin.Return!E356 -> 0
A174: ='Standing Data'!$D$15 ->  | B174: ='Standing Data'!$F$15 -> 0 | C174: ='Standing Data'!$F$9 -> 0 | D174: Fin.Return | E174: E344 | F174: =Fin.Return!E358 -> 0
A175: ='Standing Data'!$D$15 ->  | B175: ='Standing Data'!$F$15 -> 0 | C175: ='Standing Data'!$F$9 -> 0 | D175: Fin.Return | E175: E345 | F175: =Fin.Return!E359 -> 0
A176: ='Standing Data'!$D$15 ->  | B176: ='Standing Data'!$F$15 -> 0 | C176: ='Standing Data'!$F$9 -> 0 | D176: Fin.Return | E176: E346 | F176: =Fin.Return!E360 -> 0
A177: ='Standing Data'!$D$15 ->  | B177: ='Standing Data'!$F$15 -> 0 | C177: ='Standing Data'!$F$9 -> 0 | D177: Fin.Return | E177: E347 | F177: =Fin.Return!E361 -> 0
A178: ='Standing Data'!$D$15 ->  | B178: ='Standing Data'!$F$15 -> 0 | C178: ='Standing Data'!$F$9 -> 0 | D178: Fin.Return | E178: E349 | F178: =Fin.Return!E363 -> 0
A179: ='Standing Data'!$D$15 ->  | B179: ='Standing Data'!$F$15 -> 0 | C179: ='Standing Data'!$F$9 -> 0 | D179: Fin.Return | E179: E350 | F179: =Fin.Return!E364 -> 0
A180: ='Standing Data'!$D$15 ->  | B180: ='Standing Data'!$F$15 -> 0 | C180: ='Standing Data'!$F$9 -> 0 | D180: Fin.Return | E180: E352 | F180: =Fin.Return!E366 -> 0
A181: ='Standing Data'!$D$15 ->  | B181: ='Standing Data'!$F$15 -> 0 | C181: ='Standing Data'!$F$9 -> 0 | D181: Fin.Return | E181: E357 | F181: =Fin.Return!E371 -> 0
A182: ='Standing Data'!$D$15 ->  | B182: ='Standing Data'!$F$15 -> 0 | C182: ='Standing Data'!$F$9 -> 0 | D182: Fin.Return | E182: E358 | F182: =Fin.Return!E372 -> 0
A183: ='Standing Data'!$D$15 ->  | B183: ='Standing Data'!$F$15 -> 0 | C183: ='Standing Data'!$F$9 -> 0 | D183: Fin.Return | E183: E359 | F183: =Fin.Return!E373 -> 0
A184: ='Standing Data'!$D$15 ->  | B184: ='Standing Data'!$F$15 -> 0 | C184: ='Standing Data'!$F$9 -> 0 | D184: Fin.Return | E184: E361 | F184: =Fin.Return!E375 -> 0
A185: ='Standing Data'!$D$15 ->  | B185: ='Standing Data'!$F$15 -> 0 | C185: ='Standing Data'!$F$9 -> 0 | D185: Fin.Return | E185: E366 | F185: =Fin.Return!E380 -> 0
A186: ='Standing Data'!$D$15 ->  | B186: ='Standing Data'!$F$15 -> 0 | C186: ='Standing Data'!$F$9 -> 0 | D186: Fin.Return | E186: E367 | F186: =Fin.Return!E381 -> 0
A187: ='Standing Data'!$D$15 ->  | B187: ='Standing Data'!$F$15 -> 0 | C187: ='Standing Data'!$F$9 -> 0 | D187: Fin.Return | E187: E368 | F187: =Fin.Return!E382 -> 0
A188: ='Standing Data'!$D$15 ->  | B188: ='Standing Data'!$F$15 -> 0 | C188: ='Standing Data'!$F$9 -> 0 | D188: Fin.Return | E188: E369 | F188: =Fin.Return!E383 -> 0
A189: ='Standing Data'!$D$15 ->  | B189: ='Standing Data'!$F$15 -> 0 | C189: ='Standing Data'!$F$9 -> 0 | D189: Fin.Return | E189: E370 | F189: =Fin.Return!E384 -> 0
A190: ='Standing Data'!$D$15 ->  | B190: ='Standing Data'!$F$15 -> 0 | C190: ='Standing Data'!$F$9 -> 0 | D190: Fin.Return | E190: E371 | F190: =Fin.Return!E385 -> 0
A191: ='Standing Data'!$D$15 ->  | B191: ='Standing Data'!$F$15 -> 0 | C191: ='Standing Data'!$F$9 -> 0 | D191: Fin.Return | E191: E372 | F191: =Fin.Return!E386 -> 0
A192: ='Standing Data'!$D$15 ->  | B192: ='Standing Data'!$F$15 -> 0 | C192: ='Standing Data'!$F$9 -> 0 | D192: Fin.Return | E192: E373 | F192: =Fin.Return!E387 -> 0
A193: ='Standing Data'!$D$15 ->  | B193: ='Standing Data'!$F$15 -> 0 | C193: ='Standing Data'!$F$9 -> 0 | D193: Fin.Return | E193: E374 | F193: =Fin.Return!E388 -> 0
A194: ='Standing Data'!$D$15 ->  | B194: ='Standing Data'!$F$15 -> 0 | C194: ='Standing Data'!$F$9 -> 0 | D194: Fin.Return | E194: E375 | F194: =Fin.Return!E389 -> 0
A195: ='Standing Data'!$D$15 ->  | B195: ='Standing Data'!$F$15 -> 0 | C195: ='Standing Data'!$F$9 -> 0 | D195: Fin.Return | E195: E376 | F195: =Fin.Return!E390 -> 0
A196: ='Standing Data'!$D$15 ->  | B196: ='Standing Data'!$F$15 -> 0 | C196: ='Standing Data'!$F$9 -> 0 | D196: Fin.Return | E196: E377 | F196: =Fin.Return!E391 -> 0
A197: ='Standing Data'!$D$15 ->  | B197: ='Standing Data'!$F$15 -> 0 | C197: ='Standing Data'!$F$9 -> 0 | D197: Fin.Return | E197: E378 | F197: =Fin.Return!E392 -> 0
A198: ='Standing Data'!$D$15 ->  | B198: ='Standing Data'!$F$15 -> 0 | C198: ='Standing Data'!$F$9 -> 0 | D198: Fin.Return | E198: E379 | F198: =Fin.Return!E393 -> 0
A199: ='Standing Data'!$D$15 ->  | B199: ='Standing Data'!$F$15 -> 0 | C199: ='Standing Data'!$F$9 -> 0 | D199: Fin.Return | E199: E380 | F199: =Fin.Return!E394 -> 0
A200: ='Standing Data'!$D$15 ->  | B200: ='Standing Data'!$F$15 -> 0 | C200: ='Standing Data'!$F$9 -> 0 | D200: Fin.Return | E200: E381 | F200: =Fin.Return!E395 -> 0
... 2874 more rows

Sheet ChaData (hidden)
A1: Academy ID 1 | B1: Academy ID 2 | C1: Academy Name 2 | D1: Sheet Name | E1: Cell ID | F1: Value
A2: ='Standing Data'!$D$15 ->  | B2: ='Standing Data'!$F$15 -> 0 | C2: ='Standing Data'!$F$9 -> 0 | D2: Standing Data | E2: D1 | F2: ='Standing Data'!D3 -> Type name here
A3: ='Standing Data'!$D$15 ->  | B3: ='Standing Data'!$F$15 -> 0 | C3: ='Standing Data'!$F$9 -> 0 | D3: Standing Data | E3: F1:J1 | F3: ='Standing Data'!F3:J3 -> 0
A4: ='Standing Data'!$D$15 ->  | B4: ='Standing Data'!$F$15 -> 0 | C4: ='Standing Data'!$F$9 -> 0 | D4: Standing Data | E4: D4 | F4: ='Standing Data'!D6 -> 2014-03-31
A5: ='Standing Data'!$D$15 ->  | B5: ='Standing Data'!$F$15 -> 0 | C5: ='Standing Data'!$F$9 -> 0 | D5: Standing Data | E5: D10 | F5: ='Standing Data'!D12 -> Type number here
A6: ='Standing Data'!$D$15 ->  | B6: ='Standing Data'!$F$15 -> 0 | C6: ='Standing Data'!$F$9 -> 0 | D6: Standing Data | E6: D16 | F6: ='Standing Data'!D18 -> 
A7: ='Standing Data'!$D$15 ->  | B7: ='Standing Data'!$F$15 -> 0 | C7: ='Standing Data'!$F$9 -> 0 | D7: Standing Data | E7: F16 | F7: ='Standing Data'!F18 -> 00:00:00
A8: ='Standing Data'!$D$15 ->  | B8: ='Standing Data'!$F$15 -> 0 | C8: ='Standing Data'!$F$9 -> 0 | D8: Standing Data | E8: D19 | F8: ='Standing Data'!D21 -> 00:00:00
A9: ='Standing Data'!$D$15 ->  | B9: ='Standing Data'!$F$15 -> 0 | C9: ='Standing Data'!$F$9 -> 0 | D9: Standing Data | E9: D22 | F9: ='Standing Data'!D24 -> 0
A10: ='Standing Data'!$D$15 ->  | B10: ='Standing Data'!$F$15 -> 0 | C10: ='Standing Data'!$F$9 -> 0 | D10: Standing Data | E10: D25 | F10: ='Standing Data'!D27 -> N/A - 31 March
A11: ='Standing Data'!$D$15 ->  | B11: ='Standing Data'!$F$15 -> 0 | C11: ='Standing Data'!$F$9 -> 0 | D11: Standing Data | E11: D31 | F11: ='Standing Data'!D36 -> 
A12: ='Standing Data'!$D$15 ->  | B12: ='Standing Data'!$F$15 -> 0 | C12: ='Standing Data'!$F$9 -> 0 | D12: Standing Data | E12: F31:H31 | F12: ='Standing Data'!F36:H36 -> 0
A13: ='Standing Data'!$D$15 ->  | B13: ='Standing Data'!$F$15 -> 0 | C13: ='Standing Data'!$F$9 -> 0 | D13: Standing Data | E13: D34 | F13: ='Standing Data'!D39 -> 
A14: ='Standing Data'!$D$15 ->  | B14: ='Standing Data'!$F$15 -> 0 | C14: ='Standing Data'!$F$9 -> 0 | D14: Standing Data | E14: F34:H34 | F14: ='Standing Data'!F39:H39 -> 00:00:00
A15: ='Standing Data'!$D$15 ->  | B15: ='Standing Data'!$F$15 -> 0 | C15: ='Standing Data'!$F$9 -> 0 | D15: Standing Data | E15: D37 | F15: ='Standing Data'!D42 -> 0
A16: ='Standing Data'!$D$15 ->  | B16: ='Standing Data'!$F$15 -> 0 | C16: ='Standing Data'!$F$9 -> 0 | D16: Standing Data | E16: F37:H37 | F16: ='Standing Data'!F42:H42 -> 0
A17: ='Standing Data'!$D$15 ->  | B17: ='Standing Data'!$F$15 -> 0 | C17: ='Standing Data'!$F$9 -> 0 | D17: Standing Data | E17: D40 | F17: ='Standing Data'!D45 -> No
A18: ='Standing Data'!$D$15 ->  | B18: ='Standing Data'!$F$15 -> 0 | C18: ='Standing Data'!$F$9 -> 0 | D18: Standing Data | E18: D44 | F18: ='Standing Data'!D49 -> Academy name
A19: ='Standing Data'!$D$15 ->  | B19: ='Standing Data'!$F$15 -> 0 | C19: ='Standing Data'!$F$9 -> 0 | D19: Standing Data | E19: D45 | F19: ='Standing Data'!D50 -> Academy name
A20: ='Standing Data'!$D$15 ->  | B20: ='Standing Data'!$F$15 -> 0 | C20: ='Standing Data'!$F$9 -> 0 | D20: Standing Data | E20: D46 | F20: ='Standing Data'!D51 -> Academy name
A21: ='Standing Data'!$D$15 ->  | B21: ='Standing Data'!$F$15 -> 0 | C21: ='Standing Data'!$F$9 -> 0 | D21: Standing Data | E21: D47 | F21: ='Standing Data'!D52 -> Academy name
A22: ='Standing Data'!$D$15 ->  | B22: ='Standing Data'!$F$15 -> 0 | C22: ='Standing Data'!$F$9 -> 0 | D22: Standing Data | E22: D48 | F22: ='Standing Data'!D53 -> Academy name
A23: ='Standing Data'!$D$15 ->  | B23: ='Standing Data'!$F$15 -> 0 | C23: ='Standing Data'!$F$9 -> 0 | D23: Standing Data | E23: D49 | F23: ='Standing Data'!D54 -> Academy name
A24: ='Standing Data'!$D$15 ->  | B24: ='Standing Data'!$F$15 -> 0 | C24: ='Standing Data'!$F$9 -> 0 | D24: Standing Data | E24: D50 | F24: ='Standing Data'!D55 -> Academy name
A25: ='Standing Data'!$D$15 ->  | B25: ='Standing Data'!$F$15 -> 0 | C25: ='Standing Data'!$F$9 -> 0 | D25: Standing Data | E25: D51 | F25: ='Standing Data'!D56 -> Academy name
A26: ='Standing Data'!$D$15 ->  | B26: ='Standing Data'!$F$15 -> 0 | C26: ='Standing Data'!$F$9 -> 0 | D26: Standing Data | E26: D52 | F26: ='Standing Data'!D57 -> Academy name
A27: ='Standing Data'!$D$15 ->  | B27: ='Standing Data'!$F$15 -> 0 | C27: ='Standing Data'!$F$9 -> 0 | D27: Standing Data | E27: D53 | F27: ='Standing Data'!D58 -> Academy name
A28: ='Standing Data'!$D$15 ->  | B28: ='Standing Data'!$F$15 -> 0 | C28: ='Standing Data'!$F$9 -> 0 | D28: Standing Data | E28: D54 | F28: ='Standing Data'!D59 -> Academy name
A29: ='Standing Data'!$D$15 ->  | B29: ='Standing Data'!$F$15 -> 0 | C29: ='Standing Data'!$F$9 -> 0 | D29: Standing Data | E29: D55 | F29: ='Standing Data'!D60 -> Academy name
A30: ='Standing Data'!$D$15 ->  | B30: ='Standing Data'!$F$15 -> 0 | C30: ='Standing Data'!$F$9 -> 0 | D30: Standing Data | E30: D56 | F30: ='Standing Data'!D61 -> Academy name
A31: ='Standing Data'!$D$15 ->  | B31: ='Standing Data'!$F$15 -> 0 | C31: ='Standing Data'!$F$9 -> 0 | D31: Standing Data | E31: D57 | F31: ='Standing Data'!D62 -> Academy name
A32: ='Standing Data'!$D$15 ->  | B32: ='Standing Data'!$F$15 -> 0 | C32: ='Standing Data'!$F$9 -> 0 | D32: Standing Data | E32: D58 | F32: ='Standing Data'!D63 -> Academy name
A33: ='Standing Data'!$D$15 ->  | B33: ='Standing Data'!$F$15 -> 0 | C33: ='Standing Data'!$F$9 -> 0 | D33: Standing Data | E33: D59 | F33: ='Standing Data'!D64 -> Academy name
A34: ='Standing Data'!$D$15 ->  | B34: ='Standing Data'!$F$15 -> 0 | C34: ='Standing Data'!$F$9 -> 0 | D34: Standing Data | E34: D60 | F34: ='Standing Data'!D65 -> Academy name
A35: ='Standing Data'!$D$15 ->  | B35: ='Standing Data'!$F$15 -> 0 | C35: ='Standing Data'!$F$9 -> 0 | D35: Standing Data | E35: D61 | F35: ='Standing Data'!D66 -> Academy name
A36: ='Standing Data'!$D$15 ->  | B36: ='Standing Data'!$F$15 -> 0 | C36: ='Standing Data'!$F$9 -> 0 | D36: Standing Data | E36: D62 | F36: ='Standing Data'!D67 -> Academy name
A37: ='Standing Data'!$D$15 ->  | B37: ='Standing Data'!$F$15 -> 0 | C37: ='Standing Data'!$F$9 -> 0 | D37: Standing Data | E37: D63 | F37: ='Standing Data'!D68 -> Academy name
A38: ='Standing Data'!$D$15 ->  | B38: ='Standing Data'!$F$15 -> 0 | C38: ='Standing Data'!$F$9 -> 0 | D38: Standing Data | E38: D64 | F38: ='Standing Data'!D69 -> Academy name
A39: ='Standing Data'!$D$15 ->  | B39: ='Standing Data'!$F$15 -> 0 | C39: ='Standing Data'!$F$9 -> 0 | D39: Standing Data | E39: D65 | F39: ='Standing Data'!D70 -> Academy name
A40: ='Standing Data'!$D$15 ->  | B40: ='Standing Data'!$F$15 -> 0 | C40: ='Standing Data'!$F$9 -> 0 | D40: Standing Data | E40: D66 | F40: ='Standing Data'!D71 -> Academy name
A41: ='Standing Data'!$D$15 ->  | B41: ='Standing Data'!$F$15 -> 0 | C41: ='Standing Data'!$F$9 -> 0 | D41: Standing Data | E41: D67 | F41: ='Standing Data'!D72 -> Academy name
A42: ='Standing Data'!$D$15 ->  | B42: ='Standing Data'!$F$15 -> 0 | C42: ='Standing Data'!$F$9 -> 0 | D42: Standing Data | E42: D68 | F42: ='Standing Data'!D73 -> Academy name
A43: ='Standing Data'!$D$15 ->  | B43: ='Standing Data'!$F$15 -> 0 | C43: ='Standing Data'!$F$9 -> 0 | D43: Standing Data | E43: D69 | F43: ='Standing Data'!D74 -> Academy name
A44: ='Standing Data'!$D$15 ->  | B44: ='Standing Data'!$F$15 -> 0 | C44: ='Standing Data'!$F$9 -> 0 | D44: Standing Data | E44: D70 | F44: ='Standing Data'!D75 -> Academy name
A45: ='Standing Data'!$D$15 ->  | B45: ='Standing Data'!$F$15 -> 0 | C45: ='Standing Data'!$F$9 -> 0 | D45: Standing Data | E45: D71 | F45: ='Standing Data'!D76 -> Academy name
A46: ='Standing Data'!$D$15 ->  | B46: ='Standing Data'!$F$15 -> 0 | C46: ='Standing Data'!$F$9 -> 0 | D46: Standing Data | E46: D72 | F46: ='Standing Data'!D77 -> Academy name
A47: ='Standing Data'!$D$15 ->  | B47: ='Standing Data'!$F$15 -> 0 | C47: ='Standing Data'!$F$9 -> 0 | D47: Standing Data | E47: D73 | F47: ='Standing Data'!D78 -> Academy name
A48: ='Standing Data'!$D$15 ->  | B48: ='Standing Data'!$F$15 -> 0 | C48: ='Standing Data'!$F$9 -> 0 | D48: Standing Data | E48: D74 | F48: ='Standing Data'!D79 -> Academy name
A49: ='Standing Data'!$D$15 ->  | B49: ='Standing Data'!$F$15 -> 0 | C49: ='Standing Data'!$F$9 -> 0 | D49: Standing Data | E49: D75 | F49: ='Standing Data'!D80 -> Academy name
A50: ='Standing Data'!$D$15 ->  | B50: ='Standing Data'!$F$15 -> 0 | C50: ='Standing Data'!$F$9 -> 0 | D50: Standing Data | E50: D76 | F50: ='Standing Data'!D81 -> Academy name
A51: ='Standing Data'!$D$15 ->  | B51: ='Standing Data'!$F$15 -> 0 | C51: ='Standing Data'!$F$9 -> 0 | D51: Standing Data | E51: D77 | F51: ='Standing Data'!D82 -> Academy name
A52: ='Standing Data'!$D$15 ->  | B52: ='Standing Data'!$F$15 -> 0 | C52: ='Standing Data'!$F$9 -> 0 | D52: Standing Data | E52: D78 | F52: ='Standing Data'!D83 -> Academy name
A53: ='Standing Data'!$D$15 ->  | B53: ='Standing Data'!$F$15 -> 0 | C53: ='Standing Data'!$F$9 -> 0 | D53: Standing Data | E53: D79 | F53: ='Standing Data'!D84 -> Academy name
A54: ='Standing Data'!$D$15 ->  | B54: ='Standing Data'!$F$15 -> 0 | C54: ='Standing Data'!$F$9 -> 0 | D54: Standing Data | E54: D80 | F54: ='Standing Data'!D85 -> Academy name
A55: ='Standing Data'!$D$15 ->  | B55: ='Standing Data'!$F$15 -> 0 | C55: ='Standing Data'!$F$9 -> 0 | D55: Standing Data | E55: D81 | F55: ='Standing Data'!D86 -> Academy name
A56: ='Standing Data'!$D$15 ->  | B56: ='Standing Data'!$F$15 -> 0 | C56: ='Standing Data'!$F$9 -> 0 | D56: Standing Data | E56: D82 | F56: ='Standing Data'!D87 -> Academy name
A57: ='Standing Data'!$D$15 ->  | B57: ='Standing Data'!$F$15 -> 0 | C57: ='Standing Data'!$F$9 -> 0 | D57: Standing Data | E57: D83 | F57: ='Standing Data'!D88 -> Academy name
A58: ='Standing Data'!$D$15 ->  | B58: ='Standing Data'!$F$15 -> 0 | C58: ='Standing Data'!$F$9 -> 0 | D58: Standing Data | E58: D84 | F58: ='Standing Data'!D89 -> Academy name
A59: ='Standing Data'!$D$15 ->  | B59: ='Standing Data'!$F$15 -> 0 | C59: ='Standing Data'!$F$9 -> 0 | D59: Standing Data | E59: D85 | F59: ='Standing Data'!D90 -> Academy name
A60: ='Standing Data'!$D$15 ->  | B60: ='Standing Data'!$F$15 -> 0 | C60: ='Standing Data'!$F$9 -> 0 | D60: Standing Data | E60: D86 | F60: ='Standing Data'!D91 -> Academy name
A61: ='Standing Data'!$D$15 ->  | B61: ='Standing Data'!$F$15 -> 0 | C61: ='Standing Data'!$F$9 -> 0 | D61: Standing Data | E61: D87 | F61: ='Standing Data'!D92 -> Academy name
A62: ='Standing Data'!$D$15 ->  | B62: ='Standing Data'!$F$15 -> 0 | C62: ='Standing Data'!$F$9 -> 0 | D62: Standing Data | E62: D88 | F62: ='Standing Data'!D93 -> Academy name
A63: ='Standing Data'!$D$15 ->  | B63: ='Standing Data'!$F$15 -> 0 | C63: ='Standing Data'!$F$9 -> 0 | D63: Standing Data | E63: D89 | F63: ='Standing Data'!D94 -> Academy name
A64: ='Standing Data'!$D$15 ->  | B64: ='Standing Data'!$F$15 -> 0 | C64: ='Standing Data'!$F$9 -> 0 | D64: Standing Data | E64: D90 | F64: ='Standing Data'!D95 -> Academy name
A65: ='Standing Data'!$D$15 ->  | B65: ='Standing Data'!$F$15 -> 0 | C65: ='Standing Data'!$F$9 -> 0 | D65: Standing Data | E65: D91 | F65: ='Standing Data'!D96 -> Academy name
A66: ='Standing Data'!$D$15 ->  | B66: ='Standing Data'!$F$15 -> 0 | C66: ='Standing Data'!$F$9 -> 0 | D66: Standing Data | E66: D92 | F66: ='Standing Data'!D97 -> Academy name
A67: ='Standing Data'!$D$15 ->  | B67: ='Standing Data'!$F$15 -> 0 | C67: ='Standing Data'!$F$9 -> 0 | D67: Standing Data | E67: D93 | F67: ='Standing Data'!D98 -> Academy name
A68: ='Standing Data'!$D$15 ->  | B68: ='Standing Data'!$F$15 -> 0 | C68: ='Standing Data'!$F$9 -> 0 | D68: Standing Data | E68: D94 | F68: ='Standing Data'!D99 -> Academy name
A69: ='Standing Data'!$D$15 ->  | B69: ='Standing Data'!$F$15 -> 0 | C69: ='Standing Data'!$F$9 -> 0 | D69: Standing Data | E69: D95 | F69: ='Standing Data'!D100 -> Academy name
A70: ='Standing Data'!$D$15 ->  | B70: ='Standing Data'!$F$15 -> 0 | C70: ='Standing Data'!$F$9 -> 0 | D70: Standing Data | E70: D96 | F70: ='Standing Data'!D101 -> Academy name
A71: ='Standing Data'!$D$15 ->  | B71: ='Standing Data'!$F$15 -> 0 | C71: ='Standing Data'!$F$9 -> 0 | D71: Standing Data | E71: D97 | F71: ='Standing Data'!D102 -> Academy name
A72: ='Standing Data'!$D$15 ->  | B72: ='Standing Data'!$F$15 -> 0 | C72: ='Standing Data'!$F$9 -> 0 | D72: Standing Data | E72: D98 | F72: ='Standing Data'!D103 -> Academy name
A73: ='Standing Data'!$D$15 ->  | B73: ='Standing Data'!$F$15 -> 0 | C73: ='Standing Data'!$F$9 -> 0 | D73: Standing Data | E73: D99 | F73: ='Standing Data'!D104 -> Academy name
A74: ='Standing Data'!$D$15 ->  | B74: ='Standing Data'!$F$15 -> 0 | C74: ='Standing Data'!$F$9 -> 0 | D74: Standing Data | E74: D100 | F74: ='Standing Data'!D105 -> Academy name
A75: ='Standing Data'!$D$15 ->  | B75: ='Standing Data'!$F$15 -> 0 | C75: ='Standing Data'!$F$9 -> 0 | D75: Standing Data | E75: D101 | F75: ='Standing Data'!D106 -> Academy name
A76: ='Standing Data'!$D$15 ->  | B76: ='Standing Data'!$F$15 -> 0 | C76: ='Standing Data'!$F$9 -> 0 | D76: Standing Data | E76: D102 | F76: ='Standing Data'!D107 -> Academy name
A77: ='Standing Data'!$D$15 ->  | B77: ='Standing Data'!$F$15 -> 0 | C77: ='Standing Data'!$F$9 -> 0 | D77: Standing Data | E77: D103 | F77: ='Standing Data'!D108 -> Academy name
A78: ='Standing Data'!$D$15 ->  | B78: ='Standing Data'!$F$15 -> 0 | C78: ='Standing Data'!$F$9 -> 0 | D78: Standing Data | E78: D104 | F78: ='Standing Data'!D109 -> Academy name
A79: ='Standing Data'!$D$15 ->  | B79: ='Standing Data'!$F$15 -> 0 | C79: ='Standing Data'!$F$9 -> 0 | D79: Standing Data | E79: D105 | F79: ='Standing Data'!D110 -> Academy name
A80: ='Standing Data'!$D$15 ->  | B80: ='Standing Data'!$F$15 -> 0 | C80: ='Standing Data'!$F$9 -> 0 | D80: Standing Data | E80: D106 | F80: ='Standing Data'!D111 -> Academy name
A81: ='Standing Data'!$D$15 ->  | B81: ='Standing Data'!$F$15 -> 0 | C81: ='Standing Data'!$F$9 -> 0 | D81: Standing Data | E81: D107 | F81: ='Standing Data'!D112 -> Academy name
A82: ='Standing Data'!$D$15 ->  | B82: ='Standing Data'!$F$15 -> 0 | C82: ='Standing Data'!$F$9 -> 0 | D82: Standing Data | E82: D108 | F82: ='Standing Data'!D113 -> Academy name
A83: ='Standing Data'!$D$15 ->  | B83: ='Standing Data'!$F$15 -> 0 | C83: ='Standing Data'!$F$9 -> 0 | D83: Standing Data | E83: D109 | F83: ='Standing Data'!D114 -> Academy name
A84: ='Standing Data'!$D$15 ->  | B84: ='Standing Data'!$F$15 -> 0 | C84: ='Standing Data'!$F$9 -> 0 | D84: Standing Data | E84: D110 | F84: ='Standing Data'!D115 -> Academy name
A85: ='Standing Data'!$D$15 ->  | B85: ='Standing Data'!$F$15 -> 0 | C85: ='Standing Data'!$F$9 -> 0 | D85: Standing Data | E85: D111 | F85: ='Standing Data'!D116 -> Academy name
